{"text_format":"1","workbook":"xlsx","n_sheets":14,"sheets":["READ ME","HOME","Subprojectzero1","Subprojectzero2","Subprojectzero3","Projectzero","Resultszero","Comparisonzero","Emission factors","Logos","Sheets","Lists","Translate","Disclaimer"],"not_rendered":{"charts":18,"images":9,"macros":1,"external_links":2,"defined_names":75,"comments":3,"pivot_tables":0},"unopened":[],"bounds":{"document_bytes":16777216,"sheet_cells":100000,"rows_first":2000,"rows_last":500,"rows_between":2000,"halvings":0,"cell_chars":16384,"cell_head_chars":4096},"cells_cut":0,"cells_raw":0,"read":"whole","date_system":"1900"}

{"sheet":"READ ME","index":0,"n_rows":50,"n_cols":11,"rows_kept":50,"cut":false,"hidden":false,"merged":[[17,5,17,6],[17,7,17,8]]}
[]
[null,null,{"$f":"Translate!$A$3&\" \"&E10","v":"EFFC DFI Carbon Calculator Tool v4.0"}]
[]
[]
[null,null,{"$f":"Translate!$A$4","v":"TITLE"},null,{"$f":"C2","v":"EFFC DFI Carbon Calculator Tool v4.0"}]
[]
[null,null,{"$f":"Translate!$A$5","v":"AUTHORS"},null,"Jean-Yves Wilmotte",null,"Carbone 4","jean-yves.wilmotte@carbone4.com",null,null,"www.carbone4.com"]
[null,null,null,null,"Sylvain Borie",null,"Carbone 4","sylvain.borie@carbone4.com"]
[]
[null,null,{"$f":"Translate!$A$6","v":"VERSION NUMBER"},null,{"$f":"Translate!$A$28","v":"v4.0"}]
[]
[null,null,{"$f":"Translate!$A$7","v":"Copyright"},null,{"$f":"Translate!$A$29","v":"EFFC & DFI, 2012. All rights reserved."}]
[]
[null,null,{"$f":"Translate!$A$8","v":"DATE"},null,"2020-09-01"]
[]
[null,null,{"$f":"Translate!$A$500","v":"Language"},null,null,{"$f":"Translate!$A$152","v":"Emission factor database"},null,null,null,null,{"$f":"Translate!$A$502","v":"Units system"}]
[]
[null,null,null,"English",null,"EFFC DFI methodology recommended emission factors",null,{"$f":"Translate!$A$237","v":"Do not change the database unless you really need it"},null,null,"Metric system"]
[]
[]
[]
[null,null,{"$f":"Translate!$A$9","v":"WHAT IS THIS TOOL ?"}]
[]
[null,null,null,{"$f":"Translate!$A$14","v":"This excel spreadsheet is a carbon emission calculator for deep foundation techniques and projects."}]
[null,null,null,{"$f":"Translate!$A$15","v":"It has been developed to support EFFC and DFI members in calculating the carbon footprint of their projects, compare solutions and value technical innovation to reduce GHG emissions."}]
[null,null,null,{"$f":"Translate!$A$16","v":"On behalf of EFFC DFI, Carbone 4 developed a specific methodology and this tool to ensure coherence and comparability between  various companies calculation"}]
[null,null,null,{"$f":"Translate!$A$17","v":"Functionalities: calculation of the carbon footprint using standard or specific values, comparisons of projects, construction of complex project by adding simple techniques one to another."}]
[]
[]
[null,null,{"$f":"Translate!$A$10","v":"HOW TO USE THIS TOOL ? SOME QUICK TIPS"}]
[]
[null,null,null,{"$f":"Translate!$A$18","v":"1) Please first make sure that you have the latest version of the tool - check EFFC relevant webpage."},null,null,null,null,"http://www.geotechnicalcarboncalculator.com/"]
[null,null,null,{"$f":"Translate!$A$19","v":"2) Ensure you are trained to use this tool and understand its capabilities and limitations. Read the user guide and associated methodological document."}]
[null,null,null,{"$f":"Translate!$A$20","v":"3) Load your own logo in the tool"}]
[null,null,null,{"$f":"Translate!$A$21","v":"4) Create one or more new subprojects using the \"New Subproject sheet\" button located in the HOME worksheet"}]
[null,null,null,{"$f":"Translate!$A$22","v":"a) Enter all information relative to your different projects in the yellow tabs. You can add, duplicate or remove as many yellow tabs as you like."}]
[null,null,null,{"$f":"Translate!$A$23","v":"b) The input data for a given project are prioritised according to the technique used. "}]
[null,null,null,{"$f":"Translate!$A$24","v":"5) Create one or more new projects using the \"New Project sheet\" button located in the HOME worksheet"}]
[null,null,null,{"$f":"Translate!$A$25","v":"A project is an ensemble of subprojects and projects"}]
[null,null,null,{"$f":"Translate!$A$26","v":"6) Export the result in a A4 PDF document"}]
[null,null,null,{"$f":"Translate!$A$27","v":"7) Compare different alternatives in the \"Comparison\" worksheet"}]
[]
[]
[null,null,{"$f":"Translate!$A$12","v":"Color code"}]
[null,null,{"$f":"Translate!$A$13","v":"In all worksheets"}]
[null,null,null,null,{"$f":"Translate!$A$30","v":"   Project input data (to be filled by user)"}]
[null,null,null,null,{"$f":"Translate!$A$31","v":"Coloured cells : non editable cells"}]
[]
[]
[null,null,{"$f":"Translate!$A$501","v":"Emission breakdown : Average results (based on samples studied to develop the methodology)"}]

{"sheet":"HOME","index":1,"n_rows":50,"n_cols":13,"rows_kept":50,"cut":false,"hidden":false,"merged":[[4,9,8,12],[12,3,12,7],[22,3,22,7],[49,3,49,7],[1,3,1,7],[4,4,4,6],[5,4,5,6],[6,4,6,6],[7,4,7,6],[8,4,8,6]]}
[]
[null,null,null,{"$f":"Translate!$A$32","v":"EFFC DFI Project Carbon Calculator"}]
[]
[]
[null,null,null,{"$f":"Translate!$A$33","v":"Kind of Worksheet"},{"$f":"Translate!$A$41","v":"Purpose"},null,null,{"$f":"Translate!$A$56","v":"Input"},null,{"$f":"Lists!H9","v":"General Principles :  emission sources are split into two categories :\n - primary emission sources (represented in colors)\n  - secondary emission sources (represented in gray)\n\nThe method recommends to start with the primary emission sources,with the secondary emission sources being automatically estimated. Then you may want to fine tune the calculation using specific activity data for the secondary emission sources also."}]
[null,null,null,{"$f":"Translate!$A$34","v":"Subproject"},{"$f":"Translate!$A$42","v":"Calculate the carbon footprint of a part of a project"},null,null,{"$f":"Translate!$A$57","v":"Field activities data (USER SPECIFIED)"}]
[null,null,null,{"$f":"Translate!$A$35","v":"Project"},{"$f":"Translate!$A$43","v":"Total other sheets"},null,null,{"$f":"Translate!$A$58","v":"Subproject sheets\nProject sheets"}]
[null,null,null,{"$f":"Translate!$A$36","v":"Results"},{"$f":"Translate!$A$44","v":"Extract the main data in a printable layout"},null,null,{"$f":"Translate!$A$58","v":"Subproject sheets\nProject sheets"}]
[null,null,null,{"$f":"Translate!$A$37","v":"Comparison"},{"$f":"Translate!$A$45","v":"Compare different projects or subprojects"},null,null,{"$f":"Translate!$A$58","v":"Subproject sheets\nProject sheets"}]
[]
[]
[null,null,null,null,{"$f":"Translate!$A$46","v":"Create here your subproject sheets"},null,null,null,null,{"$f":"Translate!$A$59","v":"Existing Subprojects"},{"$f":"Translate!$A$60","v":"Existing Projects"},{"$f":"Translate!$A$61","v":"Results sheets"},{"$f":"Translate!$A$62","v":"Comparison sheets"}]
[null,null,null,{"$f":"Translate!$A$38","v":"A subproject sheet is a spreadsheet in which you enter all  activity data regarding one technique."}]
[{"$f":"IF(ISBLANK(F14),1,IF(ISERROR(INDIRECT(\"'\"&F14&\"'!A1\")),0,1))","v":1},null,null,null,{"$f":"Translate!$A$47","v":"Name"},null,{"$f":"IF(ISERROR(INDIRECT(\"'\"&F14&\"'!A1\")),\"\",Translate!$A$54&F14&\"' sheet already exists. Please choose another name or delete existing sheet.\")","v":""}]
[null,null,null,null,{"$f":"Translate!$A$48","v":"Technique"},{"$f":"Translate!$A$281","v":"Bored piles"},null,{"$f":"INDEX('Emission factors'!$AF$343:$AF$361,MATCH(F15,'Emission factors'!$C$343:$C$361,0))","v":1}]
[null,null,null,null,{"$f":"Translate!$A$49","v":"Copy from"},null,{"$f":"Translate!$A$55","v":"Leave empty to create an empty project"}]
[]
[]
[]
[]
[]
[null,null,null,null,{"$f":"Translate!$A$50","v":"Create here your projects sheets"}]
[null,null,null,{"$f":"Translate!$A$39","v":"A project sheet is a results sheet where you  compare and consolidate subproject & projects sheets"}]
[{"$f":"IF(ISBLANK(F24),1,IF(ISERROR(INDIRECT(\"'\"&F24&\"'!A1\")),0,1))","v":1},null,null,null,{"$f":"Translate!$A$47","v":"Name"},null,{"$f":"IF(ISERROR(INDIRECT(\"'\"&F24&\"'!A1\")),\"\",Translate!$A$54&F24&\"' sheet already exists. Please choose another name or delete existing sheet.\")","v":""}]
[]
[]
[]
[]
[]
[]
[null,null,null,null,{"$f":"Translate!$A$51","v":"Create here a results sheet"}]
[]
[{"$f":"IF(ISBLANK(F33),1,IF(ISERROR(INDIRECT(\"'\"&F33&\"'!A1\")),0,1))","v":1},null,null,null,{"$f":"Translate!$A$47","v":"Name"},null,{"$f":"IF(ISERROR(INDIRECT(\"'\"&F33&\"'!A1\")),\"\",Translate!$A$54&F33&\"' sheet already exists. Please choose another name or delete existing sheet.\")","v":""}]
[]
[]
[]
[]
[]
[]
[null,null,null,null,{"$f":"Translate!$A$52","v":"Create here your comparison sheets"}]
[null,null,null,null,null,null,{"$f":"IF(ISERROR(INDIRECT(\"'\"&F41&\"'!A1\")),\"\",Translate!$A$54&F41&\"' sheet already exists. Please choose another name or delete existing sheet.\")","v":""}]
[{"$f":"IF(ISBLANK(F42),1,IF(ISERROR(INDIRECT(\"'\"&F42&\"'!A1\")),0,1))","v":1},null,null,null,{"$f":"Translate!$A$47","v":"Name"},null,{"$f":"IF(ISERROR(INDIRECT(\"'\"&F42&\"'!A1\")),\"\",Translate!$A$54&F42&\"' sheet already exists. Please choose another name or delete existing sheet.\")","v":""}]
[]
[]
[]
[]
[]
[]
[null,null,null,null,{"$f":"Translate!$A$53","v":"Load your own logo"}]
[null,null,null,{"$f":"Translate!$A$40","v":"First time on this tool? Make sure your logo appears on the results page!"}]

{"sheet":"Subprojectzero1","index":2,"n_rows":149,"n_cols":57,"rows_kept":149,"cut":false,"hidden":true,"merged":[[102,5,102,7],[106,5,106,7],[2,19,3,25],[3,27,9,31],[5,1,9,1],[5,19,9,25],[11,21,11,23],[26,3,27,3],[96,5,96,7],[98,5,98,7]]}
["Subproject",null,null,null,null,null,null,null,null,null,null,null,"Total primary emission sources",null,null,{"$f":"SUMPRODUCT(($AH$17:$AH$177=1)*$AO$17:$AO$177)","v":0},{"$f":"SUMPRODUCT(($AH$17:$AH$177=1)*1,$AL$17:$AL$177)","v":0},null,null,"externally calculated emissions",{"$f":"IF(SUMPRODUCT(($AG$17:$AG$172=\"ext\")*1,$AJ$17:$AJ$172)<>0,TRUE)","v":false},"ratios used",{"$f":"IF(SUMPRODUCT(($AG$17:$AG$172=\"ratio\")*1,$AJ$17:$AJ$172)<>0,TRUE)","v":false},null,null,null,"Functional unit 1",{"$f":"IF(E13=\"value\",1,0)","v":1},"country",0,null,null,null,null,null,{"$f":"Translate!$A$73","v":"Concrete / Slurry / Grout mix"},{"$f":"Translate!$A$138","v":"Steel"},{"$f":"Translate!$A$118","v":"Other"},null,null,null,{"$f":"'Emission factors'!D342","v":"Energy"},{"$f":"'Emission factors'!E342","v":"Materials"},{"$f":"'Emission factors'!F342","v":"Freight"},{"$f":"'Emission factors'!G342","v":"Mob/demob"},{"$f":"'Emission factors'!H342","v":"People's transportation"},{"$f":"'Emission factors'!I342","v":"Assets"},{"$f":"'Emission factors'!J342","v":"Waste"}]
[null,null,null,null,null,null,null,null,null,null,null,null,"Total secondary emission sources",null,null,{"$f":"SUMPRODUCT(($AH$17:$AH$177=2)*$AO$17:$AO$177)","v":0},{"$f":"SUMPRODUCT(($AH$17:$AH$177=2)*1,$AL$17:$AL$177)","v":0},null,null,null,null,null,null,null,null,null,"Functional unit 2",{"$f":"IF(E14=\"value\",1,0)","v":1},null,null,null,null,null,null,null,{"$f":"SUMPRODUCT(($AK$17:$AK$172=AJ1)*1,$AJ$17:$AJ$172)/1000","v":0},{"$f":"SUMPRODUCT(($AK$17:$AK$172=AK1)*1,$AJ$17:$AJ$172)/1000","v":0},{"$f":"SUMPRODUCT(($AK$17:$AK$172=AL1)*1,$AJ$17:$AJ$172)/1000","v":0},null,null,"Primary(1)/Secondary(2)",{"$f":"VLOOKUP($E$6,'Emission factors'!$C$343:$AY$370,'Emission factors'!Y$340,0)","v":1},{"$f":"VLOOKUP($E$6,'Emission factors'!$C$343:$AY$370,'Emission factors'!Z$340,0)","v":1},{"$f":"VLOOKUP($E$6,'Emission factors'!$C$343:$AY$370,'Emission factors'!AA$340,0)","v":2},{"$f":"VLOOKUP($E$6,'Emission factors'!$C$343:$AY$370,'Emission factors'!AB$340,0)","v":2},{"$f":"VLOOKUP($E$6,'Emission factors'!$C$343:$AY$370,'Emission factors'!AC$340,0)","v":2},{"$f":"VLOOKUP($E$6,'Emission factors'!$C$343:$AY$370,'Emission factors'!AD$340,0)","v":2},{"$f":"VLOOKUP($E$6,'Emission factors'!$C$343:$AY$370,'Emission factors'!AE$340,0)","v":2},null,null,"Messages"]
[null,null,null,null,null,null,null,null,null,null,null,null,null,null,null,null,null,null,null,{"$f":"Translate!$A$123&AQ9&AP9&AR9&AS9&AT9&AU9&AV9","v":"Primary emission sources : \nMaterials, Energy, "},null,null,null,null,null,null,null,{"$f":"Translate!$A$131","v":"Comments :"},null,null,null,null,null,null,null,null,null,null,null,null,"Project emission repartition",{"$f":"IF(SUM($P$7:$P$13)=0,0,VLOOKUP(AP1,$H$7:$P$13,9,0)/SUM($P$7:$P$13))","v":0},0,0,0,0,0,0,null,{"$f":"IF(E9=0,AY3,\"\")","v":"Enter the number of working days\n"},{"$f":"Lists!H2","v":"Enter the number of working days\n"}]
[null,null,null,null,null,null,null,null,null,null,null,null,null,null,null,null,null,null,null,null,null,null,null,null,null,null,null,null,null,null,null,null,null,null,null,null,null,null,null,null,"Average ratio",{"$f":"VLOOKUP($E$6,'Emission factors'!$C$343:$Y$370,'Emission factors'!D$340,0)","v":4.0916663959490784E-2},{"$f":"VLOOKUP($E$6,'Emission factors'!$C$343:$Y$370,'Emission factors'!E$340,0)","v":0.95908333604050922},{"$f":"VLOOKUP($E$6,'Emission factors'!$C$343:$Y$370,'Emission factors'!F$340,0)","v":6.411482467395477E-3},{"$f":"VLOOKUP($E$6,'Emission factors'!$C$343:$Y$370,'Emission factors'!G$340,0)","v":3.1868748686830371E-3},{"$f":"VLOOKUP($E$6,'Emission factors'!$C$343:$Y$370,'Emission factors'!H$340,0)","v":1.8692695917956075E-3},{"$f":"VLOOKUP($E$6,'Emission factors'!$C$343:$Y$370,'Emission factors'!I$340,0)","v":4.377484024657128E-3},{"$f":"VLOOKUP($E$6,'Emission factors'!$C$343:$Y$370,'Emission factors'!J$340,0)","v":2.6591480192145979E-3},null,{"$f":"IF(E10=0,AY4,\"\")","v":"Enter the average number of people working on the project\n"},{"$f":"Lists!H3","v":"Enter the average number of people working on the project\n"}]
[null,null,null,{"$f":"Translate!$A$64","v":"Subproject name"},null,null,null,null,null,null,null,null,null,null,null,null,null,null,null,{"$f":"IF(NOT(AW10),Translate!$A$124,\"\")","v":"Please enter activities data relative to the primary emission sources"},null,null,null,null,null,null,null,null,null,null,null,null,null,null,null,null,null,null,null,null,"Ratio needed",{"$f":"IF(AP2=1,0,IF(SUMPRODUCT($AO$17:$AO$183*($AI$17:$AI$183=AP1))>0,0,1))","v":0},0,1,1,1,1,1,null,{"$f":"IF(Translate!$A$300=E12,AY5,\"\")","v":"Select a country\n"},{"$f":"Lists!H4","v":"Select a country\n"},null,{"$f":"Translate!$A$132","v":"Primary emission sources"},{"$f":"P1/1000","v":0},{"$f":"P2/1000","v":0},{"$f":"Q1/1000","v":0}]
[null,{"$f":"Translate!$A$63","v":"duplication +"},null,{"$f":"Translate!$A$48","v":"Technique"},{"$f":"Translate!$A$281","v":"Bored piles"},null,null,{"$f":"Translate!$A$103","v":"Sources"},null,null,null,null,null,null,null,{"$f":"Translate!$A$115","v":"tCO2e"},{"$f":"Translate!$A$115","v":"tCO2e"},null,null,{"$f":"IF(P14>0,AX3&AX4&AX5&AQ8&AP8&AR8&AS8&AT8&AU8&AV8,\"\")","v":""},null,null,null,null,null,null,null,null,null,null,null,null,null,null,null,null,null,null,null,null,"Too high",{"$f":"VLOOKUP($E$6,'Emission factors'!$C$343:$Y$370,'Emission factors'!K$340,0)","v":0.15},{"$f":"VLOOKUP($E$6,'Emission factors'!$C$343:$Y$370,'Emission factors'!L$340,0)","v":1},{"$f":"VLOOKUP($E$6,'Emission factors'!$C$343:$Y$370,'Emission factors'!M$340,0)","v":0.1},{"$f":"VLOOKUP($E$6,'Emission factors'!$C$343:$Y$370,'Emission factors'!N$340,0)","v":0.1},{"$f":"VLOOKUP($E$6,'Emission factors'!$C$343:$Y$370,'Emission factors'!O$340,0)","v":0.1},{"$f":"VLOOKUP($E$6,'Emission factors'!$C$343:$Y$370,'Emission factors'!P$340,0)","v":0.05},{"$f":"VLOOKUP($E$6,'Emission factors'!$C$343:$Y$370,'Emission factors'!Q$340,0)","v":0.05},null,null,{"$f":"Lists!H5","v":" emissions are relatively high\n"},null,{"$f":"Translate!$A$133","v":"Secondary emission sources"},{"$f":"BB5","v":0},{"$f":"BC5","v":0},{"$f":"Q2/1000","v":0}]
[null,null,null,{"$f":"Translate!$A$65","v":"Date of calculation"},null,null,null,{"$f":"Translate!$A$104","v":"Materials"},null,null,null,{"$f":"AJ2","v":0},{"$f":"AK2","v":0},{"$f":"AL2","v":0},{"$f":"AL3","v":0},{"$f":"SUMPRODUCT(($AI$17:$AI$172=$H7)*1,$AJ$17:$AJ$172)/1000","v":0},{"$f":"SUMPRODUCT(($AI$17:$AI$172=$H7)*1,$AL$17:$AL$172)/1000","v":0},null,null,null,null,null,null,null,null,null,null,null,null,null,null,null,null,null,null,null,null,null,null,null,"Too low",{"$f":"VLOOKUP($E$6,'Emission factors'!$C$343:$Y$370,'Emission factors'!R$340,0)","v":0.02},{"$f":"VLOOKUP($E$6,'Emission factors'!$C$343:$Y$370,'Emission factors'!S$340,0)","v":0.5},{"$f":"VLOOKUP($E$6,'Emission factors'!$C$343:$Y$370,'Emission factors'!T$340,0)","v":1E-3},{"$f":"VLOOKUP($E$6,'Emission factors'!$C$343:$Y$370,'Emission factors'!U$340,0)","v":1E-4},{"$f":"VLOOKUP($E$6,'Emission factors'!$C$343:$Y$370,'Emission factors'!V$340,0)","v":1E-4},{"$f":"VLOOKUP($E$6,'Emission factors'!$C$343:$Y$370,'Emission factors'!W$340,0)","v":5.0000000000000001E-4},{"$f":"VLOOKUP($E$6,'Emission factors'!$C$343:$Y$370,'Emission factors'!X$340,0)","v":0},null,null,{"$f":"Lists!H6","v":" emissions are relatively low\n"},null,{"$f":"Translate!$A$134","v":"Total"},{"$f":"BB6","v":0},{"$f":"BC6","v":0},{"$f":"BD5+BD6","v":0},{"$f":"IF(P7=0,0,ROUND(P7,-ROUNDDOWN(LOG(ABS(P7)),0)+1))","v":0}]
[null,null,null,{"$f":"Translate!$A$66","v":"Author"},null,null,null,{"$f":"Translate!$A$105","v":"Energy"},null,null,null,null,null,null,{"$f":"P8","v":0},0,0,null,null,null,null,null,null,null,null,null,null,null,null,null,null,null,null,null,null,null,null,null,null,null,null,{"$f":"IF(AP7>AP3,AP1&$AY$7,IF(AP6<AP3,AP1&$AY$6,\"\"))","v":"Energy emissions are relatively low\n"},"Materials emissions are relatively low\n","Freight emissions are relatively low\n","Mob/demob emissions are relatively low\n","People's transportation emissions are relatively low\n","Assets emissions are relatively low\n",{"$f":"IF(AV7>AV3,AV1&$AY$7,IF(AV6<AV3,AV1&$AY$6,\"\"))","v":""},null,null,{"$f":"Lists!H7","v":"    (Primary source)"},null,null,null,null,null,{"$f":"IF(P8=0,0,ROUND(P8,-ROUNDDOWN(LOG(ABS(P8)),0)+1))","v":0}]
[null,null,null,{"$f":"Translate!$A$67","v":"Working days"},null,{"$f":"Translate!$A$67","v":"Working days"},null,{"$f":"Translate!$A$106","v":"Freight"},null,null,null,null,null,null,0,0,0,null,null,null,null,null,null,null,null,null,null,null,null,null,null,null,null,null,null,null,null,null,null,null,null,{"$f":"IF(AP2=1,AP1&\", \",\"\")","v":"Energy, "},"Materials, ","","","","","",null,null,{"$f":"Lists!H8","v":"    (Secondary source)"},null,null,null,null,null,0]
[null,null,null,{"$f":"Translate!$A$68","v":"Workforce"},null,{"$f":"Translate!$A$94","v":"Full-time equivalent"},null,{"$f":"Translate!$A$107","v":"Mob/demob"},null,null,null,null,null,null,0,0,0,null,null,null,null,null,null,null,null,null,null,null,null,null,null,null,null,null,null,null,null,null,null,null,"msg active",{"$f":"IF((AP2=1),NOT(AP3=0),TRUE)","v":false},{"$f":"IF((AQ2=1),NOT(AQ3=0),TRUE)","v":false},true,true,true,true,true,{"$f":"AND(AP10:AV10)","v":false},null,null,null,null,null,null,null,0]
[null,null,null,{"$f":"Translate!$A$69","v":"Project value"},null,{"$f":"Translate!$A$95","v":"€"},null,{"$f":"Translate!$A$108","v":"People's transportation"},null,null,null,null,null,null,0,0,0,null,null,null,null,null,null,null,null,null,null,null,null,null,null,null,null,null,null,null,null,null,null,null,null,{"$f":"IF(AP2=1,AP1&$AY$8,AP1&$AY$9)","v":"Energy    (Primary source)"},{"$f":"IF(AQ2=1,AQ1&$AY$8,AQ1&$AY$9)","v":"Materials    (Primary source)"},"Freight    (Secondary source)","Mob/demob    (Secondary source)","People's transportation    (Secondary source)","Assets    (Secondary source)","Waste    (Secondary source)",null,null,null,null,null,null,null,null,0]
[null,null,null,{"$f":"Translate!$A$70","v":"Country"},{"$f":"Translate!$A$300","v":"-Select the project country"},null,null,{"$f":"Translate!$A$109","v":"Assets"},null,null,null,null,null,null,0,0,0,null,null,{"$f":"Translate!$A$125","v":"TOTAL GHG EMISSIONS"},null,{"$f":"IF(P14=0,0,ROUND(P14,-ROUNDDOWN(LOG(ABS(P14)),0)+1))","v":0},null,null,{"$f":"Translate!$A$115","v":"tCO2e"},null,null,null,null,null,null,null,null,null,null,null,null,null,null,null,null,null,null,null,null,null,null,null,null,null,null,null,null,null,null,null,0]
[null,null,null,{"$f":"Translate!$A$71","v":"Functional unit 1"},{"$f":"Translate!$A$87","v":"value"},{"$f":"Translate!$A$96","v":"unit"},null,{"$f":"Translate!$A$110","v":"Waste"},null,null,null,null,null,null,0,0,0,null,null,null,null,null,null,null,null,null,null,null,null,null,null,null,null,null,null,null,null,null,null,null,null,null,null,null,null,null,null,null,null,null,null,null,null,null,null,null,0]
[null,null,null,{"$f":"Translate!$A$72","v":"Functional unit 2"},{"$f":"Translate!$A$87","v":"value"},{"$f":"Translate!$A$96","v":"unit"},null,null,null,null,null,null,null,null,null,{"$f":"SUM(P7:P13)","v":0}]
[]
[null,null,null,null,null,null,null,null,"Activity data",null,"Emission factor","GHG Emissions"]
[null,null,null,{"$f":"AQ11","v":"Materials    (Primary source)"},null,null,null,null,null,null,null,null,null,null,null,null,{"$f":"AR11","v":"Freight    (Secondary source)"},null,null,null,null,null,null,null,null,null,null,null,null,null,null,null,null,"Emissions source importance","Emissions source","Emissions","Material type","Uncertainties",null,"Bloc height"]
[]
[null,null,null,{"$f":"Translate!$A$73","v":"Concrete / Slurry / Grout mix"}]
[null,"+",null,null,null,null,null,null,null,null,null,null,null,null,null,null,null,null,null,null,null,null,null,null,null,null,null,null,null,null,null,null,null,null,null,null,null,null,null,{"$f":"ROW(F43)-ROW(F19)","v":24}]
[null,null,null,{"$f":"Translate!$A$47","v":"Name"},{"$f":"Translate!$A$88","v":"Default concrete"},null,null,null,null,null,null,{"$f":"Translate!$A$475","v":"made at plant"},{"$f":"IF(L21=Translate!$A$475,1,0)","v":1}]
[null,null,null,{"$f":"Translate!$A$74","v":"Quantity"},null,{"$f":"'Emission factors'!$F$414","v":"m3"},null,null,{"$f":"E22","v":0},{"$f":"F22","v":"m3"},null,null,null,null,null,{"$f":"Translate!$A$112","v":"Distance"},{"$f":"IF(L21=\"made on site\",0,20)","v":20},{"$f":"'Emission factors'!$F$410","v":"km"},{"$f":"Translate!$A$120","v":"Type"},{"$f":"Translate!$A$206","v":"Road - Rigid >17t"},{"$f":"Translate!$A$127","v":"Load"},{"$f":"'Emission factors'!$D$311","v":8},{"$f":"J22","v":"m3"},{"$f":"IF(V22=0,0,ROUNDUP(I22/V22,0))","v":0},{"$f":"Translate!$A$130","v":"travels"},{"$f":"Translate!$A$128","v":"empty-return rate"},1,{"$f":"VLOOKUP(T22,EFtable,3,0)","v":0.98243999999999998},{"$f":"Q22*X22*(1+AA22)*AB22","v":0},{"$f":"Translate!$A$102","v":"kgCO2e"},null,null,null,null,null,null,null,null,0]
[null,null,null,null,null,null,null,null,null,null,null,null,null,null,null,null,null,null,null,null,null,null,null,null,null,null,null,null,null,null,null,null,null,{"$f":"HLOOKUP(AI23,$AP$1:$AV$2,2,0)","v":2},{"$f":"Translate!$A$106","v":"Freight"},{"$f":"AC22","v":0},null,{"$f":"VLOOKUP(T22,EFtable,8,0)*AC22","v":0},{"$f":"1+OFFSET(AM23,-1,0)","v":1},null,{"$f":"AJ23","v":0}]
[null,null,"+",{"$f":"Translate!$A$75","v":"Cement"},{"$f":"Translate!$A$181","v":"CEM I"},null,null,null,null,null,null,null,null,null,null,null,null,null,null,null,null,null,null,null,null,null,null,null,null,null,null,null,null,null,null,null,null,null,{"$f":"1+OFFSET(AM24,-1,0)","v":2},{"$f":"ROW(F28)-ROW(F24)","v":4}]
[null,null,null,{"$f":"Translate!$A$76","v":"Total cementitious content"},{"$f":"VLOOKUP($E$6,DefaultConcrete,3,0)","v":400},{"$f":"OFFSET(AS25,-AM25+6,0)","v":"kg/m3"},null,null,null,null,null,null,null,null,null,{"$f":"Translate!$A$112","v":"Distance"},{"$f":"IF(ISERROR(VLOOKUP(D24,StandardFreight,3,0)),VLOOKUP(Translate!$A$118,StandardFreight,3,0),VLOOKUP(D24,StandardFreight,3,0))","v":20},{"$f":"'Emission factors'!$F$410","v":"km"},{"$f":"Translate!$A$120","v":"Type"},{"$f":"IF(ISERROR(VLOOKUP(D24,StandardFreight,2,0)),VLOOKUP(\"Other\",StandardFreight,2,0),VLOOKUP(D24,StandardFreight,2,0))","v":"Road - Rigid >17t"},{"$f":"Translate!$A$127","v":"Load"},{"$f":"VLOOKUP(T25,FreightLoadFactors,2,0)","v":7.5},{"$f":"J28","v":"t"},{"$f":"IF(V25=0,0,ROUNDUP(I28/V25,0))","v":0},{"$f":"Translate!$A$130","v":"travels"},{"$f":"Translate!$A$128","v":"empty-return rate"},1,{"$f":"VLOOKUP(T25,EFtable,3,0)","v":0.98243999999999998},{"$f":"Q25*X25*(1+AA25)*AB25","v":0},{"$f":"Translate!$A$102","v":"kgCO2e"},null,null,null,{"$f":"HLOOKUP(AI25,$AP$1:$AV$2,2,0)","v":1},{"$f":"Translate!$A$104","v":"Materials"},{"$f":"L28","v":0},{"$f":"Translate!$A$73","v":"Concrete / Slurry / Grout mix"},{"$f":"VLOOKUP(\"CEM I\",EFtable,8,0)*L28","v":0},3,null,{"$f":"AJ25","v":0}]
[null,null,null,{"$f":"Translate!$A$77","v":"Secondary constituent"},{"$f":"VLOOKUP(E24,'Emission factors'!$C$286:$M$294,2,0)","v":"-"},null,null,null,null,null,null,null,null,null,null,null,null,null,null,null,null,null,null,null,null,null,null,null,null,null,null,null,null,{"$f":"HLOOKUP(AI26,$AP$1:$AV$2,2,0)","v":2},{"$f":"Translate!$A$106","v":"Freight"},{"$f":"AC25","v":0},null,{"$f":"VLOOKUP(T25,EFtable,8,0)*AC25","v":0},4,null,{"$f":"AJ26","v":0}]
[null,null,null,{"$f":"Translate!$A$78","v":"Secondary constituent content"},{"$f":"Translate!$A$89","v":"Default value"},{"$f":"Translate!$A$97","v":"Real Value"},null,null,null,null,null,null,null,null,null,null,null,null,null,null,null,null,null,null,null,null,null,null,null,null,null,null,null,null,null,null,null,null,5,null,null,null,null,null,{"$f":"'Emission factors'!$F$411","v":"t"}]
[null,null,null,null,{"$f":"IF(F28=\"\",VLOOKUP(E24,CementTypes,5,0),\"\")","v":0},null,null,null,{"$f":"IF(F25=OFFSET(AS28,-AM28+6,0),E25*OFFSET(E28,-AM28,0)/IF(J28='Emission factors'!E411,1,1000),E25)","v":0},{"$f":"'Emission factors'!$F$411","v":"t"},{"$f":"IF(E24=\"CEM I\",VLOOKUP(E24,EFtable,3,0),(IF(F28=\"\",E28,F28)*VLOOKUP(E26,EFtable,3,0)+(1-IF(F28=\"\",E28,F28))*VLOOKUP(\"CEM I\",EFtable,3,0)))","v":860},{"$f":"I28*K28","v":0},{"$f":"Translate!$A$102","v":"kgCO2e"},null,null,null,null,null,null,null,null,null,null,null,null,null,null,null,null,null,null,null,null,null,null,null,null,null,6,null,null,null,null,null,{"$f":"'Emission factors'!$F$413&\"/\"&F22","v":"kg/m3"}]
[null,null,null,null,null,null,null,null,null,null,null,null,null,null,null,null,null,null,null,null,null,null,null,null,null,null,null,null,null,null,null,null,null,null,null,null,null,null,7]
[null,null,"+",{"$f":"Translate!$A$177","v":"Aggregate"},{"$f":"IF(ISERROR(VLOOKUP($E$6,DefaultConcrete,HLOOKUP(D30,DefaultConcrete,2,0),0)),0,VLOOKUP($E$6,DefaultConcrete,HLOOKUP(D30,DefaultConcrete,2,0),0))","v":900},{"$f":"OFFSET(AS30,-AM30+6,0)","v":"kg/m3"},null,null,{"$f":"IF(F30=OFFSET(AS30,-AM30+6,0),E30*OFFSET(E30,-AM30,0)/IF(J30='Emission factors'!$E$411,1,1000),E30)","v":0},{"$f":"'Emission factors'!$F$411","v":"t"},{"$f":"IF(ISERROR(E31*1),VLOOKUP(D30,EFtable,3,0),VLOOKUP(D30,EFtable,3,0)*(1-E31)+VLOOKUP(D30&Translate!$A$199,EFtable,3,0)*E31)","v":4},{"$f":"IF(F31=Translate!$A$111,0,I30*K30)","v":0},{"$f":"Translate!$A$102","v":"kgCO2e"},null,null,{"$f":"Translate!$A$112","v":"Distance"},{"$f":"IF(ISERROR(VLOOKUP(D30,StandardFreight,3,0)),VLOOKUP(Translate!$A$118,StandardFreight,3,0),VLOOKUP(D30,StandardFreight,3,0))","v":20},{"$f":"'Emission factors'!$F$410","v":"km"},{"$f":"Translate!$A$120","v":"Type"},{"$f":"IF(ISERROR(VLOOKUP(D30,StandardFreight,2,0)),VLOOKUP(\"Other\",StandardFreight,2,0),VLOOKUP(D30,StandardFreight,2,0))","v":"Road - Articulated >33t"},{"$f":"Translate!$A$127","v":"Load"},{"$f":"VLOOKUP(T30,FreightLoadFactors,2,0)","v":15},{"$f":"J30","v":"t"},{"$f":"IF(V30=0,0,ROUNDUP(I30/V30,0))","v":0},{"$f":"Translate!$A$130","v":"travels"},{"$f":"Translate!$A$128","v":"empty-return rate"},1,{"$f":"VLOOKUP(T30,EFtable,3,0)","v":0.93694},{"$f":"Q30*X30*(1+AA30)*AB30","v":0},{"$f":"Translate!$A$102","v":"kgCO2e"},null,null,null,{"$f":"HLOOKUP(AI30,$AP$1:$AV$2,2,0)","v":1},{"$f":"Translate!$A$104","v":"Materials"},{"$f":"L30","v":0},{"$f":"VLOOKUP(D30,EFtable,7,0)","v":"Concrete / Slurry / Grout mix"},{"$f":"VLOOKUP(D30,EFtable,8,0)*L30","v":0},8,{"$f":"ROW(F31)-ROW(F30)","v":1},{"$f":"AJ30","v":0}]
[null,null,null,{"$f":"Translate!$A$79","v":"Recycled content"},{"$f":"IF(ISERROR(VLOOKUP(D30,RecycledContent,2,0)),Translate!$A$90,VLOOKUP(D30,RecycledContent,2,0))","v":"do not apply"},{"$f":"Translate!$A$478","v":"-new or recycled-"},null,null,null,null,null,null,null,null,null,null,null,null,null,null,null,null,null,null,null,null,null,null,null,null,null,null,null,{"$f":"HLOOKUP(AI31,$AP$1:$AV$2,2,0)","v":2},{"$f":"Translate!$A$106","v":"Freight"},{"$f":"AC30","v":0},null,{"$f":"VLOOKUP(T30,EFtable,8,0)*AC30","v":0},9,null,0]
[null,null,null,null,null,null,null,null,null,null,null,null,null,null,null,null,null,null,null,null,null,null,null,null,null,null,null,null,null,null,null,null,null,null,null,null,null,null,10]
[null,null,"+",{"$f":"Translate!$A$190","v":"Sand"},{"$f":"IF(ISERROR(VLOOKUP($E$6,DefaultConcrete,HLOOKUP(D33,DefaultConcrete,2,0),0)),0,VLOOKUP($E$6,DefaultConcrete,HLOOKUP(D33,DefaultConcrete,2,0),0))","v":800},{"$f":"OFFSET(AS33,-AM33+6,0)","v":"kg/m3"},null,null,{"$f":"IF(F33=OFFSET(AS33,-AM33+6,0),E33*OFFSET(E33,-AM33,0)/IF(J33='Emission factors'!$E$411,1,1000),E33)","v":0},{"$f":"'Emission factors'!$F$411","v":"t"},{"$f":"IF(ISERROR(E34*1),VLOOKUP(D33,EFtable,3,0),VLOOKUP(D33,EFtable,3,0)*(1-E34)+VLOOKUP(D33&Translate!$A$199,EFtable,3,0)*E34)","v":6},{"$f":"IF(F34=Translate!$A$111,0,I33*K33)","v":0},{"$f":"Translate!$A$102","v":"kgCO2e"},null,null,{"$f":"Translate!$A$112","v":"Distance"},{"$f":"IF(ISERROR(VLOOKUP(D33,StandardFreight,3,0)),VLOOKUP(Translate!$A$118,StandardFreight,3,0),VLOOKUP(D33,StandardFreight,3,0))","v":20},{"$f":"'Emission factors'!$F$410","v":"km"},{"$f":"Translate!$A$120","v":"Type"},{"$f":"IF(ISERROR(VLOOKUP(D33,StandardFreight,2,0)),VLOOKUP(\"Other\",StandardFreight,2,0),VLOOKUP(D33,StandardFreight,2,0))","v":"Road - Articulated >33t"},{"$f":"Translate!$A$127","v":"Load"},{"$f":"VLOOKUP(T33,FreightLoadFactors,2,0)","v":15},{"$f":"J33","v":"t"},{"$f":"IF(V33=0,0,ROUNDUP(I33/V33,0))","v":0},{"$f":"Translate!$A$130","v":"travels"},{"$f":"Translate!$A$128","v":"empty-return rate"},1,{"$f":"VLOOKUP(T33,EFtable,3,0)","v":0.93694},{"$f":"Q33*X33*(1+AA33)*AB33","v":0},{"$f":"Translate!$A$102","v":"kgCO2e"},null,null,null,{"$f":"HLOOKUP(AI33,$AP$1:$AV$2,2,0)","v":1},{"$f":"Translate!$A$104","v":"Materials"},{"$f":"L33","v":0},{"$f":"VLOOKUP(D33,EFtable,7,0)","v":"Concrete / Slurry / Grout mix"},{"$f":"VLOOKUP(D33,EFtable,8,0)*L33","v":0},11,{"$f":"ROW(F34)-ROW(F33)","v":1},0]
[null,null,null,{"$f":"Translate!$A$79","v":"Recycled content"},{"$f":"IF(ISERROR(VLOOKUP(D33,RecycledContent,2,0)),Translate!$A$90,VLOOKUP(D33,RecycledContent,2,0))","v":"do not apply"},{"$f":"Translate!$A$478","v":"-new or recycled-"},null,null,null,null,null,null,null,null,null,null,null,null,null,null,null,null,null,null,null,null,null,null,null,null,null,null,null,{"$f":"HLOOKUP(AI34,$AP$1:$AV$2,2,0)","v":2},{"$f":"Translate!$A$106","v":"Freight"},{"$f":"AC33","v":0},null,{"$f":"VLOOKUP(T33,EFtable,8,0)*AC33","v":0},12,null,0]
[null,null,null,null,null,null,null,null,null,null,null,null,null,null,null,null,null,null,null,null,null,null,null,null,null,null,null,null,null,null,null,null,null,null,null,null,null,null,13]
[null,null,"+",{"$f":"Translate!$A$198","v":"Water"},{"$f":"IF(ISERROR(VLOOKUP($E$6,DefaultConcrete,HLOOKUP(D36,DefaultConcrete,2,0),0)),0,VLOOKUP($E$6,DefaultConcrete,HLOOKUP(D36,DefaultConcrete,2,0),0))","v":200},{"$f":"OFFSET(AS36,-AM36+6,0)","v":"kg/m3"},null,null,{"$f":"IF(F36=OFFSET(AS36,-AM36+6,0),E36*OFFSET(E36,-AM36,0)/IF(J36='Emission factors'!$E$411,1,1000),E36)","v":0},{"$f":"'Emission factors'!$F$411","v":"t"},{"$f":"IF(ISERROR(E37*1),VLOOKUP(D36,EFtable,3,0),VLOOKUP(D36,EFtable,3,0)*(1-E37)+VLOOKUP(D36&Translate!$A$199,EFtable,3,0)*E37)","v":0.34399999999999997},{"$f":"IF(F37=Translate!$A$111,0,I36*K36)","v":0},{"$f":"Translate!$A$102","v":"kgCO2e"},null,null,{"$f":"Translate!$A$112","v":"Distance"},{"$f":"IF(ISERROR(VLOOKUP(D36,StandardFreight,3,0)),VLOOKUP(Translate!$A$118,StandardFreight,3,0),VLOOKUP(D36,StandardFreight,3,0))","v":0},{"$f":"'Emission factors'!$F$410","v":"km"},{"$f":"Translate!$A$120","v":"Type"},{"$f":"IF(ISERROR(VLOOKUP(D36,StandardFreight,2,0)),VLOOKUP(\"Other\",StandardFreight,2,0),VLOOKUP(D36,StandardFreight,2,0))","v":"Road - Rigid >3.5-7.5t"},{"$f":"Translate!$A$127","v":"Load"},{"$f":"VLOOKUP(T36,FreightLoadFactors,2,0)","v":1.0123216601815823},{"$f":"J36","v":"t"},{"$f":"IF(V36=0,0,ROUNDUP(I36/V36,0))","v":0},{"$f":"Translate!$A$130","v":"travels"},{"$f":"Translate!$A$128","v":"empty-return rate"},1,{"$f":"VLOOKUP(T36,EFtable,3,0)","v":0.49041000000000001},{"$f":"Q36*X36*(1+AA36)*AB36","v":0},{"$f":"Translate!$A$102","v":"kgCO2e"},null,null,null,{"$f":"HLOOKUP(AI36,$AP$1:$AV$2,2,0)","v":1},{"$f":"Translate!$A$104","v":"Materials"},{"$f":"L36","v":0},{"$f":"VLOOKUP(D36,EFtable,7,0)","v":"Concrete / Slurry / Grout mix"},{"$f":"VLOOKUP(D36,EFtable,8,0)*L36","v":0},14,{"$f":"ROW(F37)-ROW(F36)","v":1},0]
[null,null,null,{"$f":"Translate!$A$79","v":"Recycled content"},{"$f":"IF(ISERROR(VLOOKUP(D36,RecycledContent,2,0)),Translate!$A$90,VLOOKUP(D36,RecycledContent,2,0))","v":"do not apply"},{"$f":"Translate!$A$478","v":"-new or recycled-"},null,null,null,null,null,null,null,null,null,null,null,null,null,null,null,null,null,null,null,null,null,null,null,null,null,null,null,{"$f":"HLOOKUP(AI37,$AP$1:$AV$2,2,0)","v":2},{"$f":"Translate!$A$106","v":"Freight"},{"$f":"AC36","v":0},null,{"$f":"VLOOKUP(T36,EFtable,8,0)*AC36","v":0},15,null,0]
[null,null,null,null,null,null,null,null,null,null,null,null,null,null,null,null,null,null,null,null,null,null,null,null,null,null,null,null,null,null,null,null,null,null,null,null,null,null,16]
[null,null,"+",{"$f":"Translate!$A$178","v":"Bentonite"},{"$f":"IF(ISERROR(VLOOKUP($E$6,DefaultConcrete,HLOOKUP(D39,DefaultConcrete,2,0),0)),0,VLOOKUP($E$6,DefaultConcrete,HLOOKUP(D39,DefaultConcrete,2,0),0))","v":0},{"$f":"OFFSET(AS39,-AM39+6,0)","v":"kg/m3"},null,null,{"$f":"IF(F39=OFFSET(AS39,-AM39+6,0),E39*OFFSET(E39,-AM39,0)/IF(J39='Emission factors'!$E$411,1,1000),E39)","v":0},{"$f":"'Emission factors'!$F$411","v":"t"},{"$f":"IF(ISERROR(E40*1),VLOOKUP(D39,EFtable,3,0),VLOOKUP(D39,EFtable,3,0)*(1-E40)+VLOOKUP(D39&Translate!$A$199,EFtable,3,0)*E40)","v":474.97791999999998},{"$f":"IF(F40=Translate!$A$111,0,I39*K39)","v":0},{"$f":"Translate!$A$102","v":"kgCO2e"},null,null,{"$f":"Translate!$A$112","v":"Distance"},{"$f":"IF(ISERROR(VLOOKUP(D39,StandardFreight,3,0)),VLOOKUP(Translate!$A$118,StandardFreight,3,0),VLOOKUP(D39,StandardFreight,3,0))","v":300},{"$f":"'Emission factors'!$F$410","v":"km"},{"$f":"Translate!$A$120","v":"Type"},{"$f":"IF(ISERROR(VLOOKUP(D39,StandardFreight,2,0)),VLOOKUP(Translate!$A$118,StandardFreight,2,0),VLOOKUP(D39,StandardFreight,2,0))","v":"Road - Articulated >33t"},{"$f":"Translate!$A$127","v":"Load"},{"$f":"VLOOKUP(T39,FreightLoadFactors,2,0)","v":15},{"$f":"J39","v":"t"},{"$f":"IF(V39=0,0,ROUNDUP(I39/V39,0))","v":0},{"$f":"Translate!$A$130","v":"travels"},{"$f":"Translate!$A$128","v":"empty-return rate"},1,{"$f":"VLOOKUP(T39,EFtable,3,0)","v":0.93694},{"$f":"Q39*X39*(1+AA39)*AB39","v":0},{"$f":"Translate!$A$102","v":"kgCO2e"},null,null,null,{"$f":"HLOOKUP(AI39,$AP$1:$AV$2,2,0)","v":1},{"$f":"Translate!$A$104","v":"Materials"},{"$f":"L39","v":0},{"$f":"VLOOKUP(D39,EFtable,7,0)","v":"Concrete / Slurry / Grout mix"},{"$f":"VLOOKUP(D39,EFtable,8,0)*L39","v":0},17,{"$f":"ROW(F40)-ROW(F39)","v":1},0]
[null,null,null,{"$f":"Translate!$A$79","v":"Recycled content"},{"$f":"IF(ISERROR(VLOOKUP(D39,RecycledContent,2,0)),Translate!$A$90,VLOOKUP(D39,RecycledContent,2,0))","v":"do not apply"},{"$f":"Translate!$A$478","v":"-new or recycled-"},null,null,null,null,null,null,null,null,null,null,null,null,null,null,null,null,null,null,null,null,null,null,null,null,null,null,null,{"$f":"HLOOKUP(AI40,$AP$1:$AV$2,2,0)","v":2},{"$f":"Translate!$A$106","v":"Freight"},{"$f":"AC39","v":0},null,{"$f":"VLOOKUP(T39,EFtable,8,0)*AC39","v":0},18,null,0]
[null,null,null,null,null,null,null,null,null,null,null,null,null,null,null,null,null,null,null,null,null,null,null,null,null,null,null,null,null,null,null,null,null,null,null,null,null,null,{"$f":"1+OFFSET(AM41,-1,0)","v":19},null,{"$f":"AJ41","v":0}]
[null,null,null,null,{"$f":"IF(E22=0,0,SUM(I27:I41)/E22)","v":0},{"$f":"'Emission factors'!$F$411&\"/\"&F22","v":"t/m3"},null,null,null,null,null,null,null,null,null,null,null,null,null,null,null,null,null,null,null,null,null,null,null,null,null,null,null,null,null,null,null,null,{"$f":"1+OFFSET(AM42,-1,0)","v":20},null,{"$f":"AJ42","v":0}]
[null,null,null,null,null,null,null,null,null,null,null,null,null,null,null,null,null,null,null,null,null,null,null,null,null,null,null,null,null,null,null,null,null,null,null,null,null,null,21]
[]
[]
[null,"+",null,{"$f":"Translate!$A$193","v":"Steel rebars"},null,{"$f":"VLOOKUP(D46,EFtable,2,0)","v":"t"},null,null,{"$f":"E46","v":0},{"$f":"F46","v":"t"},{"$f":"IF(ISERROR(E47*1),VLOOKUP(D46,EFtable,3,0),VLOOKUP(D46,EFtable,3,0)*(1-E47)+VLOOKUP(D46&Translate!$A$199,EFtable,3,0)*E47)","v":1444.1000000000004},{"$f":"IF(F47=Translate!$A$111,0,I46*K46)","v":0},{"$f":"Translate!$A$102","v":"kgCO2e"},null,null,{"$f":"Translate!$A$112","v":"Distance"},{"$f":"IF(ISERROR(VLOOKUP(D46,StandardFreight,3,0)),VLOOKUP(Translate!$A$118,StandardFreight,3,0),VLOOKUP(D46,StandardFreight,3,0))","v":300},{"$f":"'Emission factors'!$F$410","v":"km"},{"$f":"Translate!$A$120","v":"Type"},{"$f":"IF(ISERROR(VLOOKUP(D45,StandardFreight,2,0)),VLOOKUP(Translate!$A$118,StandardFreight,2,0),VLOOKUP(D45,StandardFreight,2,0))","v":"Road - Articulated >33t"},{"$f":"Translate!$A$127","v":"Load"},{"$f":"VLOOKUP(T46,FreightLoadFactors,2,0)","v":15},{"$f":"J46","v":"t"},{"$f":"IF(V46=0,0,ROUNDUP(I46/V46,0))","v":0},{"$f":"Translate!$A$130","v":"travels"},{"$f":"Translate!$A$128","v":"empty-return rate"},0.5,{"$f":"VLOOKUP(T46,EFtable,3,0)","v":0.93694},{"$f":"Q46*X46*(1+AA46)*AB46","v":0},{"$f":"Translate!$A$102","v":"kgCO2e"},null,null,null,{"$f":"HLOOKUP(AI46,$AP$1:$AV$2,2,0)","v":1},{"$f":"Translate!$A$104","v":"Materials"},{"$f":"L46","v":0},{"$f":"VLOOKUP(D46,EFtable,7,0)","v":"Steel"},{"$f":"VLOOKUP(D46,EFtable,8,0)*L46","v":0},null,{"$f":"ROW(F48)-ROW(F45)","v":3},{"$f":"AJ46","v":0}]
[null,null,null,{"$f":"Translate!$A$79","v":"Recycled content"},{"$f":"IF(ISERROR(VLOOKUP(D46,RecycledContent,2,0)),Translate!$A$90,VLOOKUP(D46,RecycledContent,2,0))","v":0.41},{"$f":"Translate!$A$478","v":"-new or recycled-"},null,null,null,null,null,null,null,null,null,null,null,null,null,null,null,null,null,null,null,null,null,null,null,null,null,null,null,{"$f":"HLOOKUP(AI47,$AP$1:$AV$2,2,0)","v":2},{"$f":"Translate!$A$106","v":"Freight"},{"$f":"AC46","v":0},null,{"$f":"VLOOKUP(T46,EFtable,8,0)*AC46","v":0},null,null,{"$f":"AJ47","v":0}]
[]
[]
[]
[null,"+",null,{"$f":"Translate!$A$189","v":"PVC pipes"},null,{"$f":"VLOOKUP(D51,EFtable,2,0)","v":"t"},null,null,{"$f":"E51","v":0},{"$f":"F51","v":"t"},{"$f":"IF(ISERROR(E52*1),VLOOKUP(D51,EFtable,3,0),VLOOKUP(D51,EFtable,3,0)*(1-E52)+VLOOKUP(D51&Translate!$A$199,EFtable,3,0)*E52)","v":3230},{"$f":"IF(F52=Translate!$A$111,0,I51*K51)","v":0},{"$f":"Translate!$A$102","v":"kgCO2e"},null,null,{"$f":"Translate!$A$112","v":"Distance"},{"$f":"IF(ISERROR(VLOOKUP(D51,StandardFreight,3,0)),VLOOKUP(Translate!$A$118,StandardFreight,3,0),VLOOKUP(D51,StandardFreight,3,0))","v":300},{"$f":"'Emission factors'!$F$410","v":"km"},{"$f":"Translate!$A$120","v":"Type"},{"$f":"IF(ISERROR(VLOOKUP(D50,StandardFreight,2,0)),VLOOKUP(Translate!$A$118,StandardFreight,2,0),VLOOKUP(D50,StandardFreight,2,0))","v":"Road - Articulated >33t"},{"$f":"Translate!$A$127","v":"Load"},{"$f":"VLOOKUP(T51,FreightLoadFactors,2,0)","v":15},{"$f":"J51","v":"t"},{"$f":"IF(V51=0,0,ROUNDUP(I51/V51,0))","v":0},{"$f":"Translate!$A$130","v":"travels"},{"$f":"Translate!$A$128","v":"empty-return rate"},0.5,{"$f":"VLOOKUP(T51,EFtable,3,0)","v":0.93694},{"$f":"Q51*X51*(1+AA51)*AB51","v":0},{"$f":"Translate!$A$102","v":"kgCO2e"},null,null,null,{"$f":"HLOOKUP(AI51,$AP$1:$AV$2,2,0)","v":1},{"$f":"Translate!$A$104","v":"Materials"},{"$f":"L51","v":0},{"$f":"VLOOKUP(D51,EFtable,7,0)","v":"Other"},{"$f":"VLOOKUP(D51,EFtable,8,0)*L51","v":0},null,{"$f":"ROW(F53)-ROW(F50)","v":3},{"$f":"AJ51","v":0}]
[null,null,null,{"$f":"Translate!$A$79","v":"Recycled content"},{"$f":"IF(ISERROR(VLOOKUP(D51,RecycledContent,2,0)),Translate!$A$90,VLOOKUP(D51,RecycledContent,2,0))","v":"do not apply"},{"$f":"Translate!$A$478","v":"-new or recycled-"},null,null,null,null,null,null,null,null,null,null,null,null,null,null,null,null,null,null,null,null,null,null,null,null,null,null,null,{"$f":"HLOOKUP(AI52,$AP$1:$AV$2,2,0)","v":2},{"$f":"Translate!$A$106","v":"Freight"},{"$f":"AC51","v":0},null,{"$f":"VLOOKUP(T51,EFtable,8,0)*AC51","v":0},null,null,{"$f":"AJ52","v":0}]
[]
[]
[]
[null,"+",null,{"$f":"Translate!$A$179","v":"Calcium chloride"},null,{"$f":"VLOOKUP(D56,EFtable,2,0)","v":"t"},null,null,{"$f":"E56","v":0},{"$f":"F56","v":"t"},{"$f":"IF(ISERROR(E57*1),VLOOKUP(D56,EFtable,3,0),VLOOKUP(D56,EFtable,3,0)*(1-E57)+VLOOKUP(D56&Translate!$A$199,EFtable,3,0)*E57)","v":493.43257},{"$f":"IF(F57=Translate!$A$111,0,I56*K56)","v":0},{"$f":"Translate!$A$102","v":"kgCO2e"},null,null,{"$f":"Translate!$A$112","v":"Distance"},{"$f":"IF(ISERROR(VLOOKUP(D56,StandardFreight,3,0)),VLOOKUP(Translate!$A$118,StandardFreight,3,0),VLOOKUP(D56,StandardFreight,3,0))","v":300},{"$f":"'Emission factors'!$F$410","v":"km"},{"$f":"Translate!$A$120","v":"Type"},{"$f":"IF(ISERROR(VLOOKUP(D55,StandardFreight,2,0)),VLOOKUP(Translate!$A$118,StandardFreight,2,0),VLOOKUP(D55,StandardFreight,2,0))","v":"Road - Articulated >33t"},{"$f":"Translate!$A$127","v":"Load"},{"$f":"VLOOKUP(T56,FreightLoadFactors,2,0)","v":15},{"$f":"J56","v":"t"},{"$f":"IF(V56=0,0,ROUNDUP(I56/V56,0))","v":0},{"$f":"Translate!$A$130","v":"travels"},{"$f":"Translate!$A$128","v":"empty-return rate"},0.5,{"$f":"VLOOKUP(T56,EFtable,3,0)","v":0.93694},{"$f":"Q56*X56*(1+AA56)*AB56","v":0},{"$f":"Translate!$A$102","v":"kgCO2e"},null,null,null,{"$f":"HLOOKUP(AI56,$AP$1:$AV$2,2,0)","v":1},{"$f":"Translate!$A$104","v":"Materials"},{"$f":"L56","v":0},{"$f":"VLOOKUP(D56,EFtable,7,0)","v":"Other"},{"$f":"VLOOKUP(D56,EFtable,8,0)*L56","v":0},null,{"$f":"ROW(F58)-ROW(F55)","v":3},{"$f":"AJ56","v":0}]
[null,null,null,{"$f":"Translate!$A$79","v":"Recycled content"},{"$f":"IF(ISERROR(VLOOKUP(D56,RecycledContent,2,0)),Translate!$A$90,VLOOKUP(D56,RecycledContent,2,0))","v":"do not apply"},{"$f":"Translate!$A$478","v":"-new or recycled-"},null,null,null,null,null,null,null,null,null,null,null,null,null,null,null,null,null,null,null,null,null,null,null,null,null,null,null,{"$f":"HLOOKUP(AI57,$AP$1:$AV$2,2,0)","v":2},{"$f":"Translate!$A$106","v":"Freight"},{"$f":"AC56","v":0},null,{"$f":"VLOOKUP(T56,EFtable,8,0)*AC56","v":0},null,null,{"$f":"AJ57","v":0}]
[]
[]
[]
[]
[null,null,null,{"$f":"AP11","v":"Energy    (Primary source)"}]
[]
[]
[null,"+",null,{"$f":"Translate!$A$80","v":"Simplified ratio"},{"$f":"IF(AND(AP5,F65=Translate!$A$91),AP4,Translate!$A$92)","v":"OFF"},{"$f":"Translate!$A$91","v":"Default"},null,null,null,null,{"$f":"$P$1","v":0},{"$f":"IF(E65=Translate!$A$92,0,E65*K65)","v":0},{"$f":"Translate!$A$102","v":"kgCO2e"},null,null,null,null,null,null,null,null,null,null,null,null,null,null,null,null,null,null,null,"ratio",2,{"$f":"Translate!$A$105","v":"Energy"},{"$f":"L65","v":0},null,{"$f":"100%*L65","v":0},null,{"$f":"ROW(F66)-ROW(F64)","v":2}]
[]
[]
[]
[null,"+",null,{"$f":"Translate!$A$200","v":"Diesel"},null,{"$f":"VLOOKUP(D69,EFtable,2,0)","v":"liter"},null,null,null,null,{"$f":"VLOOKUP(D69,EFtable,3,0)","v":3.2112000000000003},{"$f":"E69*K69","v":0},{"$f":"Translate!$A$102","v":"kgCO2e"},null,null,null,null,null,null,null,null,null,null,null,null,null,null,null,null,null,null,null,null,{"$f":"HLOOKUP(AI69,$AP$1:$AV$2,2,0)","v":1},{"$f":"Translate!$A$105","v":"Energy"},{"$f":"L69","v":0},null,{"$f":"VLOOKUP(D69,EFtable,8,0)*L69","v":0},null,{"$f":"ROW(F70)-ROW(F68)","v":2},{"$f":"AJ69","v":0}]
[]
[]
[]
[null,"+",null,{"$f":"Translate!$A$81","v":"Network electricity"},null,{"$f":"Translate!$A$98","v":"kWh"},null,null,null,null,{"$f":"IF(ISERROR(VLOOKUP(Translate!$A$202&\" - \"&$E$12,EFtable,3,0)),0,VLOOKUP(Translate!$A$202&\" - \"&$E$12,EFtable,3,0))","v":0},{"$f":"IF(ISERROR(K73),0,E73*K73)","v":0},{"$f":"Translate!$A$102","v":"kgCO2e"},null,null,null,null,null,null,null,null,null,null,null,null,null,null,null,null,null,null,null,null,{"$f":"HLOOKUP(AI73,$AP$1:$AV$2,2,0)","v":1},{"$f":"Translate!$A$105","v":"Energy"},{"$f":"L73","v":0},null,{"$f":"10%*L73","v":0},null,{"$f":"ROW(F74)-ROW(F72)","v":2},{"$f":"AJ73","v":0}]
[]
[]
[]
[]
[null,null,null,{"$f":"AS11","v":"Mob/demob    (Secondary source)"}]
[]
[]
[null,null,null,{"$f":"Translate!$A$80","v":"Simplified ratio"},{"$f":"IF(AND(AS5,F81=Translate!$A$91),AS4,Translate!$A$92)","v":3.1868748686830371E-3},{"$f":"Translate!$A$91","v":"Default"},null,null,null,null,{"$f":"$P$1","v":0},{"$f":"IF(E81=Translate!$A$92,0,E81*K81)","v":0},{"$f":"Translate!$A$102","v":"kgCO2e"},null,null,null,null,null,null,null,null,null,null,null,null,null,null,null,null,null,null,null,"ratio",{"$f":"HLOOKUP(AI81,$AP$1:$AV$2,2,0)","v":2},{"$f":"Translate!$A$107","v":"Mob/demob"},{"$f":"L81","v":0},null,{"$f":"100%*L81","v":0}]
[]
[]
[]
[null,"+",null,{"$f":"Translate!$A$206","v":"Road - Rigid >17t"},null,{"$f":"Translate!$A$99","v":"roundtrips"},null,null,{"$f":"E85*M85*(1+V85)","v":0},{"$f":"'Emission factors'!$F$410","v":"km"},{"$f":"VLOOKUP(D85,EFtable,3,0)","v":0.98243999999999998},{"$f":"Translate!$A$112","v":"Distance"},50,{"$f":"'Emission factors'!$F$410&\" \"&Translate!$A$114","v":"km  one way"},null,null,null,{"$f":"I85*K85","v":0},{"$f":"Translate!$A$102","v":"kgCO2e"},null,{"$f":"Translate!$A$128","v":"empty-return rate"},0,null,null,null,null,null,null,null,null,null,null,null,{"$f":"HLOOKUP(AI85,$AP$1:$AV$2,2,0)","v":2},{"$f":"Translate!$A$107","v":"Mob/demob"},{"$f":"R85","v":0},null,{"$f":"VLOOKUP(D85,EFtable,8,0)*R85","v":0},null,{"$f":"ROW(F86)-ROW(F84)","v":2},{"$f":"AJ85","v":0}]
[]
[]
[]
[null,"+",null,{"$f":"Translate!$A$208","v":"Road - Articulated >33t"},null,{"$f":"Translate!$A$99","v":"roundtrips"},null,null,{"$f":"E89*M89*(1+V89)","v":0},{"$f":"'Emission factors'!$F$410","v":"km"},{"$f":"VLOOKUP(D89,EFtable,3,0)","v":0.93694},{"$f":"Translate!$A$112","v":"Distance"},50,{"$f":"'Emission factors'!$F$410&\" \"&Translate!$A$114","v":"km  one way"},null,null,null,{"$f":"I89*K89","v":0},{"$f":"Translate!$A$102","v":"kgCO2e"},null,{"$f":"Translate!$A$128","v":"empty-return rate"},0,null,null,null,null,null,null,null,null,null,null,null,{"$f":"HLOOKUP(AI89,$AP$1:$AV$2,2,0)","v":2},{"$f":"Translate!$A$107","v":"Mob/demob"},{"$f":"R89","v":0},null,{"$f":"VLOOKUP(D89,EFtable,8,0)*R89","v":0},null,{"$f":"ROW(F90)-ROW(F88)","v":2},{"$f":"AJ89","v":0}]
[]
[]
[]
[]
[null,null,null,{"$f":"AT11","v":"People's transportation    (Secondary source)"}]
[]
[]
[null,null,null,{"$f":"Translate!$A$82","v":"Coming by"},{"$f":"Translate!$A$93","v":"Number of roundtrips"},{"$f":"Translate!$A$100","v":"every X day(s)"},null,null,null,null,null,{"$f":"Translate!$A$113&\"\n(\"&'Emission factors'!$F$410&Translate!$A$114&\")\"","v":"Average distance\n(km one way)"}]
[]
[null,null,"+",{"$f":"Translate!$A$217","v":"Car"},{"$f":"$E$10","v":0},1,null,null,{"$f":"L99*E99*$E$9*2/F99","v":0},{"$f":"VLOOKUP(D99,EFtable,2,0)","v":"vkm"},{"$f":"VLOOKUP(D99,EFtable,3,0)","v":0.21470999999999998},50,null,null,null,{"$f":"I99*K99","v":0},{"$f":"Translate!$A$102","v":"kgCO2e"},null,null,null,null,null,null,null,null,null,null,null,null,null,null,null,null,{"$f":"HLOOKUP(AI99,$AP$1:$AV$2,2,0)","v":2},{"$f":"Translate!$A$108","v":"People's transportation"},{"$f":"P99","v":0},null,{"$f":"VLOOKUP(D99,EFtable,8,0)*P99","v":0},null,2,{"$f":"AJ99","v":0}]
[]
[]
[]
[null,null,"+",{"$f":"Translate!$A$216","v":"Bus"},null,1,null,null,{"$f":"L103*E103*$E$9*2/F103","v":0},{"$f":"VLOOKUP(D103,EFtable,2,0)","v":"pkm"},{"$f":"VLOOKUP(D103,EFtable,3,0)","v":0.12970999999999999},50,null,null,null,{"$f":"I103*K103","v":0},{"$f":"Translate!$A$102","v":"kgCO2e"},null,null,null,null,null,null,null,null,null,null,null,null,null,null,null,null,{"$f":"HLOOKUP(AI103,$AP$1:$AV$2,2,0)","v":2},{"$f":"Translate!$A$108","v":"People's transportation"},{"$f":"P103","v":0},null,{"$f":"VLOOKUP(D103,EFtable,8,0)*P103","v":0},null,2,{"$f":"AJ103","v":0}]
[]
[]
[]
[null,null,"+",{"$f":"Translate!$A$218","v":"Train"},null,5,null,null,{"$f":"L107*E107*$E$9*2/F107","v":0},{"$f":"VLOOKUP(D107,EFtable,2,0)","v":"pkm"},{"$f":"VLOOKUP(D107,EFtable,3,0)","v":4.9049999999999996E-2},300,null,null,null,{"$f":"I107*K107","v":0},{"$f":"Translate!$A$102","v":"kgCO2e"},null,null,null,null,null,null,null,null,null,null,null,null,null,null,null,null,{"$f":"HLOOKUP(AI107,$AP$1:$AV$2,2,0)","v":2},{"$f":"Translate!$A$108","v":"People's transportation"},{"$f":"P107","v":0},null,{"$f":"VLOOKUP(D107,EFtable,8,0)*P107","v":0},null,2,{"$f":"AJ107","v":0}]
[]
[]
[]
[]
[]
[null,"+",null,{"$f":"Translate!$A$218","v":"Train"},null,{"$f":"VLOOKUP(D113,EFtable,2,0)","v":"pkm"},null,null,null,null,{"$f":"VLOOKUP(D113,EFtable,3,0)","v":4.9049999999999996E-2},{"$f":"E113*K113","v":0},{"$f":"Translate!$A$102","v":"kgCO2e"},null,null,null,null,null,null,null,null,null,null,null,null,null,null,null,null,null,null,null,null,{"$f":"HLOOKUP(AI113,$AP$1:$AV$2,2,0)","v":2},{"$f":"Translate!$A$108","v":"People's transportation"},{"$f":"L113","v":0},null,{"$f":"VLOOKUP(D113,EFtable,8,0)*L113","v":0},null,{"$f":"ROW(F114)-ROW(F112)","v":2},{"$f":"AJ113","v":0}]
[]
[]
[]
[]
[null,null,null,{"$f":"AU11","v":"Assets    (Secondary source)"}]
[]
[]
[null,null,null,{"$f":"Translate!$A$80","v":"Simplified ratio"},{"$f":"IF(AND(AU5,F121=Translate!$A$91),AU4,Translate!$A$92)","v":4.377484024657128E-3},{"$f":"Translate!$A$91","v":"Default"},null,null,null,null,{"$f":"$P$1","v":0},{"$f":"IF(E121=Translate!$A$92,0,E121*K121)","v":0},{"$f":"Translate!$A$102","v":"kgCO2e"},null,null,null,null,null,null,null,null,null,null,null,null,null,null,null,null,null,null,null,"ratio",{"$f":"HLOOKUP(AI121,$AP$1:$AV$2,2,0)","v":2},{"$f":"Translate!$A$109","v":"Assets"},{"$f":"L121","v":0},null,{"$f":"100%*L121","v":0}]
[]
[]
[]
[null,"+",null,{"$f":"Translate!$A$222","v":"Machines"},null,{"$f":"VLOOKUP(D125,EFtable,2,0)","v":"t"},null,null,{"$f":"E125*U125/(Z125*R125)","v":0},{"$f":"VLOOKUP(D125,EFtable,2,0)","v":"t"},{"$f":"VLOOKUP(D125,EFtable,3,0)","v":3666.6666666666665},{"$f":"I125*K125","v":0},{"$f":"Translate!$A$102","v":"kgCO2e"},null,null,{"$f":"Translate!$A$116","v":"Lifetime"},null,10,{"$f":"Translate!$A$121","v":"years"},{"$f":"Translate!$A$126","v":"Use time"},{"$f":"$E$9","v":0},{"$f":"Translate!$A$129","v":"days"},null,{"$f":"Translate!$A$67","v":"Working days"},null,150,{"$f":"Translate!$A$129&\" / \"&Translate!$A$122","v":"days / year"},null,null,null,null,null,null,{"$f":"HLOOKUP(AI125,$AP$1:$AV$2,2,0)","v":2},{"$f":"Translate!$A$109","v":"Assets"},{"$f":"L125","v":0},null,{"$f":"VLOOKUP(\"Machines\",EFtable,8,0)*L125","v":0},null,{"$f":"ROW(F126)-ROW(F124)","v":2},{"$f":"AJ125","v":0}]
[]
[]
[]
[]
[null,null,null,{"$f":"AV11","v":"Waste    (Secondary source)"}]
[]
[]
[null,null,null,{"$f":"Translate!$A$80","v":"Simplified ratio"},{"$f":"IF(AND(AV5,F133=Translate!$A$91),AV4,Translate!$A$92)","v":2.6591480192145979E-3},{"$f":"Translate!$A$91","v":"Default"},null,null,null,null,{"$f":"$P$1","v":0},{"$f":"IF(E133=Translate!$A$92,0,E133*K133)","v":0},{"$f":"Translate!$A$102","v":"kgCO2e"},null,null,null,null,null,null,null,null,null,null,null,null,null,null,null,null,null,null,null,"ratio",{"$f":"HLOOKUP(AI133,$AP$1:$AV$2,2,0)","v":2},{"$f":"Translate!$A$110","v":"Waste"},{"$f":"L133","v":0},null,{"$f":"100%*L133","v":0}]
[]
[]
[]
[null,"+",null,{"$f":"Translate!$A$84","v":"Waste 1"},null,{"$f":"'Emission factors'!$F$411","v":"t"},null,null,{"$f":"Q137*X137*(1+AA137)","v":0},{"$f":"'Emission factors'!$F$410","v":"km"},{"$f":"VLOOKUP(T137,EFtable,3,0)","v":0.98243999999999998},{"$f":"I137*K137","v":0},{"$f":"Translate!$A$102","v":"kgCO2e"},null,null,{"$f":"Translate!$A$112","v":"Distance"},10,{"$f":"'Emission factors'!$F$410","v":"km"},{"$f":"Translate!$A$120","v":"Type"},{"$f":"Translate!$A$206","v":"Road - Rigid >17t"},{"$f":"Translate!$A$127","v":"Load"},{"$f":"VLOOKUP(T137,'Emission factors'!$C$313:$E$329,2,0)","v":7.5},{"$f":"F137","v":"t"},{"$f":"IF(V137=0,0,ROUNDUP(E137/V137,0))","v":0},{"$f":"Translate!$A$130","v":"travels"},{"$f":"Translate!$A$128","v":"empty-return rate"},0.5,null,null,null,null,null,null,{"$f":"HLOOKUP(AI137,$AP$1:$AV$2,2,0)","v":2},{"$f":"Translate!$A$110","v":"Waste"},{"$f":"L137","v":0},null,{"$f":"VLOOKUP(T137,EFtable,8,0)*L137","v":0},null,{"$f":"ROW(F138)-ROW(F136)","v":2},{"$f":"AJ137","v":0}]
[]
[]
[]
[null,{"$f":"Translate!$A$242","v":"-"},null,{"$f":"Translate!$A$85","v":"Waste 2"},null,{"$f":"'Emission factors'!$F$411","v":"t"},null,null,{"$f":"Q141*X141*(1+AA141)","v":0},{"$f":"'Emission factors'!$F$410","v":"km"},{"$f":"VLOOKUP(T141,EFtable,3,0)","v":0.98243999999999998},{"$f":"I141*K141","v":0},{"$f":"Translate!$A$102","v":"kgCO2e"},null,null,{"$f":"Translate!$A$112","v":"Distance"},10,{"$f":"'Emission factors'!$F$410","v":"km"},{"$f":"Translate!$A$120","v":"Type"},{"$f":"Translate!$A$206","v":"Road - Rigid >17t"},{"$f":"Translate!$A$127","v":"Load"},{"$f":"VLOOKUP(T141,'Emission factors'!$C$313:$E$329,2,0)","v":7.5},{"$f":"F141","v":"t"},{"$f":"IF(V141=0,0,ROUNDUP(E141/V141,0))","v":0},{"$f":"Translate!$A$130","v":"travels"},{"$f":"Translate!$A$128","v":"empty-return rate"},0.5,null,null,null,null,null,null,{"$f":"HLOOKUP(AI141,$AP$1:$AV$2,2,0)","v":2},{"$f":"Translate!$A$110","v":"Waste"},{"$f":"L141","v":0},null,{"$f":"VLOOKUP(T141,EFtable,8,0)*L141","v":0},null,{"$f":"ROW(F142)-ROW(F140)","v":2},{"$f":"AJ141","v":0}]
[]
[]
[]
[]
[null,null,null,{"$f":"Translate!$A$86","v":"Externaly calculated emissions"}]
[]
[]
[null,"+",null,{"$f":"Translate!$A$47","v":"Name"},null,{"$f":"Translate!$A$104","v":"Materials"},null,null,null,null,null,null,{"$f":"Translate!$A$102","v":"kgCO2e"},null,null,null,null,null,null,null,null,null,null,null,null,null,null,null,null,null,null,null,"ext",{"$f":"HLOOKUP(AI149,$AP$1:$AV$2,2,0)","v":1},{"$f":"F149","v":"Materials"},{"$f":"L149","v":0},{"$f":"IF(F149=$AQ$1,Translate!$A$118,\"\")","v":"Other"},null,null,{"$f":"ROW(F150)-ROW(F148)","v":2}]

{"sheet":"Subprojectzero2","index":3,"n_rows":149,"n_cols":57,"rows_kept":149,"cut":false,"hidden":true,"merged":[[102,5,102,7],[106,5,106,7],[2,19,3,25],[3,27,9,31],[5,1,9,1],[5,19,9,25],[11,21,11,23],[41,3,42,3],[96,5,96,7],[98,5,98,7]]}
["Subproject",null,null,null,null,null,null,null,null,null,null,null,"Total primary emission sources",null,null,{"$f":"SUMPRODUCT(($AH$17:$AH$177=1)*$AO$17:$AO$177)","v":0},{"$f":"SUMPRODUCT(($AH$17:$AH$177=1)*1,$AL$17:$AL$177)","v":0},null,null,"externally calculated emissions",{"$f":"IF(SUMPRODUCT(($AG$17:$AG$172=\"ext\")*1,$AJ$17:$AJ$172)<>0,TRUE)","v":false},"ratios used",{"$f":"IF(SUMPRODUCT(($AG$17:$AG$172=\"ratio\")*1,$AJ$17:$AJ$172)<>0,TRUE)","v":false},null,null,null,"Functional unit 1",{"$f":"IF(E13=\"value\",1,0)","v":1},"country",0,null,null,null,null,"t",{"$f":"Translate!$A$73","v":"Concrete / Slurry / Grout mix"},{"$f":"Translate!$A$138","v":"Steel"},{"$f":"Translate!$A$118","v":"Other"},null,null,null,{"$f":"'Emission factors'!D342","v":"Energy"},{"$f":"'Emission factors'!E342","v":"Materials"},{"$f":"'Emission factors'!F342","v":"Freight"},{"$f":"'Emission factors'!G342","v":"Mob/demob"},{"$f":"'Emission factors'!H342","v":"People's transportation"},{"$f":"'Emission factors'!I342","v":"Assets"},{"$f":"'Emission factors'!J342","v":"Waste"}]
[null,null,null,null,null,null,null,null,null,null,null,null,"Total secondary emission sources",null,null,{"$f":"SUMPRODUCT(($AH$17:$AH$177=2)*$AO$17:$AO$177)","v":0},{"$f":"SUMPRODUCT(($AH$17:$AH$177=2)*1,$AL$17:$AL$177)","v":0},null,null,null,null,null,null,null,null,null,"Functional unit 2",{"$f":"IF(E14=\"value\",1,0)","v":1},null,null,null,null,null,null,{"$f":"\"kg/\"&F37","v":"kg/m3"},{"$f":"SUMPRODUCT(($AK$17:$AK$172=AJ1)*1,$AJ$17:$AJ$172)/1000","v":0},{"$f":"SUMPRODUCT(($AK$17:$AK$172=AK1)*1,$AJ$17:$AJ$172)/1000","v":0},{"$f":"SUMPRODUCT(($AK$17:$AK$172=AL1)*1,$AJ$17:$AJ$172)/1000","v":0},null,null,"Primary(1)/Secondary(2)",{"$f":"VLOOKUP($E$6,'Emission factors'!$C$343:$AY$370,'Emission factors'!Y$340,0)","v":1},{"$f":"VLOOKUP($E$6,'Emission factors'!$C$343:$AY$370,'Emission factors'!Z$340,0)","v":1},{"$f":"VLOOKUP($E$6,'Emission factors'!$C$343:$AY$370,'Emission factors'!AA$340,0)","v":2},{"$f":"VLOOKUP($E$6,'Emission factors'!$C$343:$AY$370,'Emission factors'!AB$340,0)","v":2},{"$f":"VLOOKUP($E$6,'Emission factors'!$C$343:$AY$370,'Emission factors'!AC$340,0)","v":2},{"$f":"VLOOKUP($E$6,'Emission factors'!$C$343:$AY$370,'Emission factors'!AD$340,0)","v":2},{"$f":"VLOOKUP($E$6,'Emission factors'!$C$343:$AY$370,'Emission factors'!AE$340,0)","v":2},null,null,"Messages"]
[null,null,null,null,null,null,null,null,null,null,null,null,null,null,null,null,null,null,null,{"$f":"Translate!$A$123&AQ9&AP9&AR9&AS9&AT9&AU9&AV9","v":"Primary emission sources : \nMaterials, Energy, "},null,null,null,null,null,null,null,{"$f":"Translate!$A$131","v":"Comments :"},null,null,null,null,null,null,null,null,null,null,null,null,"Project emission repartition",{"$f":"IF(SUM($P$7:$P$13)=0,0,VLOOKUP(AP1,$H$7:$P$13,9,0)/SUM($P$7:$P$13))","v":0},0,0,0,0,0,0,null,{"$f":"IF(E9=0,AY3,\"\")","v":"Enter the number of working days\n"},{"$f":"Lists!H2","v":"Enter the number of working days\n"}]
[null,null,null,null,null,null,null,null,null,null,null,null,null,null,null,null,null,null,null,null,null,null,null,null,null,null,null,null,null,null,null,null,null,null,null,null,null,null,null,null,"Average ratio",{"$f":"VLOOKUP($E$6,'Emission factors'!$C$343:$Y$370,'Emission factors'!D$340,0)","v":4.0916663959490784E-2},{"$f":"VLOOKUP($E$6,'Emission factors'!$C$343:$Y$370,'Emission factors'!E$340,0)","v":0.95908333604050922},{"$f":"VLOOKUP($E$6,'Emission factors'!$C$343:$Y$370,'Emission factors'!F$340,0)","v":6.411482467395477E-3},{"$f":"VLOOKUP($E$6,'Emission factors'!$C$343:$Y$370,'Emission factors'!G$340,0)","v":3.1868748686830371E-3},{"$f":"VLOOKUP($E$6,'Emission factors'!$C$343:$Y$370,'Emission factors'!H$340,0)","v":1.8692695917956075E-3},{"$f":"VLOOKUP($E$6,'Emission factors'!$C$343:$Y$370,'Emission factors'!I$340,0)","v":4.377484024657128E-3},{"$f":"VLOOKUP($E$6,'Emission factors'!$C$343:$Y$370,'Emission factors'!J$340,0)","v":2.6591480192145979E-3},null,{"$f":"IF(E10=0,AY4,\"\")","v":"Enter the average number of people working on the project\n"},{"$f":"Lists!H3","v":"Enter the average number of people working on the project\n"}]
[null,null,null,{"$f":"Translate!$A$64","v":"Subproject name"},null,null,null,null,null,null,null,null,null,null,null,null,null,null,null,{"$f":"IF(NOT(AW10),Translate!$A$124,\"\")","v":"Please enter activities data relative to the primary emission sources"},null,null,null,null,null,null,null,null,null,null,null,null,null,null,null,null,null,null,null,null,"Ratio needed",{"$f":"IF(AP2=1,0,IF(SUMPRODUCT($AO$17:$AO$183*($AI$17:$AI$183=AP1))>0,0,1))","v":0},0,1,1,1,1,1,null,{"$f":"IF(Translate!$A$300=E12,AY5,\"\")","v":"Select a country\n"},{"$f":"Lists!H4","v":"Select a country\n"},null,{"$f":"Translate!$A$132","v":"Primary emission sources"},{"$f":"P1/1000","v":0},{"$f":"P2/1000","v":0},{"$f":"Q1/1000","v":0}]
[null,{"$f":"Translate!$A$63","v":"duplication +"},null,{"$f":"Translate!$A$48","v":"Technique"},{"$f":"Translate!$A$281","v":"Bored piles"},null,null,{"$f":"Translate!$A$103","v":"Sources"},null,null,null,null,null,null,null,{"$f":"Translate!$A$115","v":"tCO2e"},{"$f":"Translate!$A$115","v":"tCO2e"},null,null,{"$f":"IF(P14>0,AX3&AX4&AX5&AQ8&AP8&AR8&AS8&AT8&AU8&AV8,\"\")","v":""},null,null,null,null,null,null,null,null,null,null,null,null,null,null,null,null,null,null,null,null,"Too high",{"$f":"VLOOKUP($E$6,'Emission factors'!$C$343:$Y$370,'Emission factors'!K$340,0)","v":0.15},{"$f":"VLOOKUP($E$6,'Emission factors'!$C$343:$Y$370,'Emission factors'!L$340,0)","v":1},{"$f":"VLOOKUP($E$6,'Emission factors'!$C$343:$Y$370,'Emission factors'!M$340,0)","v":0.1},{"$f":"VLOOKUP($E$6,'Emission factors'!$C$343:$Y$370,'Emission factors'!N$340,0)","v":0.1},{"$f":"VLOOKUP($E$6,'Emission factors'!$C$343:$Y$370,'Emission factors'!O$340,0)","v":0.1},{"$f":"VLOOKUP($E$6,'Emission factors'!$C$343:$Y$370,'Emission factors'!P$340,0)","v":0.05},{"$f":"VLOOKUP($E$6,'Emission factors'!$C$343:$Y$370,'Emission factors'!Q$340,0)","v":0.05},null,null,{"$f":"Lists!H5","v":" emissions are relatively high\n"},null,{"$f":"Translate!$A$133","v":"Secondary emission sources"},{"$f":"BB5","v":0},{"$f":"BC5","v":0},{"$f":"Q2/1000","v":0}]
[null,null,null,{"$f":"Translate!$A$65","v":"Date of calculation"},null,null,null,{"$f":"Translate!$A$104","v":"Materials"},null,null,null,{"$f":"AJ2","v":0},{"$f":"AK2","v":0},{"$f":"AL2","v":0},{"$f":"AL3","v":0},{"$f":"SUMPRODUCT(($AI$17:$AI$172=$H7)*1,$AJ$17:$AJ$172)/1000","v":0},{"$f":"SUMPRODUCT(($AI$17:$AI$172=$H7)*1,$AL$17:$AL$172)/1000","v":0},null,null,null,null,null,null,null,null,null,null,null,null,null,null,null,null,null,null,null,null,null,null,null,"Too low",{"$f":"VLOOKUP($E$6,'Emission factors'!$C$343:$Y$370,'Emission factors'!R$340,0)","v":0.02},{"$f":"VLOOKUP($E$6,'Emission factors'!$C$343:$Y$370,'Emission factors'!S$340,0)","v":0.5},{"$f":"VLOOKUP($E$6,'Emission factors'!$C$343:$Y$370,'Emission factors'!T$340,0)","v":1E-3},{"$f":"VLOOKUP($E$6,'Emission factors'!$C$343:$Y$370,'Emission factors'!U$340,0)","v":1E-4},{"$f":"VLOOKUP($E$6,'Emission factors'!$C$343:$Y$370,'Emission factors'!V$340,0)","v":1E-4},{"$f":"VLOOKUP($E$6,'Emission factors'!$C$343:$Y$370,'Emission factors'!W$340,0)","v":5.0000000000000001E-4},{"$f":"VLOOKUP($E$6,'Emission factors'!$C$343:$Y$370,'Emission factors'!X$340,0)","v":0},null,null,{"$f":"Lists!H6","v":" emissions are relatively low\n"},null,{"$f":"Translate!$A$134","v":"Total"},{"$f":"BB6","v":0},{"$f":"BC6","v":0},{"$f":"BD5+BD6","v":0},{"$f":"IF(P7=0,0,ROUND(P7,-ROUNDDOWN(LOG(ABS(P7)),0)+1))","v":0}]
[null,null,null,{"$f":"Translate!$A$66","v":"Author"},null,null,null,{"$f":"Translate!$A$105","v":"Energy"},null,null,null,null,null,null,{"$f":"P8","v":0},0,0,null,null,null,null,null,null,null,null,null,null,null,null,null,null,null,null,null,null,null,null,null,null,null,null,{"$f":"IF(AP7>AP3,AP1&$AY$7,IF(AP6<AP3,AP1&$AY$6,\"\"))","v":"Energy emissions are relatively low\n"},"Materials emissions are relatively low\n","Freight emissions are relatively low\n","Mob/demob emissions are relatively low\n","People's transportation emissions are relatively low\n","Assets emissions are relatively low\n",{"$f":"IF(AV7>AV3,AV1&$AY$7,IF(AV6<AV3,AV1&$AY$6,\"\"))","v":""},null,null,{"$f":"Lists!H7","v":"    (Primary source)"},null,null,null,null,null,{"$f":"IF(P8=0,0,ROUND(P8,-ROUNDDOWN(LOG(ABS(P8)),0)+1))","v":0}]
[null,null,null,{"$f":"Translate!$A$67","v":"Working days"},null,{"$f":"Translate!$A$67","v":"Working days"},null,{"$f":"Translate!$A$106","v":"Freight"},null,null,null,null,null,null,0,0,0,null,null,null,null,null,null,null,null,null,null,null,null,null,null,null,null,null,null,null,null,null,null,null,null,{"$f":"IF(AP2=1,AP1&\", \",\"\")","v":"Energy, "},"Materials, ","","","","","",null,null,{"$f":"Lists!H8","v":"    (Secondary source)"},null,null,null,null,null,0]
[null,null,null,{"$f":"Translate!$A$68","v":"Workforce"},null,{"$f":"Translate!$A$94","v":"Full-time equivalent"},null,{"$f":"Translate!$A$107","v":"Mob/demob"},null,null,null,null,null,null,0,0,0,null,null,null,null,null,null,null,null,null,null,null,null,null,null,null,null,null,null,null,null,null,null,null,"msg active",{"$f":"IF((AP2=1),NOT(AP3=0),TRUE)","v":false},{"$f":"IF((AQ2=1),NOT(AQ3=0),TRUE)","v":false},true,true,true,true,true,{"$f":"AND(AP10:AV10)","v":false},null,null,null,null,null,null,null,0]
[null,null,null,{"$f":"Translate!$A$69","v":"Project value"},null,{"$f":"Translate!$A$95","v":"€"},null,{"$f":"Translate!$A$108","v":"People's transportation"},null,null,null,null,null,null,0,0,0,null,null,null,null,null,null,null,null,null,null,null,null,null,null,null,null,null,null,null,null,null,null,null,null,{"$f":"IF(AP2=1,AP1&$AY$8,AP1&$AY$9)","v":"Energy    (Primary source)"},{"$f":"IF(AQ2=1,AQ1&$AY$8,AQ1&$AY$9)","v":"Materials    (Primary source)"},"Freight    (Secondary source)","Mob/demob    (Secondary source)","People's transportation    (Secondary source)","Assets    (Secondary source)","Waste    (Secondary source)",null,null,null,null,null,null,null,null,0]
[null,null,null,{"$f":"Translate!$A$70","v":"Country"},{"$f":"Translate!$A$300","v":"-Select the project country"},null,null,{"$f":"Translate!$A$109","v":"Assets"},null,null,null,null,null,null,0,0,0,null,null,{"$f":"Translate!$A$125","v":"TOTAL GHG EMISSIONS"},null,{"$f":"IF(P14=0,0,ROUND(P14,-ROUNDDOWN(LOG(ABS(P14)),0)+1))","v":0},null,null,{"$f":"Translate!$A$115","v":"tCO2e"},null,null,null,null,null,null,null,null,null,null,null,null,null,null,null,null,null,null,null,null,null,null,null,null,null,null,null,null,null,null,null,0]
[null,null,null,{"$f":"Translate!$A$71","v":"Functional unit 1"},{"$f":"Translate!$A$87","v":"value"},{"$f":"Translate!$A$96","v":"unit"},null,{"$f":"Translate!$A$110","v":"Waste"},null,null,null,null,null,null,0,0,0,null,null,null,null,null,null,null,null,null,null,null,null,null,null,null,null,null,null,null,null,null,null,null,null,null,null,null,null,null,null,null,null,null,null,null,null,null,null,null,0]
[null,null,null,{"$f":"Translate!$A$72","v":"Functional unit 2"},{"$f":"Translate!$A$87","v":"value"},{"$f":"Translate!$A$96","v":"unit"},null,null,null,null,null,null,null,null,null,{"$f":"SUM(P7:P13)","v":0}]
[]
[null,null,null,null,null,null,null,null,"Activity data",null,"Emission factor","GHG Emissions"]
[null,null,null,{"$f":"AQ11","v":"Materials    (Primary source)"},null,null,null,null,null,null,null,null,null,null,null,null,{"$f":"AR11","v":"Freight    (Secondary source)"},null,null,null,null,null,null,null,null,null,null,null,null,null,null,null,null,"Emissions source importance","Emissions source","Emissions","Material type","Uncertainties",null,"Bloc height"]
[]
[]
[null,"+",null,{"$f":"Translate!$A$177","v":"Aggregate"},null,{"$f":"VLOOKUP(D20,EFtable,2,0)","v":"t"},null,null,{"$f":"E20","v":0},{"$f":"F20","v":"t"},{"$f":"IF(ISERROR(E21*1),VLOOKUP(D20,EFtable,3,0),VLOOKUP(D20,EFtable,3,0)*(1-E21)+VLOOKUP(D20&Translate!$A$199,EFtable,3,0)*E21)","v":4},{"$f":"IF(F21=Translate!$A$111,0,I20*K20)","v":0},{"$f":"Translate!$A$102","v":"kgCO2e"},null,null,{"$f":"Translate!$A$112","v":"Distance"},null,{"$f":"'Emission factors'!$F$410","v":"km"},{"$f":"Translate!$A$120","v":"Type"},{"$f":"IF(ISERROR(VLOOKUP(D19,StandardFreight,2,0)),VLOOKUP(Translate!$A$118,StandardFreight,2,0),VLOOKUP(D19,StandardFreight,2,0))","v":"Road - Articulated >33t"},{"$f":"Translate!$A$127","v":"Load"},{"$f":"VLOOKUP(T20,FreightLoadFactors,2,0)","v":15},{"$f":"J20","v":"t"},{"$f":"IF(V20=0,0,ROUNDUP(I20/V20,0))","v":0},{"$f":"Translate!$A$130","v":"travels"},{"$f":"Translate!$A$128","v":"empty-return rate"},0.5,{"$f":"VLOOKUP(T20,EFtable,3,0)","v":0.93694},{"$f":"Q20*X20*(1+AA20)*AB20","v":0},{"$f":"Translate!$A$102","v":"kgCO2e"},null,null,null,{"$f":"HLOOKUP(AI20,$AP$1:$AV$2,2,0)","v":1},{"$f":"Translate!$A$104","v":"Materials"},{"$f":"L20","v":0},{"$f":"VLOOKUP(D20,EFtable,7,0)","v":"Concrete / Slurry / Grout mix"},{"$f":"VLOOKUP(D20,EFtable,8,0)*L20","v":0},null,{"$f":"ROW(F22)-ROW(F19)","v":3},{"$f":"AJ20","v":0}]
[null,null,null,{"$f":"Translate!$A$79","v":"Recycled content"},{"$f":"IF(ISERROR(VLOOKUP(D20,RecycledContent,2,0)),Translate!$A$90,VLOOKUP(D20,RecycledContent,2,0))","v":"do not apply"},{"$f":"Translate!$A$478","v":"-new or recycled-"},null,null,null,null,null,null,null,null,null,null,null,null,null,null,null,null,null,null,null,null,null,null,null,null,null,null,null,{"$f":"HLOOKUP(AI21,$AP$1:$AV$2,2,0)","v":2},{"$f":"Translate!$A$106","v":"Freight"},{"$f":"AC20","v":0},null,{"$f":"VLOOKUP(T20,EFtable,8,0)*AC20","v":0},null,null,{"$f":"AJ21","v":0}]
[]
[]
[]
[null,"+",null,{"$f":"Translate!$A$194","v":"Steel tubes"},null,{"$f":"VLOOKUP(D25,EFtable,2,0)","v":"t"},null,null,{"$f":"E25","v":0},{"$f":"F25","v":"t"},{"$f":"IF(ISERROR(E26*1),VLOOKUP(D25,EFtable,3,0),VLOOKUP(D25,EFtable,3,0)*(1-E26)+VLOOKUP(D25&Translate!$A$199,EFtable,3,0)*E26)","v":1923.1000000000001},{"$f":"IF(F26=Translate!$A$111,0,I25*K25)","v":0},{"$f":"Translate!$A$102","v":"kgCO2e"},null,null,{"$f":"Translate!$A$112","v":"Distance"},null,{"$f":"'Emission factors'!$F$410","v":"km"},{"$f":"Translate!$A$120","v":"Type"},{"$f":"IF(ISERROR(VLOOKUP(D24,StandardFreight,2,0)),VLOOKUP(Translate!$A$118,StandardFreight,2,0),VLOOKUP(D24,StandardFreight,2,0))","v":"Road - Articulated >33t"},{"$f":"Translate!$A$127","v":"Load"},{"$f":"VLOOKUP(T25,FreightLoadFactors,2,0)","v":15},{"$f":"J25","v":"t"},{"$f":"IF(V25=0,0,ROUNDUP(I25/V25,0))","v":0},{"$f":"Translate!$A$130","v":"travels"},{"$f":"Translate!$A$128","v":"empty-return rate"},0.5,{"$f":"VLOOKUP(T25,EFtable,3,0)","v":0.93694},{"$f":"Q25*X25*(1+AA25)*AB25","v":0},{"$f":"Translate!$A$102","v":"kgCO2e"},null,null,null,{"$f":"HLOOKUP(AI25,$AP$1:$AV$2,2,0)","v":1},{"$f":"Translate!$A$104","v":"Materials"},{"$f":"L25","v":0},{"$f":"VLOOKUP(D25,EFtable,7,0)","v":"Steel"},{"$f":"VLOOKUP(D25,EFtable,8,0)*L25","v":0},null,{"$f":"ROW(F27)-ROW(F24)","v":3},{"$f":"AJ25","v":0}]
[null,null,null,{"$f":"Translate!$A$79","v":"Recycled content"},{"$f":"IF(ISERROR(VLOOKUP(D25,RecycledContent,2,0)),Translate!$A$90,VLOOKUP(D25,RecycledContent,2,0))","v":0.41},{"$f":"Translate!$A$478","v":"-new or recycled-"},null,null,null,null,null,null,null,null,null,null,null,null,null,null,null,null,null,null,null,null,null,null,null,null,null,null,null,{"$f":"HLOOKUP(AI26,$AP$1:$AV$2,2,0)","v":2},{"$f":"Translate!$A$106","v":"Freight"},{"$f":"AC25","v":0},null,{"$f":"VLOOKUP(T25,EFtable,8,0)*AC25","v":0},null,null,{"$f":"AJ26","v":0}]
[]
[]
[]
[null,"+",null,"EPDM-rubber",null,{"$f":"VLOOKUP(D30,EFtable,2,0)","v":"t"},null,null,{"$f":"E30","v":0},{"$f":"F30","v":"t"},{"$f":"IF(ISERROR(E31*1),VLOOKUP(D30,EFtable,3,0),VLOOKUP(D30,EFtable,3,0)*(1-E31)+VLOOKUP(D30&Translate!$A$199,EFtable,3,0)*E31)","v":2770.4699000000001},{"$f":"IF(F31=Translate!$A$111,0,I30*K30)","v":0},{"$f":"Translate!$A$102","v":"kgCO2e"},null,null,{"$f":"Translate!$A$112","v":"Distance"},null,{"$f":"'Emission factors'!$F$410","v":"km"},{"$f":"Translate!$A$120","v":"Type"},{"$f":"IF(ISERROR(VLOOKUP(D29,StandardFreight,2,0)),VLOOKUP(Translate!$A$118,StandardFreight,2,0),VLOOKUP(D29,StandardFreight,2,0))","v":"Road - Articulated >33t"},{"$f":"Translate!$A$127","v":"Load"},{"$f":"VLOOKUP(T30,FreightLoadFactors,2,0)","v":15},{"$f":"J30","v":"t"},{"$f":"IF(V30=0,0,ROUNDUP(I30/V30,0))","v":0},{"$f":"Translate!$A$130","v":"travels"},{"$f":"Translate!$A$128","v":"empty-return rate"},0.5,{"$f":"VLOOKUP(T30,EFtable,3,0)","v":0.93694},{"$f":"Q30*X30*(1+AA30)*AB30","v":0},{"$f":"Translate!$A$102","v":"kgCO2e"},null,null,null,{"$f":"HLOOKUP(AI30,$AP$1:$AV$2,2,0)","v":1},{"$f":"Translate!$A$104","v":"Materials"},{"$f":"L30","v":0},{"$f":"VLOOKUP(D30,EFtable,7,0)","v":"Other"},{"$f":"VLOOKUP(D30,EFtable,8,0)*L30","v":0},null,{"$f":"ROW(F32)-ROW(F29)","v":3},{"$f":"AJ30","v":0}]
[null,null,null,{"$f":"Translate!$A$79","v":"Recycled content"},{"$f":"IF(ISERROR(VLOOKUP(D30,RecycledContent,2,0)),Translate!$A$90,VLOOKUP(D30,RecycledContent,2,0))","v":"do not apply"},{"$f":"Translate!$A$478","v":"-new or recycled-"},null,null,null,null,null,null,null,null,null,null,null,null,null,null,null,null,null,null,null,null,null,null,null,null,null,null,null,{"$f":"HLOOKUP(AI31,$AP$1:$AV$2,2,0)","v":2},{"$f":"Translate!$A$106","v":"Freight"},{"$f":"AC30","v":0},null,{"$f":"VLOOKUP(T30,EFtable,8,0)*AC30","v":0},null,null,{"$f":"AJ31","v":0}]
[]
[]
[null,null,null,{"$f":"Translate!$A$73","v":"Concrete / Slurry / Grout mix"}]
[null,"+",null,null,null,null,null,null,null,null,null,null,null,null,null,null,null,null,null,null,null,null,null,null,null,null,null,null,null,null,null,null,null,null,null,null,null,null,null,{"$f":"ROW(F58)-ROW(F34)","v":24}]
[null,null,null,{"$f":"Translate!$A$47","v":"Name"},{"$f":"Translate!$A$88","v":"Default concrete"},null,null,null,null,null,null,{"$f":"Translate!$A$475","v":"made at plant"},{"$f":"IF(L36=Translate!$A$475,1,0)","v":1}]
[null,null,null,{"$f":"Translate!$A$74","v":"Quantity"},null,{"$f":"'Emission factors'!$F$414","v":"m3"},null,null,{"$f":"E37","v":0},{"$f":"F37","v":"m3"},null,null,null,null,null,{"$f":"Translate!$A$112","v":"Distance"},{"$f":"IF(L36=\"made on site\",0,20)","v":20},{"$f":"'Emission factors'!$F$410","v":"km"},{"$f":"Translate!$A$120","v":"Type"},{"$f":"Translate!$A$206","v":"Road - Rigid >17t"},{"$f":"Translate!$A$127","v":"Load"},{"$f":"'Emission factors'!$D$311","v":8},{"$f":"J37","v":"m3"},{"$f":"IF(V37=0,0,ROUNDUP(I37/V37,0))","v":0},{"$f":"Translate!$A$130","v":"travels"},{"$f":"Translate!$A$128","v":"empty-return rate"},1,{"$f":"VLOOKUP(T37,EFtable,3,0)","v":0.98243999999999998},{"$f":"Q37*X37*(1+AA37)*AB37","v":0},{"$f":"Translate!$A$102","v":"kgCO2e"},null,null,null,null,null,null,null,null,0]
[null,null,null,null,null,null,null,null,null,null,null,null,null,null,null,null,null,null,null,null,null,null,null,null,null,null,null,null,null,null,null,null,null,{"$f":"HLOOKUP(AI38,$AP$1:$AV$2,2,0)","v":2},{"$f":"Translate!$A$106","v":"Freight"},{"$f":"AC37","v":0},null,{"$f":"VLOOKUP(T37,EFtable,8,0)*AC37","v":0},{"$f":"1+OFFSET(AM38,-1,0)","v":1},null,{"$f":"AJ38","v":0}]
[null,null,"+",{"$f":"Translate!$A$75","v":"Cement"},{"$f":"Translate!$A$181","v":"CEM I"},null,null,null,null,null,null,null,null,null,null,null,null,null,null,null,null,null,null,null,null,null,null,null,null,null,null,null,null,null,null,null,null,null,{"$f":"1+OFFSET(AM39,-1,0)","v":2},{"$f":"ROW(F43)-ROW(F39)","v":4}]
[null,null,null,{"$f":"Translate!$A$76","v":"Total cementitious content"},{"$f":"VLOOKUP($E$6,DefaultConcrete,3,0)","v":400},{"$f":"OFFSET(AS40,-AM40+6,0)","v":"kg/m3"},null,null,null,null,null,null,null,null,null,{"$f":"Translate!$A$112","v":"Distance"},{"$f":"IF(ISERROR(VLOOKUP(D39,StandardFreight,3,0)),VLOOKUP(Translate!$A$118,StandardFreight,3,0),VLOOKUP(D39,StandardFreight,3,0))","v":20},{"$f":"'Emission factors'!$F$410","v":"km"},{"$f":"Translate!$A$120","v":"Type"},{"$f":"IF(ISERROR(VLOOKUP(D39,StandardFreight,2,0)),VLOOKUP(\"Other\",StandardFreight,2,0),VLOOKUP(D39,StandardFreight,2,0))","v":"Road - Rigid >17t"},{"$f":"Translate!$A$127","v":"Load"},{"$f":"VLOOKUP(T40,FreightLoadFactors,2,0)","v":7.5},{"$f":"J43","v":"t"},{"$f":"IF(V40=0,0,ROUNDUP(I43/V40,0))","v":0},{"$f":"Translate!$A$130","v":"travels"},{"$f":"Translate!$A$128","v":"empty-return rate"},1,{"$f":"VLOOKUP(T40,EFtable,3,0)","v":0.98243999999999998},{"$f":"Q40*X40*(1+AA40)*AB40","v":0},{"$f":"Translate!$A$102","v":"kgCO2e"},null,null,null,{"$f":"HLOOKUP(AI40,$AP$1:$AV$2,2,0)","v":1},{"$f":"Translate!$A$104","v":"Materials"},{"$f":"L43","v":0},{"$f":"Translate!$A$73","v":"Concrete / Slurry / Grout mix"},{"$f":"VLOOKUP(\"CEM I\",EFtable,8,0)*L43","v":0},3,null,{"$f":"AJ40","v":0}]
[null,null,null,{"$f":"Translate!$A$77","v":"Secondary constituent"},{"$f":"VLOOKUP(E39,'Emission factors'!$C$286:$M$294,2,0)","v":"-"},null,null,null,null,null,null,null,null,null,null,null,null,null,null,null,null,null,null,null,null,null,null,null,null,null,null,null,null,{"$f":"HLOOKUP(AI41,$AP$1:$AV$2,2,0)","v":2},{"$f":"Translate!$A$106","v":"Freight"},{"$f":"AC40","v":0},null,{"$f":"VLOOKUP(T40,EFtable,8,0)*AC40","v":0},4,null,{"$f":"AJ41","v":0}]
[null,null,null,{"$f":"Translate!$A$78","v":"Secondary constituent content"},{"$f":"Translate!$A$89","v":"Default value"},{"$f":"Translate!$A$97","v":"Real Value"},null,null,null,null,null,null,null,null,null,null,null,null,null,null,null,null,null,null,null,null,null,null,null,null,null,null,null,null,null,null,null,null,5,null,null,null,null,null,{"$f":"'Emission factors'!$F$411","v":"t"}]
[null,null,null,null,{"$f":"IF(F43=\"\",VLOOKUP(E39,CementTypes,5,0),\"\")","v":0},null,null,null,{"$f":"IF(F40=OFFSET(AS43,-AM43+6,0),E40*OFFSET(E43,-AM43,0)/IF(J43='Emission factors'!$E$411,1,1000),E40)","v":0},{"$f":"'Emission factors'!$F$411","v":"t"},{"$f":"IF(E39=\"CEM I\",VLOOKUP(E39,EFtable,3,0),(IF(F43=\"\",E43,F43)*VLOOKUP(E41,EFtable,3,0)+(1-IF(F43=\"\",E43,F43))*VLOOKUP(\"CEM I\",EFtable,3,0)))","v":860},{"$f":"I43*K43","v":0},{"$f":"Translate!$A$102","v":"kgCO2e"},null,null,null,null,null,null,null,null,null,null,null,null,null,null,null,null,null,null,null,null,null,null,null,null,null,6,null,null,null,null,null,{"$f":"'Emission factors'!$F$413&\"/\"&F37","v":"kg/m3"}]
[null,null,null,null,null,null,null,null,null,null,null,null,null,null,null,null,null,null,null,null,null,null,null,null,null,null,null,null,null,null,null,null,null,null,null,null,null,null,7]
[null,null,"+",{"$f":"Translate!$A$177","v":"Aggregate"},{"$f":"IF(ISERROR(VLOOKUP($E$6,DefaultConcrete,HLOOKUP(D45,DefaultConcrete,2,0),0)),0,VLOOKUP($E$6,DefaultConcrete,HLOOKUP(D45,DefaultConcrete,2,0),0))","v":900},{"$f":"OFFSET(AS45,-AM45+6,0)","v":"kg/m3"},null,null,{"$f":"IF(F45=OFFSET(AS45,-AM45+6,0),E45*OFFSET(E45,-AM45,0)/IF(J45='Emission factors'!$E$411,1,1000),E45)","v":0},{"$f":"'Emission factors'!$F$411","v":"t"},{"$f":"IF(ISERROR(E46*1),VLOOKUP(D45,EFtable,3,0),VLOOKUP(D45,EFtable,3,0)*(1-E46)+VLOOKUP(D45&Translate!$A$199,EFtable,3,0)*E46)","v":4},{"$f":"IF(F46=Translate!$A$111,0,I45*K45)","v":0},{"$f":"Translate!$A$102","v":"kgCO2e"},null,null,{"$f":"Translate!$A$112","v":"Distance"},{"$f":"IF(ISERROR(VLOOKUP(D45,StandardFreight,3,0)),VLOOKUP(Translate!$A$118,StandardFreight,3,0),VLOOKUP(D45,StandardFreight,3,0))","v":20},{"$f":"'Emission factors'!$F$410","v":"km"},{"$f":"Translate!$A$120","v":"Type"},{"$f":"IF(ISERROR(VLOOKUP(D45,StandardFreight,2,0)),VLOOKUP(\"Other\",StandardFreight,2,0),VLOOKUP(D45,StandardFreight,2,0))","v":"Road - Articulated >33t"},{"$f":"Translate!$A$127","v":"Load"},{"$f":"VLOOKUP(T45,FreightLoadFactors,2,0)","v":15},{"$f":"J45","v":"t"},{"$f":"IF(V45=0,0,ROUNDUP(I45/V45,0))","v":0},{"$f":"Translate!$A$130","v":"travels"},{"$f":"Translate!$A$128","v":"empty-return rate"},1,{"$f":"VLOOKUP(T45,EFtable,3,0)","v":0.93694},{"$f":"Q45*X45*(1+AA45)*AB45","v":0},{"$f":"Translate!$A$102","v":"kgCO2e"},null,null,null,{"$f":"HLOOKUP(AI45,$AP$1:$AV$2,2,0)","v":1},{"$f":"Translate!$A$104","v":"Materials"},{"$f":"L45","v":0},{"$f":"VLOOKUP(D45,EFtable,7,0)","v":"Concrete / Slurry / Grout mix"},{"$f":"VLOOKUP(D45,EFtable,8,0)*L45","v":0},8,{"$f":"ROW(F46)-ROW(F45)","v":1},{"$f":"AJ45","v":0}]
[null,null,null,{"$f":"Translate!$A$79","v":"Recycled content"},{"$f":"IF(ISERROR(VLOOKUP(D45,RecycledContent,2,0)),Translate!$A$90,VLOOKUP(D45,RecycledContent,2,0))","v":"do not apply"},{"$f":"Translate!$A$478","v":"-new or recycled-"},null,null,null,null,null,null,null,null,null,null,null,null,null,null,null,null,null,null,null,null,null,null,null,null,null,null,null,{"$f":"HLOOKUP(AI46,$AP$1:$AV$2,2,0)","v":2},{"$f":"Translate!$A$106","v":"Freight"},{"$f":"AC45","v":0},null,{"$f":"VLOOKUP(T45,EFtable,8,0)*AC45","v":0},9,null,0]
[null,null,null,null,null,null,null,null,null,null,null,null,null,null,null,null,null,null,null,null,null,null,null,null,null,null,null,null,null,null,null,null,null,null,null,null,null,null,10]
[null,null,"+",{"$f":"Translate!$A$190","v":"Sand"},{"$f":"IF(ISERROR(VLOOKUP($E$6,DefaultConcrete,HLOOKUP(D48,DefaultConcrete,2,0),0)),0,VLOOKUP($E$6,DefaultConcrete,HLOOKUP(D48,DefaultConcrete,2,0),0))","v":800},{"$f":"OFFSET(AS48,-AM48+6,0)","v":"kg/m3"},null,null,{"$f":"IF(F48=OFFSET(AS48,-AM48+6,0),E48*OFFSET(E48,-AM48,0)/IF(J48='Emission factors'!$E$411,1,1000),E48)","v":0},{"$f":"'Emission factors'!$F$411","v":"t"},{"$f":"IF(ISERROR(E49*1),VLOOKUP(D48,EFtable,3,0),VLOOKUP(D48,EFtable,3,0)*(1-E49)+VLOOKUP(D48&Translate!$A$199,EFtable,3,0)*E49)","v":6},{"$f":"IF(F49=Translate!$A$111,0,I48*K48)","v":0},{"$f":"Translate!$A$102","v":"kgCO2e"},null,null,{"$f":"Translate!$A$112","v":"Distance"},{"$f":"IF(ISERROR(VLOOKUP(D48,StandardFreight,3,0)),VLOOKUP(Translate!$A$118,StandardFreight,3,0),VLOOKUP(D48,StandardFreight,3,0))","v":20},{"$f":"'Emission factors'!$F$410","v":"km"},{"$f":"Translate!$A$120","v":"Type"},{"$f":"IF(ISERROR(VLOOKUP(D48,StandardFreight,2,0)),VLOOKUP(\"Other\",StandardFreight,2,0),VLOOKUP(D48,StandardFreight,2,0))","v":"Road - Articulated >33t"},{"$f":"Translate!$A$127","v":"Load"},{"$f":"VLOOKUP(T48,FreightLoadFactors,2,0)","v":15},{"$f":"J48","v":"t"},{"$f":"IF(V48=0,0,ROUNDUP(I48/V48,0))","v":0},{"$f":"Translate!$A$130","v":"travels"},{"$f":"Translate!$A$128","v":"empty-return rate"},1,{"$f":"VLOOKUP(T48,EFtable,3,0)","v":0.93694},{"$f":"Q48*X48*(1+AA48)*AB48","v":0},{"$f":"Translate!$A$102","v":"kgCO2e"},null,null,null,{"$f":"HLOOKUP(AI48,$AP$1:$AV$2,2,0)","v":1},{"$f":"Translate!$A$104","v":"Materials"},{"$f":"L48","v":0},{"$f":"VLOOKUP(D48,EFtable,7,0)","v":"Concrete / Slurry / Grout mix"},{"$f":"VLOOKUP(D48,EFtable,8,0)*L48","v":0},11,{"$f":"ROW(F49)-ROW(F48)","v":1},0]
[null,null,null,{"$f":"Translate!$A$79","v":"Recycled content"},{"$f":"IF(ISERROR(VLOOKUP(D48,RecycledContent,2,0)),Translate!$A$90,VLOOKUP(D48,RecycledContent,2,0))","v":"do not apply"},{"$f":"Translate!$A$478","v":"-new or recycled-"},null,null,null,null,null,null,null,null,null,null,null,null,null,null,null,null,null,null,null,null,null,null,null,null,null,null,null,{"$f":"HLOOKUP(AI49,$AP$1:$AV$2,2,0)","v":2},{"$f":"Translate!$A$106","v":"Freight"},{"$f":"AC48","v":0},null,{"$f":"VLOOKUP(T48,EFtable,8,0)*AC48","v":0},12,null,0]
[null,null,null,null,null,null,null,null,null,null,null,null,null,null,null,null,null,null,null,null,null,null,null,null,null,null,null,null,null,null,null,null,null,null,null,null,null,null,13]
[null,null,"+",{"$f":"Translate!$A$198","v":"Water"},{"$f":"IF(ISERROR(VLOOKUP($E$6,DefaultConcrete,HLOOKUP(D51,DefaultConcrete,2,0),0)),0,VLOOKUP($E$6,DefaultConcrete,HLOOKUP(D51,DefaultConcrete,2,0),0))","v":200},{"$f":"OFFSET(AS51,-AM51+6,0)","v":"kg/m3"},null,null,{"$f":"IF(F51=OFFSET(AS51,-AM51+6,0),E51*OFFSET(E51,-AM51,0)/IF(J51='Emission factors'!$E$411,1,1000),E51)","v":0},{"$f":"'Emission factors'!$F$411","v":"t"},{"$f":"IF(ISERROR(E52*1),VLOOKUP(D51,EFtable,3,0),VLOOKUP(D51,EFtable,3,0)*(1-E52)+VLOOKUP(D51&Translate!$A$199,EFtable,3,0)*E52)","v":0.34399999999999997},{"$f":"IF(F52=Translate!$A$111,0,I51*K51)","v":0},{"$f":"Translate!$A$102","v":"kgCO2e"},null,null,{"$f":"Translate!$A$112","v":"Distance"},{"$f":"IF(ISERROR(VLOOKUP(D51,StandardFreight,3,0)),VLOOKUP(Translate!$A$118,StandardFreight,3,0),VLOOKUP(D51,StandardFreight,3,0))","v":0},{"$f":"'Emission factors'!$F$410","v":"km"},{"$f":"Translate!$A$120","v":"Type"},{"$f":"IF(ISERROR(VLOOKUP(D51,StandardFreight,2,0)),VLOOKUP(\"Other\",StandardFreight,2,0),VLOOKUP(D51,StandardFreight,2,0))","v":"Road - Rigid >3.5-7.5t"},{"$f":"Translate!$A$127","v":"Load"},{"$f":"VLOOKUP(T51,FreightLoadFactors,2,0)","v":1.0123216601815823},{"$f":"J51","v":"t"},{"$f":"IF(V51=0,0,ROUNDUP(I51/V51,0))","v":0},{"$f":"Translate!$A$130","v":"travels"},{"$f":"Translate!$A$128","v":"empty-return rate"},1,{"$f":"VLOOKUP(T51,EFtable,3,0)","v":0.49041000000000001},{"$f":"Q51*X51*(1+AA51)*AB51","v":0},{"$f":"Translate!$A$102","v":"kgCO2e"},null,null,null,{"$f":"HLOOKUP(AI51,$AP$1:$AV$2,2,0)","v":1},{"$f":"Translate!$A$104","v":"Materials"},{"$f":"L51","v":0},{"$f":"VLOOKUP(D51,EFtable,7,0)","v":"Concrete / Slurry / Grout mix"},{"$f":"VLOOKUP(D51,EFtable,8,0)*L51","v":0},14,{"$f":"ROW(F52)-ROW(F51)","v":1},0]
[null,null,null,{"$f":"Translate!$A$79","v":"Recycled content"},{"$f":"IF(ISERROR(VLOOKUP(D51,RecycledContent,2,0)),Translate!$A$90,VLOOKUP(D51,RecycledContent,2,0))","v":"do not apply"},{"$f":"Translate!$A$478","v":"-new or recycled-"},null,null,null,null,null,null,null,null,null,null,null,null,null,null,null,null,null,null,null,null,null,null,null,null,null,null,null,{"$f":"HLOOKUP(AI52,$AP$1:$AV$2,2,0)","v":2},{"$f":"Translate!$A$106","v":"Freight"},{"$f":"AC51","v":0},null,{"$f":"VLOOKUP(T51,EFtable,8,0)*AC51","v":0},15,null,0]
[null,null,null,null,null,null,null,null,null,null,null,null,null,null,null,null,null,null,null,null,null,null,null,null,null,null,null,null,null,null,null,null,null,null,null,null,null,null,16]
[null,null,"+",{"$f":"Translate!$A$178","v":"Bentonite"},{"$f":"IF(ISERROR(VLOOKUP($E$6,DefaultConcrete,HLOOKUP(D54,DefaultConcrete,2,0),0)),0,VLOOKUP($E$6,DefaultConcrete,HLOOKUP(D54,DefaultConcrete,2,0),0))","v":0},{"$f":"OFFSET(AS54,-AM54+6,0)","v":"kg/m3"},null,null,{"$f":"IF(F54=OFFSET(AS54,-AM54+6,0),E54*OFFSET(E54,-AM54,0)/IF(J54='Emission factors'!$E$411,1,1000),E54)","v":0},{"$f":"'Emission factors'!$F$411","v":"t"},{"$f":"IF(ISERROR(E55*1),VLOOKUP(D54,EFtable,3,0),VLOOKUP(D54,EFtable,3,0)*(1-E55)+VLOOKUP(D54&Translate!$A$199,EFtable,3,0)*E55)","v":474.97791999999998},{"$f":"IF(F55=Translate!$A$111,0,I54*K54)","v":0},{"$f":"Translate!$A$102","v":"kgCO2e"},null,null,{"$f":"Translate!$A$112","v":"Distance"},{"$f":"IF(ISERROR(VLOOKUP(D54,StandardFreight,3,0)),VLOOKUP(Translate!$A$118,StandardFreight,3,0),VLOOKUP(D54,StandardFreight,3,0))","v":300},{"$f":"'Emission factors'!$F$410","v":"km"},{"$f":"Translate!$A$120","v":"Type"},{"$f":"IF(ISERROR(VLOOKUP(D54,StandardFreight,2,0)),VLOOKUP(Translate!$A$118,StandardFreight,2,0),VLOOKUP(D54,StandardFreight,2,0))","v":"Road - Articulated >33t"},{"$f":"Translate!$A$127","v":"Load"},{"$f":"VLOOKUP(T54,FreightLoadFactors,2,0)","v":15},{"$f":"J54","v":"t"},{"$f":"IF(V54=0,0,ROUNDUP(I54/V54,0))","v":0},{"$f":"Translate!$A$130","v":"travels"},{"$f":"Translate!$A$128","v":"empty-return rate"},1,{"$f":"VLOOKUP(T54,EFtable,3,0)","v":0.93694},{"$f":"Q54*X54*(1+AA54)*AB54","v":0},{"$f":"Translate!$A$102","v":"kgCO2e"},null,null,null,{"$f":"HLOOKUP(AI54,$AP$1:$AV$2,2,0)","v":1},{"$f":"Translate!$A$104","v":"Materials"},{"$f":"L54","v":0},{"$f":"VLOOKUP(D54,EFtable,7,0)","v":"Concrete / Slurry / Grout mix"},{"$f":"VLOOKUP(D54,EFtable,8,0)*L54","v":0},17,{"$f":"ROW(F55)-ROW(F54)","v":1},0]
[null,null,null,{"$f":"Translate!$A$79","v":"Recycled content"},{"$f":"IF(ISERROR(VLOOKUP(D54,RecycledContent,2,0)),Translate!$A$90,VLOOKUP(D54,RecycledContent,2,0))","v":"do not apply"},{"$f":"Translate!$A$478","v":"-new or recycled-"},null,null,null,null,null,null,null,null,null,null,null,null,null,null,null,null,null,null,null,null,null,null,null,null,null,null,null,{"$f":"HLOOKUP(AI55,$AP$1:$AV$2,2,0)","v":2},{"$f":"Translate!$A$106","v":"Freight"},{"$f":"AC54","v":0},null,{"$f":"VLOOKUP(T54,EFtable,8,0)*AC54","v":0},18,null,0]
[null,null,null,null,null,null,null,null,null,null,null,null,null,null,null,null,null,null,null,null,null,null,null,null,null,null,null,null,null,null,null,null,null,null,null,null,null,null,{"$f":"1+OFFSET(AM56,-1,0)","v":19},null,{"$f":"AJ56","v":0}]
[null,null,null,null,{"$f":"IF(E37=0,0,SUM(I42:I56)/E37)","v":0},{"$f":"'Emission factors'!$F$411&\"/\"&F37","v":"t/m3"},null,null,null,null,null,null,null,null,null,null,null,null,null,null,null,null,null,null,null,null,null,null,null,null,null,null,null,null,null,null,null,null,{"$f":"1+OFFSET(AM57,-1,0)","v":20},null,{"$f":"AJ57","v":0}]
[null,null,null,null,null,null,null,null,null,null,null,null,null,null,null,null,null,null,null,null,null,null,null,null,null,null,null,null,null,null,null,null,null,null,null,null,null,null,21]
[]
[]
[]
[null,null,null,{"$f":"AP11","v":"Energy    (Primary source)"}]
[]
[]
[null,null,null,{"$f":"Translate!$A$80","v":"Simplified ratio"},{"$f":"IF(AND(AP5,F65=Translate!$A$91),AP4,Translate!$A$92)","v":"OFF"},{"$f":"Translate!$A$91","v":"Default"},null,null,null,null,{"$f":"$P$1","v":0},{"$f":"IF(E65=Translate!$A$92,0,E65*K65)","v":0},{"$f":"Translate!$A$102","v":"kgCO2e"},null,null,null,null,null,null,null,null,null,null,null,null,null,null,null,null,null,null,null,"ratio",2,{"$f":"Translate!$A$105","v":"Energy"},{"$f":"L65","v":0},null,{"$f":"100%*L65","v":0},null,{"$f":"ROW(F66)-ROW(F64)","v":2}]
[]
[]
[]
[null,"+",null,{"$f":"Translate!$A$200","v":"Diesel"},null,{"$f":"VLOOKUP(D69,EFtable,2,0)","v":"liter"},null,null,null,null,{"$f":"VLOOKUP(D69,EFtable,3,0)","v":3.2112000000000003},{"$f":"E69*K69","v":0},{"$f":"Translate!$A$102","v":"kgCO2e"},null,null,null,null,null,null,null,null,null,null,null,null,null,null,null,null,null,null,null,null,{"$f":"HLOOKUP(AI69,$AP$1:$AV$2,2,0)","v":1},{"$f":"Translate!$A$105","v":"Energy"},{"$f":"L69","v":0},null,{"$f":"VLOOKUP(D69,EFtable,8,0)*L69","v":0},null,{"$f":"ROW(F70)-ROW(F68)","v":2},{"$f":"AJ69","v":0}]
[]
[]
[]
[null,"+",null,{"$f":"Translate!$A$81","v":"Network electricity"},null,{"$f":"Translate!$A$98","v":"kWh"},null,null,null,null,{"$f":"IF(ISERROR(VLOOKUP(Translate!$A$202&\" - \"&$E$12,EFtable,3,0)),0,VLOOKUP(Translate!$A$202&\" - \"&$E$12,EFtable,3,0))","v":0},{"$f":"IF(ISERROR(K73),0,E73*K73)","v":0},{"$f":"Translate!$A$102","v":"kgCO2e"},null,null,null,null,null,null,null,null,null,null,null,null,null,null,null,null,null,null,null,null,{"$f":"HLOOKUP(AI73,$AP$1:$AV$2,2,0)","v":1},{"$f":"Translate!$A$105","v":"Energy"},{"$f":"L73","v":0},null,{"$f":"10%*L73","v":0},null,{"$f":"ROW(F74)-ROW(F72)","v":2},{"$f":"AJ73","v":0}]
[]
[]
[]
[]
[null,null,null,{"$f":"AS11","v":"Mob/demob    (Secondary source)"}]
[]
[]
[null,null,null,{"$f":"Translate!$A$80","v":"Simplified ratio"},{"$f":"IF(AND(AS5,F81=Translate!$A$91),AS4,Translate!$A$92)","v":3.1868748686830371E-3},{"$f":"Translate!$A$91","v":"Default"},null,null,null,null,{"$f":"$P$1","v":0},{"$f":"IF(E81=Translate!$A$92,0,E81*K81)","v":0},{"$f":"Translate!$A$102","v":"kgCO2e"},null,null,null,null,null,null,null,null,null,null,null,null,null,null,null,null,null,null,null,"ratio",{"$f":"HLOOKUP(AI81,$AP$1:$AV$2,2,0)","v":2},{"$f":"Translate!$A$107","v":"Mob/demob"},{"$f":"L81","v":0},null,{"$f":"100%*L81","v":0}]
[]
[]
[]
[null,"+",null,{"$f":"Translate!$A$206","v":"Road - Rigid >17t"},null,{"$f":"Translate!$A$99","v":"roundtrips"},null,null,{"$f":"E85*M85*(1+V85)","v":0},{"$f":"'Emission factors'!$F$410","v":"km"},{"$f":"VLOOKUP(D85,EFtable,3,0)","v":0.98243999999999998},{"$f":"Translate!$A$112","v":"Distance"},50,{"$f":"'Emission factors'!$F$410&\" \"&Translate!$A$114","v":"km  one way"},null,null,null,{"$f":"I85*K85","v":0},{"$f":"Translate!$A$102","v":"kgCO2e"},null,{"$f":"Translate!$A$128","v":"empty-return rate"},0,null,null,null,null,null,null,null,null,null,null,null,{"$f":"HLOOKUP(AI85,$AP$1:$AV$2,2,0)","v":2},{"$f":"Translate!$A$107","v":"Mob/demob"},{"$f":"R85","v":0},null,{"$f":"VLOOKUP(D85,EFtable,8,0)*R85","v":0},null,{"$f":"ROW(F86)-ROW(F84)","v":2},{"$f":"AJ85","v":0}]
[]
[]
[]
[null,"+",null,{"$f":"Translate!$A$208","v":"Road - Articulated >33t"},null,{"$f":"Translate!$A$99","v":"roundtrips"},null,null,{"$f":"E89*M89*(1+V89)","v":0},{"$f":"'Emission factors'!$F$410","v":"km"},{"$f":"VLOOKUP(D89,EFtable,3,0)","v":0.93694},{"$f":"Translate!$A$112","v":"Distance"},50,{"$f":"'Emission factors'!$F$410&\" \"&Translate!$A$114","v":"km  one way"},null,null,null,{"$f":"I89*K89","v":0},{"$f":"Translate!$A$102","v":"kgCO2e"},null,{"$f":"Translate!$A$128","v":"empty-return rate"},0,null,null,null,null,null,null,null,null,null,null,null,{"$f":"HLOOKUP(AI89,$AP$1:$AV$2,2,0)","v":2},{"$f":"Translate!$A$107","v":"Mob/demob"},{"$f":"R89","v":0},null,{"$f":"VLOOKUP(D89,EFtable,8,0)*R89","v":0},null,{"$f":"ROW(F90)-ROW(F88)","v":2},{"$f":"AJ89","v":0}]
[]
[]
[]
[]
[null,null,null,{"$f":"AT11","v":"People's transportation    (Secondary source)"}]
[]
[]
[null,null,null,{"$f":"Translate!$A$82","v":"Coming by"},{"$f":"Translate!$A$93","v":"Number of roundtrips"},{"$f":"Translate!$A$100","v":"every X day(s)"},null,null,null,null,null,{"$f":"Translate!$A$113&\"\n(\"&'Emission factors'!$F$410&Translate!$A$114&\")\"","v":"Average distance\n(km one way)"}]
[]
[null,null,"+",{"$f":"Translate!$A$217","v":"Car"},{"$f":"$E$10","v":0},1,null,null,{"$f":"L99*E99*$E$9*2/F99","v":0},{"$f":"VLOOKUP(D99,EFtable,2,0)","v":"vkm"},{"$f":"VLOOKUP(D99,EFtable,3,0)","v":0.21470999999999998},50,null,null,null,{"$f":"I99*K99","v":0},{"$f":"Translate!$A$102","v":"kgCO2e"},null,null,null,null,null,null,null,null,null,null,null,null,null,null,null,null,{"$f":"HLOOKUP(AI99,$AP$1:$AV$2,2,0)","v":2},{"$f":"Translate!$A$108","v":"People's transportation"},{"$f":"P99","v":0},null,{"$f":"VLOOKUP(D99,EFtable,8,0)*P99","v":0},null,2,{"$f":"AJ99","v":0}]
[]
[]
[]
[null,null,"+",{"$f":"Translate!$A$216","v":"Bus"},null,1,null,null,{"$f":"L103*E103*$E$9*2/F103","v":0},{"$f":"VLOOKUP(D103,EFtable,2,0)","v":"pkm"},{"$f":"VLOOKUP(D103,EFtable,3,0)","v":0.12970999999999999},50,null,null,null,{"$f":"I103*K103","v":0},{"$f":"Translate!$A$102","v":"kgCO2e"},null,null,null,null,null,null,null,null,null,null,null,null,null,null,null,null,{"$f":"HLOOKUP(AI103,$AP$1:$AV$2,2,0)","v":2},{"$f":"Translate!$A$108","v":"People's transportation"},{"$f":"P103","v":0},null,{"$f":"VLOOKUP(D103,EFtable,8,0)*P103","v":0},null,2,{"$f":"AJ103","v":0}]
[]
[]
[]
[null,null,"+",{"$f":"Translate!$A$218","v":"Train"},null,5,null,null,{"$f":"L107*E107*$E$9*2/F107","v":0},{"$f":"VLOOKUP(D107,EFtable,2,0)","v":"pkm"},{"$f":"VLOOKUP(D107,EFtable,3,0)","v":4.9049999999999996E-2},300,null,null,null,{"$f":"I107*K107","v":0},{"$f":"Translate!$A$102","v":"kgCO2e"},null,null,null,null,null,null,null,null,null,null,null,null,null,null,null,null,{"$f":"HLOOKUP(AI107,$AP$1:$AV$2,2,0)","v":2},{"$f":"Translate!$A$108","v":"People's transportation"},{"$f":"P107","v":0},null,{"$f":"VLOOKUP(D107,EFtable,8,0)*P107","v":0},null,2,{"$f":"AJ107","v":0}]
[]
[]
[]
[]
[]
[null,"+",null,{"$f":"Translate!$A$218","v":"Train"},null,{"$f":"VLOOKUP(D113,EFtable,2,0)","v":"pkm"},null,null,null,null,{"$f":"VLOOKUP(D113,EFtable,3,0)","v":4.9049999999999996E-2},{"$f":"E113*K113","v":0},{"$f":"Translate!$A$102","v":"kgCO2e"},null,null,null,null,null,null,null,null,null,null,null,null,null,null,null,null,null,null,null,null,{"$f":"HLOOKUP(AI113,$AP$1:$AV$2,2,0)","v":2},{"$f":"Translate!$A$108","v":"People's transportation"},{"$f":"L113","v":0},null,{"$f":"VLOOKUP(D113,EFtable,8,0)*L113","v":0},null,{"$f":"ROW(F114)-ROW(F112)","v":2},{"$f":"AJ113","v":0}]
[]
[]
[]
[]
[null,null,null,{"$f":"AU11","v":"Assets    (Secondary source)"}]
[]
[]
[null,null,null,{"$f":"Translate!$A$80","v":"Simplified ratio"},{"$f":"IF(AND(AU5,F121=Translate!$A$91),AU4,Translate!$A$92)","v":4.377484024657128E-3},{"$f":"Translate!$A$91","v":"Default"},null,null,null,null,{"$f":"$P$1","v":0},{"$f":"IF(E121=Translate!$A$92,0,E121*K121)","v":0},{"$f":"Translate!$A$102","v":"kgCO2e"},null,null,null,null,null,null,null,null,null,null,null,null,null,null,null,null,null,null,null,"ratio",{"$f":"HLOOKUP(AI121,$AP$1:$AV$2,2,0)","v":2},{"$f":"Translate!$A$109","v":"Assets"},{"$f":"L121","v":0},null,{"$f":"100%*L121","v":0}]
[]
[]
[]
[null,"+",null,{"$f":"Translate!$A$222","v":"Machines"},null,{"$f":"Translate!$A$101","v":"t"},null,null,{"$f":"E125*U125/(Z125*R125)","v":0},"t",{"$f":"VLOOKUP(Translate!$A$222,EFtable,3,0)","v":3666.6666666666665},{"$f":"I125*K125","v":0},{"$f":"Translate!$A$102","v":"kgCO2e"},null,null,{"$f":"Translate!$A$116","v":"Lifetime"},null,10,{"$f":"Translate!$A$121","v":"years"},{"$f":"Translate!$A$126","v":"Use time"},{"$f":"$E$9","v":0},{"$f":"Translate!$A$129","v":"days"},null,{"$f":"Translate!$A$67","v":"Working days"},null,150,{"$f":"Translate!$A$129&\" / \"&Translate!$A$122","v":"days / year"},null,null,null,null,null,null,{"$f":"HLOOKUP(AI125,$AP$1:$AV$2,2,0)","v":2},{"$f":"Translate!$A$109","v":"Assets"},{"$f":"L125","v":0},null,{"$f":"VLOOKUP(\"Machines\",EFtable,8,0)*L125","v":0},null,{"$f":"ROW(F126)-ROW(F124)","v":2},{"$f":"AJ125","v":0}]
[]
[]
[]
[]
[null,null,null,{"$f":"AV11","v":"Waste    (Secondary source)"}]
[]
[]
[null,null,null,{"$f":"Translate!$A$80","v":"Simplified ratio"},{"$f":"IF(AND(AV5,F133=Translate!$A$91),AV4,Translate!$A$92)","v":2.6591480192145979E-3},{"$f":"Translate!$A$91","v":"Default"},null,null,null,null,{"$f":"$P$1","v":0},{"$f":"IF(E133=Translate!$A$92,0,E133*K133)","v":0},{"$f":"Translate!$A$102","v":"kgCO2e"},null,null,null,null,null,null,null,null,null,null,null,null,null,null,null,null,null,null,null,"ratio",{"$f":"HLOOKUP(AI133,$AP$1:$AV$2,2,0)","v":2},{"$f":"Translate!$A$110","v":"Waste"},{"$f":"L133","v":0},null,{"$f":"100%*L133","v":0}]
[]
[]
[]
[null,"+",null,{"$f":"Translate!$A$84","v":"Waste 1"},null,{"$f":"Translate!$A$101","v":"t"},null,null,{"$f":"Q137*X137*(1+AA137)","v":0},{"$f":"'Emission factors'!$F$410","v":"km"},{"$f":"VLOOKUP(T137,EFtable,3,0)","v":0.98243999999999998},{"$f":"I137*K137","v":0},{"$f":"Translate!$A$102","v":"kgCO2e"},null,null,{"$f":"Translate!$A$112","v":"Distance"},10,{"$f":"'Emission factors'!$F$410","v":"km"},{"$f":"Translate!$A$120","v":"Type"},{"$f":"Translate!$A$206","v":"Road - Rigid >17t"},{"$f":"Translate!$A$127","v":"Load"},{"$f":"VLOOKUP(T137,'Emission factors'!$C$313:$E$329,2,0)","v":7.5},{"$f":"J137","v":"km"},{"$f":"IF(V137=0,0,ROUNDUP(E137/V137,0))","v":0},{"$f":"Translate!$A$130","v":"travels"},{"$f":"Translate!$A$128","v":"empty-return rate"},0.5,null,null,null,null,null,null,{"$f":"HLOOKUP(AI137,$AP$1:$AV$2,2,0)","v":2},{"$f":"Translate!$A$110","v":"Waste"},{"$f":"L137","v":0},null,{"$f":"VLOOKUP(T137,EFtable,8,0)*L137","v":0},null,{"$f":"ROW(F138)-ROW(F136)","v":2},{"$f":"AJ137","v":0}]
[]
[]
[]
[null,{"$f":"Translate!$A$242","v":"-"},null,{"$f":"Translate!$A$85","v":"Waste 2"},null,{"$f":"Translate!$A$101","v":"t"},null,null,{"$f":"Q141*X141*(1+AA141)","v":0},{"$f":"'Emission factors'!$F$410","v":"km"},{"$f":"VLOOKUP(T141,EFtable,3,0)","v":0.98243999999999998},{"$f":"I141*K141","v":0},{"$f":"Translate!$A$102","v":"kgCO2e"},null,null,{"$f":"Translate!$A$112","v":"Distance"},10,{"$f":"'Emission factors'!$F$410","v":"km"},{"$f":"Translate!$A$120","v":"Type"},{"$f":"Translate!$A$206","v":"Road - Rigid >17t"},{"$f":"Translate!$A$127","v":"Load"},{"$f":"VLOOKUP(T141,'Emission factors'!$C$313:$E$329,2,0)","v":7.5},{"$f":"J141","v":"km"},{"$f":"IF(V141=0,0,ROUNDUP(E141/V141,0))","v":0},{"$f":"Translate!$A$130","v":"travels"},{"$f":"Translate!$A$128","v":"empty-return rate"},0.5,null,null,null,null,null,null,{"$f":"HLOOKUP(AI141,$AP$1:$AV$2,2,0)","v":2},{"$f":"Translate!$A$110","v":"Waste"},{"$f":"L141","v":0},null,{"$f":"VLOOKUP(T141,EFtable,8,0)*L141","v":0},null,{"$f":"ROW(F142)-ROW(F140)","v":2},{"$f":"AJ141","v":0}]
[]
[]
[]
[]
[null,null,null,{"$f":"Translate!$A$86","v":"Externaly calculated emissions"}]
[]
[]
[null,"+",null,{"$f":"Translate!$A$47","v":"Name"},null,{"$f":"Translate!$A$104","v":"Materials"},null,null,null,null,null,null,{"$f":"Translate!$A$102","v":"kgCO2e"},null,null,null,null,null,null,null,null,null,null,null,null,null,null,null,null,null,null,null,"ext",{"$f":"HLOOKUP(AI149,$AP$1:$AV$2,2,0)","v":1},{"$f":"F149","v":"Materials"},{"$f":"L149","v":0},{"$f":"IF(F149=$AQ$1,Translate!$A$118,\"\")","v":"Other"},null,null,{"$f":"ROW(F150)-ROW(F148)","v":2}]

{"sheet":"Subprojectzero3","index":4,"n_rows":149,"n_cols":57,"rows_kept":149,"cut":false,"hidden":true,"merged":[[2,19,3,25],[3,27,9,31],[5,1,9,1],[5,19,9,25],[11,21,11,23],[109,3,110,3],[51,5,51,7],[53,5,53,7],[57,5,57,7],[61,5,61,7]]}
["Subproject",null,null,null,null,null,null,null,null,null,null,null,"Total primary emission sources",null,null,{"$f":"SUMPRODUCT(($AH$17:$AH$177=1)*$AO$17:$AO$177)","v":0},{"$f":"SUMPRODUCT(($AH$17:$AH$177=1)*1,$AL$17:$AL$177)","v":0},null,null,"externally calculated emissions",{"$f":"IF(SUMPRODUCT(($AG$17:$AG$172=\"ext\")*1,$AJ$17:$AJ$172)<>0,TRUE)","v":false},"ratios used",{"$f":"IF(SUMPRODUCT(($AG$17:$AG$172=\"ratio\")*1,$AJ$17:$AJ$172)<>0,TRUE)","v":false},null,null,null,"Functional unit 1",{"$f":"IF(E13=\"value\",1,0)","v":1},"country",0,null,null,null,null,"t",{"$f":"Translate!$A$73","v":"Concrete / Slurry / Grout mix"},{"$f":"Translate!$A$138","v":"Steel"},{"$f":"Translate!$A$118","v":"Other"},null,null,null,{"$f":"'Emission factors'!D342","v":"Energy"},{"$f":"'Emission factors'!E342","v":"Materials"},{"$f":"'Emission factors'!F342","v":"Freight"},{"$f":"'Emission factors'!G342","v":"Mob/demob"},{"$f":"'Emission factors'!H342","v":"People's transportation"},{"$f":"'Emission factors'!I342","v":"Assets"},{"$f":"'Emission factors'!J342","v":"Waste"}]
[null,null,null,null,null,null,null,null,null,null,null,null,"Total secondary emission sources",null,null,{"$f":"SUMPRODUCT(($AH$17:$AH$177=2)*$AO$17:$AO$177)","v":0},{"$f":"SUMPRODUCT(($AH$17:$AH$177=2)*1,$AL$17:$AL$177)","v":0},null,null,null,null,null,null,null,null,null,"Functional unit 2",{"$f":"IF(E14=\"value\",1,0)","v":1},null,null,null,null,null,null,{"$f":"\"kg/\"&F105","v":"kg/m3"},{"$f":"SUMPRODUCT(($AK$17:$AK$172=AJ1)*1,$AJ$17:$AJ$172)/1000","v":0},{"$f":"SUMPRODUCT(($AK$17:$AK$172=AK1)*1,$AJ$17:$AJ$172)/1000","v":0},{"$f":"SUMPRODUCT(($AK$17:$AK$172=AL1)*1,$AJ$17:$AJ$172)/1000","v":0},null,null,"Primary(1)/Secondary(2)",{"$f":"VLOOKUP($E$6,'Emission factors'!$C$343:$AY$370,'Emission factors'!Y$340,0)","v":1},{"$f":"VLOOKUP($E$6,'Emission factors'!$C$343:$AY$370,'Emission factors'!Z$340,0)","v":2},{"$f":"VLOOKUP($E$6,'Emission factors'!$C$343:$AY$370,'Emission factors'!AA$340,0)","v":2},{"$f":"VLOOKUP($E$6,'Emission factors'!$C$343:$AY$370,'Emission factors'!AB$340,0)","v":1},{"$f":"VLOOKUP($E$6,'Emission factors'!$C$343:$AY$370,'Emission factors'!AC$340,0)","v":1},{"$f":"VLOOKUP($E$6,'Emission factors'!$C$343:$AY$370,'Emission factors'!AD$340,0)","v":1},{"$f":"VLOOKUP($E$6,'Emission factors'!$C$343:$AY$370,'Emission factors'!AE$340,0)","v":2},null,null,"Messages"]
[null,null,null,null,null,null,null,null,null,null,null,null,null,null,null,null,null,null,null,{"$f":"Translate!$A$123&AQ9&AP9&AR9&AS9&AT9&AU9&AV9","v":"Primary emission sources : \nEnergy, Mob/demob, People's transportation, Assets, "},null,null,null,null,null,null,null,{"$f":"Translate!$A$131","v":"Comments :"},null,null,null,null,null,null,null,null,null,null,null,null,"Project emission repartition",{"$f":"IF(SUM($P$7:$P$13)=0,0,VLOOKUP(AP1,$H$7:$P$13,9,0)/SUM($P$7:$P$13))","v":0},0,0,0,0,0,0,null,{"$f":"IF(E9=0,AY3,\"\")","v":"Enter the number of working days\n"},{"$f":"Lists!H2","v":"Enter the number of working days\n"}]
[null,null,null,null,null,null,null,null,null,null,null,null,null,null,null,null,null,null,null,null,null,null,null,null,null,null,null,null,null,null,null,null,null,null,null,null,null,null,null,null,"Average ratio",{"$f":"VLOOKUP($E$6,'Emission factors'!$C$343:$Y$370,'Emission factors'!D$340,0)","v":0.72613160137232247},{"$f":"VLOOKUP($E$6,'Emission factors'!$C$343:$Y$370,'Emission factors'!E$340,0)","v":0},{"$f":"VLOOKUP($E$6,'Emission factors'!$C$343:$Y$370,'Emission factors'!F$340,0)","v":0},{"$f":"VLOOKUP($E$6,'Emission factors'!$C$343:$Y$370,'Emission factors'!G$340,0)","v":0.11025726608594562},{"$f":"VLOOKUP($E$6,'Emission factors'!$C$343:$Y$370,'Emission factors'!H$340,0)","v":6.4582840734115797E-3},{"$f":"VLOOKUP($E$6,'Emission factors'!$C$343:$Y$370,'Emission factors'!I$340,0)","v":0.1636111059500443},{"$f":"VLOOKUP($E$6,'Emission factors'!$C$343:$Y$370,'Emission factors'!J$340,0)","v":2.6591687681000226E-8},null,{"$f":"IF(E10=0,AY4,\"\")","v":"Enter the average number of people working on the project\n"},{"$f":"Lists!H3","v":"Enter the average number of people working on the project\n"}]
[null,null,null,{"$f":"Translate!$A$64","v":"Subproject name"},null,null,null,null,null,null,null,null,null,null,null,null,null,null,null,{"$f":"IF(NOT(AW10),Translate!$A$124,\"\")","v":"Please enter activities data relative to the primary emission sources"},null,null,null,null,null,null,null,null,null,null,null,null,null,null,null,null,null,null,null,null,"Ratio needed",{"$f":"IF(AP2=1,0,IF(SUMPRODUCT($AO$17:$AO$183*($AI$17:$AI$183=AP1))>0,0,1))","v":0},1,1,0,0,0,1,null,{"$f":"IF(Translate!$A$300=E12,AY5,\"\")","v":"Select a country\n"},{"$f":"Lists!H4","v":"Select a country\n"},null,{"$f":"Translate!$A$132","v":"Primary emission sources"},{"$f":"P1/1000","v":0},{"$f":"P2/1000","v":0},{"$f":"Q1/1000","v":0}]
[null,{"$f":"Translate!$A$63","v":"duplication +"},null,{"$f":"Translate!$A$48","v":"Technique"},{"$f":"Translate!$A$289","v":"Dynamic compaction"},null,null,{"$f":"Translate!$A$103","v":"Sources"},null,null,null,null,null,null,null,{"$f":"Translate!$A$115","v":"tCO2e"},{"$f":"Translate!$A$115","v":"tCO2e"},null,null,{"$f":"IF(P14>0,AX3&AX4&AX5&AQ8&AP8&AR8&AS8&AT8&AU8&AV8,\"\")","v":""},null,null,null,null,null,null,null,null,null,null,null,null,null,null,null,null,null,null,null,null,"Too high",{"$f":"VLOOKUP($E$6,'Emission factors'!$C$343:$Y$370,'Emission factors'!K$340,0)","v":1},{"$f":"VLOOKUP($E$6,'Emission factors'!$C$343:$Y$370,'Emission factors'!L$340,0)","v":0.8},{"$f":"VLOOKUP($E$6,'Emission factors'!$C$343:$Y$370,'Emission factors'!M$340,0)","v":0.1},{"$f":"VLOOKUP($E$6,'Emission factors'!$C$343:$Y$370,'Emission factors'!N$340,0)","v":0.3},{"$f":"VLOOKUP($E$6,'Emission factors'!$C$343:$Y$370,'Emission factors'!O$340,0)","v":0.2},{"$f":"VLOOKUP($E$6,'Emission factors'!$C$343:$Y$370,'Emission factors'!P$340,0)","v":0.5},{"$f":"VLOOKUP($E$6,'Emission factors'!$C$343:$Y$370,'Emission factors'!Q$340,0)","v":0.1},null,null,{"$f":"Lists!H5","v":" emissions are relatively high\n"},null,{"$f":"Translate!$A$133","v":"Secondary emission sources"},{"$f":"BB5","v":0},{"$f":"BC5","v":0},{"$f":"Q2/1000","v":0}]
[null,null,null,{"$f":"Translate!$A$65","v":"Date of calculation"},null,null,null,{"$f":"Translate!$A$104","v":"Materials"},null,null,null,{"$f":"AJ2","v":0},{"$f":"AK2","v":0},{"$f":"AL2","v":0},{"$f":"AL3","v":0},{"$f":"SUMPRODUCT(($AI$17:$AI$172=$H7)*1,$AJ$17:$AJ$172)/1000","v":0},{"$f":"SUMPRODUCT(($AI$17:$AI$172=$H7)*1,$AL$17:$AL$172)/1000","v":0},null,null,null,null,null,null,null,null,null,null,null,null,null,null,null,null,null,null,null,null,null,null,null,"Too low",{"$f":"VLOOKUP($E$6,'Emission factors'!$C$343:$Y$370,'Emission factors'!R$340,0)","v":0.1},{"$f":"VLOOKUP($E$6,'Emission factors'!$C$343:$Y$370,'Emission factors'!S$340,0)","v":0},{"$f":"VLOOKUP($E$6,'Emission factors'!$C$343:$Y$370,'Emission factors'!T$340,0)","v":1E-3},{"$f":"VLOOKUP($E$6,'Emission factors'!$C$343:$Y$370,'Emission factors'!U$340,0)","v":0.01},{"$f":"VLOOKUP($E$6,'Emission factors'!$C$343:$Y$370,'Emission factors'!V$340,0)","v":0},{"$f":"VLOOKUP($E$6,'Emission factors'!$C$343:$Y$370,'Emission factors'!W$340,0)","v":0.01},{"$f":"VLOOKUP($E$6,'Emission factors'!$C$343:$Y$370,'Emission factors'!X$340,0)","v":0},null,null,{"$f":"Lists!H6","v":" emissions are relatively low\n"},null,{"$f":"Translate!$A$134","v":"Total"},{"$f":"BB6","v":0},{"$f":"BC6","v":0},{"$f":"BD5+BD6","v":0},{"$f":"IF(P7=0,0,ROUND(P7,-ROUNDDOWN(LOG(ABS(P7)),0)+1))","v":0}]
[null,null,null,{"$f":"Translate!$A$66","v":"Author"},null,null,null,{"$f":"Translate!$A$105","v":"Energy"},null,null,null,null,null,null,{"$f":"P8","v":0},0,0,null,null,null,null,null,null,null,null,null,null,null,null,null,null,null,null,null,null,null,null,null,null,null,null,{"$f":"IF(AP7>AP3,AP1&$AY$7,IF(AP6<AP3,AP1&$AY$6,\"\"))","v":"Energy emissions are relatively low\n"},"","Freight emissions are relatively low\n","Mob/demob emissions are relatively low\n","","Assets emissions are relatively low\n",{"$f":"IF(AV7>AV3,AV1&$AY$7,IF(AV6<AV3,AV1&$AY$6,\"\"))","v":""},null,null,{"$f":"Lists!H7","v":"    (Primary source)"},null,null,null,null,null,{"$f":"IF(P8=0,0,ROUND(P8,-ROUNDDOWN(LOG(ABS(P8)),0)+1))","v":0}]
[null,null,null,{"$f":"Translate!$A$67","v":"Working days"},null,{"$f":"Translate!$A$67","v":"Working days"},null,{"$f":"Translate!$A$106","v":"Freight"},null,null,null,null,null,null,0,0,0,null,null,null,null,null,null,null,null,null,null,null,null,null,null,null,null,null,null,null,null,null,null,null,null,{"$f":"IF(AP2=1,AP1&\", \",\"\")","v":"Energy, "},"","","Mob/demob, ","People's transportation, ","Assets, ","",null,null,{"$f":"Lists!H8","v":"    (Secondary source)"},null,null,null,null,null,0]
[null,null,null,{"$f":"Translate!$A$68","v":"Workforce"},null,{"$f":"Translate!$A$94","v":"Full-time equivalent"},null,{"$f":"Translate!$A$107","v":"Mob/demob"},null,null,null,null,null,null,0,0,0,null,null,null,null,null,null,null,null,null,null,null,null,null,null,null,null,null,null,null,null,null,null,null,"msg active",{"$f":"IF((AP2=1),NOT(AP3=0),TRUE)","v":false},{"$f":"IF((AQ2=1),NOT(AQ3=0),TRUE)","v":true},true,false,false,false,true,{"$f":"AND(AP10:AV10)","v":false},null,null,null,null,null,null,null,0]
[null,null,null,{"$f":"Translate!$A$69","v":"Project value"},null,{"$f":"Translate!$A$95","v":"€"},null,{"$f":"Translate!$A$108","v":"People's transportation"},null,null,null,null,null,null,0,0,0,null,null,null,null,null,null,null,null,null,null,null,null,null,null,null,null,null,null,null,null,null,null,null,null,{"$f":"IF(AP2=1,AP1&$AY$8,AP1&$AY$9)","v":"Energy    (Primary source)"},{"$f":"IF(AQ2=1,AQ1&$AY$8,AQ1&$AY$9)","v":"Materials    (Secondary source)"},"Freight    (Secondary source)","Mob/demob    (Primary source)","People's transportation    (Primary source)","Assets    (Primary source)","Waste    (Secondary source)",null,null,null,null,null,null,null,null,0]
[null,null,null,{"$f":"Translate!$A$70","v":"Country"},{"$f":"Translate!$A$300","v":"-Select the project country"},null,null,{"$f":"Translate!$A$109","v":"Assets"},null,null,null,null,null,null,0,0,0,null,null,{"$f":"Translate!$A$125","v":"TOTAL GHG EMISSIONS"},null,{"$f":"IF(P14=0,0,ROUND(P14,-ROUNDDOWN(LOG(ABS(P14)),0)+1))","v":0},null,null,{"$f":"Translate!$A$115","v":"tCO2e"},null,null,null,null,null,null,null,null,null,null,null,null,null,null,null,null,null,null,null,null,null,null,null,null,null,null,null,null,null,null,null,0]
[null,null,null,{"$f":"Translate!$A$71","v":"Functional unit 1"},{"$f":"Translate!$A$87","v":"value"},{"$f":"Translate!$A$96","v":"unit"},null,{"$f":"Translate!$A$110","v":"Waste"},null,null,null,null,null,null,0,0,0,null,null,null,null,null,null,null,null,null,null,null,null,null,null,null,null,null,null,null,null,null,null,null,null,null,null,null,null,null,null,null,null,null,null,null,null,null,null,null,0]
[null,null,null,{"$f":"Translate!$A$72","v":"Functional unit 2"},{"$f":"Translate!$A$87","v":"value"},{"$f":"Translate!$A$96","v":"unit"},null,null,null,null,null,null,null,null,null,{"$f":"SUM(P7:P13)","v":0}]
[]
[null,null,null,null,null,null,null,null,"Activity data",null,"Emission factor","GHG Emissions"]
[null,null,null,{"$f":"AP11","v":"Energy    (Primary source)"}]
[]
[]
[null,null,null,{"$f":"Translate!$A$80","v":"Simplified ratio"},{"$f":"IF(AND(AP5,F20=Translate!$A$91),AP4,Translate!$A$92)","v":"OFF"},{"$f":"Translate!$A$91","v":"Default"},null,null,null,null,{"$f":"$P$1","v":0},{"$f":"IF(E20=Translate!$A$92,0,E20*K20)","v":0},{"$f":"Translate!$A$102","v":"kgCO2e"},null,null,null,null,null,null,null,null,null,null,null,null,null,null,null,null,null,null,null,"ratio",2,{"$f":"Translate!$A$105","v":"Energy"},{"$f":"L20","v":0},null,{"$f":"100%*L20","v":0},null,{"$f":"ROW(F21)-ROW(F19)","v":2}]
[]
[]
[]
[null,"+",null,{"$f":"Translate!$A$200","v":"Diesel"},null,{"$f":"VLOOKUP(D24,EFtable,2,0)","v":"liter"},null,null,null,null,{"$f":"VLOOKUP(D24,EFtable,3,0)","v":3.2112000000000003},{"$f":"E24*K24","v":0},{"$f":"Translate!$A$102","v":"kgCO2e"},null,null,null,null,null,null,null,null,null,null,null,null,null,null,null,null,null,null,null,null,{"$f":"HLOOKUP(AI24,$AP$1:$AV$2,2,0)","v":1},{"$f":"Translate!$A$105","v":"Energy"},{"$f":"L24","v":0},null,{"$f":"VLOOKUP(D24,EFtable,8,0)*L24","v":0},null,{"$f":"ROW(F25)-ROW(F23)","v":2},{"$f":"AJ24","v":0}]
[]
[]
[]
[null,"+",null,{"$f":"Translate!$A$81","v":"Network electricity"},null,{"$f":"Translate!$A$98","v":"kWh"},null,null,null,null,{"$f":"IF(ISERROR(VLOOKUP(Translate!$A$202&\" - \"&$E$12,EFtable,3,0)),0,VLOOKUP(Translate!$A$202&\" - \"&$E$12,EFtable,3,0))","v":0},{"$f":"IF(ISERROR(K28),0,E28*K28)","v":0},{"$f":"Translate!$A$102","v":"kgCO2e"},null,null,null,null,null,null,null,null,null,null,null,null,null,null,null,null,null,null,null,null,{"$f":"HLOOKUP(AI28,$AP$1:$AV$2,2,0)","v":1},{"$f":"Translate!$A$105","v":"Energy"},{"$f":"L28","v":0},null,{"$f":"10%*L28","v":0},null,{"$f":"ROW(F29)-ROW(F27)","v":2},{"$f":"AJ28","v":0}]
[]
[]
[]
[]
[null,null,null,{"$f":"AS11","v":"Mob/demob    (Primary source)"}]
[]
[]
[null,null,null,{"$f":"Translate!$A$80","v":"Simplified ratio"},{"$f":"IF(AND(AS5,F36=Translate!$A$91),AS4,Translate!$A$92)","v":"OFF"},{"$f":"Translate!$A$91","v":"Default"},null,null,null,null,{"$f":"$P$1","v":0},{"$f":"IF(E36=Translate!$A$92,0,E36*K36)","v":0},{"$f":"Translate!$A$102","v":"kgCO2e"},null,null,null,null,null,null,null,null,null,null,null,null,null,null,null,null,null,null,null,"ratio",{"$f":"HLOOKUP(AI36,$AP$1:$AV$2,2,0)","v":1},{"$f":"Translate!$A$107","v":"Mob/demob"},{"$f":"L36","v":0},null,{"$f":"100%*L36","v":0}]
[]
[]
[]
[null,"+",null,{"$f":"Translate!$A$206","v":"Road - Rigid >17t"},null,{"$f":"Translate!$A$99","v":"roundtrips"},null,null,{"$f":"E40*M40*(1+V40)","v":0},"km",{"$f":"VLOOKUP(D40,EFtable,3,0)","v":0.98243999999999998},{"$f":"Translate!$A$112","v":"Distance"},null,{"$f":"Translate!$A$114","v":" one way"},null,null,null,{"$f":"I40*K40","v":0},{"$f":"Translate!$A$102","v":"kgCO2e"},null,{"$f":"Translate!$A$128","v":"empty-return rate"},0,null,null,null,null,null,null,null,null,null,null,null,{"$f":"HLOOKUP(AI40,$AP$1:$AV$2,2,0)","v":1},{"$f":"Translate!$A$107","v":"Mob/demob"},{"$f":"R40","v":0},null,{"$f":"VLOOKUP(D40,EFtable,8,0)*R40","v":0},null,{"$f":"ROW(F41)-ROW(F39)","v":2},{"$f":"AJ40","v":0}]
[]
[]
[]
[null,"+",null,{"$f":"Translate!$A$208","v":"Road - Articulated >33t"},null,{"$f":"Translate!$A$99","v":"roundtrips"},null,null,{"$f":"E44*M44*(1+V44)","v":0},"km",{"$f":"VLOOKUP(D44,EFtable,3,0)","v":0.93694},{"$f":"Translate!$A$112","v":"Distance"},50,{"$f":"Translate!$A$114","v":" one way"},null,null,null,{"$f":"I44*K44","v":0},{"$f":"Translate!$A$102","v":"kgCO2e"},null,{"$f":"Translate!$A$128","v":"empty-return rate"},0,null,null,null,null,null,null,null,null,null,null,null,{"$f":"HLOOKUP(AI44,$AP$1:$AV$2,2,0)","v":1},{"$f":"Translate!$A$107","v":"Mob/demob"},{"$f":"R44","v":0},null,{"$f":"VLOOKUP(D44,EFtable,8,0)*R44","v":0},null,{"$f":"ROW(F45)-ROW(F43)","v":2},{"$f":"AJ44","v":0}]
[]
[]
[]
[]
[null,null,null,{"$f":"AT11","v":"People's transportation    (Primary source)"}]
[]
[]
[null,null,null,{"$f":"Translate!$A$82","v":"Coming by"},{"$f":"Translate!$A$93","v":"Number of roundtrips"},{"$f":"Translate!$A$100","v":"every X day(s)"},null,null,null,null,null,{"$f":"Translate!$A$113&\"\n(\"&'Emission factors'!$F$410&Translate!$A$114&\")\"","v":"Average distance\n(km one way)"}]
[]
[null,null,"+",{"$f":"Translate!$A$217","v":"Car"},{"$f":"$E$10","v":0},1,null,null,{"$f":"L54*E54*$E$9*2/F54","v":0},{"$f":"VLOOKUP(D54,EFtable,2,0)","v":"vkm"},{"$f":"VLOOKUP(D54,EFtable,3,0)","v":0.21470999999999998},50,null,null,null,{"$f":"I54*K54","v":0},{"$f":"Translate!$A$102","v":"kgCO2e"},null,null,null,null,null,null,null,null,null,null,null,null,null,null,null,null,{"$f":"HLOOKUP(AI54,$AP$1:$AV$2,2,0)","v":1},{"$f":"Translate!$A$108","v":"People's transportation"},{"$f":"P54","v":0},null,{"$f":"VLOOKUP(D54,EFtable,8,0)*P54","v":0},null,2,{"$f":"AJ54","v":0}]
[]
[]
[]
[null,null,"+",{"$f":"Translate!$A$216","v":"Bus"},null,1,null,null,{"$f":"L58*E58*$E$9*2/F58","v":0},{"$f":"VLOOKUP(D58,EFtable,2,0)","v":"pkm"},{"$f":"VLOOKUP(D58,EFtable,3,0)","v":0.12970999999999999},50,null,null,null,{"$f":"I58*K58","v":0},{"$f":"Translate!$A$102","v":"kgCO2e"},null,null,null,null,null,null,null,null,null,null,null,null,null,null,null,null,{"$f":"HLOOKUP(AI58,$AP$1:$AV$2,2,0)","v":1},{"$f":"Translate!$A$108","v":"People's transportation"},{"$f":"P58","v":0},null,{"$f":"VLOOKUP(D58,EFtable,8,0)*P58","v":0},null,2,{"$f":"AJ58","v":0}]
[]
[]
[]
[null,null,"+",{"$f":"Translate!$A$218","v":"Train"},null,5,null,null,{"$f":"L62*E62*$E$9*2/F62","v":0},{"$f":"VLOOKUP(D62,EFtable,2,0)","v":"pkm"},{"$f":"VLOOKUP(D62,EFtable,3,0)","v":4.9049999999999996E-2},300,null,null,null,{"$f":"I62*K62","v":0},{"$f":"Translate!$A$102","v":"kgCO2e"},null,null,null,null,null,null,null,null,null,null,null,null,null,null,null,null,{"$f":"HLOOKUP(AI62,$AP$1:$AV$2,2,0)","v":1},{"$f":"Translate!$A$108","v":"People's transportation"},{"$f":"P62","v":0},null,{"$f":"VLOOKUP(D62,EFtable,8,0)*P62","v":0},null,2,{"$f":"AJ62","v":0}]
[]
[]
[]
[]
[]
[null,"+",null,{"$f":"Translate!$A$218","v":"Train"},null,{"$f":"VLOOKUP(D68,EFtable,2,0)","v":"pkm"},null,null,null,null,{"$f":"VLOOKUP(D68,EFtable,3,0)","v":4.9049999999999996E-2},{"$f":"E68*K68","v":0},{"$f":"Translate!$A$102","v":"kgCO2e"},null,null,null,null,null,null,null,null,null,null,null,null,null,null,null,null,null,null,null,null,{"$f":"HLOOKUP(AI68,$AP$1:$AV$2,2,0)","v":1},{"$f":"Translate!$A$108","v":"People's transportation"},{"$f":"L68","v":0},null,{"$f":"VLOOKUP(D68,EFtable,8,0)*L68","v":0},null,{"$f":"ROW(F69)-ROW(F67)","v":2},{"$f":"AJ68","v":0}]
[]
[]
[]
[]
[null,null,null,{"$f":"AU11","v":"Assets    (Primary source)"}]
[]
[]
[null,null,null,{"$f":"Translate!$A$80","v":"Simplified ratio"},{"$f":"IF(AND(AU5,F76=Translate!$A$91),AU4,Translate!$A$92)","v":"OFF"},{"$f":"Translate!$A$91","v":"Default"},null,null,null,null,{"$f":"$P$1","v":0},{"$f":"IF(E76=Translate!$A$92,0,E76*K76)","v":0},{"$f":"Translate!$A$102","v":"kgCO2e"},null,null,null,null,null,null,null,null,null,null,null,null,null,null,null,null,null,null,null,"ratio",{"$f":"HLOOKUP(AI76,$AP$1:$AV$2,2,0)","v":1},{"$f":"Translate!$A$109","v":"Assets"},{"$f":"L76","v":0},null,{"$f":"100%*L76","v":0}]
[]
[]
[]
[null,"+",null,{"$f":"Translate!$A$222","v":"Machines"},null,{"$f":"Translate!$A$101","v":"t"},null,null,{"$f":"E80*U80/(Z80*R80)","v":0},"t",{"$f":"VLOOKUP(Translate!$A$222,EFtable,3,0)","v":3666.6666666666665},{"$f":"I80*K80","v":0},{"$f":"Translate!$A$102","v":"kgCO2e"},null,null,{"$f":"Translate!$A$116","v":"Lifetime"},null,10,{"$f":"Translate!$A$121","v":"years"},{"$f":"Translate!$A$126","v":"Use time"},{"$f":"$E$9","v":0},{"$f":"Translate!$A$129","v":"days"},null,{"$f":"Translate!$A$67","v":"Working days"},null,150,{"$f":"Translate!$A$129&\" / \"&Translate!$A$122","v":"days / year"},null,null,null,null,null,null,{"$f":"HLOOKUP(AI80,$AP$1:$AV$2,2,0)","v":1},{"$f":"Translate!$A$109","v":"Assets"},{"$f":"L80","v":0},null,{"$f":"VLOOKUP(\"Machines\",EFtable,8,0)*L80","v":0},null,{"$f":"ROW(F81)-ROW(F79)","v":2},{"$f":"AJ80","v":0}]
[]
[]
[]
[]
[null,null,null,{"$f":"AQ11","v":"Materials    (Secondary source)"},null,null,null,null,null,null,null,null,null,null,null,null,{"$f":"AR11","v":"Freight    (Secondary source)"},null,null,null,null,null,null,null,null,null,null,null,null,null,null,null,null,"Emissions source importance","Emissions source","Emissions","Material type","Uncertainties",null,"Bloc height"]
[]
[]
[null,"+",null,{"$f":"Translate!$A$177","v":"Aggregate"},null,{"$f":"VLOOKUP(D88,EFtable,2,0)","v":"t"},null,null,{"$f":"E88","v":0},{"$f":"F88","v":"t"},{"$f":"IF(ISERROR(E89*1),VLOOKUP(D88,EFtable,3,0),VLOOKUP(D88,EFtable,3,0)*(1-E89)+VLOOKUP(D88&Translate!$A$199,EFtable,3,0)*E89)","v":4},{"$f":"IF(F89=Translate!$A$111,0,I88*K88)","v":0},{"$f":"Translate!$A$102","v":"kgCO2e"},null,null,{"$f":"Translate!$A$112","v":"Distance"},null,{"$f":"'Emission factors'!$F$410","v":"km"},{"$f":"Translate!$A$120","v":"Type"},{"$f":"IF(ISERROR(VLOOKUP(D87,StandardFreight,2,0)),VLOOKUP(Translate!$A$118,StandardFreight,2,0),VLOOKUP(D87,StandardFreight,2,0))","v":"Road - Articulated >33t"},{"$f":"Translate!$A$127","v":"Load"},{"$f":"VLOOKUP(T88,FreightLoadFactors,2,0)","v":15},{"$f":"J88","v":"t"},{"$f":"IF(V88=0,0,ROUNDUP(I88/V88,0))","v":0},{"$f":"Translate!$A$130","v":"travels"},{"$f":"Translate!$A$128","v":"empty-return rate"},0.5,{"$f":"VLOOKUP(T88,EFtable,3,0)","v":0.93694},{"$f":"Q88*X88*(1+AA88)*AB88","v":0},{"$f":"Translate!$A$102","v":"kgCO2e"},null,null,null,{"$f":"HLOOKUP(AI88,$AP$1:$AV$2,2,0)","v":2},{"$f":"Translate!$A$104","v":"Materials"},{"$f":"L88","v":0},{"$f":"VLOOKUP(D88,EFtable,7,0)","v":"Concrete / Slurry / Grout mix"},{"$f":"VLOOKUP(D88,EFtable,8,0)*L88","v":0},null,{"$f":"ROW(F90)-ROW(F87)","v":3},{"$f":"AJ88","v":0}]
[null,null,null,{"$f":"Translate!$A$79","v":"Recycled content"},{"$f":"IF(ISERROR(VLOOKUP(D88,RecycledContent,2,0)),Translate!$A$90,VLOOKUP(D88,RecycledContent,2,0))","v":"do not apply"},{"$f":"Translate!$A$478","v":"-new or recycled-"},null,null,null,null,null,null,null,null,null,null,null,null,null,null,null,null,null,null,null,null,null,null,null,null,null,null,null,{"$f":"HLOOKUP(AI89,$AP$1:$AV$2,2,0)","v":2},{"$f":"Translate!$A$106","v":"Freight"},{"$f":"AC88","v":0},null,{"$f":"VLOOKUP(T88,EFtable,8,0)*AC88","v":0},null,null,{"$f":"AJ89","v":0}]
[]
[]
[]
[null,"+",null,{"$f":"Translate!$A$194","v":"Steel tubes"},null,{"$f":"VLOOKUP(D93,EFtable,2,0)","v":"t"},null,null,{"$f":"E93","v":0},{"$f":"F93","v":"t"},{"$f":"IF(ISERROR(E94*1),VLOOKUP(D93,EFtable,3,0),VLOOKUP(D93,EFtable,3,0)*(1-E94)+VLOOKUP(D93&Translate!$A$199,EFtable,3,0)*E94)","v":1923.1000000000001},{"$f":"IF(F94=Translate!$A$111,0,I93*K93)","v":0},{"$f":"Translate!$A$102","v":"kgCO2e"},null,null,{"$f":"Translate!$A$112","v":"Distance"},null,{"$f":"'Emission factors'!$F$410","v":"km"},{"$f":"Translate!$A$120","v":"Type"},{"$f":"IF(ISERROR(VLOOKUP(D92,StandardFreight,2,0)),VLOOKUP(Translate!$A$118,StandardFreight,2,0),VLOOKUP(D92,StandardFreight,2,0))","v":"Road - Articulated >33t"},{"$f":"Translate!$A$127","v":"Load"},{"$f":"VLOOKUP(T93,FreightLoadFactors,2,0)","v":15},{"$f":"J93","v":"t"},{"$f":"IF(V93=0,0,ROUNDUP(I93/V93,0))","v":0},{"$f":"Translate!$A$130","v":"travels"},{"$f":"Translate!$A$128","v":"empty-return rate"},0.5,{"$f":"VLOOKUP(T93,EFtable,3,0)","v":0.93694},{"$f":"Q93*X93*(1+AA93)*AB93","v":0},{"$f":"Translate!$A$102","v":"kgCO2e"},null,null,null,{"$f":"HLOOKUP(AI93,$AP$1:$AV$2,2,0)","v":2},{"$f":"Translate!$A$104","v":"Materials"},{"$f":"L93","v":0},{"$f":"VLOOKUP(D93,EFtable,7,0)","v":"Steel"},{"$f":"VLOOKUP(D93,EFtable,8,0)*L93","v":0},null,{"$f":"ROW(F95)-ROW(F92)","v":3},{"$f":"AJ93","v":0}]
[null,null,null,{"$f":"Translate!$A$79","v":"Recycled content"},{"$f":"IF(ISERROR(VLOOKUP(D93,RecycledContent,2,0)),Translate!$A$90,VLOOKUP(D93,RecycledContent,2,0))","v":0.41},{"$f":"Translate!$A$478","v":"-new or recycled-"},null,null,null,null,null,null,null,null,null,null,null,null,null,null,null,null,null,null,null,null,null,null,null,null,null,null,null,{"$f":"HLOOKUP(AI94,$AP$1:$AV$2,2,0)","v":2},{"$f":"Translate!$A$106","v":"Freight"},{"$f":"AC93","v":0},null,{"$f":"VLOOKUP(T93,EFtable,8,0)*AC93","v":0},null,null,{"$f":"AJ94","v":0}]
[]
[]
[]
[null,"+",null,{"$f":"Translate!$A$179","v":"Calcium chloride"},null,{"$f":"VLOOKUP(D98,EFtable,2,0)","v":"t"},null,null,{"$f":"E98","v":0},{"$f":"F98","v":"t"},{"$f":"IF(ISERROR(E99*1),VLOOKUP(D98,EFtable,3,0),VLOOKUP(D98,EFtable,3,0)*(1-E99)+VLOOKUP(D98&Translate!$A$199,EFtable,3,0)*E99)","v":493.43257},{"$f":"IF(F99=Translate!$A$111,0,I98*K98)","v":0},{"$f":"Translate!$A$102","v":"kgCO2e"},null,null,{"$f":"Translate!$A$112","v":"Distance"},null,{"$f":"'Emission factors'!$F$410","v":"km"},{"$f":"Translate!$A$120","v":"Type"},{"$f":"IF(ISERROR(VLOOKUP(D97,StandardFreight,2,0)),VLOOKUP(Translate!$A$118,StandardFreight,2,0),VLOOKUP(D97,StandardFreight,2,0))","v":"Road - Articulated >33t"},{"$f":"Translate!$A$127","v":"Load"},{"$f":"VLOOKUP(T98,FreightLoadFactors,2,0)","v":15},{"$f":"J98","v":"t"},{"$f":"IF(V98=0,0,ROUNDUP(I98/V98,0))","v":0},{"$f":"Translate!$A$130","v":"travels"},{"$f":"Translate!$A$128","v":"empty-return rate"},0.5,{"$f":"VLOOKUP(T98,EFtable,3,0)","v":0.93694},{"$f":"Q98*X98*(1+AA98)*AB98","v":0},{"$f":"Translate!$A$102","v":"kgCO2e"},null,null,null,{"$f":"HLOOKUP(AI98,$AP$1:$AV$2,2,0)","v":2},{"$f":"Translate!$A$104","v":"Materials"},{"$f":"L98","v":0},{"$f":"VLOOKUP(D98,EFtable,7,0)","v":"Other"},{"$f":"VLOOKUP(D98,EFtable,8,0)*L98","v":0},null,{"$f":"ROW(F100)-ROW(F97)","v":3},{"$f":"AJ98","v":0}]
[null,null,null,{"$f":"Translate!$A$79","v":"Recycled content"},{"$f":"IF(ISERROR(VLOOKUP(D98,RecycledContent,2,0)),Translate!$A$90,VLOOKUP(D98,RecycledContent,2,0))","v":"do not apply"},{"$f":"Translate!$A$478","v":"-new or recycled-"},null,null,null,null,null,null,null,null,null,null,null,null,null,null,null,null,null,null,null,null,null,null,null,null,null,null,null,{"$f":"HLOOKUP(AI99,$AP$1:$AV$2,2,0)","v":2},{"$f":"Translate!$A$106","v":"Freight"},{"$f":"AC98","v":0},null,{"$f":"VLOOKUP(T98,EFtable,8,0)*AC98","v":0},null,null,{"$f":"AJ99","v":0}]
[]
[]
[null,null,null,{"$f":"Translate!$A$73","v":"Concrete / Slurry / Grout mix"}]
[null,"+",null,null,null,null,null,null,null,null,null,null,null,null,null,null,null,null,null,null,null,null,null,null,null,null,null,null,null,null,null,null,null,null,null,null,null,null,null,{"$f":"ROW(F126)-ROW(F102)","v":24}]
[null,null,null,{"$f":"Translate!$A$47","v":"Name"},{"$f":"Translate!$A$88","v":"Default concrete"},null,null,null,null,null,null,{"$f":"Translate!$A$475","v":"made at plant"},{"$f":"IF(L104=Translate!$A$475,1,0)","v":1}]
[null,null,null,{"$f":"Translate!$A$74","v":"Quantity"},null,{"$f":"'Emission factors'!$F$414","v":"m3"},null,null,{"$f":"E105","v":0},{"$f":"F105","v":"m3"},null,null,null,null,null,{"$f":"Translate!$A$112","v":"Distance"},{"$f":"IF(L104=\"made on site\",0,20)","v":20},{"$f":"'Emission factors'!$F$410","v":"km"},{"$f":"Translate!$A$120","v":"Type"},{"$f":"Translate!$A$206","v":"Road - Rigid >17t"},{"$f":"Translate!$A$127","v":"Load"},{"$f":"'Emission factors'!$D$311","v":8},{"$f":"J105","v":"m3"},{"$f":"IF(V105=0,0,ROUNDUP(I105/V105,0))","v":0},{"$f":"Translate!$A$130","v":"travels"},{"$f":"Translate!$A$128","v":"empty-return rate"},1,{"$f":"VLOOKUP(T105,EFtable,3,0)","v":0.98243999999999998},{"$f":"Q105*X105*(1+AA105)*AB105","v":0},{"$f":"Translate!$A$102","v":"kgCO2e"},null,null,null,null,null,null,null,null,0]
[null,null,null,null,null,null,null,null,null,null,null,null,null,null,null,null,null,null,null,null,null,null,null,null,null,null,null,null,null,null,null,null,null,{"$f":"HLOOKUP(AI106,$AP$1:$AV$2,2,0)","v":2},{"$f":"Translate!$A$106","v":"Freight"},{"$f":"AC105","v":0},null,{"$f":"VLOOKUP(T105,EFtable,8,0)*AC105","v":0},{"$f":"1+OFFSET(AM106,-1,0)","v":1},null,{"$f":"AJ106","v":0}]
[null,null,"+",{"$f":"Translate!$A$75","v":"Cement"},{"$f":"Translate!$A$181","v":"CEM I"},null,null,null,null,null,null,null,null,null,null,null,null,null,null,null,null,null,null,null,null,null,null,null,null,null,null,null,null,null,null,null,null,null,{"$f":"1+OFFSET(AM107,-1,0)","v":2},{"$f":"ROW(F111)-ROW(F107)","v":4}]
[null,null,null,{"$f":"Translate!$A$76","v":"Total cementitious content"},{"$f":"VLOOKUP($E$6,DefaultConcrete,3,0)","v":400},{"$f":"OFFSET(AS108,-AM108+6,0)","v":"kg/m3"},null,null,null,null,null,null,null,null,null,{"$f":"Translate!$A$112","v":"Distance"},{"$f":"IF(ISERROR(VLOOKUP(D107,StandardFreight,3,0)),VLOOKUP(Translate!$A$118,StandardFreight,3,0),VLOOKUP(D107,StandardFreight,3,0))","v":20},{"$f":"'Emission factors'!$F$410","v":"km"},{"$f":"Translate!$A$120","v":"Type"},{"$f":"IF(ISERROR(VLOOKUP(D107,StandardFreight,2,0)),VLOOKUP(\"Other\",StandardFreight,2,0),VLOOKUP(D107,StandardFreight,2,0))","v":"Road - Rigid >17t"},{"$f":"Translate!$A$127","v":"Load"},{"$f":"VLOOKUP(T108,FreightLoadFactors,2,0)","v":7.5},{"$f":"J111","v":"t"},{"$f":"IF(V108=0,0,ROUNDUP(I111/V108,0))","v":0},{"$f":"Translate!$A$130","v":"travels"},{"$f":"Translate!$A$128","v":"empty-return rate"},1,{"$f":"VLOOKUP(T108,EFtable,3,0)","v":0.98243999999999998},{"$f":"Q108*X108*(1+AA108)*AB108","v":0},{"$f":"Translate!$A$102","v":"kgCO2e"},null,null,null,{"$f":"HLOOKUP(AI108,$AP$1:$AV$2,2,0)","v":2},{"$f":"Translate!$A$104","v":"Materials"},{"$f":"L111","v":0},{"$f":"Translate!$A$73","v":"Concrete / Slurry / Grout mix"},{"$f":"VLOOKUP(\"CEM I\",EFtable,8,0)*L111","v":0},3,null,{"$f":"AJ108","v":0}]
[null,null,null,{"$f":"Translate!$A$77","v":"Secondary constituent"},{"$f":"VLOOKUP(E107,'Emission factors'!$C$286:$M$294,2,0)","v":"-"},null,null,null,null,null,null,null,null,null,null,null,null,null,null,null,null,null,null,null,null,null,null,null,null,null,null,null,null,{"$f":"HLOOKUP(AI109,$AP$1:$AV$2,2,0)","v":2},{"$f":"Translate!$A$106","v":"Freight"},{"$f":"AC108","v":0},null,{"$f":"VLOOKUP(T108,EFtable,8,0)*AC108","v":0},4,null,{"$f":"AJ109","v":0}]
[null,null,null,{"$f":"Translate!$A$78","v":"Secondary constituent content"},{"$f":"Translate!$A$89","v":"Default value"},{"$f":"Translate!$A$97","v":"Real Value"},null,null,null,null,null,null,null,null,null,null,null,null,null,null,null,null,null,null,null,null,null,null,null,null,null,null,null,null,null,null,null,null,5,null,null,null,null,null,{"$f":"'Emission factors'!$F$411","v":"t"}]
[null,null,null,null,{"$f":"IF(F111=\"\",VLOOKUP(E107,CementTypes,5,0),\"\")","v":0},null,null,null,{"$f":"IF(F108=OFFSET(AS111,-AM111+6,0),E108*OFFSET(E111,-AM111,0)/IF(J111='Emission factors'!$E$411,1,1000),E108)","v":0},{"$f":"'Emission factors'!$F$411","v":"t"},{"$f":"IF(E107=\"CEM I\",VLOOKUP(E107,EFtable,3,0),(IF(F111=\"\",E111,F111)*VLOOKUP(E109,EFtable,3,0)+(1-IF(F111=\"\",E111,F111))*VLOOKUP(\"CEM I\",EFtable,3,0)))","v":860},{"$f":"I111*K111","v":0},{"$f":"Translate!$A$102","v":"kgCO2e"},null,null,null,null,null,null,null,null,null,null,null,null,null,null,null,null,null,null,null,null,null,null,null,null,null,6,null,null,null,null,null,{"$f":"'Emission factors'!$F$413&\"/\"&F105","v":"kg/m3"}]
[null,null,null,null,null,null,null,null,null,null,null,null,null,null,null,null,null,null,null,null,null,null,null,null,null,null,null,null,null,null,null,null,null,null,null,null,null,null,7]
[null,null,"+",{"$f":"Translate!$A$177","v":"Aggregate"},{"$f":"IF(ISERROR(VLOOKUP($E$6,DefaultConcrete,HLOOKUP(D113,DefaultConcrete,2,0),0)),0,VLOOKUP($E$6,DefaultConcrete,HLOOKUP(D113,DefaultConcrete,2,0),0))","v":900},{"$f":"OFFSET(AS113,-AM113+6,0)","v":"kg/m3"},null,null,{"$f":"IF(F113=OFFSET(AS113,-AM113+6,0),E113*OFFSET(E113,-AM113,0)/IF(J113='Emission factors'!$E$411,1,1000),E113)","v":0},{"$f":"'Emission factors'!$F$411","v":"t"},{"$f":"IF(ISERROR(E114*1),VLOOKUP(D113,EFtable,3,0),VLOOKUP(D113,EFtable,3,0)*(1-E114)+VLOOKUP(D113&Translate!$A$199,EFtable,3,0)*E114)","v":4},{"$f":"IF(F114=Translate!$A$111,0,I113*K113)","v":0},{"$f":"Translate!$A$102","v":"kgCO2e"},null,null,{"$f":"Translate!$A$112","v":"Distance"},{"$f":"IF(ISERROR(VLOOKUP(D113,StandardFreight,3,0)),VLOOKUP(Translate!$A$118,StandardFreight,3,0),VLOOKUP(D113,StandardFreight,3,0))","v":20},{"$f":"'Emission factors'!$F$410","v":"km"},{"$f":"Translate!$A$120","v":"Type"},{"$f":"IF(ISERROR(VLOOKUP(D113,StandardFreight,2,0)),VLOOKUP(\"Other\",StandardFreight,2,0),VLOOKUP(D113,StandardFreight,2,0))","v":"Road - Articulated >33t"},{"$f":"Translate!$A$127","v":"Load"},{"$f":"VLOOKUP(T113,FreightLoadFactors,2,0)","v":15},{"$f":"J113","v":"t"},{"$f":"IF(V113=0,0,ROUNDUP(I113/V113,0))","v":0},{"$f":"Translate!$A$130","v":"travels"},{"$f":"Translate!$A$128","v":"empty-return rate"},1,{"$f":"VLOOKUP(T113,EFtable,3,0)","v":0.93694},{"$f":"Q113*X113*(1+AA113)*AB113","v":0},{"$f":"Translate!$A$102","v":"kgCO2e"},null,null,null,{"$f":"HLOOKUP(AI113,$AP$1:$AV$2,2,0)","v":2},{"$f":"Translate!$A$104","v":"Materials"},{"$f":"L113","v":0},{"$f":"VLOOKUP(D113,EFtable,7,0)","v":"Concrete / Slurry / Grout mix"},{"$f":"VLOOKUP(D113,EFtable,8,0)*L113","v":0},8,{"$f":"ROW(F114)-ROW(F113)","v":1},{"$f":"AJ113","v":0}]
[null,null,null,{"$f":"Translate!$A$79","v":"Recycled content"},{"$f":"IF(ISERROR(VLOOKUP(D113,RecycledContent,2,0)),Translate!$A$90,VLOOKUP(D113,RecycledContent,2,0))","v":"do not apply"},{"$f":"Translate!$A$478","v":"-new or recycled-"},null,null,null,null,null,null,null,null,null,null,null,null,null,null,null,null,null,null,null,null,null,null,null,null,null,null,null,{"$f":"HLOOKUP(AI114,$AP$1:$AV$2,2,0)","v":2},{"$f":"Translate!$A$106","v":"Freight"},{"$f":"AC113","v":0},null,{"$f":"VLOOKUP(T113,EFtable,8,0)*AC113","v":0},9,null,0]
[null,null,null,null,null,null,null,null,null,null,null,null,null,null,null,null,null,null,null,null,null,null,null,null,null,null,null,null,null,null,null,null,null,null,null,null,null,null,10]
[null,null,"+",{"$f":"Translate!$A$190","v":"Sand"},{"$f":"IF(ISERROR(VLOOKUP($E$6,DefaultConcrete,HLOOKUP(D116,DefaultConcrete,2,0),0)),0,VLOOKUP($E$6,DefaultConcrete,HLOOKUP(D116,DefaultConcrete,2,0),0))","v":800},{"$f":"OFFSET(AS116,-AM116+6,0)","v":"kg/m3"},null,null,{"$f":"IF(F116=OFFSET(AS116,-AM116+6,0),E116*OFFSET(E116,-AM116,0)/IF(J116='Emission factors'!$E$411,1,1000),E116)","v":0},{"$f":"'Emission factors'!$F$411","v":"t"},{"$f":"IF(ISERROR(E117*1),VLOOKUP(D116,EFtable,3,0),VLOOKUP(D116,EFtable,3,0)*(1-E117)+VLOOKUP(D116&Translate!$A$199,EFtable,3,0)*E117)","v":6},{"$f":"IF(F117=Translate!$A$111,0,I116*K116)","v":0},{"$f":"Translate!$A$102","v":"kgCO2e"},null,null,{"$f":"Translate!$A$112","v":"Distance"},{"$f":"IF(ISERROR(VLOOKUP(D116,StandardFreight,3,0)),VLOOKUP(Translate!$A$118,StandardFreight,3,0),VLOOKUP(D116,StandardFreight,3,0))","v":20},{"$f":"'Emission factors'!$F$410","v":"km"},{"$f":"Translate!$A$120","v":"Type"},{"$f":"IF(ISERROR(VLOOKUP(D116,StandardFreight,2,0)),VLOOKUP(\"Other\",StandardFreight,2,0),VLOOKUP(D116,StandardFreight,2,0))","v":"Road - Articulated >33t"},{"$f":"Translate!$A$127","v":"Load"},{"$f":"VLOOKUP(T116,FreightLoadFactors,2,0)","v":15},{"$f":"J116","v":"t"},{"$f":"IF(V116=0,0,ROUNDUP(I116/V116,0))","v":0},{"$f":"Translate!$A$130","v":"travels"},{"$f":"Translate!$A$128","v":"empty-return rate"},1,{"$f":"VLOOKUP(T116,EFtable,3,0)","v":0.93694},{"$f":"Q116*X116*(1+AA116)*AB116","v":0},{"$f":"Translate!$A$102","v":"kgCO2e"},null,null,null,{"$f":"HLOOKUP(AI116,$AP$1:$AV$2,2,0)","v":2},{"$f":"Translate!$A$104","v":"Materials"},{"$f":"L116","v":0},{"$f":"VLOOKUP(D116,EFtable,7,0)","v":"Concrete / Slurry / Grout mix"},{"$f":"VLOOKUP(D116,EFtable,8,0)*L116","v":0},11,{"$f":"ROW(F117)-ROW(F116)","v":1},0]
[null,null,null,{"$f":"Translate!$A$79","v":"Recycled content"},{"$f":"IF(ISERROR(VLOOKUP(D116,RecycledContent,2,0)),Translate!$A$90,VLOOKUP(D116,RecycledContent,2,0))","v":"do not apply"},{"$f":"Translate!$A$478","v":"-new or recycled-"},null,null,null,null,null,null,null,null,null,null,null,null,null,null,null,null,null,null,null,null,null,null,null,null,null,null,null,{"$f":"HLOOKUP(AI117,$AP$1:$AV$2,2,0)","v":2},{"$f":"Translate!$A$106","v":"Freight"},{"$f":"AC116","v":0},null,{"$f":"VLOOKUP(T116,EFtable,8,0)*AC116","v":0},12,null,0]
[null,null,null,null,null,null,null,null,null,null,null,null,null,null,null,null,null,null,null,null,null,null,null,null,null,null,null,null,null,null,null,null,null,null,null,null,null,null,13]
[null,null,"+",{"$f":"Translate!$A$198","v":"Water"},{"$f":"IF(ISERROR(VLOOKUP($E$6,DefaultConcrete,HLOOKUP(D119,DefaultConcrete,2,0),0)),0,VLOOKUP($E$6,DefaultConcrete,HLOOKUP(D119,DefaultConcrete,2,0),0))","v":200},{"$f":"OFFSET(AS119,-AM119+6,0)","v":"kg/m3"},null,null,{"$f":"IF(F119=OFFSET(AS119,-AM119+6,0),E119*OFFSET(E119,-AM119,0)/IF(J119='Emission factors'!$E$411,1,1000),E119)","v":0},{"$f":"'Emission factors'!$F$411","v":"t"},{"$f":"IF(ISERROR(E120*1),VLOOKUP(D119,EFtable,3,0),VLOOKUP(D119,EFtable,3,0)*(1-E120)+VLOOKUP(D119&Translate!$A$199,EFtable,3,0)*E120)","v":0.34399999999999997},{"$f":"IF(F120=Translate!$A$111,0,I119*K119)","v":0},{"$f":"Translate!$A$102","v":"kgCO2e"},null,null,{"$f":"Translate!$A$112","v":"Distance"},{"$f":"IF(ISERROR(VLOOKUP(D119,StandardFreight,3,0)),VLOOKUP(Translate!$A$118,StandardFreight,3,0),VLOOKUP(D119,StandardFreight,3,0))","v":0},{"$f":"'Emission factors'!$F$410","v":"km"},{"$f":"Translate!$A$120","v":"Type"},{"$f":"IF(ISERROR(VLOOKUP(D119,StandardFreight,2,0)),VLOOKUP(\"Other\",StandardFreight,2,0),VLOOKUP(D119,StandardFreight,2,0))","v":"Road - Rigid >3.5-7.5t"},{"$f":"Translate!$A$127","v":"Load"},{"$f":"VLOOKUP(T119,FreightLoadFactors,2,0)","v":1.0123216601815823},{"$f":"J119","v":"t"},{"$f":"IF(V119=0,0,ROUNDUP(I119/V119,0))","v":0},{"$f":"Translate!$A$130","v":"travels"},{"$f":"Translate!$A$128","v":"empty-return rate"},1,{"$f":"VLOOKUP(T119,EFtable,3,0)","v":0.49041000000000001},{"$f":"Q119*X119*(1+AA119)*AB119","v":0},{"$f":"Translate!$A$102","v":"kgCO2e"},null,null,null,{"$f":"HLOOKUP(AI119,$AP$1:$AV$2,2,0)","v":2},{"$f":"Translate!$A$104","v":"Materials"},{"$f":"L119","v":0},{"$f":"VLOOKUP(D119,EFtable,7,0)","v":"Concrete / Slurry / Grout mix"},{"$f":"VLOOKUP(D119,EFtable,8,0)*L119","v":0},14,{"$f":"ROW(F120)-ROW(F119)","v":1},0]
[null,null,null,{"$f":"Translate!$A$79","v":"Recycled content"},{"$f":"IF(ISERROR(VLOOKUP(D119,RecycledContent,2,0)),Translate!$A$90,VLOOKUP(D119,RecycledContent,2,0))","v":"do not apply"},{"$f":"Translate!$A$478","v":"-new or recycled-"},null,null,null,null,null,null,null,null,null,null,null,null,null,null,null,null,null,null,null,null,null,null,null,null,null,null,null,{"$f":"HLOOKUP(AI120,$AP$1:$AV$2,2,0)","v":2},{"$f":"Translate!$A$106","v":"Freight"},{"$f":"AC119","v":0},null,{"$f":"VLOOKUP(T119,EFtable,8,0)*AC119","v":0},15,null,0]
[null,null,null,null,null,null,null,null,null,null,null,null,null,null,null,null,null,null,null,null,null,null,null,null,null,null,null,null,null,null,null,null,null,null,null,null,null,null,16]
[null,null,"+",{"$f":"Translate!$A$178","v":"Bentonite"},{"$f":"IF(ISERROR(VLOOKUP($E$6,DefaultConcrete,HLOOKUP(D122,DefaultConcrete,2,0),0)),0,VLOOKUP($E$6,DefaultConcrete,HLOOKUP(D122,DefaultConcrete,2,0),0))","v":0},{"$f":"OFFSET(AS122,-AM122+6,0)","v":"kg/m3"},null,null,{"$f":"IF(F122=OFFSET(AS122,-AM122+6,0),E122*OFFSET(E122,-AM122,0)/IF(J122='Emission factors'!$E$411,1,1000),E122)","v":0},{"$f":"'Emission factors'!$F$411","v":"t"},{"$f":"IF(ISERROR(E123*1),VLOOKUP(D122,EFtable,3,0),VLOOKUP(D122,EFtable,3,0)*(1-E123)+VLOOKUP(D122&Translate!$A$199,EFtable,3,0)*E123)","v":474.97791999999998},{"$f":"IF(F123=Translate!$A$111,0,I122*K122)","v":0},{"$f":"Translate!$A$102","v":"kgCO2e"},null,null,{"$f":"Translate!$A$112","v":"Distance"},{"$f":"IF(ISERROR(VLOOKUP(D122,StandardFreight,3,0)),VLOOKUP(Translate!$A$118,StandardFreight,3,0),VLOOKUP(D122,StandardFreight,3,0))","v":300},{"$f":"'Emission factors'!$F$410","v":"km"},{"$f":"Translate!$A$120","v":"Type"},{"$f":"IF(ISERROR(VLOOKUP(D122,StandardFreight,2,0)),VLOOKUP(Translate!$A$118,StandardFreight,2,0),VLOOKUP(D122,StandardFreight,2,0))","v":"Road - Articulated >33t"},{"$f":"Translate!$A$127","v":"Load"},{"$f":"VLOOKUP(T122,FreightLoadFactors,2,0)","v":15},{"$f":"J122","v":"t"},{"$f":"IF(V122=0,0,ROUNDUP(I122/V122,0))","v":0},{"$f":"Translate!$A$130","v":"travels"},{"$f":"Translate!$A$128","v":"empty-return rate"},1,{"$f":"VLOOKUP(T122,EFtable,3,0)","v":0.93694},{"$f":"Q122*X122*(1+AA122)*AB122","v":0},{"$f":"Translate!$A$102","v":"kgCO2e"},null,null,null,{"$f":"HLOOKUP(AI122,$AP$1:$AV$2,2,0)","v":2},{"$f":"Translate!$A$104","v":"Materials"},{"$f":"L122","v":0},{"$f":"VLOOKUP(D122,EFtable,7,0)","v":"Concrete / Slurry / Grout mix"},{"$f":"VLOOKUP(D122,EFtable,8,0)*L122","v":0},17,{"$f":"ROW(F123)-ROW(F122)","v":1},0]
[null,null,null,{"$f":"Translate!$A$79","v":"Recycled content"},{"$f":"IF(ISERROR(VLOOKUP(D122,RecycledContent,2,0)),Translate!$A$90,VLOOKUP(D122,RecycledContent,2,0))","v":"do not apply"},{"$f":"Translate!$A$478","v":"-new or recycled-"},null,null,null,null,null,null,null,null,null,null,null,null,null,null,null,null,null,null,null,null,null,null,null,null,null,null,null,{"$f":"HLOOKUP(AI123,$AP$1:$AV$2,2,0)","v":2},{"$f":"Translate!$A$106","v":"Freight"},{"$f":"AC122","v":0},null,{"$f":"VLOOKUP(T122,EFtable,8,0)*AC122","v":0},18,null,0]
[null,null,null,null,null,null,null,null,null,null,null,null,null,null,null,null,null,null,null,null,null,null,null,null,null,null,null,null,null,null,null,null,null,null,null,null,null,null,{"$f":"1+OFFSET(AM124,-1,0)","v":19},null,{"$f":"AJ124","v":0}]
[null,null,null,null,{"$f":"IF(E105=0,0,SUM(I110:I124)/E105)","v":0},{"$f":"'Emission factors'!$F$411&\"/\"&F105","v":"t/m3"},null,null,null,null,null,null,null,null,null,null,null,null,null,null,null,null,null,null,null,null,null,null,null,null,null,null,null,null,null,null,null,null,{"$f":"1+OFFSET(AM125,-1,0)","v":20},null,{"$f":"AJ125","v":0}]
[null,null,null,null,null,null,null,null,null,null,null,null,null,null,null,null,null,null,null,null,null,null,null,null,null,null,null,null,null,null,null,null,null,null,null,null,null,null,21]
[]
[]
[]
[null,null,null,{"$f":"AV11","v":"Waste    (Secondary source)"}]
[]
[]
[null,null,null,{"$f":"Translate!$A$80","v":"Simplified ratio"},{"$f":"IF(AND(AV5,F133=Translate!$A$91),AV4,Translate!$A$92)","v":2.6591687681000226E-8},{"$f":"Translate!$A$91","v":"Default"},null,null,null,null,{"$f":"$P$1","v":0},{"$f":"IF(E133=Translate!$A$92,0,E133*K133)","v":0},{"$f":"Translate!$A$102","v":"kgCO2e"},null,null,null,null,null,null,null,null,null,null,null,null,null,null,null,null,null,null,null,"ratio",{"$f":"HLOOKUP(AI133,$AP$1:$AV$2,2,0)","v":2},{"$f":"Translate!$A$110","v":"Waste"},{"$f":"L133","v":0},null,{"$f":"100%*L133","v":0}]
[]
[]
[]
[null,"+",null,{"$f":"Translate!$A$84","v":"Waste 1"},null,{"$f":"'Emission factors'!$F$411","v":"t"},null,null,{"$f":"Q137*X137*(1+AA137)","v":0},{"$f":"'Emission factors'!$F$410","v":"km"},{"$f":"VLOOKUP(T137,EFtable,3,0)","v":0.98243999999999998},{"$f":"I137*K137","v":0},{"$f":"Translate!$A$102","v":"kgCO2e"},null,null,{"$f":"Translate!$A$112","v":"Distance"},10,{"$f":"'Emission factors'!$F$410","v":"km"},{"$f":"Translate!$A$120","v":"Type"},{"$f":"Translate!$A$206","v":"Road - Rigid >17t"},{"$f":"Translate!$A$127","v":"Load"},{"$f":"VLOOKUP(T137,'Emission factors'!$C$313:$E$329,2,0)","v":7.5},{"$f":"F137","v":"t"},{"$f":"IF(V137=0,0,ROUNDUP(E137/V137,0))","v":0},{"$f":"Translate!$A$130","v":"travels"},{"$f":"Translate!$A$128","v":"empty-return rate"},0.5,null,null,null,null,null,null,{"$f":"HLOOKUP(AI137,$AP$1:$AV$2,2,0)","v":2},{"$f":"Translate!$A$110","v":"Waste"},{"$f":"L137","v":0},null,{"$f":"VLOOKUP(T137,EFtable,8,0)*L137","v":0},null,{"$f":"ROW(F138)-ROW(F136)","v":2},{"$f":"AJ137","v":0}]
[]
[]
[]
[null,{"$f":"Translate!$A$242","v":"-"},null,{"$f":"Translate!$A$85","v":"Waste 2"},null,{"$f":"'Emission factors'!$F$411","v":"t"},null,null,{"$f":"Q141*X141*(1+AA141)","v":0},{"$f":"'Emission factors'!$F$410","v":"km"},{"$f":"VLOOKUP(T141,EFtable,3,0)","v":0.98243999999999998},{"$f":"I141*K141","v":0},{"$f":"Translate!$A$102","v":"kgCO2e"},null,null,{"$f":"Translate!$A$112","v":"Distance"},10,{"$f":"'Emission factors'!$F$410","v":"km"},{"$f":"Translate!$A$120","v":"Type"},{"$f":"Translate!$A$206","v":"Road - Rigid >17t"},{"$f":"Translate!$A$127","v":"Load"},{"$f":"VLOOKUP(T141,'Emission factors'!$C$313:$E$329,2,0)","v":7.5},{"$f":"F141","v":"t"},{"$f":"IF(V141=0,0,ROUNDUP(E141/V141,0))","v":0},{"$f":"Translate!$A$130","v":"travels"},{"$f":"Translate!$A$128","v":"empty-return rate"},0.5,null,null,null,null,null,null,{"$f":"HLOOKUP(AI141,$AP$1:$AV$2,2,0)","v":2},{"$f":"Translate!$A$110","v":"Waste"},{"$f":"L141","v":0},null,{"$f":"VLOOKUP(T141,EFtable,8,0)*L141","v":0},null,{"$f":"ROW(F142)-ROW(F140)","v":2},{"$f":"AJ141","v":0}]
[]
[]
[]
[]
[null,null,null,{"$f":"Translate!$A$86","v":"Externaly calculated emissions"}]
[]
[]
[null,"+",null,{"$f":"Translate!$A$47","v":"Name"},null,{"$f":"Translate!$A$104","v":"Materials"},null,null,null,null,null,null,{"$f":"Translate!$A$102","v":"kgCO2e"},null,null,null,null,null,null,null,null,null,null,null,null,null,null,null,null,null,null,null,"ext",{"$f":"HLOOKUP(AI149,$AP$1:$AV$2,2,0)","v":2},{"$f":"F149","v":"Materials"},{"$f":"L149","v":0},{"$f":"IF(F149=$AQ$1,Translate!$A$118,\"\")","v":"Other"},null,null,{"$f":"ROW(F150)-ROW(F148)","v":2}]

{"sheet":"Projectzero","index":5,"n_rows":76,"n_cols":63,"rows_kept":76,"cut":false,"hidden":true,"merged":[[4,4,4,5],[4,21,4,22],[6,36,12,40],[40,24,42,24]]}
["Project",null,null,null,null,null,null,null,null,null,null,null,null,null,null,{"$f":"AG71*1000","v":0},{"$f":"AG73*1000","v":0},null,null,"externally calculated emissions",{"$f":"AG75","v":0},"ratios used",{"$f":"AG76","v":0},null,null,null,"Functional unit 1",{"$f":"IF(AA38=\"value\",1,SUM(AA55:AF55,AA59:AF59))","v":0},"country",{"$f":"SUM(AA51:AF51)","v":0},null,null,null,null,null,"Concrete / Slurry / Grout mix","Steel","Other"]
[null,null,null,null,null,null,null,null,null,null,null,null,null,null,null,{"$f":"AG72*1000","v":0},{"$f":"AG74*1000","v":0},null,null,null,null,null,null,null,null,null,"Functional unit 2",{"$f":"IF(AA38=\"value\",1,SUM(AA57:AF57,AA61:AF61))","v":0},null,null,null,null,null,null,null,{"$f":"AG41","v":0},{"$f":"AG42","v":0},{"$f":"AG43","v":0}]
[]
[]
[null,null,null,"Project name",{"$f":"V5","v":0},null,null,null,null,null,null,null,null,null,null,null,null,null,null,null,{"$f":"Translate!$A$135","v":"Project name"}]
[null,null,null,null,"Bored piles",null,null,null,null,null,null,"Sources",null,null,null,"tCO2e","tCO2e",null,null,null,null,null,null,null,null,null,null,null,null,null,null,null,null,null,null,null,{"$f":"Translate!$A$131","v":"Comments :"},null,null,null,null,null,null,null,null,null,null,null,null,null,null,null,null,null,{"$f":"L6","v":"Sources"},null,null,null,{"$f":"P6","v":"tCO2e"}]
[null,null,null,"Date",{"$f":"V7","v":"00:00:00"},null,null,null,null,null,null,"Materials",null,null,null,{"$f":"SUM(AA24:AF24)","v":0},{"$f":"AG63","v":0},null,null,null,{"$f":"Translate!$A$8","v":"DATE"},null,null,null,null,null,null,null,null,null,null,null,null,null,null,null,null,null,null,null,null,null,null,null,null,null,null,null,null,null,null,null,null,null,{"$f":"Z24","v":"Materials"},null,null,null,null,{"$f":"AG41","v":0},{"$f":"AG42","v":0},{"$f":"AG43","v":0},{"$f":"IF(AG24=0,0,ROUND(AG24,-ROUNDDOWN(LOG(ABS(AG24)),0)+1))","v":0}]
[null,null,null,"Author",{"$f":"V8","v":0},null,null,null,null,null,null,"Energy",null,null,null,0,0,null,null,null,{"$f":"Translate!$A$66","v":"Author"},null,null,null,null,null,null,null,null,null,null,null,null,null,null,null,null,null,null,null,null,null,null,null,null,null,null,null,null,null,null,null,null,null,{"$f":"Z25","v":"Energy"},null,null,null,0,null,null,null,0]
[null,null,null,null,null,null,null,null,null,null,null,"Freight",null,null,null,0,0,null,null,null,{"$f":"Translate!$A$125","v":"TOTAL GHG EMISSIONS"},null,{"$f":"IF(AG31=0,0,ROUND(AG31,-ROUNDDOWN(LOG(ABS(AG31)),0)+1))","v":0},{"$f":"Translate!$A$115","v":"tCO2e"},null,null,null,null,null,null,null,null,null,null,null,null,null,null,null,null,null,null,null,null,null,null,null,null,null,null,null,null,null,null,"Freight",null,null,null,0,null,null,null,0]
[null,null,null,null,null,null,null,null,null,null,null,"Mob/demob",null,null,null,0,0,null,null,null,null,null,null,null,null,null,null,null,null,null,null,null,null,null,null,null,null,null,null,null,null,null,null,null,null,null,null,null,null,null,null,null,null,null,"Mob/demob",null,null,null,0,null,null,null,0]
[null,null,null,"Turnover",{"$f":"V11","v":0},"",null,null,null,null,null,"People's transportation",null,null,null,0,0,null,null,null,{"$f":"Translate!$A$69","v":"Project value"},{"$f":"AG36","v":0},{"$f":"AH36","v":""},null,null,null,null,null,null,null,null,null,null,null,null,null,null,null,null,null,null,null,null,null,null,null,null,null,null,null,null,null,null,null,"People's transportation",null,null,null,0,null,null,null,0]
[null,null,null,"Country","",0,null,null,null,null,null,"Assets",null,null,null,0,0,null,null,null,{"$f":"Translate!$A$70","v":"Country"},{"$f":"IF(SUM(AA51:AF51)>0,\"\",AA50)","v":""},null,null,null,null,null,null,null,null,null,null,null,null,null,null,null,null,null,null,null,null,null,null,null,null,null,null,null,null,null,null,null,null,"Assets",null,null,null,0,null,null,null,0]
[null,null,null,{"$f":"U13","v":""},0,"",null,null,null,null,null,"Waste",null,null,null,0,0,null,null,null,{"$f":"Z38","v":""},{"$f":"AG38","v":0},{"$f":"IF(SUM(Z55:AF55,Z59:AF59)>0,\"\",AA58)","v":""},null,null,null,null,null,null,null,null,null,null,null,null,null,null,null,null,null,null,null,null,null,null,null,null,null,null,null,null,null,null,null,"Waste",null,null,null,0,null,null,null,0]
[null,null,null,{"$f":"U14","v":""},0,"",null,null,null,null,null,null,null,null,null,{"$f":"SUM(P7:P13)","v":0},{"$f":"SUM(Q7:Q13)","v":0},null,null,null,{"$f":"Z39","v":""},{"$f":"AG39","v":0},{"$f":"IF(SUM(Z57:AF57,Z61:AF61)>0,\"\",AA60)","v":""}]
[]
[]
[]
[]
[]
[null,null,null,null,null,null,null,null,null,null,null,null,null,null,null,null,null,null,null,null,null,null,null,null,null,null,{"$f":"Translate!$A$139","v":"Select the subprojects and projects that you want to total"}]
[null,null,null,null,null,null,null,null,null,null,null,null,null,null,null,null,null,null,null,null,null,null,null,null,null,null,null,null,null,null,null,null,{"$f":"Translate!$A$134","v":"Total"}]
[null,null,null,null,null,null,null,null,null,null,null,null,null,null,null,null,null,null,null,null,null,null,null,null,null,null,{"$f":"IF(ISERROR(INDIRECT(\"'\"&AA21&\"'!A1\")),0,1)","v":0},0,0,0,0,0]
[]
[{"$f":"ADDRESS(ROW(P7),COLUMN(P7))","v":"$P$7"},null,null,null,null,null,null,null,null,null,null,null,null,null,null,null,null,null,null,null,null,null,null,null,null,{"$f":"Translate!$A$104","v":"Materials"},{"$f":"IF(AA$22,INDIRECT(\"'\"&AA$21&\"'!\"&$A24),\"\")","v":""},"","","","","",{"$f":"SUM(AA24:AF24)","v":0},null,null,null,{"$f":"Translate!$A$132","v":"Primary emission sources"},{"$f":"AG71","v":0},null,{"$f":"AG73","v":0}]
["$P$8",null,null,null,null,null,null,null,null,null,null,null,null,null,null,null,null,null,null,null,null,null,null,null,null,{"$f":"Translate!$A$105","v":"Energy"},"","","","","","",0,null,null,null,{"$f":"Translate!$A$133","v":"Secondary emission sources"},{"$f":"AG72","v":0},{"$f":"AL24","v":0},{"$f":"AG74","v":0}]
["$P$9",null,null,null,null,null,null,null,null,null,null,null,null,null,null,null,null,null,null,null,null,null,null,null,null,{"$f":"Translate!$A$106","v":"Freight"},"","","","","","",0,null,null,null,{"$f":"Translate!$A$134","v":"Total"},{"$f":"AL24+AL25","v":0},null,{"$f":"AN24+AN25","v":0}]
["$P$10",null,null,null,null,null,null,null,null,null,null,null,null,null,null,null,null,null,null,null,null,null,null,null,null,{"$f":"Translate!$A$107","v":"Mob/demob"},"","","","","","",0]
["$P$11",null,null,null,null,null,null,null,null,null,null,null,null,null,null,null,null,null,null,null,null,null,null,null,null,{"$f":"Translate!$A$108","v":"People's transportation"},"","","","","","",0]
["$P$12",null,null,null,null,null,null,null,null,null,null,null,null,null,null,null,null,null,null,null,null,null,null,null,null,{"$f":"Translate!$A$109","v":"Assets"},"","","","","","",0]
["$P$13",null,null,null,null,null,null,null,null,null,null,null,null,null,null,null,null,null,null,null,null,null,null,null,null,{"$f":"Translate!$A$110","v":"Waste"},"","","","","","",0]
[null,null,null,null,null,null,null,null,null,null,null,null,null,null,null,null,null,null,null,null,null,null,null,null,null,{"$f":"Translate!$A$134","v":"Total"},{"$f":"SUM(AA24:AA30)","v":0},0,0,0,0,0,0]
[]
[]
[{"$f":"ADDRESS(ROW(E9),COLUMN(E9))","v":"$E$9"},null,null,null,null,null,null,null,null,null,null,null,null,null,null,null,null,null,null,null,null,null,null,null,null,{"$f":"Translate!$A$67","v":"Working days"},{"$f":"IF(AA$22,INDIRECT(\"'\"&AA$21&\"'!\"&$A34),\"\")","v":""},"","","","",""]
[{"$f":"ADDRESS(ROW(E10),COLUMN(E10))","v":"$E$10"},null,null,null,null,null,null,null,null,null,null,null,null,null,null,null,null,null,null,null,null,null,null,null,null,{"$f":"Translate!$A$68","v":"Workforce"},"","","","","",""]
[{"$f":"ADDRESS(ROW(E11),COLUMN(E11))","v":"$E$11"},null,null,null,null,null,null,null,null,null,null,null,null,null,null,null,null,null,null,null,null,null,null,null,null,{"$f":"Translate!$A$137","v":"Turnover"},"","","","","","",{"$f":"SUM(AA36:AF36)","v":0},{"$f":"IF(AG53>0,Translate!$A$143,AA52)","v":""}]
[]
[{"$f":"ADDRESS(ROW(E13),COLUMN(E13))","v":"$E$13"},null,null,null,null,null,null,null,null,null,null,null,null,null,null,null,null,null,null,null,null,null,null,null,null,{"$f":"IF(SUM(Z55:AF55,Z59:AF59)>0,Translate!$A$71,AA54)","v":""},{"$f":"IF(AA$22,INDIRECT(\"'\"&AA$21&\"'!\"&$A38),\"\")","v":""},"","","","","",{"$f":"IF(SUM(AA55:AF55)>0,Translate!$A$140,IF(SUM(AA59:AF59)>0,Translate!$A$141,SUM(AA38:AF38)))","v":0}]
[{"$f":"ADDRESS(ROW(E14),COLUMN(E14))","v":"$E$14"},null,null,null,null,null,null,null,null,null,null,null,null,null,null,null,null,null,null,null,null,null,null,null,null,{"$f":"IF(SUM(Z57:AF57,Z61:AF61)>0,Translate!$A$72,AA56)","v":""},"","","","","","",{"$f":"IF(SUM(AA57:AF57)>0,Translate!$A$142,IF(SUM(AA61:AF61)>0,Translate!$A$141,SUM(AA39:AF39)))","v":0}]
[]
["AJ2",null,null,null,null,null,null,null,null,null,null,null,null,null,null,null,null,null,null,null,null,null,null,null,{"$f":"Translate!$A$136","v":"Materials detail"},{"$f":"Translate!$A$73","v":"Concrete / Slurry / Grout mix"},{"$f":"IF(AA$22,INDIRECT(\"'\"&AA$21&\"'!\"&$A41),\"\")","v":""},"","","","","",{"$f":"SUM(AA41:AF41)","v":0}]
["AK2",null,null,null,null,null,null,null,null,null,null,null,null,null,null,null,null,null,null,null,null,null,null,null,null,{"$f":"Translate!$A$138","v":"Steel"},"","","","","","",{"$f":"SUM(AA42:AF42)","v":0}]
["AL2",null,null,null,null,null,null,null,null,null,null,null,null,null,null,null,null,null,null,null,null,null,null,null,null,{"$f":"Translate!$A$118","v":"Other"},"","","","","","",{"$f":"SUM(AA43:AF43)","v":0}]
[]
[]
[]
[]
[]
[]
[{"$f":"ADDRESS(ROW(E12),COLUMN(E12))","v":"$E$12"},null,null,null,null,null,null,null,null,null,null,null,null,null,null,null,null,null,null,null,null,null,null,null,null,"test country",{"$f":"IF(AA$22,INDIRECT(\"'\"&AA$21&\"'!\"&$A50),\"\")","v":""},"","","","",""]
[null,null,null,null,null,null,null,null,null,null,null,null,null,null,null,null,null,null,null,null,null,null,null,null,null,null,{"$f":"IF(OR(AA21=\"\",AA50=$AA$50),0,1)","v":0},0,0,0,0,0,{"$f":"SUM(AA51:AF51)","v":0}]
["F11",null,null,null,null,null,null,null,null,null,null,null,null,null,null,null,null,null,null,null,null,null,null,null,null,"test currency",{"$f":"IF(AA$22,INDIRECT(\"'\"&AA$21&\"'!\"&$A52),\"\")","v":""},"","","","",""]
[null,null,null,null,null,null,null,null,null,null,null,null,null,null,null,null,null,null,null,null,null,null,null,null,null,null,{"$f":"IF(OR(AA23=\"\",AA52=$AA$52),0,1)","v":0},0,0,0,0,0,{"$f":"SUM(AA53:AF53)","v":0}]
[{"$f":"ADDRESS(ROW(D13),COLUMN(D13))","v":"$D$13"},null,null,null,null,null,null,null,null,null,null,null,null,null,null,null,null,null,null,null,null,null,null,null,null,"test Functional unit 1",{"$f":"IF(AA$22,INDIRECT(\"'\"&AA$21&\"'!\"&$A54),\"\")","v":""},"","","","",""]
[null,null,null,null,null,null,null,null,null,null,null,null,null,null,null,null,null,null,null,null,null,null,null,null,null,null,{"$f":"IF(OR(AA$21=\"\",AA54=$AA54),0,1)","v":0},0,0,0,0,0,{"$f":"SUM(AA55:AF55)","v":0}]
[{"$f":"ADDRESS(ROW(D14),COLUMN(D14))","v":"$D$14"},null,null,null,null,null,null,null,null,null,null,null,null,null,null,null,null,null,null,null,null,null,null,null,null,"test Functional unit 2",{"$f":"IF(AA$22,INDIRECT(\"'\"&AA$21&\"'!\"&$A56),\"\")","v":""},"","","","",""]
[null,null,null,null,null,null,null,null,null,null,null,null,null,null,null,null,null,null,null,null,null,null,null,null,null,null,{"$f":"IF(OR(AA$21=\"\",AA56=$AA56),0,1)","v":0},0,0,0,0,0,{"$f":"SUM(AA57:AF57)","v":0}]
[{"$f":"ADDRESS(ROW(F13),COLUMN(F13))","v":"$F$13"},null,null,null,null,null,null,null,null,null,null,null,null,null,null,null,null,null,null,null,null,null,null,null,null,"test unit 1",{"$f":"IF(AA$22,INDIRECT(\"'\"&AA$21&\"'!\"&$A58),\"\")","v":""},"","","","",""]
[null,null,null,null,null,null,null,null,null,null,null,null,null,null,null,null,null,null,null,null,null,null,null,null,null,null,{"$f":"IF(OR(AA$21=\"\",AA58=$AA58),0,1)","v":0},0,0,0,0,0,{"$f":"SUM(AA59:AF59)","v":0}]
[{"$f":"ADDRESS(ROW(F14),COLUMN(F14))","v":"$F$14"},null,null,null,null,null,null,null,null,null,null,null,null,null,null,null,null,null,null,null,null,null,null,null,null,"test unit 2",{"$f":"IF(AA$22,INDIRECT(\"'\"&AA$21&\"'!\"&$A60),\"\")","v":""},"","","","",""]
[null,null,null,null,null,null,null,null,null,null,null,null,null,null,null,null,null,null,null,null,null,null,null,null,null,null,{"$f":"IF(OR(AA$21=\"\",AA60=$AA60),0,1)","v":0},0,0,0,0,0,{"$f":"SUM(AA61:AF61)","v":0}]
[]
[{"$f":"ADDRESS(ROW(Q7),COLUMN(Q7))","v":"$Q$7"},null,null,null,null,null,null,null,null,null,null,null,null,null,null,null,null,null,null,null,null,null,null,null,null,"Materials",{"$f":"IF(AA$22,INDIRECT(\"'\"&AA$21&\"'!\"&$A63),\"\")","v":""},"","","","","",{"$f":"SUM(AA63:AF63)","v":0}]
["$Q$8",null,null,null,null,null,null,null,null,null,null,null,null,null,null,null,null,null,null,null,null,null,null,null,null,"Energy","","","","","","",0]
["$Q$9",null,null,null,null,null,null,null,null,null,null,null,null,null,null,null,null,null,null,null,null,null,null,null,null,"Freight","","","","","","",0]
["$Q$10",null,null,null,null,null,null,null,null,null,null,null,null,null,null,null,null,null,null,null,null,null,null,null,null,"Mob/demob","","","","","","",0]
["$Q$11",null,null,null,null,null,null,null,null,null,null,null,null,null,null,null,null,null,null,null,null,null,null,null,null,"People's transportation","","","","","","",0]
["$Q$12",null,null,null,null,null,null,null,null,null,null,null,null,null,null,null,null,null,null,null,null,null,null,null,null,"Assets","","","","","","",0]
["$Q$13",null,null,null,null,null,null,null,null,null,null,null,null,null,null,null,null,null,null,null,null,null,null,null,null,"Waste","","","","","","",0]
[null,null,null,null,null,null,null,null,null,null,null,null,null,null,null,null,null,null,null,null,null,null,null,null,null,"TOTAL",{"$f":"SUM(AA63:AA69)","v":0},0,0,0,0,0,0]
[{"$f":"ADDRESS(ROW(P1),COLUMN(P1))","v":"$P$1"},null,null,null,null,null,null,null,null,null,null,null,null,null,null,null,null,null,null,null,null,null,null,null,null,"Primary sources emissions",{"$f":"IF(AA$22,INDIRECT(\"'\"&AA$21&\"'!\"&$A71)/1000,\"\")","v":""},"","","","","",{"$f":"SUM(AA71:AF71)","v":0}]
[{"$f":"ADDRESS(ROW(P2),COLUMN(P2))","v":"$P$2"},null,null,null,null,null,null,null,null,null,null,null,null,null,null,null,null,null,null,null,null,null,null,null,null,"Secondary sources emissions","","","","","","",{"$f":"SUM(AA72:AF72)","v":0}]
[{"$f":"ADDRESS(ROW(Q1),COLUMN(Q1))","v":"$Q$1"},null,null,null,null,null,null,null,null,null,null,null,null,null,null,null,null,null,null,null,null,null,null,null,null,"Primary sources uncertainties","","","","","","",{"$f":"SUM(AA73:AF73)","v":0}]
[{"$f":"ADDRESS(ROW(Q2),COLUMN(Q2))","v":"$Q$2"},null,null,null,null,null,null,null,null,null,null,null,null,null,null,null,null,null,null,null,null,null,null,null,null,"Secondary sources uncertainties","","","","","","",{"$f":"SUM(AA74:AF74)","v":0}]
[{"$f":"ADDRESS(ROW(U1),COLUMN(U1))","v":"$U$1"},null,null,null,null,null,null,null,null,null,null,null,null,null,null,null,null,null,null,null,null,null,null,null,null,"Externally calculated emissions",{"$f":"IF(AA$22,INDIRECT(\"'\"&AA$21&\"'!\"&$A75),\"\")","v":""},"","","","","",{"$f":"IF(ISERROR(OR(AA75:AF75)),0,OR(AA75:AF75))","v":0}]
[null,null,null,null,null,null,null,null,null,null,null,null,null,null,null,null,null,null,null,null,null,null,null,null,null,"Ratios used",{"$f":"IF(AA$22,INDIRECT(\"'\"&AA$21&\"'!\"&$A54),\"\")","v":""},"","","","","",{"$f":"IF(ISERROR(OR(AA76:AF76)),0,OR(AA76:AF76))","v":0}]

{"sheet":"Resultszero","index":6,"n_rows":71,"n_cols":30,"rows_kept":71,"cut":false,"hidden":true,"merged":[[8,3,8,11],[10,9,10,10],[11,9,12,10],[38,4,38,10],[3,2,3,3]]}
["Results",null,null,null,{"$f":"IF(ISERROR(INDIRECT(\"'\"&E4&\"'!A1\")),0,1)","v":0},null,null,null,null,null,null,null,null,null,null,null,null,null,null,"externally calculated emissions",{"$f":"IF($E$1,INDIRECT(\"'\"&$E$4&\"'!\"&ADDRESS(ROW(U1),COLUMN(U1))),0)","v":0},"ratios used",{"$f":"IF($E$1,INDIRECT(\"'\"&$E$4&\"'!\"&ADDRESS(ROW(W1),COLUMN(W1))),0)","v":0},null,null,null,"Test FU 1",{"$f":"IF($E$1,INDIRECT(\"'\"&$E$4&\"'!\"&ADDRESS(ROW(AB1),COLUMN(AB1))),0)","v":0},"country",{"$f":"IF(E1,INDIRECT(\"'\"&$E$4&\"'!\"&ADDRESS(ROW(AD1),COLUMN(AD1))),0)","v":0}]
[null,null,null,null,null,null,null,null,null,null,null,null,null,null,null,null,null,null,null,null,null,null,null,null,null,null,"Test FU 2",{"$f":"IF($E$1,INDIRECT(\"'\"&$E$4&\"'!\"&ADDRESS(ROW(AB2),COLUMN(AB2))),0)","v":0}]
[]
[null,null,{"$f":"Translate!$A$144","v":"select your project or subproject"},null,null,null,null,{"$f":"Translate!$A$148","v":"Your Company name"},{"$f":"Translate!$A$149","v":" "}]
[]
[]
[]
[]
[null,null,null,{"$f":"Translate!$A$32","v":"EFFC DFI Project Carbon Calculator"}]
[null,null,null,null,null,null,null,null,null,null,null,{"$f":"'READ ME'!$E$10","v":"v4.0"}]
[null,null,null,null,{"$f":"Translate!$A$145","v":"Company"},{"$f":"I4","v":" "},null,null,null,{"$f":"Translate!$A$152&\" :\"","v":"Emission factor database :"}]
[null,null,null,null,{"$f":"Translate!$A$35","v":"Project"},{"$f":"IF(E$1,INDIRECT(\"'\"&E$4&\"'!E5\"),\"\")","v":""},null,null,null,{"$f":"'READ ME'!F18","v":"EFFC DFI methodology recommended emission factors"}]
[null,null,null,null,{"$f":"Translate!$A$8","v":"DATE"},{"$f":"IF(E$1,INDIRECT(\"'\"&E$4&\"'!E7\"),\"\")","v":""}]
[null,null,null,null,{"$f":"Translate!$A$66","v":"Author"},{"$f":"IF(E$1,INDIRECT(\"'\"&E$4&\"'!E8\"),\"\")","v":""},null,null,null,{"$f":"IF('Emission factors'!C250=0,\"\",'Emission factors'!C250)","v":""},{"$f":"IF('Emission factors'!C250=0,\"\",Translate!$A$153)","v":""}]
[]
[null,null,null,null,{"$f":"IF(F16=\"\",\"\",Translate!$A$70)","v":""},{"$f":"IF(AND($E$1,$AD$1=0),INDIRECT(\"'\"&$E$4&\"'!E12\"),\"\")","v":""},null,null,{"$f":"Translate!$A$134","v":"Total"},{"$f":"IF(E1=0,\"\",IF(B31=0,0,ROUND(B31,-ROUNDDOWN(LOG(ABS(B31)),0)+1)))","v":""},{"$f":"Translate!$A$115","v":"tCO2e"}]
[{"$f":"IF(SUM(F17)=0,0,$J$16/F17*1000)","v":0},null,null,null,{"$f":"Translate!$A$69","v":"Project value"},{"$f":"IF(E$1,INDIRECT(\"'\"&E$4&\"'!E11\"),\"\")","v":""},{"$f":"IF(E$1,INDIRECT(\"'\"&E$4&\"'!F11\"),\"\")","v":""},null,{"$f":"IF($F17=0,\"\",Translate!$A$150&\" \"&E17)","v":"ratio per Project value"},{"$f":"IF(A17=0,\"\",ROUND(A17*IF(N17,1000,1),-ROUNDDOWN(LOG(ABS(A17*IF(N17,1000,1))),0)+1))","v":""},{"$f":"IF($F17=0,\"\",IF(N17,Translate!$A$155,Translate!$A$154)&G17)","v":"kgCO2e / "},null,null,false]
[{"$f":"IF(SUM(F18)=0,0,$J$16/F18*1000)","v":0},null,null,null,{"$f":"IF(AND($E$1,$AB$1=0),INDIRECT(\"'\"&$E$4&\"'!D13\"),\"\")","v":""},{"$f":"IF(AND($E$1,$AB$1=0),INDIRECT(\"'\"&$E$4&\"'!E13\"),\"\")","v":""},{"$f":"IF(AND($E$1,$AB$1=0),INDIRECT(\"'\"&$E$4&\"'!F13\"),\"\")","v":""},null,{"$f":"IF(SUM($F18)=0,\"\",Translate!$A$150&\" \"&E18)","v":""},{"$f":"IF(A18=0,\"\",ROUND(A18*IF(N18,1000,1),-ROUNDDOWN(LOG(ABS(A18*IF(N18,1000,1))),0)+1))","v":""},{"$f":"IF(SUM($F18)=0,\"\",IF(N18,Translate!$A$155,Translate!$A$154)&G18)","v":""},null,null,false]
[{"$f":"IF(SUM(F19)=0,0,$J$16/F19*1000)","v":0},null,null,null,{"$f":"IF(AND($E$1,$AB$2=0),INDIRECT(\"'\"&$E$4&\"'!D14\"),\"\")","v":""},{"$f":"IF(AND($E$1,$AB$2=0),INDIRECT(\"'\"&$E$4&\"'!E14\"),\"\")","v":""},{"$f":"IF(AND($E$1,$AB$2=0),INDIRECT(\"'\"&$E$4&\"'!F14\"),\"\")","v":""},null,{"$f":"IF(SUM($F19)=0,\"\",Translate!$A$150&\" \"&E19)","v":""},{"$f":"IF(A19=0,\"\",ROUND(A19*IF(N19,1000,1),-ROUNDDOWN(LOG(ABS(A19*IF(N19,1000,1))),0)+1))","v":""},{"$f":"IF(SUM($F19)=0,\"\",IF(N19,Translate!$A$155,Translate!$A$154)&G19)","v":""},null,null,false]
[]
[{"$f":"ADDRESS(ROW(P7),COLUMN(P7))","v":"$P$7"},{"$f":"IF(E$1,INDIRECT(\"'\"&E$4&\"'!\"&$A21),\"\")","v":""},null,null,{"$f":"Translate!$A$104","v":"Materials"},{"$f":"IF(E1=0,\"\",IF(B21=0,0,ROUND(B21,-ROUNDDOWN(LOG(ABS(B21)),0)+1)))","v":""}]
[{"$f":"ADDRESS(ROW(AJ2),COLUMN(AJ2))","v":"$AJ$2"},{"$f":"IF(E$1,INDIRECT(\"'\"&E$4&\"'!\"&$A22),\"\")","v":""},null,null,{"$f":"Translate!$A$73","v":"Concrete / Slurry / Grout mix"},{"$f":"IF(E1=0,\"\",IF(B22=0,0,ROUND(B22,-ROUNDDOWN(LOG(ABS(B22)),0)+1)))","v":""}]
[{"$f":"ADDRESS(ROW(AK2),COLUMN(AK2))","v":"$AK$2"},{"$f":"IF(E$1,INDIRECT(\"'\"&E$4&\"'!\"&$A23),\"\")","v":""},null,null,{"$f":"Translate!$A$138","v":"Steel"},{"$f":"IF(E1=0,\"\",IF(B23=0,0,ROUND(B23,-ROUNDDOWN(LOG(ABS(B23)),0)+1)))","v":""}]
[{"$f":"ADDRESS(ROW(AL2),COLUMN(AL2))","v":"$AL$2"},{"$f":"IF(E$1,INDIRECT(\"'\"&E$4&\"'!\"&$A24),\"\")","v":""},null,null,{"$f":"Translate!$A$118","v":"Other"},{"$f":"IF(E1=0,\"\",IF(B24=0,0,ROUND(B24,-ROUNDDOWN(LOG(ABS(B24)),0)+1)))","v":""}]
[{"$f":"ADDRESS(ROW(P8),COLUMN(P8))","v":"$P$8"},{"$f":"IF(E$1,INDIRECT(\"'\"&E$4&\"'!\"&$A25),\"\")","v":""},null,null,{"$f":"Translate!$A$105","v":"Energy"},{"$f":"IF(E1=0,\"\",IF(B25=0,0,ROUND(B25,-ROUNDDOWN(LOG(ABS(B25)),0)+1)))","v":""}]
["$P$9","",null,null,{"$f":"Translate!$A$106","v":"Freight"},{"$f":"IF(E1=0,\"\",IF(B26=0,0,ROUND(B26,-ROUNDDOWN(LOG(ABS(B26)),0)+1)))","v":""}]
["$P$10","",null,null,{"$f":"Translate!$A$107","v":"Mob/demob"},{"$f":"IF(E1=0,\"\",IF(B27=0,0,ROUND(B27,-ROUNDDOWN(LOG(ABS(B27)),0)+1)))","v":""}]
["$P$11","",null,null,{"$f":"Translate!$A$108","v":"People's transportation"},{"$f":"IF(E1=0,\"\",IF(B28=0,0,ROUND(B28,-ROUNDDOWN(LOG(ABS(B28)),0)+1)))","v":""}]
["$P$12","",null,null,{"$f":"Translate!$A$109","v":"Assets"},{"$f":"IF(E1=0,\"\",IF(B29=0,0,ROUND(B29,-ROUNDDOWN(LOG(ABS(B29)),0)+1)))","v":""}]
["$P$13","",null,null,{"$f":"Translate!$A$110","v":"Waste"},{"$f":"IF(E1=0,\"\",IF(B30=0,0,ROUND(B30,-ROUNDDOWN(LOG(ABS(B30)),0)+1)))","v":""}]
["$P$14",""]
[]
[]
[]
[]
[]
[]
[null,null,null,null,{"$f":"Translate!$A$11","v":"Activities covered"}]
[]
[]
[null,null,null,null,{"$f":"IF('Emission factors'!C250=0,\"\",Translate!$A$146)","v":""}]
[null,null,null,{"$f":"IF('Emission factors'!$C$250>D41,D41+1,\"\")","v":""},{"$f":"IF($D42=\"\",\"\",VLOOKUP($D42,'Emission factors'!$C$251:$G$280,COLUMN('Emission factors'!D$250)-2,0))","v":""},{"$f":"IF($D42=\"\",\"\",VLOOKUP($D42,'Emission factors'!$C$251:$G$280,COLUMN('Emission factors'!E$250)-2,0))","v":""},{"$f":"IF($D42=\"\",\"\",VLOOKUP($D42,'Emission factors'!$C$251:$G$280,COLUMN('Emission factors'!F$250)-2,0))","v":""},null,{"$f":"IF($D42=\"\",\"\",VLOOKUP($D42,'Emission factors'!$C$251:$G$280,COLUMN('Emission factors'!G$250)-2,0))","v":""}]
[null,null,null,{"$f":"IF('Emission factors'!$C$250>D42,D42+1,\"\")","v":""},{"$f":"IF($D43=\"\",\"\",VLOOKUP($D43,'Emission factors'!$C$251:$G$280,COLUMN('Emission factors'!D$250)-2,0))","v":""},{"$f":"IF($D43=\"\",\"\",VLOOKUP($D43,'Emission factors'!$C$251:$G$280,COLUMN('Emission factors'!E$250)-2,0))","v":""},{"$f":"IF($D43=\"\",\"\",VLOOKUP($D43,'Emission factors'!$C$251:$G$280,COLUMN('Emission factors'!F$250)-2,0))","v":""},null,{"$f":"IF($D43=\"\",\"\",VLOOKUP($D43,'Emission factors'!$C$251:$G$280,COLUMN('Emission factors'!G$250)-2,0))","v":""}]
[null,null,null,{"$f":"IF('Emission factors'!$C$250>D43,D43+1,\"\")","v":""},{"$f":"IF($D44=\"\",\"\",VLOOKUP($D44,'Emission factors'!$C$251:$G$280,COLUMN('Emission factors'!D$250)-2,0))","v":""},{"$f":"IF($D44=\"\",\"\",VLOOKUP($D44,'Emission factors'!$C$251:$G$280,COLUMN('Emission factors'!E$250)-2,0))","v":""},{"$f":"IF($D44=\"\",\"\",VLOOKUP($D44,'Emission factors'!$C$251:$G$280,COLUMN('Emission factors'!F$250)-2,0))","v":""},null,{"$f":"IF($D44=\"\",\"\",VLOOKUP($D44,'Emission factors'!$C$251:$G$280,COLUMN('Emission factors'!G$250)-2,0))","v":""}]
[null,null,null,{"$f":"IF('Emission factors'!$C$250>D44,D44+1,\"\")","v":""},{"$f":"IF($D45=\"\",\"\",VLOOKUP($D45,'Emission factors'!$C$251:$G$280,COLUMN('Emission factors'!D$250)-2,0))","v":""},{"$f":"IF($D45=\"\",\"\",VLOOKUP($D45,'Emission factors'!$C$251:$G$280,COLUMN('Emission factors'!E$250)-2,0))","v":""},{"$f":"IF($D45=\"\",\"\",VLOOKUP($D45,'Emission factors'!$C$251:$G$280,COLUMN('Emission factors'!F$250)-2,0))","v":""},null,{"$f":"IF($D45=\"\",\"\",VLOOKUP($D45,'Emission factors'!$C$251:$G$280,COLUMN('Emission factors'!G$250)-2,0))","v":""}]
[null,null,null,{"$f":"IF('Emission factors'!$C$250>D45,D45+1,\"\")","v":""},{"$f":"IF($D46=\"\",\"\",VLOOKUP($D46,'Emission factors'!$C$251:$G$280,COLUMN('Emission factors'!D$250)-2,0))","v":""},{"$f":"IF($D46=\"\",\"\",VLOOKUP($D46,'Emission factors'!$C$251:$G$280,COLUMN('Emission factors'!E$250)-2,0))","v":""},{"$f":"IF($D46=\"\",\"\",VLOOKUP($D46,'Emission factors'!$C$251:$G$280,COLUMN('Emission factors'!F$250)-2,0))","v":""},null,{"$f":"IF($D46=\"\",\"\",VLOOKUP($D46,'Emission factors'!$C$251:$G$280,COLUMN('Emission factors'!G$250)-2,0))","v":""}]
[null,null,null,{"$f":"IF('Emission factors'!$C$250>D46,D46+1,\"\")","v":""},{"$f":"IF($D47=\"\",\"\",VLOOKUP($D47,'Emission factors'!$C$251:$G$280,COLUMN('Emission factors'!D$250)-2,0))","v":""},{"$f":"IF($D47=\"\",\"\",VLOOKUP($D47,'Emission factors'!$C$251:$G$280,COLUMN('Emission factors'!E$250)-2,0))","v":""},{"$f":"IF($D47=\"\",\"\",VLOOKUP($D47,'Emission factors'!$C$251:$G$280,COLUMN('Emission factors'!F$250)-2,0))","v":""},null,{"$f":"IF($D47=\"\",\"\",VLOOKUP($D47,'Emission factors'!$C$251:$G$280,COLUMN('Emission factors'!G$250)-2,0))","v":""}]
[null,null,null,{"$f":"IF('Emission factors'!$C$250>D47,D47+1,\"\")","v":""},{"$f":"IF($D48=\"\",\"\",VLOOKUP($D48,'Emission factors'!$C$251:$G$280,COLUMN('Emission factors'!D$250)-2,0))","v":""},{"$f":"IF($D48=\"\",\"\",VLOOKUP($D48,'Emission factors'!$C$251:$G$280,COLUMN('Emission factors'!E$250)-2,0))","v":""},{"$f":"IF($D48=\"\",\"\",VLOOKUP($D48,'Emission factors'!$C$251:$G$280,COLUMN('Emission factors'!F$250)-2,0))","v":""},null,{"$f":"IF($D48=\"\",\"\",VLOOKUP($D48,'Emission factors'!$C$251:$G$280,COLUMN('Emission factors'!G$250)-2,0))","v":""}]
[null,null,null,{"$f":"IF('Emission factors'!$C$250>D48,D48+1,\"\")","v":""},{"$f":"IF($D49=\"\",\"\",VLOOKUP($D49,'Emission factors'!$C$251:$G$280,COLUMN('Emission factors'!D$250)-2,0))","v":""},{"$f":"IF($D49=\"\",\"\",VLOOKUP($D49,'Emission factors'!$C$251:$G$280,COLUMN('Emission factors'!E$250)-2,0))","v":""},{"$f":"IF($D49=\"\",\"\",VLOOKUP($D49,'Emission factors'!$C$251:$G$280,COLUMN('Emission factors'!F$250)-2,0))","v":""},null,{"$f":"IF($D49=\"\",\"\",VLOOKUP($D49,'Emission factors'!$C$251:$G$280,COLUMN('Emission factors'!G$250)-2,0))","v":""}]
[null,null,null,null,null,{"$f":"IF(W1,Translate!$A$147,\"\")","v":""},null,null,{"$f":"IF(U1,Translate!$A$151,\"\")","v":""}]
[]
[]
[]
[]
[]
[]
[]
[]
[]
[]
[]
[]
[]
[]
[null,null,{"$f":"Translate!$A$104","v":"Materials"},null,{"$f":"B22","v":""},{"$f":"B23","v":""},{"$f":"B24","v":""},{"$f":"IF(B21=0,0,ROUND(B21,-ROUNDDOWN(LOG(ABS(B21)),0)+1))","v":{"$error":"#VALUE!"}}]
[null,null,{"$f":"Translate!$A$105","v":"Energy"},{"$f":"B25","v":""},null,null,null,{"$f":"IF(D66=0,0,ROUND(D66,-ROUNDDOWN(LOG(ABS(D66)),0)+1))","v":{"$error":"#VALUE!"}}]
[null,null,{"$f":"Translate!$A$106","v":"Freight"},"",null,null,null,{"$error":"#VALUE!"}]
[null,null,{"$f":"Translate!$A$107","v":"Mob/demob"},"",null,null,null,{"$error":"#VALUE!"}]
[null,null,{"$f":"Translate!$A$108","v":"People's transportation"},"",null,null,null,{"$error":"#VALUE!"}]
[null,null,{"$f":"Translate!$A$109","v":"Assets"},"",null,null,null,{"$error":"#VALUE!"}]
[null,null,{"$f":"Translate!$A$110","v":"Waste"},"",null,null,null,{"$error":"#VALUE!"}]

{"sheet":"Comparisonzero","index":7,"n_rows":200,"n_cols":33,"rows_kept":200,"cut":false,"hidden":true,"merged":[[113,8,113,10],[114,8,114,10],[115,8,115,10],[19,8,19,10],[20,8,20,10],[21,8,21,10]]}
["Comparison",null,null,null,null,null,null,null,null,"Functional unit 1",{"$f":"SUM(J189:O189,J193:O193)","v":0}]
[null,null,null,null,null,null,null,null,null,"Functional unit 2",{"$f":"SUM(J191:O191,J195:O195)","v":0}]
[]
[]
[null,null,null,null,"seuxio"]
[null,null,null,null,"Bored piles"]
[]
[]
[]
[]
[]
[null,null,null,null,null,null,null,null,null,null,null,null,null,null,null,null,null,null,null,null,null,null,null,null,null,null,null,null,null,null,null,null,{"$f":"Translate!A496","v":"Projects emissions"}]
[null,null,null,null,null,null,null,{"$f":"Translate!$A$156","v":"Comparison sheet"},null,null,null,null,null,null,null,null,null,null,null,null,null,null,null,null,null,null,null,null,null,null,null,null,{"$f":"Translate!A173","v":"emissions repartition"}]
[null,null,null,null,null,null,null,null,null,null,null,null,null,null,null,null,null,null,null,null,null,null,null,null,null,null,null,null,null,null,null,null,{"$f":"Translate!A172","v":"Projects emission repartitions"}]
[null,null,null,null,null,null,null,null,null,{"$f":"Translate!$A$166","v":"Select the subprojects and projects that you want to compare"},null,null,null,null,null,null,null,null,null,null,null,null,null,null,null,null,null,null,null,null,null,null,{"$f":"Translate!A173","v":"emissions repartition"}]
[null,null,null,null,null,null,null,null,null,null,null,null,null,null,null,null,null,null,null,null,null,null,null,null,null,null,null,null,null,null,null,null,{"$f":"Translate!A136","v":"Materials detail"}]
[null,null,null,null,null,null,null,null,null,{"$f":"IF(ISERROR(INDIRECT(\"'\"&J16&\"'!A1\")),0,1)","v":0},0,0,0,0,0,1]
[]
[]
[null,null,null,null,null,null,null,null,null,null,null,null,null,null,null,null,null,null,null,null,null,null,null,null,null,null,null,null,null,null,null,null,{"$f":"Translate!$A$172","v":"Projects emission repartitions"}]
[null,null,null,null,null,null,null,null,null,null,null,null,null,null,null,null,null,null,null,null,null,null,null,null,null,null,null,null,null,null,null,null,{"$f":"Translate!$A$173","v":"emissions repartition"}]
[null,null,null,null,null,null,null,null,null,null,null,null,null,null,null,null,null,null,null,null,null,null,null,null,null,null,null,null,null,null,null,null,{"$f":"Translate!$A$136","v":"Materials detail"}]
[]
[]
[]
[null,null,null,null,null,null,null,{"$f":"Translate!$A$157","v":"Comparison sheet (1/2)"}]
[]
[null,null,null,null,null,null,null,null,null,{"$f":"IF(J$17,J16,\"\")","v":""},"","","","","","Average"]
["$P$7",null,null,null,null,null,null,null,{"$f":"Translate!$A$104","v":"Materials"},{"$f":"IF(J$17,INDIRECT(\"'\"&J$16&\"'!\"&$A29),\"\")","v":""},"","","","","",{"$f":"IF(ISERROR(AVERAGE(J29:O29)),0,AVERAGE(J29:O29))","v":0},{"$f":"Translate!$A$115","v":"tCO2e"}]
["$P$8",null,null,null,null,null,null,null,{"$f":"Translate!$A$105","v":"Energy"},"","","","","","",0,{"$f":"Translate!$A$115","v":"tCO2e"}]
["$P$9",null,null,null,null,null,null,null,{"$f":"Translate!$A$106","v":"Freight"},"","","","","","",0,{"$f":"Translate!$A$115","v":"tCO2e"}]
["$P$10",null,null,null,null,null,null,null,{"$f":"Translate!$A$107","v":"Mob/demob"},"","","","","","",0,{"$f":"Translate!$A$115","v":"tCO2e"}]
["$P$11",null,null,null,null,null,null,null,{"$f":"Translate!$A$108","v":"People's transportation"},"","","","","","",0,{"$f":"Translate!$A$115","v":"tCO2e"}]
["$P$12",null,null,null,null,null,null,null,{"$f":"Translate!$A$109","v":"Assets"},"","","","","","",0,{"$f":"Translate!$A$115","v":"tCO2e"}]
["$P$13",null,null,null,null,null,null,null,{"$f":"Translate!$A$110","v":"Waste"},"","","","","","",0,{"$f":"Translate!$A$115","v":"tCO2e"}]
[null,null,null,null,null,null,null,null,{"$f":"Translate!$A$134","v":"Total"},{"$f":"IF(SUM(J29:J35)=0,0,ROUND(SUM(J29:J35),-ROUNDDOWN(LOG(ABS(SUM(J29:J35))),0)+1))","v":0},0,0,0,0,0,0,{"$f":"Translate!$A$115","v":"tCO2e"}]
[]
[]
["$E$9",null,null,null,null,null,null,null,{"$f":"Translate!$A$67","v":"Working days"},{"$f":"IF(J$17,INDIRECT(\"'\"&J$16&\"'!\"&$A39),\"\")","v":""},"","","","","",{"$f":"IF(ISERROR(AVERAGE(J39:O39)),0,AVERAGE(J39:O39))","v":0},{"$f":"Translate!$A$129","v":"days"}]
["$E$10",null,null,null,null,null,null,null,{"$f":"Translate!$A$68","v":"Workforce"},"","","","","","",{"$f":"IF(ISERROR(AVERAGE(J40:O40)),0,AVERAGE(J40:O40))","v":0},{"$f":"Translate!$A$94","v":"Full-time equivalent"}]
["$E$11",null,null,null,null,null,null,null,{"$f":"Translate!$A$69","v":"Project value"},"","","","","","",{"$f":"IF(ISERROR(AVERAGE(J41:O41)),0,AVERAGE(J41:O41))","v":0},{"$f":"IF(P187>0,Translate!$A$143,J186)","v":""}]
["$E$13",null,null,null,null,null,null,null,{"$f":"IF(P189>0,Translate!$A$71,J188)","v":""},"","","","","","",{"$f":"IF(SUM(J189:O189)>0,\"Functional units 1 are not the same\",IF(SUM(J193:O193)>0,\"Check the unit\",IF(ISERROR(AVERAGE(J42:O42)),0,AVERAGE(J42:O42))))","v":0},{"$f":"IF(P193>0,Translate!$A$143,J192)","v":""}]
["$E$14",null,null,null,null,null,null,null,{"$f":"IF(P191>0,Translate!$A$72,J190)","v":""},"","","","","","",{"$f":"IF(SUM(J191:O191)>0,\"Functional units 2 are not the same\",IF(SUM(J195:O195)>0,\"Check the unit\",IF(ISERROR(AVERAGE(J43:O43)),0,AVERAGE(J43:O43))))","v":0},{"$f":"IF(P195>0,Translate!$A$143,J194)","v":""}]
[]
[]
[]
[]
[]
[]
[]
[]
[]
[]
[]
[]
[]
[]
[]
[]
[]
[]
[]
[]
[]
[]
[]
[]
[]
[]
[]
[]
[]
[]
[]
[]
[]
[]
[]
[]
[]
[]
[]
[]
[]
[]
[]
[]
[]
[]
[]
[]
[]
[]
[null,null,null,null,null,null,null,null,null,null,null,null,null,null,null,null,null,null,null,null,null,{"$f":"Translate!$A$169","v":"Show other "}]
[null,null,null,null,null,null,null,null,null,null,null,null,null,null,null,null,null,null,null,null,null,{"$f":"Translate!$A$170","v":"emission "}]
[null,null,null,null,null,null,null,null,null,null,null,null,null,null,null,null,null,null,null,null,null,{"$f":"Translate!$A$103","v":"Sources"}]
[null,null,null,null,null,null,null,null,null,null,null,null,null,null,null,null,null,null,null,null,null,{"$f":"Translate!$A$163","v":"Yes"}]
[]
[]
[]
[]
[]
[]
[]
[]
[]
[]
[null,null,null,null,null,null,null,null,null,null,null,null,null,null,null,null,null,null,null,null,{"$f":"Translate!$A$167&\" \"&V123","v":"Projects emissions per  "}]
[]
[null,null,null,null,null,null,null,null,null,null,null,null,null,null,null,null,null,null,null,null,{"$f":"Translate!$A$167&\" \"&V125","v":"Projects emissions per  Project value"}]
[]
[null,null,null,null,null,null,null,null,null,null,null,null,null,null,null,null,null,null,null,{"$f":"'READ ME'!E5","v":"EFFC DFI Carbon Calculator Tool v4.0"}]
[]
[]
[]
[]
[]
[]
[]
[null,null,null,null,null,null,null,{"$f":"Translate!$A$158","v":"Comparison sheet (2/2)"}]
[]
[]
[]
[]
[null,null,null,null,null,null,null,null,null,null,null,null,null,null,null,null,null,null,null,null,{"$f":"Translate!$A$168","v":"ratio variable :"},"Project value"]
[]
[null,null,null,null,null,null,null,null,null,null,null,null,null,null,null,null,null,null,null,null,null,{"$f":"Translate!$A$171","v":"Functional units have to be the exactly the same"}]
[]
[]
[null,null,null,null,null,null,null,null,null,null,null,null,null,null,null,null,null,null,null,null,null,true]
[]
[]
[]
[]
[]
[]
[]
[]
[]
[]
[]
[]
[]
[]
[]
[]
[]
[]
[]
[]
[]
[]
[]
[]
[]
[]
[]
[]
[null,null,null,null,null,null,null,null,{"$f":"V125","v":"Project value"},{"$f":"IF(J$17,VLOOKUP($I159,$I$41:$P$43,COLUMN(J159)-COLUMN($I$159)+1,0),\"\")","v":""},"","","","","",0,{"$f":"IF(1,VLOOKUP($I159,$I$41:$Q$43,COLUMN(Q159)-COLUMN($I$159)+1,0),\"\")","v":""}]
[]
[]
[null,null,null,null,null,null,null,null,null,{"$f":"IF(J$17,J$16,\"\")","v":""},"","","","","","Average"]
[null,null,null,null,null,null,null,null,{"$f":"Translate!$A$104","v":"Materials"},{"$f":"IF(J$17,IF(ISERROR(J29/J$159),0,J29/J$159*1000)*IF($V$130,1000,1),\"\")","v":""},"","","","","",{"$f":"IF(P$17,IF(ISERROR(P29/P$159),0,P29/P$159*1000),\"\")","v":0},{"$f":"IF(V130,Translate!$A$155,Translate!$A$154)&Q159","v":"gCO2e / "}]
[null,null,null,null,null,null,null,null,{"$f":"Translate!$A$105","v":"Energy"},"","","","","","",0,{"$f":"Q163","v":"gCO2e / "}]
[null,null,null,null,null,null,null,null,{"$f":"Translate!$A$106","v":"Freight"},"","","","","","",0,{"$f":"Q164","v":"gCO2e / "}]
[null,null,null,null,null,null,null,null,{"$f":"Translate!$A$107","v":"Mob/demob"},"","","","","","",0,"gCO2e / "]
[null,null,null,null,null,null,null,null,{"$f":"Translate!$A$108","v":"People's transportation"},"","","","","","",0,"gCO2e / "]
[null,null,null,null,null,null,null,null,{"$f":"Translate!$A$109","v":"Assets"},"","","","","","",0,"gCO2e / "]
[null,null,null,null,null,null,null,null,{"$f":"Translate!$A$110","v":"Waste"},"","","","","","",0,"gCO2e / "]
[null,null,null,null,null,null,null,null,null,{"$f":"IF(SUM(J163:J169)=0,0,ROUND(SUM(J163:J169),-ROUNDDOWN(LOG(ABS(SUM(J163:J169))),0)+1))","v":0},{"$f":"IF(SUM(K163:K169)=0,0,ROUND(SUM(K163:K169),-ROUNDDOWN(LOG(ABS(SUM(K163:K169))),0)+1))","v":0},0,0,0,0,0,"gCO2e / "]
[]
[]
[null,null,null,null,null,null,null,null,null,{"$f":"IF(J$17,J$16,\"\")","v":""},"","","","","","Average"]
["$P$1",null,null,null,null,null,null,null,{"$f":"Translate!$A$159","v":"Primary sources emissions"},{"$f":"IF(J$17,INDIRECT(\"'\"&J$16&\"'!\"&$A174)/1000,\"\")","v":""},"","","","","",{"$f":"IF(ISERROR(AVERAGE(J174:O174)),0,AVERAGE(J174:O174))","v":0},{"$f":"Translate!$A$115","v":"tCO2e"}]
["$P$2",null,null,null,null,null,null,null,{"$f":"Translate!$A$160","v":"Secondary sources emissions"},"","","","","","",{"$f":"IF(ISERROR(AVERAGE(J175:O175)),0,AVERAGE(J175:O175))","v":0},{"$f":"Translate!$A$115","v":"tCO2e"}]
[null,null,null,null,null,null,null,null,{"$f":"Translate!$A$161","v":"Uncertainties"},{"$f":"IF(J$17,J196+J197,\"\")","v":""},"","","","","",{"$f":"IF(ISERROR(AVERAGE(J176:O176)),0,AVERAGE(J176:O176))","v":0},{"$f":"Translate!$A$115","v":"tCO2e"}]
[]
[null,null,null,null,null,null,null,null,null,{"$f":"IF(J$17,J$16,\"\")","v":""},"","","","","","Average"]
["AJ2",null,null,null,null,null,null,null,{"$f":"Translate!$A$73","v":"Concrete / Slurry / Grout mix"},{"$f":"IF(J$17,INDIRECT(\"'\"&J$16&\"'!\"&$A179),\"\")","v":""},"","","","","",{"$f":"IF(ISERROR(AVERAGE(J179:O179)),0,AVERAGE(J179:O179))","v":0},{"$f":"Translate!$A$115","v":"tCO2e"}]
["AK2",null,null,null,null,null,null,null,{"$f":"Translate!$A$138","v":"Steel"},"","","","","","",{"$f":"IF(ISERROR(AVERAGE(J180:O180)),0,AVERAGE(J180:O180))","v":0},{"$f":"Translate!$A$115","v":"tCO2e"}]
["AL2",null,null,null,null,null,null,null,{"$f":"Translate!$A$162","v":"Other materials"},"","","","","","",{"$f":"IF(ISERROR(AVERAGE(J181:O181)),0,AVERAGE(J181:O181))","v":0},{"$f":"Translate!$A$115","v":"tCO2e"}]
[null,null,null,null,null,null,null,null,{"$f":"IF(V97=Translate!$A$163,Translate!$A$165,\"\")","v":"Other emission sources"},{"$f":"(SUM(J29:J35)-SUM(J179:J181))*($V$97=Translate!$A$163)","v":0},{"$f":"(SUM(K29:K35)-SUM(K179:K181))*($V$97=Translate!$A$163)","v":0},{"$f":"(SUM(L29:L35)-SUM(L179:L181))*($V$97=Translate!$A$163)","v":0},{"$f":"(SUM(M29:M35)-SUM(M179:M181))*($V$97=Translate!$A$163)","v":0},{"$f":"(SUM(N29:N35)-SUM(N179:N181))*($V$97=Translate!$A$163)","v":0},{"$f":"(SUM(O29:O35)-SUM(O179:O181))*($V$97=Translate!$A$163)","v":0},{"$f":"(SUM(P29:P35)-SUM(P179:P181))*($V$97=\"YES\")","v":0},{"$f":"Translate!$A$115","v":"tCO2e"}]
[]
[]
[]
["F11",null,null,null,null,null,null,null,"test currency",{"$f":"IF(J$17,INDIRECT(\"'\"&J$16&\"'!\"&$A186),\"\")","v":""},"","","","",""]
[null,null,null,null,null,null,null,null,null,{"$f":"IF(OR(J16=\"\",J186=$J$186),0,1)","v":0},0,0,0,0,0,{"$f":"SUM(J187:O187)","v":0}]
["$D$13",null,null,null,null,null,null,null,"test Functional unit 1",{"$f":"IF(J$17,INDIRECT(\"'\"&J$16&\"'!\"&$A188),\"\")","v":""},"","","","",""]
[null,null,null,null,null,null,null,null,null,{"$f":"IF(OR(J$16=\"\",J188=$J188),0,1)","v":0},0,0,0,0,0,{"$f":"SUM(J189:O189)","v":0}]
["$D$14",null,null,null,null,null,null,null,"test Functional unit 2",{"$f":"IF(J$17,INDIRECT(\"'\"&J$16&\"'!\"&$A190),\"\")","v":""},"","","","",""]
[null,null,null,null,null,null,null,null,null,{"$f":"IF(OR(J$16=\"\",J190=$J190),0,1)","v":0},0,0,0,0,0,{"$f":"SUM(J191:O191)","v":0}]
["$F$13",null,null,null,null,null,null,null,"test unit 1",{"$f":"IF(J$17,INDIRECT(\"'\"&J$16&\"'!\"&$A192),\"\")","v":""},"","","","",""]
[null,null,null,null,null,null,null,null,null,{"$f":"IF(OR(J$16=\"\",J192=$J192),0,1)","v":0},0,0,0,0,0,{"$f":"SUM(J193:O193)","v":0}]
["$F$14",null,null,null,null,null,null,null,"test unit 2",{"$f":"IF(J$17,INDIRECT(\"'\"&J$16&\"'!\"&$A194),\"\")","v":""},"","","","",""]
[null,null,null,null,null,null,null,null,null,{"$f":"IF(OR(J$16=\"\",J194=$J194),0,1)","v":0},0,0,0,0,0,{"$f":"SUM(J195:O195)","v":0}]
["$Q$1",null,null,null,null,null,null,null,"Primary sources uncertainties",{"$f":"IF(J$17,INDIRECT(\"'\"&J$16&\"'!\"&$A196)/1000,\"\")","v":""},"","","","","",{"$f":"IF(ISERROR(AVERAGE(J196:O196)),0,AVERAGE(J196:O196))","v":0}]
["$Q$2",null,null,null,null,null,null,null,"Secondary sources uncertainties","","","","","","",{"$f":"IF(ISERROR(AVERAGE(J197:O197)),0,AVERAGE(J197:O197))","v":0}]
[]
[]
[null,null,null,null,null,null,null,null,null,null,null,null,null,null,null,null,null,null,null,{"$f":"'READ ME'!E5","v":"EFFC DFI Carbon Calculator Tool v4.0"}]

{"sheet":"Emission factors","index":8,"n_rows":418,"n_cols":32,"rows_kept":418,"cut":false,"hidden":true,"merged":[[340,10,340,16],[340,24,340,30],[2,3,2,4],[340,3,340,9],[340,17,340,23]]}
[]
[]
[null,null,{"$f":"'READ ME'!F18","v":"EFFC DFI methodology recommended emission factors"},null,null,{"$f":"'READ ME'!K18","v":"Metric system"}]
[null,null,null,{"$f":"MATCH('READ ME'!F18,$K$6:$N$6,0)","v":1}]
[null,null,null,null,null,null,null,null,null,null,null,null,null,null,null,{"$f":"Translate!$A$533","v":"the table values are in metric system units"}]
[null,null,{"$f":"Translate!$A$175","v":"Emission factor name"},{"$f":"Translate!$A$96","v":"unit"},{"$f":"Translate!$A$245","v":"Emission factor used (kgCO2/unit)"},{"$f":"Translate!$A$249","v":"Emission factor database used"},{"$f":"Translate!$A$251","v":"User-defined emission factor (kgCO2/unit)"},{"$f":"Translate!$A$253","v":"User-defined emission factor source"},{"$f":"Translate!$A$254","v":"Material type"},{"$f":"Translate!$A$255","v":"Uncertainty"},{"$f":"Translate!$A$256","v":"EFFC DFI methodology recommended emission factors"},{"$f":"Translate!$A$531","v":"US - EPA"},{"$f":"Translate!$A$263","v":"France - Bilan Carbone"},{"$f":"Translate!$A$264","v":"UK - DEFRA/Uni of Bath"},null,{"$f":"Translate!$A$258","v":"Base carbone (v18.1)"},{"$f":"Translate!$A$261","v":"Defra 2019 (v1.3)"},{"$f":"Translate!$A$259","v":"sustainableconcrete"},{"$f":"Translate!$A$257","v":"Ecoinvent v3.1"},{"$f":"Translate!$A$260","v":"ICE V3"},{"$f":"Translate!$A$262","v":"EcoTransit"},{"$f":"Translate!$A$265","v":"GHG Protocol"},null,{"$f":"Translate!$A$267","v":"CO2 emissions for electricity 2017 including losses&WTT"},{"$f":"Translate!$A$532","v":"EPA"},null,null,{"$f":"Translate!$A$503","v":"Metric system"},{"$f":"Translate!$A$504","v":"US units"},null,{"$f":"Translate!$A$268","v":"Comments"}]
[{"$f":"IF(ISBLANK(H7),OFFSET(A7,-1,0),OFFSET(A7,-1,0)+1)","v":0},null,{"$f":"Translate!$A$104","v":"Materials"}]
[0,null,{"$f":"Translate!$A$176","v":"Acrylic acid"},{"$f":"INDEX(AB8:AC8,MATCH($F$3,$AB$6:$AC$6,0))","v":"t"},{"$f":"IF(F8=H8,G8,INDEX(P8:Z8,MATCH($F8,$P$6:$Z$6,0)))/IF($F$3=$AC$6,VLOOKUP(D8,$E$410:$G$418,3,0),1)","v":1984.2799},{"$f":"IF(ISBLANK(H8),INDEX(K8:N8,$D$4),H8)","v":"Ecoinvent v3.1"},null,null,{"$f":"Translate!$A$118","v":"Other"},0.3,{"$f":"Translate!$A$257","v":"Ecoinvent v3.1"},{"$f":"K8","v":"Ecoinvent v3.1"},{"$f":"Translate!$A$257","v":"Ecoinvent v3.1"},{"$f":"Translate!$A$257","v":"Ecoinvent v3.1"},null,null,null,null,1984.2799,null,null,null,null,null,null,null,null,{"$f":"Translate!$A$101","v":"t"},{"$f":"Translate!$A$520","v":"lb"}]
[0,null,{"$f":"Translate!$A$177","v":"Aggregate"},{"$f":"INDEX(AB9:AC9,MATCH($F$3,$AB$6:$AC$6,0))","v":"t"},4,"Base carbone (v18.1)",null,null,{"$f":"Translate!$A$73","v":"Concrete / Slurry / Grout mix"},0.8,{"$f":"Translate!$A$258","v":"Base carbone (v18.1)"},{"$f":"K9","v":"Base carbone (v18.1)"},{"$f":"Translate!$A$258","v":"Base carbone (v18.1)"},{"$f":"Translate!$A$260","v":"ICE V3"},null,4,null,null,null,7.47,null,null,null,null,null,null,null,{"$f":"Translate!$A$101","v":"t"},{"$f":"Translate!$A$520","v":"lb"}]
[0,null,{"$f":"Translate!$A$178","v":"Bentonite"},"t",474.97791999999998,"Ecoinvent v3.1",null,null,{"$f":"Translate!$A$73","v":"Concrete / Slurry / Grout mix"},0.3,{"$f":"Translate!$A$257","v":"Ecoinvent v3.1"},"Ecoinvent v3.1",{"$f":"Translate!$A$257","v":"Ecoinvent v3.1"},{"$f":"Translate!$A$257","v":"Ecoinvent v3.1"},null,null,null,null,474.97791999999998,null,null,null,null,null,null,null,null,{"$f":"Translate!$A$101","v":"t"},{"$f":"Translate!$A$520","v":"lb"}]
[{"$f":"IF(ISBLANK(H11),OFFSET(A11,-1,0),OFFSET(A11,-1,0)+1)","v":0},null,{"$f":"Translate!$A$196","v":"Synthetic polymer slurry"},{"$f":"INDEX(AB11:AC11,MATCH($F$3,$AB$6:$AC$6,0))","v":"m3"},3.6415834999999994,{"$f":"IF(ISBLANK(H11),INDEX(K11:N11,$D$4),H11)","v":"Ecoinvent v3.1"},null,null,{"$f":"Translate!$A$73","v":"Concrete / Slurry / Grout mix"},0.3,{"$f":"Translate!$A$257","v":"Ecoinvent v3.1"},{"$f":"K11","v":"Ecoinvent v3.1"},{"$f":"Translate!$A$257","v":"Ecoinvent v3.1"},{"$f":"Translate!$A$257","v":"Ecoinvent v3.1"},null,null,null,null,{"$f":"Q30+(S25+S8)/1000","v":3.6415834999999994},null,null,null,null,null,null,null,null,"m3","yd3"]
[{"$f":"IF(ISBLANK(H12),OFFSET(A12,-1,0),OFFSET(A12,-1,0)+1)","v":0},null,{"$f":"Translate!$A$197","v":"Cellulose-based polymer slurry"},{"$f":"INDEX(AB12:AC12,MATCH($F$3,$AB$6:$AC$6,0))","v":"m3"},4.3341979000000004,{"$f":"IF(ISBLANK(H12),INDEX(K12:N12,$D$4),H12)","v":"Ecoinvent v3.1"},null,null,{"$f":"Translate!$A$73","v":"Concrete / Slurry / Grout mix"},0.3,{"$f":"Translate!$A$257","v":"Ecoinvent v3.1"},{"$f":"K12","v":"Ecoinvent v3.1"},{"$f":"Translate!$A$257","v":"Ecoinvent v3.1"},{"$f":"Translate!$A$257","v":"Ecoinvent v3.1"},null,null,null,null,{"$f":"Q30+S14/1000","v":4.3341979000000004},null,null,null,null,null,null,null,null,"m3","yd3"]
[0,null,{"$f":"Translate!$A$179","v":"Calcium chloride"},"t",493.43257,"Ecoinvent v3.1",null,null,{"$f":"Translate!$A$118","v":"Other"},0.3,{"$f":"Translate!$A$257","v":"Ecoinvent v3.1"},"Ecoinvent v3.1",{"$f":"Translate!$A$257","v":"Ecoinvent v3.1"},{"$f":"Translate!$A$257","v":"Ecoinvent v3.1"},null,null,null,null,493.43257,null,null,null,null,null,null,null,null,{"$f":"Translate!$A$101","v":"t"},{"$f":"Translate!$A$520","v":"lb"}]
[{"$f":"IF(ISBLANK(H14),OFFSET(A14,-1,0),OFFSET(A14,-1,0)+1)","v":0},null,{"$f":"Translate!$A$180","v":"Carboxymethyl cellulose"},{"$f":"INDEX(AB14:AC14,MATCH($F$3,$AB$6:$AC$6,0))","v":"t"},3990.1979000000001,{"$f":"IF(ISBLANK(H14),INDEX(K14:N14,$D$4),H14)","v":"Ecoinvent v3.1"},null,null,{"$f":"Translate!$A$118","v":"Other"},0.3,{"$f":"Translate!$A$257","v":"Ecoinvent v3.1"},{"$f":"K14","v":"Ecoinvent v3.1"},{"$f":"Translate!$A$257","v":"Ecoinvent v3.1"},{"$f":"Translate!$A$257","v":"Ecoinvent v3.1"},null,null,null,null,3990.1979000000001,null,null,null,null,null,null,null,null,{"$f":"Translate!$A$101","v":"t"},{"$f":"Translate!$A$520","v":"lb"}]
[0,null,{"$f":"Translate!$A$181","v":"CEM I"},"t",860,"sustainableconcrete",null,null,{"$f":"Translate!$A$73","v":"Concrete / Slurry / Grout mix"},0.2,{"$f":"Translate!$A$259","v":"sustainableconcrete"},"sustainableconcrete",{"$f":"Translate!$A$258","v":"Base carbone (v18.1)"},{"$f":"Translate!$A$260","v":"ICE V3"},null,866,null,860,877.92220999999995,912,null,null,null,null,null,null,null,{"$f":"Translate!$A$101","v":"t"},{"$f":"Translate!$A$520","v":"lb"}]
[0,null,{"$f":"Translate!$A$182","v":"GGbs"},"t",79.599999999999994,"sustainableconcrete",null,null,{"$f":"Translate!$A$73","v":"Concrete / Slurry / Grout mix"},0.3,{"$f":"Translate!$A$259","v":"sustainableconcrete"},"sustainableconcrete",{"$f":"Translate!$A$259","v":"sustainableconcrete"},{"$f":"Translate!$A$260","v":"ICE V3"},null,null,null,79.599999999999994,null,83,null,null,null,null,null,null,null,{"$f":"Translate!$A$101","v":"t"},{"$f":"Translate!$A$520","v":"lb"}]
[0,null,{"$f":"Translate!$A$183","v":"Fly Ash"},"t",0.1,"sustainableconcrete",null,null,{"$f":"Translate!$A$73","v":"Concrete / Slurry / Grout mix"},0.3,{"$f":"Translate!$A$259","v":"sustainableconcrete"},"sustainableconcrete",{"$f":"Translate!$A$259","v":"sustainableconcrete"},{"$f":"Translate!$A$260","v":"ICE V3"},null,null,null,0.1,null,8,null,null,null,null,null,null,null,{"$f":"Translate!$A$101","v":"t"},{"$f":"Translate!$A$520","v":"lb"}]
[0,null,{"$f":"Translate!$A$184","v":"Limestone"},"t",8,"sustainableconcrete",null,null,{"$f":"Translate!$A$73","v":"Concrete / Slurry / Grout mix"},0.3,{"$f":"Translate!$A$259","v":"sustainableconcrete"},"sustainableconcrete",{"$f":"Translate!$A$259","v":"sustainableconcrete"},{"$f":"Translate!$A$260","v":"ICE V3"},null,null,null,8,null,90,null,null,null,null,null,null,null,{"$f":"Translate!$A$101","v":"t"},{"$f":"Translate!$A$520","v":"lb"}]
[0,null,{"$f":"Translate!$A$185","v":"minor additional constituent"},"t",75,"sustainableconcrete",null,null,{"$f":"Translate!$A$73","v":"Concrete / Slurry / Grout mix"},0.3,{"$f":"Translate!$A$259","v":"sustainableconcrete"},"sustainableconcrete",{"$f":"Translate!$A$259","v":"sustainableconcrete"},{"$f":"Translate!$A$259","v":"sustainableconcrete"},null,null,null,75,null,null,null,null,null,null,null,null,null,{"$f":"Translate!$A$101","v":"t"},{"$f":"Translate!$A$520","v":"lb"}]
[0,null,{"$f":"Translate!$A186","v":"Chemicals inorganic"},"t",1988.2809999999999,"Ecoinvent v3.1",null,null,{"$f":"Translate!$A$118","v":"Other"},0.3,{"$f":"Translate!$A$257","v":"Ecoinvent v3.1"},"Ecoinvent v3.1",{"$f":"Translate!$A$257","v":"Ecoinvent v3.1"},{"$f":"Translate!$A$257","v":"Ecoinvent v3.1"},null,null,null,null,1988.2809999999999,null,null,null,null,null,null,null,null,{"$f":"Translate!$A$101","v":"t"},{"$f":"Translate!$A$520","v":"lb"}]
[0,null,{"$f":"Translate!$A187","v":"EPDM-rubber"},"t",2770.4699000000001,"Ecoinvent v3.1",null,null,{"$f":"Translate!$A$118","v":"Other"},0.3,{"$f":"Translate!$A$257","v":"Ecoinvent v3.1"},"Ecoinvent v3.1",{"$f":"Translate!$A$257","v":"Ecoinvent v3.1"},{"$f":"Translate!$A$257","v":"Ecoinvent v3.1"},null,null,null,null,2770.4699000000001,null,null,null,null,null,null,null,null,{"$f":"Translate!$A$101","v":"t"},{"$f":"Translate!$A$520","v":"lb"}]
[0,null,{"$f":"Translate!$A188","v":"Polypropylene"},"t",2293.127,"Ecoinvent v3.1",null,null,{"$f":"Translate!$A$118","v":"Other"},0.3,{"$f":"Translate!$A$257","v":"Ecoinvent v3.1"},"Ecoinvent v3.1",{"$f":"Translate!$A$257","v":"Ecoinvent v3.1"},{"$f":"Translate!$A$257","v":"Ecoinvent v3.1"},null,null,null,null,2293.127,4980,null,null,null,null,null,null,null,{"$f":"Translate!$A$101","v":"t"},{"$f":"Translate!$A$520","v":"lb"}]
[0,null,{"$f":"Translate!$A$189","v":"PVC pipes"},"t",3230,"ICE V3",null,null,{"$f":"Translate!$A$118","v":"Other"},0.3,{"$f":"Translate!$A$260","v":"ICE V3"},"ICE V3",{"$f":"Translate!$A$258","v":"Base carbone (v18.1)"},{"$f":"Translate!$A$260","v":"ICE V3"},null,1870,null,null,null,3230,null,null,null,null,null,null,null,{"$f":"Translate!$A$101","v":"t"},{"$f":"Translate!$A$520","v":"lb"}]
[0,null,{"$f":"Translate!$A$190","v":"Sand"},"t",6,"ICE V3",null,null,{"$f":"Translate!$A$73","v":"Concrete / Slurry / Grout mix"},0.3,{"$f":"Translate!$A$260","v":"ICE V3"},"ICE V3",{"$f":"Translate!$A$260","v":"ICE V3"},{"$f":"Translate!$A$260","v":"ICE V3"},null,null,null,null,null,6,null,null,null,null,null,null,null,{"$f":"Translate!$A$101","v":"t"},{"$f":"Translate!$A$520","v":"lb"}]
[0,null,{"$f":"Translate!$A$191","v":"Sodium carbonate"},"t",1313.3036,"Ecoinvent v3.1",null,null,{"$f":"Translate!$A$118","v":"Other"},0.3,{"$f":"Translate!$A$257","v":"Ecoinvent v3.1"},"Ecoinvent v3.1",{"$f":"Translate!$A$257","v":"Ecoinvent v3.1"},{"$f":"Translate!$A$257","v":"Ecoinvent v3.1"},null,null,null,null,1313.3036,null,null,null,null,null,null,null,null,{"$f":"Translate!$A$101","v":"t"},{"$f":"Translate!$A$520","v":"lb"}]
[0,null,{"$f":"Translate!$A$192","v":"Steel sheets"},"t",2164,"Ecoinvent v3.1",null,null,{"$f":"Translate!$A$138","v":"Steel"},0.3,{"$f":"Translate!$A$257","v":"Ecoinvent v3.1"},"Ecoinvent v3.1",{"$f":"Translate!$A$258","v":"Base carbone (v18.1)"},{"$f":"Translate!$A$260","v":"ICE V3"},null,2211,null,null,2164,3060,null,null,null,null,null,null,null,{"$f":"Translate!$A$101","v":"t"},{"$f":"Translate!$A$520","v":"lb"}]
[0,null,{"$f":"Translate!$A$193","v":"Steel rebars"},"t",2055,"Ecoinvent v3.1",null,null,{"$f":"Translate!$A$138","v":"Steel"},0.3,{"$f":"Translate!$A$257","v":"Ecoinvent v3.1"},"Ecoinvent v3.1",{"$f":"Translate!$A$258","v":"Base carbone (v18.1)"},{"$f":"Translate!$A$260","v":"ICE V3"},null,2211,null,null,2055,1990,null,null,null,null,null,null,null,{"$f":"Translate!$A$101","v":"t"},{"$f":"Translate!$A$520","v":"lb"}]
[0,null,{"$f":"Translate!$A$194","v":"Steel tubes"},"t",2534,"Ecoinvent v3.1",null,null,{"$f":"Translate!$A$138","v":"Steel"},0.3,{"$f":"Translate!$A$257","v":"Ecoinvent v3.1"},"Ecoinvent v3.1",{"$f":"Translate!$A$258","v":"Base carbone (v18.1)"},{"$f":"Translate!$A$260","v":"ICE V3"},null,2211,null,null,2534,2780,null,null,null,null,null,null,null,{"$f":"Translate!$A$101","v":"t"},{"$f":"Translate!$A$520","v":"lb"}]
[0,null,{"$f":"Translate!$A$195","v":"Steel wires"},"t",2505,"Ecoinvent v3.1",null,null,{"$f":"Translate!$A$138","v":"Steel"},0.3,{"$f":"Translate!$A$257","v":"Ecoinvent v3.1"},"Ecoinvent v3.1",{"$f":"Translate!$A$258","v":"Base carbone (v18.1)"},{"$f":"Translate!$A$260","v":"ICE V3"},null,2211,null,null,2505,2270,null,null,null,null,null,null,null,{"$f":"Translate!$A$101","v":"t"},{"$f":"Translate!$A$520","v":"lb"}]
[0,null,{"$f":"Translate!$A$198","v":"Water"},"t",0.34399999999999997,"Defra 2019 (v1.3)",null,null,{"$f":"Translate!$A$73","v":"Concrete / Slurry / Grout mix"},0.3,{"$f":"Translate!$A$261","v":"Defra 2019 (v1.3)"},"Defra 2019 (v1.3)",{"$f":"Translate!$A$261","v":"Defra 2019 (v1.3)"},{"$f":"Translate!$A$261","v":"Defra 2019 (v1.3)"},null,null,0.34399999999999997,null,null,null,null,null,null,null,null,null,null,{"$f":"Translate!$A$101","v":"t"},{"$f":"Translate!$A$520","v":"lb"}]
[{"$f":"IF(AND(ISBLANK(C31),ISBLANK(G31)),OFFSET(A31,-1,0),OFFSET(A31,-1,0)+1)","v":0},null,null,null,{"$f":"G31","v":0},0,null,null,{"$f":"Translate!$A$118","v":"Other"}]
[{"$f":"IF(AND(ISBLANK(C32),ISBLANK(G32)),OFFSET(A32,-1,0),OFFSET(A32,-1,0)+1)","v":0},null,null,null,0,0,null,null,{"$f":"Translate!$A$118","v":"Other"}]
[{"$f":"IF(AND(ISBLANK(C33),ISBLANK(G33)),OFFSET(A33,-1,0),OFFSET(A33,-1,0)+1)","v":0},null,null,null,0,0,null,null,{"$f":"Translate!$A$118","v":"Other"}]
[{"$f":"IF(AND(ISBLANK(C34),ISBLANK(G34)),OFFSET(A34,-1,0),OFFSET(A34,-1,0)+1)","v":0},null,null,null,0,0,null,null,{"$f":"Translate!$A$118","v":"Other"}]
[{"$f":"IF(ISBLANK(H35),OFFSET(A35,-1,0),OFFSET(A35,-1,0)+1)","v":0},null,{"$f":"C26&Translate!$A$199","v":"Steel sheets - recycled"},{"$f":"INDEX(AB35:AC35,MATCH($F$3,$AB$6:$AC$6,0))","v":"t"},{"$f":"IF(F35=H35,G35,INDEX(P35:Z35,MATCH($F35,$P$6:$Z$6,0)))/IF($F$3=$AC$6,VLOOKUP(D35,$E$410:$G$418,3,0),1)","v":673},{"$f":"IF(ISBLANK(H35),INDEX(K35:N35,$D$4),H35)","v":"Ecoinvent v3.1"},null,null,{"$f":"Translate!$A$138","v":"Steel"},0.3,{"$f":"Translate!$A$257","v":"Ecoinvent v3.1"},{"$f":"Translate!$A$257","v":"Ecoinvent v3.1"},{"$f":"Translate!$A$258","v":"Base carbone (v18.1)"},{"$f":"Translate!$A$260","v":"ICE V3"},null,938,null,null,673,{"$f":"T26","v":3060},null,null,null,null,null,null,null,{"$f":"Translate!$A$101","v":"t"},{"$f":"Translate!$A$520","v":"lb"}]
[0,null,{"$f":"C27&Translate!$A$199","v":"Steel rebars - recycled"},{"$f":"INDEX(AB36:AC36,MATCH($F$3,$AB$6:$AC$6,0))","v":"t"},{"$f":"IF(F36=H36,G36,INDEX(P36:Z36,MATCH($F36,$P$6:$Z$6,0)))/IF($F$3=$AC$6,VLOOKUP(D36,$E$410:$G$418,3,0),1)","v":565},{"$f":"IF(ISBLANK(H36),INDEX(K36:N36,$D$4),H36)","v":"Ecoinvent v3.1"},null,null,{"$f":"Translate!$A$138","v":"Steel"},0.3,{"$f":"Translate!$A$257","v":"Ecoinvent v3.1"},{"$f":"Translate!$A$257","v":"Ecoinvent v3.1"},{"$f":"Translate!$A$258","v":"Base carbone (v18.1)"},{"$f":"Translate!$A$260","v":"ICE V3"},null,938,null,null,565,{"$f":"T27","v":1990},null,null,null,null,null,null,null,{"$f":"Translate!$A$101","v":"t"},{"$f":"Translate!$A$520","v":"lb"}]
[0,null,{"$f":"C28&Translate!$A$199","v":"Steel tubes - recycled"},{"$f":"INDEX(AB37:AC37,MATCH($F$3,$AB$6:$AC$6,0))","v":"t"},{"$f":"IF(F37=H37,G37,INDEX(P37:Z37,MATCH($F37,$P$6:$Z$6,0)))/IF($F$3=$AC$6,VLOOKUP(D37,$E$410:$G$418,3,0),1)","v":1044},{"$f":"IF(ISBLANK(H37),INDEX(K37:N37,$D$4),H37)","v":"Ecoinvent v3.1"},null,null,{"$f":"Translate!$A$138","v":"Steel"},0.3,{"$f":"Translate!$A$257","v":"Ecoinvent v3.1"},{"$f":"Translate!$A$257","v":"Ecoinvent v3.1"},{"$f":"Translate!$A$258","v":"Base carbone (v18.1)"},{"$f":"Translate!$A$260","v":"ICE V3"},null,938,null,null,1044,{"$f":"T28","v":2780},null,null,null,null,null,null,null,{"$f":"Translate!$A$101","v":"t"},{"$f":"Translate!$A$520","v":"lb"}]
[0,null,{"$f":"C29&Translate!$A$199","v":"Steel wires - recycled"},{"$f":"INDEX(AB38:AC38,MATCH($F$3,$AB$6:$AC$6,0))","v":"t"},{"$f":"IF(F38=H38,G38,INDEX(P38:Z38,MATCH($F38,$P$6:$Z$6,0)))/IF($F$3=$AC$6,VLOOKUP(D38,$E$410:$G$418,3,0),1)","v":1015},{"$f":"IF(ISBLANK(H38),INDEX(K38:N38,$D$4),H38)","v":"Ecoinvent v3.1"},null,null,{"$f":"Translate!$A$138","v":"Steel"},0.3,{"$f":"Translate!$A$257","v":"Ecoinvent v3.1"},{"$f":"Translate!$A$257","v":"Ecoinvent v3.1"},{"$f":"Translate!$A$258","v":"Base carbone (v18.1)"},{"$f":"Translate!$A$260","v":"ICE V3"},null,938,null,null,1015,{"$f":"T29","v":2270},null,null,null,null,null,null,null,{"$f":"Translate!$A$101","v":"t"},{"$f":"Translate!$A$520","v":"lb"}]
[0]
[0,null,{"$f":"Translate!$A$105","v":"Energy"}]
[0,null,{"$f":"Translate!$A$200","v":"Diesel"},{"$f":"INDEX(AB41:AC41,MATCH($F$3,$AB$6:$AC$6,0))","v":"liter"},{"$f":"IF(F41=H41,G41,INDEX(P41:Z41,MATCH($F41,$P$6:$Z$6,0)))/IF($F$3=$AC$6,VLOOKUP(D41,$E$410:$G$418,3,0),1)","v":3.2112000000000003},{"$f":"IF(ISBLANK(H41),INDEX(K41:N41,$D$4),H41)","v":"Defra 2019 (v1.3)"},null,null,null,0.05,{"$f":"Translate!$A$261","v":"Defra 2019 (v1.3)"},{"$f":"Translate!$A$532","v":"EPA"},{"$f":"Translate!$A$258","v":"Base carbone (v18.1)"},{"$f":"Translate!$A$261","v":"Defra 2019 (v1.3)"},null,3.17,{"$f":"2.59411+0.61709","v":3.2112000000000003},null,null,null,null,3,null,null,{"$f":"10.21/3.79","v":2.6939313984168867},null,null,{"$f":"Translate!$A$238","v":"liter"},{"$f":"Translate!$A$523","v":"gallon"}]
[0,null,{"$f":"Translate!$A$201","v":"Heavy fuel oil"},{"$f":"INDEX(AB42:AC42,MATCH($F$3,$AB$6:$AC$6,0))","v":"liter"},{"$f":"IF(F42=H42,G42,INDEX(P42:Z42,MATCH($F42,$P$6:$Z$6,0)))/IF($F$3=$AC$6,VLOOKUP(D42,$E$410:$G$418,3,0),1)","v":3.7822900000000002},{"$f":"IF(ISBLANK(H42),INDEX(K42:N42,$D$4),H42)","v":"Defra 2019 (v1.3)"},null,null,null,0.05,{"$f":"Translate!$A$261","v":"Defra 2019 (v1.3)"},{"$f":"Translate!$A$532","v":"EPA"},{"$f":"Translate!$A$258","v":"Base carbone (v18.1)"},{"$f":"Translate!$A$261","v":"Defra 2019 (v1.3)"},null,3.2490000000000001,{"$f":"3.17966+0.60263","v":3.7822900000000002},null,null,null,null,3,null,null,{"$f":"11.09/3.79","v":2.9261213720316621},null,null,{"$f":"Translate!$A$238","v":"liter"},{"$f":"Translate!$A$523","v":"gallon"}]
[{"$f":"IF(AND(ISBLANK(C43),ISBLANK(G43)),OFFSET(A43,-1,0),OFFSET(A43,-1,0)+1)","v":0},null,null,null,{"$f":"G43","v":0},{"$f":"H43","v":0}]
[{"$f":"IF(AND(ISBLANK(C44),ISBLANK(G44)),OFFSET(A44,-1,0),OFFSET(A44,-1,0)+1)","v":0},null,null,null,{"$f":"G44","v":0},{"$f":"H44","v":0}]
[null,null,{"$f":"Translate!$A$202","v":"Electricity"},null,null,null,null,null,null,0.1]
[null,null,"Electricity transport and distribution losses",0.03,null,null,null,null,null,0.1,null,null,null,null,null,null,null,null,null,null,null,null,null,null,null,null,null,0.03]
[{"$f":"IF(ISBLANK(H47),OFFSET(A47,-1,0),OFFSET(A47,-1,0)+1)","v":0},null,"Electricity - Austria",{"$f":"INDEX(AB47:AC47,MATCH($F$3,$AB$6:$AC$6,0))","v":"kWh"},{"$f":"IF(F47=H47,G47,INDEX(P47:AD47,MATCH($F47,$P$6:$AD$6,0)))","v":0.2249678978253366},{"$f":"IF(ISBLANK(H47),INDEX(K47:N47,$D$4),H47)","v":"CO2 emissions for electricity 2017 including losses&WTT"},null,null,null,0.1,{"$f":"Translate!$A$267","v":"CO2 emissions for electricity 2017 including losses&WTT"},{"$f":"Translate!$A$267","v":"CO2 emissions for electricity 2017 including losses&WTT"},{"$f":"Translate!$A$267","v":"CO2 emissions for electricity 2017 including losses&WTT"},{"$f":"Translate!$A$267","v":"CO2 emissions for electricity 2017 including losses&WTT"},null,null,null,null,null,null,null,null,null,0.2249678978253366,null,null,null,"kWh","kWh"]
[0,null,"Electricity - Belgium","kWh",0.24574832336944308,"CO2 emissions for electricity 2017 including losses&WTT",null,null,null,0.1,{"$f":"Translate!$A$267","v":"CO2 emissions for electricity 2017 including losses&WTT"},{"$f":"Translate!$A$267","v":"CO2 emissions for electricity 2017 including losses&WTT"},{"$f":"Translate!$A$267","v":"CO2 emissions for electricity 2017 including losses&WTT"},{"$f":"Translate!$A$267","v":"CO2 emissions for electricity 2017 including losses&WTT"},null,null,null,null,null,null,null,null,null,0.24574832336944308,null,null,null,"kWh","kWh"]
[0,null,"Electricity - Czech Republic","kWh",0.59581421530985323,"CO2 emissions for electricity 2017 including losses&WTT",null,null,null,0.1,{"$f":"Translate!$A$267","v":"CO2 emissions for electricity 2017 including losses&WTT"},{"$f":"Translate!$A$267","v":"CO2 emissions for electricity 2017 including losses&WTT"},{"$f":"Translate!$A$267","v":"CO2 emissions for electricity 2017 including losses&WTT"},{"$f":"Translate!$A$267","v":"CO2 emissions for electricity 2017 including losses&WTT"},null,null,null,null,null,null,null,null,null,0.59581421530985323,null,null,null,"kWh","kWh"]
[0,null,"Electricity - Denmark","kWh",0.26609976439712502,"CO2 emissions for electricity 2017 including losses&WTT",null,null,null,0.1,{"$f":"Translate!$A$267","v":"CO2 emissions for electricity 2017 including losses&WTT"},{"$f":"Translate!$A$267","v":"CO2 emissions for electricity 2017 including losses&WTT"},{"$f":"Translate!$A$267","v":"CO2 emissions for electricity 2017 including losses&WTT"},{"$f":"Translate!$A$267","v":"CO2 emissions for electricity 2017 including losses&WTT"},null,null,null,null,null,null,null,null,null,0.26609976439712502,null,null,null,"kWh","kWh"]
[0,null,"Electricity - Estonia","kWh",1.0149864918736584,"CO2 emissions for electricity 2017 including losses&WTT",null,null,null,0.1,{"$f":"Translate!$A$267","v":"CO2 emissions for electricity 2017 including losses&WTT"},{"$f":"Translate!$A$267","v":"CO2 emissions for electricity 2017 including losses&WTT"},{"$f":"Translate!$A$267","v":"CO2 emissions for electricity 2017 including losses&WTT"},{"$f":"Translate!$A$267","v":"CO2 emissions for electricity 2017 including losses&WTT"},null,null,null,null,null,null,null,null,null,1.0149864918736584,null,null,null,"kWh","kWh"]
[0,null,"Electricity - Finland","kWh",0.19231410359146206,"CO2 emissions for electricity 2017 including losses&WTT",null,null,null,0.1,{"$f":"Translate!$A$267","v":"CO2 emissions for electricity 2017 including losses&WTT"},{"$f":"Translate!$A$267","v":"CO2 emissions for electricity 2017 including losses&WTT"},{"$f":"Translate!$A$267","v":"CO2 emissions for electricity 2017 including losses&WTT"},{"$f":"Translate!$A$267","v":"CO2 emissions for electricity 2017 including losses&WTT"},null,null,null,null,null,null,null,null,null,0.19231410359146206,null,null,null,"kWh","kWh"]
[0,null,"Electricity - France","kWh",5.7099999999999998E-2,"CO2 emissions for electricity 2017 including losses&WTT",null,null,null,0.1,{"$f":"Translate!$A$267","v":"CO2 emissions for electricity 2017 including losses&WTT"},{"$f":"Translate!$A$267","v":"CO2 emissions for electricity 2017 including losses&WTT"},{"$f":"Translate!$A$267","v":"CO2 emissions for electricity 2017 including losses&WTT"},{"$f":"Translate!$A$267","v":"CO2 emissions for electricity 2017 including losses&WTT"},null,null,null,null,null,null,null,null,null,5.7099999999999998E-2,null,null,null,"kWh","kWh"]
[0,null,"Electricity - Germany","kWh",0.51951288274140772,"CO2 emissions for electricity 2017 including losses&WTT",null,null,null,0.1,{"$f":"Translate!$A$267","v":"CO2 emissions for electricity 2017 including losses&WTT"},{"$f":"Translate!$A$267","v":"CO2 emissions for electricity 2017 including losses&WTT"},{"$f":"Translate!$A$267","v":"CO2 emissions for electricity 2017 including losses&WTT"},{"$f":"Translate!$A$267","v":"CO2 emissions for electricity 2017 including losses&WTT"},null,null,null,null,null,null,null,null,null,0.51951288274140772,null,null,null,"kWh","kWh"]
[0,null,"Electricity - Greece","kWh",0.61877913726341693,"CO2 emissions for electricity 2017 including losses&WTT",null,null,null,0.1,{"$f":"Translate!$A$267","v":"CO2 emissions for electricity 2017 including losses&WTT"},{"$f":"Translate!$A$267","v":"CO2 emissions for electricity 2017 including losses&WTT"},{"$f":"Translate!$A$267","v":"CO2 emissions for electricity 2017 including losses&WTT"},{"$f":"Translate!$A$267","v":"CO2 emissions for electricity 2017 including losses&WTT"},null,null,null,null,null,null,null,null,null,0.61877913726341693,null,null,null,"kWh","kWh"]
[0,null,"Electricity - Hungary","kWh",0.35139777229213076,"CO2 emissions for electricity 2017 including losses&WTT",null,null,null,0.1,{"$f":"Translate!$A$267","v":"CO2 emissions for electricity 2017 including losses&WTT"},{"$f":"Translate!$A$267","v":"CO2 emissions for electricity 2017 including losses&WTT"},{"$f":"Translate!$A$267","v":"CO2 emissions for electricity 2017 including losses&WTT"},{"$f":"Translate!$A$267","v":"CO2 emissions for electricity 2017 including losses&WTT"},null,null,null,null,null,null,null,null,null,0.35139777229213076,null,null,null,"kWh","kWh"]
[0,null,"Electricity - Iceland","kWh",2.6096517490514063E-2,"CO2 emissions for electricity 2017 including losses&WTT",null,null,null,0.1,{"$f":"Translate!$A$267","v":"CO2 emissions for electricity 2017 including losses&WTT"},{"$f":"Translate!$A$267","v":"CO2 emissions for electricity 2017 including losses&WTT"},{"$f":"Translate!$A$267","v":"CO2 emissions for electricity 2017 including losses&WTT"},{"$f":"Translate!$A$267","v":"CO2 emissions for electricity 2017 including losses&WTT"},null,null,null,null,null,null,null,null,null,2.6096517490514063E-2,null,null,null,"kWh","kWh"]
[0,null,"Electricity - Ireland","kWh",0.48193753989531468,"CO2 emissions for electricity 2017 including losses&WTT",null,null,null,0.1,{"$f":"Translate!$A$267","v":"CO2 emissions for electricity 2017 including losses&WTT"},{"$f":"Translate!$A$267","v":"CO2 emissions for electricity 2017 including losses&WTT"},{"$f":"Translate!$A$267","v":"CO2 emissions for electricity 2017 including losses&WTT"},{"$f":"Translate!$A$267","v":"CO2 emissions for electricity 2017 including losses&WTT"},null,null,null,null,null,null,null,null,null,0.48193753989531468,null,null,null,"kWh","kWh"]
[0,null,"Electricity - Italy","kWh",0.43505834626109335,"CO2 emissions for electricity 2017 including losses&WTT",null,null,null,0.1,{"$f":"Translate!$A$267","v":"CO2 emissions for electricity 2017 including losses&WTT"},{"$f":"Translate!$A$267","v":"CO2 emissions for electricity 2017 including losses&WTT"},{"$f":"Translate!$A$267","v":"CO2 emissions for electricity 2017 including losses&WTT"},{"$f":"Translate!$A$267","v":"CO2 emissions for electricity 2017 including losses&WTT"},null,null,null,null,null,null,null,null,null,0.43505834626109335,null,null,null,"kWh","kWh"]
[0,null,"Electricity - Luxembourg","kWh",0.24762349272349271,"CO2 emissions for electricity 2017 including losses&WTT",null,null,null,0.1,{"$f":"Translate!$A$267","v":"CO2 emissions for electricity 2017 including losses&WTT"},{"$f":"Translate!$A$267","v":"CO2 emissions for electricity 2017 including losses&WTT"},{"$f":"Translate!$A$267","v":"CO2 emissions for electricity 2017 including losses&WTT"},{"$f":"Translate!$A$267","v":"CO2 emissions for electricity 2017 including losses&WTT"},null,null,null,null,null,null,null,null,null,0.24762349272349271,null,null,null,"kWh","kWh"]
[0,null,"Electricity - Netherlands","kWh",0.55197198656163871,"CO2 emissions for electricity 2017 including losses&WTT",null,null,null,0.1,{"$f":"Translate!$A$267","v":"CO2 emissions for electricity 2017 including losses&WTT"},{"$f":"Translate!$A$267","v":"CO2 emissions for electricity 2017 including losses&WTT"},{"$f":"Translate!$A$267","v":"CO2 emissions for electricity 2017 including losses&WTT"},{"$f":"Translate!$A$267","v":"CO2 emissions for electricity 2017 including losses&WTT"},null,null,null,null,null,null,null,null,null,0.55197198656163871,null,null,null,"kWh","kWh"]
[0,null,"Electricity - Norway","kWh",3.1051831226671475E-2,"CO2 emissions for electricity 2017 including losses&WTT",null,null,null,0.1,{"$f":"Translate!$A$267","v":"CO2 emissions for electricity 2017 including losses&WTT"},{"$f":"Translate!$A$267","v":"CO2 emissions for electricity 2017 including losses&WTT"},{"$f":"Translate!$A$267","v":"CO2 emissions for electricity 2017 including losses&WTT"},{"$f":"Translate!$A$267","v":"CO2 emissions for electricity 2017 including losses&WTT"},null,null,null,null,null,null,null,null,null,3.1051831226671475E-2,null,null,null,"kWh","kWh"]
[0,null,"Electricity - Poland","kWh",0.83988634245709337,"CO2 emissions for electricity 2017 including losses&WTT",null,null,null,0.1,{"$f":"Translate!$A$267","v":"CO2 emissions for electricity 2017 including losses&WTT"},{"$f":"Translate!$A$267","v":"CO2 emissions for electricity 2017 including losses&WTT"},{"$f":"Translate!$A$267","v":"CO2 emissions for electricity 2017 including losses&WTT"},{"$f":"Translate!$A$267","v":"CO2 emissions for electricity 2017 including losses&WTT"},null,null,null,null,null,null,null,null,null,0.83988634245709337,null,null,null,"kWh","kWh"]
[0,null,"Electricity - Portugal","kWh",0.46716768609538939,"CO2 emissions for electricity 2017 including losses&WTT",null,null,null,0.1,{"$f":"Translate!$A$267","v":"CO2 emissions for electricity 2017 including losses&WTT"},{"$f":"Translate!$A$267","v":"CO2 emissions for electricity 2017 including losses&WTT"},{"$f":"Translate!$A$267","v":"CO2 emissions for electricity 2017 including losses&WTT"},{"$f":"Translate!$A$267","v":"CO2 emissions for electricity 2017 including losses&WTT"},null,null,null,null,null,null,null,null,null,0.46716768609538939,null,null,null,"kWh","kWh"]
[0,null,"Electricity - Slovak Republic","kWh",0.2151254141647978,"CO2 emissions for electricity 2017 including losses&WTT",null,null,null,0.1,{"$f":"Translate!$A$267","v":"CO2 emissions for electricity 2017 including losses&WTT"},{"$f":"Translate!$A$267","v":"CO2 emissions for electricity 2017 including losses&WTT"},{"$f":"Translate!$A$267","v":"CO2 emissions for electricity 2017 including losses&WTT"},{"$f":"Translate!$A$267","v":"CO2 emissions for electricity 2017 including losses&WTT"},null,null,null,null,null,null,null,null,null,0.2151254141647978,null,null,null,"kWh","kWh"]
[0,null,"Electricity - Slovenia","kWh",0.31728324145534731,"CO2 emissions for electricity 2017 including losses&WTT",null,null,null,0.1,{"$f":"Translate!$A$267","v":"CO2 emissions for electricity 2017 including losses&WTT"},{"$f":"Translate!$A$267","v":"CO2 emissions for electricity 2017 including losses&WTT"},{"$f":"Translate!$A$267","v":"CO2 emissions for electricity 2017 including losses&WTT"},{"$f":"Translate!$A$267","v":"CO2 emissions for electricity 2017 including losses&WTT"},null,null,null,null,null,null,null,null,null,0.31728324145534731,null,null,null,"kWh","kWh"]
[0,null,"Electricity - Spain","kWh",0.37721208270522505,"CO2 emissions for electricity 2017 including losses&WTT",null,null,null,0.1,{"$f":"Translate!$A$267","v":"CO2 emissions for electricity 2017 including losses&WTT"},{"$f":"Translate!$A$267","v":"CO2 emissions for electricity 2017 including losses&WTT"},{"$f":"Translate!$A$267","v":"CO2 emissions for electricity 2017 including losses&WTT"},{"$f":"Translate!$A$267","v":"CO2 emissions for electricity 2017 including losses&WTT"},null,null,null,null,null,null,null,null,null,0.37721208270522505,null,null,null,"kWh","kWh"]
[0,null,"Electricity - Sweden","kWh",6.1422380907417022E-2,"CO2 emissions for electricity 2017 including losses&WTT",null,null,null,0.1,{"$f":"Translate!$A$267","v":"CO2 emissions for electricity 2017 including losses&WTT"},{"$f":"Translate!$A$267","v":"CO2 emissions for electricity 2017 including losses&WTT"},{"$f":"Translate!$A$267","v":"CO2 emissions for electricity 2017 including losses&WTT"},{"$f":"Translate!$A$267","v":"CO2 emissions for electricity 2017 including losses&WTT"},null,null,null,null,null,null,null,null,null,6.1422380907417022E-2,null,null,null,"kWh","kWh"]
[0,null,"Electricity - Switzerland","kWh",7.5997198744989697E-2,"CO2 emissions for electricity 2017 including losses&WTT",null,null,null,0.1,{"$f":"Translate!$A$267","v":"CO2 emissions for electricity 2017 including losses&WTT"},{"$f":"Translate!$A$267","v":"CO2 emissions for electricity 2017 including losses&WTT"},{"$f":"Translate!$A$267","v":"CO2 emissions for electricity 2017 including losses&WTT"},{"$f":"Translate!$A$267","v":"CO2 emissions for electricity 2017 including losses&WTT"},null,null,null,null,null,null,null,null,null,7.5997198744989697E-2,null,null,null,"kWh","kWh"]
[0,null,"Electricity - Turkey","kWh",0.58686957439917953,"CO2 emissions for electricity 2017 including losses&WTT",null,null,null,0.1,{"$f":"Translate!$A$267","v":"CO2 emissions for electricity 2017 including losses&WTT"},{"$f":"Translate!$A$267","v":"CO2 emissions for electricity 2017 including losses&WTT"},{"$f":"Translate!$A$267","v":"CO2 emissions for electricity 2017 including losses&WTT"},{"$f":"Translate!$A$267","v":"CO2 emissions for electricity 2017 including losses&WTT"},null,null,null,null,null,null,null,null,null,0.58686957439917953,null,null,null,"kWh","kWh"]
[0,null,"Electricity - United Kingdom","kWh",0.35009338123468409,"CO2 emissions for electricity 2017 including losses&WTT",null,null,null,0.1,{"$f":"Translate!$A$267","v":"CO2 emissions for electricity 2017 including losses&WTT"},{"$f":"Translate!$A$267","v":"CO2 emissions for electricity 2017 including losses&WTT"},{"$f":"Translate!$A$267","v":"CO2 emissions for electricity 2017 including losses&WTT"},{"$f":"Translate!$A$267","v":"CO2 emissions for electricity 2017 including losses&WTT"},null,null,null,null,null,null,null,null,null,0.35009338123468409,null,null,null,"kWh","kWh"]
[0,null,"Electricity - Albania","kWh",1.9006407423773752E-2,"CO2 emissions for electricity 2017 including losses&WTT",null,null,null,0.1,{"$f":"Translate!$A$267","v":"CO2 emissions for electricity 2017 including losses&WTT"},{"$f":"Translate!$A$267","v":"CO2 emissions for electricity 2017 including losses&WTT"},{"$f":"Translate!$A$267","v":"CO2 emissions for electricity 2017 including losses&WTT"},{"$f":"Translate!$A$267","v":"CO2 emissions for electricity 2017 including losses&WTT"},null,null,null,null,null,null,null,null,null,1.9006407423773752E-2,null,null,null,"kWh","kWh"]
[0,null,"Electricity - Armenia","kWh",0.21729018799896987,"CO2 emissions for electricity 2017 including losses&WTT",null,null,null,0.1,{"$f":"Translate!$A$267","v":"CO2 emissions for electricity 2017 including losses&WTT"},{"$f":"Translate!$A$267","v":"CO2 emissions for electricity 2017 including losses&WTT"},{"$f":"Translate!$A$267","v":"CO2 emissions for electricity 2017 including losses&WTT"},{"$f":"Translate!$A$267","v":"CO2 emissions for electricity 2017 including losses&WTT"},null,null,null,null,null,null,null,null,null,0.21729018799896987,null,null,null,"kWh","kWh"]
[0,null,"Electricity - Azerbaijan","kWh",0.6225492370295016,"CO2 emissions for electricity 2017 including losses&WTT",null,null,null,0.1,{"$f":"Translate!$A$267","v":"CO2 emissions for electricity 2017 including losses&WTT"},{"$f":"Translate!$A$267","v":"CO2 emissions for electricity 2017 including losses&WTT"},{"$f":"Translate!$A$267","v":"CO2 emissions for electricity 2017 including losses&WTT"},{"$f":"Translate!$A$267","v":"CO2 emissions for electricity 2017 including losses&WTT"},null,null,null,null,null,null,null,null,null,0.6225492370295016,null,null,null,"kWh","kWh"]
[0,null,"Electricity - Belarus","kWh",0.49229200347674923,"CO2 emissions for electricity 2017 including losses&WTT",null,null,null,0.1,{"$f":"Translate!$A$267","v":"CO2 emissions for electricity 2017 including losses&WTT"},{"$f":"Translate!$A$267","v":"CO2 emissions for electricity 2017 including losses&WTT"},{"$f":"Translate!$A$267","v":"CO2 emissions for electricity 2017 including losses&WTT"},{"$f":"Translate!$A$267","v":"CO2 emissions for electricity 2017 including losses&WTT"},null,null,null,null,null,null,null,null,null,0.49229200347674923,null,null,null,"kWh","kWh"]
[0,null,"Electricity - Bosnia and Herzegovina","kWh",0.98958341647402359,"CO2 emissions for electricity 2017 including losses&WTT",null,null,null,0.1,{"$f":"Translate!$A$267","v":"CO2 emissions for electricity 2017 including losses&WTT"},{"$f":"Translate!$A$267","v":"CO2 emissions for electricity 2017 including losses&WTT"},{"$f":"Translate!$A$267","v":"CO2 emissions for electricity 2017 including losses&WTT"},{"$f":"Translate!$A$267","v":"CO2 emissions for electricity 2017 including losses&WTT"},null,null,null,null,null,null,null,null,null,0.98958341647402359,null,null,null,"kWh","kWh"]
[0,null,"Electricity - Bulgaria","kWh",0.60815858967045511,"CO2 emissions for electricity 2017 including losses&WTT",null,null,null,0.1,{"$f":"Translate!$A$267","v":"CO2 emissions for electricity 2017 including losses&WTT"},{"$f":"Translate!$A$267","v":"CO2 emissions for electricity 2017 including losses&WTT"},{"$f":"Translate!$A$267","v":"CO2 emissions for electricity 2017 including losses&WTT"},{"$f":"Translate!$A$267","v":"CO2 emissions for electricity 2017 including losses&WTT"},null,null,null,null,null,null,null,null,null,0.60815858967045511,null,null,null,"kWh","kWh"]
[0,null,"Electricity - Croatia","kWh",0.281303020694259,"CO2 emissions for electricity 2017 including losses&WTT",null,null,null,0.1,{"$f":"Translate!$A$267","v":"CO2 emissions for electricity 2017 including losses&WTT"},{"$f":"Translate!$A$267","v":"CO2 emissions for electricity 2017 including losses&WTT"},{"$f":"Translate!$A$267","v":"CO2 emissions for electricity 2017 including losses&WTT"},{"$f":"Translate!$A$267","v":"CO2 emissions for electricity 2017 including losses&WTT"},null,null,null,null,null,null,null,null,null,0.281303020694259,null,null,null,"kWh","kWh"]
[{"$f":"IF(ISBLANK(H79),OFFSET(A79,-1,0),OFFSET(A79,-1,0)+1)","v":0},null,"Electricity - Cyprus","kWh",{"$f":"IF(F79=H79,G79,INDEX(P79:AD79,MATCH($F79,$P$6:$AD$6,0)))","v":0.79666494804156673},{"$f":"IF(ISBLANK(H79),INDEX(K79:N79,$D$4),H79)","v":"CO2 emissions for electricity 2017 including losses&WTT"},null,null,null,0.1,{"$f":"Translate!$A$267","v":"CO2 emissions for electricity 2017 including losses&WTT"},{"$f":"Translate!$A$267","v":"CO2 emissions for electricity 2017 including losses&WTT"},{"$f":"Translate!$A$267","v":"CO2 emissions for electricity 2017 including losses&WTT"},{"$f":"Translate!$A$267","v":"CO2 emissions for electricity 2017 including losses&WTT"},null,null,null,null,null,null,null,null,null,0.79666494804156673,null,null,null,"kWh","kWh"]
[0,null,"Electricity - Georgia","kWh",0.13312928627178908,"CO2 emissions for electricity 2017 including losses&WTT",null,null,null,0.1,{"$f":"Translate!$A$267","v":"CO2 emissions for electricity 2017 including losses&WTT"},{"$f":"Translate!$A$267","v":"CO2 emissions for electricity 2017 including losses&WTT"},{"$f":"Translate!$A$267","v":"CO2 emissions for electricity 2017 including losses&WTT"},{"$f":"Translate!$A$267","v":"CO2 emissions for electricity 2017 including losses&WTT"},null,null,null,null,null,null,null,null,null,0.13312928627178908,null,null,null,"kWh","kWh"]
[0,null,"Electricity - Gibraltar","kWh",0.9081999999999999,"CO2 emissions for electricity 2017 including losses&WTT",null,null,null,0.1,{"$f":"Translate!$A$267","v":"CO2 emissions for electricity 2017 including losses&WTT"},{"$f":"Translate!$A$267","v":"CO2 emissions for electricity 2017 including losses&WTT"},{"$f":"Translate!$A$267","v":"CO2 emissions for electricity 2017 including losses&WTT"},{"$f":"Translate!$A$267","v":"CO2 emissions for electricity 2017 including losses&WTT"},null,null,null,null,null,null,null,null,null,0.9081999999999999,null,null,null,"kWh","kWh"]
[0,null,"Electricity - Kazakhstan","kWh",0.73843734776200454,"CO2 emissions for electricity 2017 including losses&WTT",null,null,null,0.1,{"$f":"Translate!$A$267","v":"CO2 emissions for electricity 2017 including losses&WTT"},{"$f":"Translate!$A$267","v":"CO2 emissions for electricity 2017 including losses&WTT"},{"$f":"Translate!$A$267","v":"CO2 emissions for electricity 2017 including losses&WTT"},{"$f":"Translate!$A$267","v":"CO2 emissions for electricity 2017 including losses&WTT"},null,null,null,null,null,null,null,null,null,0.73843734776200454,null,null,null,"kWh","kWh"]
[0,null,"Electricity - Kyrgyzstan","kWh",8.493452588151873E-2,"CO2 emissions for electricity 2017 including losses&WTT",null,null,null,0.1,{"$f":"Translate!$A$267","v":"CO2 emissions for electricity 2017 including losses&WTT"},{"$f":"Translate!$A$267","v":"CO2 emissions for electricity 2017 including losses&WTT"},{"$f":"Translate!$A$267","v":"CO2 emissions for electricity 2017 including losses&WTT"},{"$f":"Translate!$A$267","v":"CO2 emissions for electricity 2017 including losses&WTT"},null,null,null,null,null,null,null,null,null,8.493452588151873E-2,null,null,null,"kWh","kWh"]
[0,null,"Electricity - Latvia","kWh",0.14554221218961624,"CO2 emissions for electricity 2017 including losses&WTT",null,null,null,0.1,{"$f":"Translate!$A$267","v":"CO2 emissions for electricity 2017 including losses&WTT"},{"$f":"Translate!$A$267","v":"CO2 emissions for electricity 2017 including losses&WTT"},{"$f":"Translate!$A$267","v":"CO2 emissions for electricity 2017 including losses&WTT"},{"$f":"Translate!$A$267","v":"CO2 emissions for electricity 2017 including losses&WTT"},null,null,null,null,null,null,null,null,null,0.14554221218961624,null,null,null,"kWh","kWh"]
[0,null,"Electricity - Lithuania","kWh",0.16555298363811355,"CO2 emissions for electricity 2017 including losses&WTT",null,null,null,0.1,{"$f":"Translate!$A$267","v":"CO2 emissions for electricity 2017 including losses&WTT"},{"$f":"Translate!$A$267","v":"CO2 emissions for electricity 2017 including losses&WTT"},{"$f":"Translate!$A$267","v":"CO2 emissions for electricity 2017 including losses&WTT"},{"$f":"Translate!$A$267","v":"CO2 emissions for electricity 2017 including losses&WTT"},null,null,null,null,null,null,null,null,null,0.16555298363811355,null,null,null,"kWh","kWh"]
[0,null,"Electricity - Macedonia","kWh",0.88333178571428572,"CO2 emissions for electricity 2017 including losses&WTT",null,null,null,0.1,{"$f":"Translate!$A$267","v":"CO2 emissions for electricity 2017 including losses&WTT"},{"$f":"Translate!$A$267","v":"CO2 emissions for electricity 2017 including losses&WTT"},{"$f":"Translate!$A$267","v":"CO2 emissions for electricity 2017 including losses&WTT"},{"$f":"Translate!$A$267","v":"CO2 emissions for electricity 2017 including losses&WTT"},null,null,null,null,null,null,null,null,null,0.88333178571428572,null,null,null,"kWh","kWh"]
[0,null,"Electricity - Malta","kWh",0.54269118541033434,"CO2 emissions for electricity 2017 including losses&WTT",null,null,null,0.1,{"$f":"Translate!$A$267","v":"CO2 emissions for electricity 2017 including losses&WTT"},{"$f":"Translate!$A$267","v":"CO2 emissions for electricity 2017 including losses&WTT"},{"$f":"Translate!$A$267","v":"CO2 emissions for electricity 2017 including losses&WTT"},{"$f":"Translate!$A$267","v":"CO2 emissions for electricity 2017 including losses&WTT"},null,null,null,null,null,null,null,null,null,0.54269118541033434,null,null,null,"kWh","kWh"]
[0,null,"Electricity - Republic of Moldova","kWh",0.61504662638469287,"CO2 emissions for electricity 2017 including losses&WTT",null,null,null,0.1,{"$f":"Translate!$A$267","v":"CO2 emissions for electricity 2017 including losses&WTT"},{"$f":"Translate!$A$267","v":"CO2 emissions for electricity 2017 including losses&WTT"},{"$f":"Translate!$A$267","v":"CO2 emissions for electricity 2017 including losses&WTT"},{"$f":"Translate!$A$267","v":"CO2 emissions for electricity 2017 including losses&WTT"},null,null,null,null,null,null,null,null,null,0.61504662638469287,null,null,null,"kWh","kWh"]
[0,null,"Electricity - Romania","kWh",0.43166531354983201,"CO2 emissions for electricity 2017 including losses&WTT",null,null,null,0.1,{"$f":"Translate!$A$267","v":"CO2 emissions for electricity 2017 including losses&WTT"},{"$f":"Translate!$A$267","v":"CO2 emissions for electricity 2017 including losses&WTT"},{"$f":"Translate!$A$267","v":"CO2 emissions for electricity 2017 including losses&WTT"},{"$f":"Translate!$A$267","v":"CO2 emissions for electricity 2017 including losses&WTT"},null,null,null,null,null,null,null,null,null,0.43166531354983201,null,null,null,"kWh","kWh"]
[0,null,"Electricity - Russian Federation","kWh",0.45012428672864296,"CO2 emissions for electricity 2017 including losses&WTT",null,null,null,0.1,{"$f":"Translate!$A$267","v":"CO2 emissions for electricity 2017 including losses&WTT"},{"$f":"Translate!$A$267","v":"CO2 emissions for electricity 2017 including losses&WTT"},{"$f":"Translate!$A$267","v":"CO2 emissions for electricity 2017 including losses&WTT"},{"$f":"Translate!$A$267","v":"CO2 emissions for electricity 2017 including losses&WTT"},null,null,null,null,null,null,null,null,null,0.45012428672864296,null,null,null,"kWh","kWh"]
[0,null,"Electricity - Serbia","kWh",0.90694734845249736,"CO2 emissions for electricity 2017 including losses&WTT",null,null,null,0.1,{"$f":"Translate!$A$267","v":"CO2 emissions for electricity 2017 including losses&WTT"},{"$f":"Translate!$A$267","v":"CO2 emissions for electricity 2017 including losses&WTT"},{"$f":"Translate!$A$267","v":"CO2 emissions for electricity 2017 including losses&WTT"},{"$f":"Translate!$A$267","v":"CO2 emissions for electricity 2017 including losses&WTT"},null,null,null,null,null,null,null,null,null,0.90694734845249736,null,null,null,"kWh","kWh"]
[0,null,"Electricity - Tajikistan","kWh",7.2782676382908251E-2,"CO2 emissions for electricity 2017 including losses&WTT",null,null,null,0.1,{"$f":"Translate!$A$267","v":"CO2 emissions for electricity 2017 including losses&WTT"},{"$f":"Translate!$A$267","v":"CO2 emissions for electricity 2017 including losses&WTT"},{"$f":"Translate!$A$267","v":"CO2 emissions for electricity 2017 including losses&WTT"},{"$f":"Translate!$A$267","v":"CO2 emissions for electricity 2017 including losses&WTT"},null,null,null,null,null,null,null,null,null,7.2782676382908251E-2,null,null,null,"kWh","kWh"]
[0,null,"Electricity - Turkmenistan","kWh",1.1052,"CO2 emissions for electricity 2017 including losses&WTT",null,null,null,0.1,{"$f":"Translate!$A$267","v":"CO2 emissions for electricity 2017 including losses&WTT"},{"$f":"Translate!$A$267","v":"CO2 emissions for electricity 2017 including losses&WTT"},{"$f":"Translate!$A$267","v":"CO2 emissions for electricity 2017 including losses&WTT"},{"$f":"Translate!$A$267","v":"CO2 emissions for electricity 2017 including losses&WTT"},null,null,null,null,null,null,null,null,null,1.1052,null,null,null,"kWh","kWh"]
[0,null,"Electricity - Ukraine","kWh",0.4482754498656974,"CO2 emissions for electricity 2017 including losses&WTT",null,null,null,0.1,{"$f":"Translate!$A$267","v":"CO2 emissions for electricity 2017 including losses&WTT"},{"$f":"Translate!$A$267","v":"CO2 emissions for electricity 2017 including losses&WTT"},{"$f":"Translate!$A$267","v":"CO2 emissions for electricity 2017 including losses&WTT"},{"$f":"Translate!$A$267","v":"CO2 emissions for electricity 2017 including losses&WTT"},null,null,null,null,null,null,null,null,null,0.4482754498656974,null,null,null,"kWh","kWh"]
[0,null,"Electricity - Uzbekistan","kWh",0.70535020715996632,"CO2 emissions for electricity 2017 including losses&WTT",null,null,null,0.1,{"$f":"Translate!$A$267","v":"CO2 emissions for electricity 2017 including losses&WTT"},{"$f":"Translate!$A$267","v":"CO2 emissions for electricity 2017 including losses&WTT"},{"$f":"Translate!$A$267","v":"CO2 emissions for electricity 2017 including losses&WTT"},{"$f":"Translate!$A$267","v":"CO2 emissions for electricity 2017 including losses&WTT"},null,null,null,null,null,null,null,null,null,0.70535020715996632,null,null,null,"kWh","kWh"]
[0,null,"Electricity - Canada","kWh",0.19373306813316288,"CO2 emissions for electricity 2017 including losses&WTT",null,null,null,0.1,{"$f":"Translate!$A$267","v":"CO2 emissions for electricity 2017 including losses&WTT"},{"$f":"Translate!$A$267","v":"CO2 emissions for electricity 2017 including losses&WTT"},{"$f":"Translate!$A$267","v":"CO2 emissions for electricity 2017 including losses&WTT"},{"$f":"Translate!$A$267","v":"CO2 emissions for electricity 2017 including losses&WTT"},null,null,null,null,null,null,null,null,null,0.19373306813316288,null,null,null,"kWh","kWh"]
[0,null,"Electricity - Chile","kWh",0.53818881221904635,"CO2 emissions for electricity 2017 including losses&WTT",null,null,null,0.1,{"$f":"Translate!$A$267","v":"CO2 emissions for electricity 2017 including losses&WTT"},{"$f":"Translate!$A$267","v":"CO2 emissions for electricity 2017 including losses&WTT"},{"$f":"Translate!$A$267","v":"CO2 emissions for electricity 2017 including losses&WTT"},{"$f":"Translate!$A$267","v":"CO2 emissions for electricity 2017 including losses&WTT"},null,null,null,null,null,null,null,null,null,0.53818881221904635,null,null,null,"kWh","kWh"]
[0,null,"Electricity - Mexico","kWh",0.62616260657885758,"CO2 emissions for electricity 2017 including losses&WTT",null,null,null,0.1,{"$f":"Translate!$A$267","v":"CO2 emissions for electricity 2017 including losses&WTT"},{"$f":"Translate!$A$267","v":"CO2 emissions for electricity 2017 including losses&WTT"},{"$f":"Translate!$A$267","v":"CO2 emissions for electricity 2017 including losses&WTT"},{"$f":"Translate!$A$267","v":"CO2 emissions for electricity 2017 including losses&WTT"},null,null,null,null,null,null,null,null,null,0.62616260657885758,null,null,null,"kWh","kWh"]
[0,null,"Electricity - United States","kWh",0.51451807772666402,"CO2 emissions for electricity 2017 including losses&WTT",null,null,null,0.1,{"$f":"Translate!$A$267","v":"CO2 emissions for electricity 2017 including losses&WTT"},{"$f":"Translate!$A$267","v":"CO2 emissions for electricity 2017 including losses&WTT"},{"$f":"Translate!$A$267","v":"CO2 emissions for electricity 2017 including losses&WTT"},{"$f":"Translate!$A$267","v":"CO2 emissions for electricity 2017 including losses&WTT"},null,null,null,null,null,null,null,null,null,0.51451807772666402,null,null,null,"kWh","kWh"]
[0,null,"Electricity - Australia","kWh",0.8669238595756884,"CO2 emissions for electricity 2017 including losses&WTT",null,null,null,0.1,{"$f":"Translate!$A$267","v":"CO2 emissions for electricity 2017 including losses&WTT"},{"$f":"Translate!$A$267","v":"CO2 emissions for electricity 2017 including losses&WTT"},{"$f":"Translate!$A$267","v":"CO2 emissions for electricity 2017 including losses&WTT"},{"$f":"Translate!$A$267","v":"CO2 emissions for electricity 2017 including losses&WTT"},null,null,null,null,null,null,null,null,null,0.8669238595756884,null,null,null,"kWh","kWh"]
[0,null,"Electricity - Israel","kWh",0.66289694066703253,"CO2 emissions for electricity 2017 including losses&WTT",null,null,null,0.1,{"$f":"Translate!$A$267","v":"CO2 emissions for electricity 2017 including losses&WTT"},{"$f":"Translate!$A$267","v":"CO2 emissions for electricity 2017 including losses&WTT"},{"$f":"Translate!$A$267","v":"CO2 emissions for electricity 2017 including losses&WTT"},{"$f":"Translate!$A$267","v":"CO2 emissions for electricity 2017 including losses&WTT"},null,null,null,null,null,null,null,null,null,0.66289694066703253,null,null,null,"kWh","kWh"]
[0,null,"Electricity - Japan","kWh",0.62746572943425882,"CO2 emissions for electricity 2017 including losses&WTT",null,null,null,0.1,{"$f":"Translate!$A$267","v":"CO2 emissions for electricity 2017 including losses&WTT"},{"$f":"Translate!$A$267","v":"CO2 emissions for electricity 2017 including losses&WTT"},{"$f":"Translate!$A$267","v":"CO2 emissions for electricity 2017 including losses&WTT"},{"$f":"Translate!$A$267","v":"CO2 emissions for electricity 2017 including losses&WTT"},null,null,null,null,null,null,null,null,null,0.62746572943425882,null,null,null,"kWh","kWh"]
[0,null,"Electricity - Korea","kWh",0.62679800209933312,"CO2 emissions for electricity 2017 including losses&WTT",null,null,null,0.1,{"$f":"Translate!$A$267","v":"CO2 emissions for electricity 2017 including losses&WTT"},{"$f":"Translate!$A$267","v":"CO2 emissions for electricity 2017 including losses&WTT"},{"$f":"Translate!$A$267","v":"CO2 emissions for electricity 2017 including losses&WTT"},{"$f":"Translate!$A$267","v":"CO2 emissions for electricity 2017 including losses&WTT"},null,null,null,null,null,null,null,null,null,0.62679800209933312,null,null,null,"kWh","kWh"]
[0,null,"Electricity - New Zealand","kWh",0.16337523775020377,"CO2 emissions for electricity 2017 including losses&WTT",null,null,null,0.1,{"$f":"Translate!$A$267","v":"CO2 emissions for electricity 2017 including losses&WTT"},{"$f":"Translate!$A$267","v":"CO2 emissions for electricity 2017 including losses&WTT"},{"$f":"Translate!$A$267","v":"CO2 emissions for electricity 2017 including losses&WTT"},{"$f":"Translate!$A$267","v":"CO2 emissions for electricity 2017 including losses&WTT"},null,null,null,null,null,null,null,null,null,0.16337523775020377,null,null,null,"kWh","kWh"]
[0,null,"Electricity - Algeria","kWh",0.66230941606703586,"CO2 emissions for electricity 2017 including losses&WTT",null,null,null,0.1,{"$f":"Translate!$A$267","v":"CO2 emissions for electricity 2017 including losses&WTT"},{"$f":"Translate!$A$267","v":"CO2 emissions for electricity 2017 including losses&WTT"},{"$f":"Translate!$A$267","v":"CO2 emissions for electricity 2017 including losses&WTT"},{"$f":"Translate!$A$267","v":"CO2 emissions for electricity 2017 including losses&WTT"},null,null,null,null,null,null,null,null,null,0.66230941606703586,null,null,null,"kWh","kWh"]
[0,null,"Electricity - Angola","kWh",0.60667772180240698,"CO2 emissions for electricity 2017 including losses&WTT",null,null,null,0.1,{"$f":"Translate!$A$267","v":"CO2 emissions for electricity 2017 including losses&WTT"},{"$f":"Translate!$A$267","v":"CO2 emissions for electricity 2017 including losses&WTT"},{"$f":"Translate!$A$267","v":"CO2 emissions for electricity 2017 including losses&WTT"},{"$f":"Translate!$A$267","v":"CO2 emissions for electricity 2017 including losses&WTT"},null,null,null,null,null,null,null,null,null,0.60667772180240698,null,null,null,"kWh","kWh"]
[0,null,"Electricity - Benin","kWh",0.85004380664652557,"CO2 emissions for electricity 2017 including losses&WTT",null,null,null,0.1,{"$f":"Translate!$A$267","v":"CO2 emissions for electricity 2017 including losses&WTT"},{"$f":"Translate!$A$267","v":"CO2 emissions for electricity 2017 including losses&WTT"},{"$f":"Translate!$A$267","v":"CO2 emissions for electricity 2017 including losses&WTT"},{"$f":"Translate!$A$267","v":"CO2 emissions for electricity 2017 including losses&WTT"},null,null,null,null,null,null,null,null,null,0.85004380664652557,null,null,null,"kWh","kWh"]
[0,null,"Electricity - Botswana","kWh",1.7161827266710785,"CO2 emissions for electricity 2017 including losses&WTT",null,null,null,0.1,{"$f":"Translate!$A$267","v":"CO2 emissions for electricity 2017 including losses&WTT"},{"$f":"Translate!$A$267","v":"CO2 emissions for electricity 2017 including losses&WTT"},{"$f":"Translate!$A$267","v":"CO2 emissions for electricity 2017 including losses&WTT"},{"$f":"Translate!$A$267","v":"CO2 emissions for electricity 2017 including losses&WTT"},null,null,null,null,null,null,null,null,null,1.7161827266710785,null,null,null,"kWh","kWh"]
[0,null,"Electricity - Cameroon","kWh",0.38957327964860911,"CO2 emissions for electricity 2017 including losses&WTT",null,null,null,0.1,{"$f":"Translate!$A$267","v":"CO2 emissions for electricity 2017 including losses&WTT"},{"$f":"Translate!$A$267","v":"CO2 emissions for electricity 2017 including losses&WTT"},{"$f":"Translate!$A$267","v":"CO2 emissions for electricity 2017 including losses&WTT"},{"$f":"Translate!$A$267","v":"CO2 emissions for electricity 2017 including losses&WTT"},null,null,null,null,null,null,null,null,null,0.38957327964860911,null,null,null,"kWh","kWh"]
[0,null,"Electricity - Congo","kWh",0.51740845350571851,"CO2 emissions for electricity 2017 including losses&WTT",null,null,null,0.1,{"$f":"Translate!$A$267","v":"CO2 emissions for electricity 2017 including losses&WTT"},{"$f":"Translate!$A$267","v":"CO2 emissions for electricity 2017 including losses&WTT"},{"$f":"Translate!$A$267","v":"CO2 emissions for electricity 2017 including losses&WTT"},{"$f":"Translate!$A$267","v":"CO2 emissions for electricity 2017 including losses&WTT"},null,null,null,null,null,null,null,null,null,0.51740845350571851,null,null,null,"kWh","kWh"]
[{"$f":"IF(ISBLANK(H111),OFFSET(A111,-1,0),OFFSET(A111,-1,0)+1)","v":0},null,"Electricity - Democratic Republic of the Congo",{"$f":"INDEX(AB111:AC111,MATCH($F$3,$AB$6:$AC$6,0))","v":"kWh"},{"$f":"IF(F111=H111,G111,INDEX(P111:AD111,MATCH($F111,$P$6:$AD$6,0)))","v":2.0432176656151411E-2},{"$f":"IF(ISBLANK(H111),INDEX(K111:N111,$D$4),H111)","v":"CO2 emissions for electricity 2017 including losses&WTT"},null,null,null,0.1,{"$f":"Translate!$A$267","v":"CO2 emissions for electricity 2017 including losses&WTT"},{"$f":"Translate!$A$267","v":"CO2 emissions for electricity 2017 including losses&WTT"},{"$f":"Translate!$A$267","v":"CO2 emissions for electricity 2017 including losses&WTT"},{"$f":"Translate!$A$267","v":"CO2 emissions for electricity 2017 including losses&WTT"},null,null,null,null,null,null,null,null,null,2.0432176656151411E-2,null,null,null,"kWh","kWh"]
[0,null,"Electricity - Côte d'Ivoire","kWh",0.51183922371757362,"CO2 emissions for electricity 2017 including losses&WTT",null,null,null,0.1,{"$f":"Translate!$A$267","v":"CO2 emissions for electricity 2017 including losses&WTT"},{"$f":"Translate!$A$267","v":"CO2 emissions for electricity 2017 including losses&WTT"},{"$f":"Translate!$A$267","v":"CO2 emissions for electricity 2017 including losses&WTT"},{"$f":"Translate!$A$267","v":"CO2 emissions for electricity 2017 including losses&WTT"},null,null,null,null,null,null,null,null,null,0.51183922371757362,null,null,null,"kWh","kWh"]
[0,null,"Electricity - Egypt","kWh",0.58352217604353795,"CO2 emissions for electricity 2017 including losses&WTT",null,null,null,0.1,{"$f":"Translate!$A$267","v":"CO2 emissions for electricity 2017 including losses&WTT"},{"$f":"Translate!$A$267","v":"CO2 emissions for electricity 2017 including losses&WTT"},{"$f":"Translate!$A$267","v":"CO2 emissions for electricity 2017 including losses&WTT"},{"$f":"Translate!$A$267","v":"CO2 emissions for electricity 2017 including losses&WTT"},null,null,null,null,null,null,null,null,null,0.58352217604353795,null,null,null,"kWh","kWh"]
[0,null,"Electricity - Eritrea","kWh",1.0978217494089835,"CO2 emissions for electricity 2017 including losses&WTT",null,null,null,0.1,{"$f":"Translate!$A$267","v":"CO2 emissions for electricity 2017 including losses&WTT"},{"$f":"Translate!$A$267","v":"CO2 emissions for electricity 2017 including losses&WTT"},{"$f":"Translate!$A$267","v":"CO2 emissions for electricity 2017 including losses&WTT"},{"$f":"Translate!$A$267","v":"CO2 emissions for electricity 2017 including losses&WTT"},null,null,null,null,null,null,null,null,null,1.0978217494089835,null,null,null,"kWh","kWh"]
[0,null,"Electricity - Ethiopia","kWh",1.9429409654974535E-2,"CO2 emissions for electricity 2017 including losses&WTT",null,null,null,0.1,{"$f":"Translate!$A$267","v":"CO2 emissions for electricity 2017 including losses&WTT"},{"$f":"Translate!$A$267","v":"CO2 emissions for electricity 2017 including losses&WTT"},{"$f":"Translate!$A$267","v":"CO2 emissions for electricity 2017 including losses&WTT"},{"$f":"Translate!$A$267","v":"CO2 emissions for electricity 2017 including losses&WTT"},null,null,null,null,null,null,null,null,null,1.9429409654974535E-2,null,null,null,"kWh","kWh"]
[0,null,"Electricity - Gabon","kWh",0.56154971528690312,"CO2 emissions for electricity 2017 including losses&WTT",null,null,null,0.1,{"$f":"Translate!$A$267","v":"CO2 emissions for electricity 2017 including losses&WTT"},{"$f":"Translate!$A$267","v":"CO2 emissions for electricity 2017 including losses&WTT"},{"$f":"Translate!$A$267","v":"CO2 emissions for electricity 2017 including losses&WTT"},{"$f":"Translate!$A$267","v":"CO2 emissions for electricity 2017 including losses&WTT"},null,null,null,null,null,null,null,null,null,0.56154971528690312,null,null,null,"kWh","kWh"]
[0,null,"Electricity - Ghana","kWh",0.36865109468296842,"CO2 emissions for electricity 2017 including losses&WTT",null,null,null,0.1,{"$f":"Translate!$A$267","v":"CO2 emissions for electricity 2017 including losses&WTT"},{"$f":"Translate!$A$267","v":"CO2 emissions for electricity 2017 including losses&WTT"},{"$f":"Translate!$A$267","v":"CO2 emissions for electricity 2017 including losses&WTT"},{"$f":"Translate!$A$267","v":"CO2 emissions for electricity 2017 including losses&WTT"},null,null,null,null,null,null,null,null,null,0.36865109468296842,null,null,null,"kWh","kWh"]
[0,null,"Electricity - Kenya","kWh",0.28040096861681518,"CO2 emissions for electricity 2017 including losses&WTT",null,null,null,0.1,{"$f":"Translate!$A$267","v":"CO2 emissions for electricity 2017 including losses&WTT"},{"$f":"Translate!$A$267","v":"CO2 emissions for electricity 2017 including losses&WTT"},{"$f":"Translate!$A$267","v":"CO2 emissions for electricity 2017 including losses&WTT"},{"$f":"Translate!$A$267","v":"CO2 emissions for electricity 2017 including losses&WTT"},null,null,null,null,null,null,null,null,null,0.28040096861681518,null,null,null,"kWh","kWh"]
[0,null,"Electricity - Libya","kWh",0.78766101856129567,"CO2 emissions for electricity 2017 including losses&WTT",null,null,null,0.1,{"$f":"Translate!$A$267","v":"CO2 emissions for electricity 2017 including losses&WTT"},{"$f":"Translate!$A$267","v":"CO2 emissions for electricity 2017 including losses&WTT"},{"$f":"Translate!$A$267","v":"CO2 emissions for electricity 2017 including losses&WTT"},{"$f":"Translate!$A$267","v":"CO2 emissions for electricity 2017 including losses&WTT"},null,null,null,null,null,null,null,null,null,0.78766101856129567,null,null,null,"kWh","kWh"]
[0,null,"Electricity - Morocco","kWh",0.87467820633427407,"CO2 emissions for electricity 2017 including losses&WTT",null,null,null,0.1,{"$f":"Translate!$A$267","v":"CO2 emissions for electricity 2017 including losses&WTT"},{"$f":"Translate!$A$267","v":"CO2 emissions for electricity 2017 including losses&WTT"},{"$f":"Translate!$A$267","v":"CO2 emissions for electricity 2017 including losses&WTT"},{"$f":"Translate!$A$267","v":"CO2 emissions for electricity 2017 including losses&WTT"},null,null,null,null,null,null,null,null,null,0.87467820633427407,null,null,null,"kWh","kWh"]
[0,null,"Electricity - Mozambique","kWh",0.10730066497969754,"CO2 emissions for electricity 2017 including losses&WTT",null,null,null,0.1,{"$f":"Translate!$A$267","v":"CO2 emissions for electricity 2017 including losses&WTT"},{"$f":"Translate!$A$267","v":"CO2 emissions for electricity 2017 including losses&WTT"},{"$f":"Translate!$A$267","v":"CO2 emissions for electricity 2017 including losses&WTT"},{"$f":"Translate!$A$267","v":"CO2 emissions for electricity 2017 including losses&WTT"},null,null,null,null,null,null,null,null,null,0.10730066497969754,null,null,null,"kWh","kWh"]
[0,null,"Electricity - Namibia","kWh",8.1505244122965656E-2,"CO2 emissions for electricity 2017 including losses&WTT",null,null,null,0.1,{"$f":"Translate!$A$267","v":"CO2 emissions for electricity 2017 including losses&WTT"},{"$f":"Translate!$A$267","v":"CO2 emissions for electricity 2017 including losses&WTT"},{"$f":"Translate!$A$267","v":"CO2 emissions for electricity 2017 including losses&WTT"},{"$f":"Translate!$A$267","v":"CO2 emissions for electricity 2017 including losses&WTT"},null,null,null,null,null,null,null,null,null,8.1505244122965656E-2,null,null,null,"kWh","kWh"]
[{"$f":"IF(ISBLANK(H123),OFFSET(A123,-1,0),OFFSET(A123,-1,0)+1)","v":0},null,"Electricity - Niger",{"$f":"INDEX(AB123:AC123,MATCH($F$3,$AB$6:$AC$6,0))","v":"kWh"},{"$f":"IF(F123=H123,G123,INDEX(P123:AD123,MATCH($F123,$P$6:$AD$6,0)))","v":1.2268891304347826},{"$f":"IF(ISBLANK(H123),INDEX(K123:N123,$D$4),H123)","v":"CO2 emissions for electricity 2017 including losses&WTT"},null,null,null,0.1,{"$f":"Translate!$A$267","v":"CO2 emissions for electricity 2017 including losses&WTT"},{"$f":"Translate!$A$267","v":"CO2 emissions for electricity 2017 including losses&WTT"},{"$f":"Translate!$A$267","v":"CO2 emissions for electricity 2017 including losses&WTT"},{"$f":"Translate!$A$267","v":"CO2 emissions for electricity 2017 including losses&WTT"},null,null,null,null,null,null,null,null,null,1.2268891304347826,null,null,null,"kWh","kWh"]
[0,null,"Electricity - Nigeria","kWh",0.55807442401314766,"CO2 emissions for electricity 2017 including losses&WTT",null,null,null,0.1,{"$f":"Translate!$A$267","v":"CO2 emissions for electricity 2017 including losses&WTT"},{"$f":"Translate!$A$267","v":"CO2 emissions for electricity 2017 including losses&WTT"},{"$f":"Translate!$A$267","v":"CO2 emissions for electricity 2017 including losses&WTT"},{"$f":"Translate!$A$267","v":"CO2 emissions for electricity 2017 including losses&WTT"},null,null,null,null,null,null,null,null,null,0.55807442401314766,null,null,null,"kWh","kWh"]
[0,null,"Electricity - Senegal","kWh",0.85751530979065338,"CO2 emissions for electricity 2017 including losses&WTT",null,null,null,0.1,{"$f":"Translate!$A$267","v":"CO2 emissions for electricity 2017 including losses&WTT"},{"$f":"Translate!$A$267","v":"CO2 emissions for electricity 2017 including losses&WTT"},{"$f":"Translate!$A$267","v":"CO2 emissions for electricity 2017 including losses&WTT"},{"$f":"Translate!$A$267","v":"CO2 emissions for electricity 2017 including losses&WTT"},null,null,null,null,null,null,null,null,null,0.85751530979065338,null,null,null,"kWh","kWh"]
[0,null,"Electricity - South Africa","kWh",1.0579473008195726,"CO2 emissions for electricity 2017 including losses&WTT",null,null,null,0.1,{"$f":"Translate!$A$267","v":"CO2 emissions for electricity 2017 including losses&WTT"},{"$f":"Translate!$A$267","v":"CO2 emissions for electricity 2017 including losses&WTT"},{"$f":"Translate!$A$267","v":"CO2 emissions for electricity 2017 including losses&WTT"},{"$f":"Translate!$A$267","v":"CO2 emissions for electricity 2017 including losses&WTT"},null,null,null,null,null,null,null,null,null,1.0579473008195726,null,null,null,"kWh","kWh"]
[{"$f":"IF(ISBLANK(H127),OFFSET(A127,-1,0),OFFSET(A127,-1,0)+1)","v":0},null,"Electricity - Sudan",{"$f":"INDEX(AB127:AC127,MATCH($F$3,$AB$6:$AC$6,0))","v":"kWh"},{"$f":"IF(F127=H127,G127,INDEX(P127:AD127,MATCH($F127,$P$6:$AD$6,0)))","v":0.46854711105391839},{"$f":"IF(ISBLANK(H127),INDEX(K127:N127,$D$4),H127)","v":"CO2 emissions for electricity 2017 including losses&WTT"},null,null,null,0.1,{"$f":"Translate!$A$267","v":"CO2 emissions for electricity 2017 including losses&WTT"},{"$f":"Translate!$A$267","v":"CO2 emissions for electricity 2017 including losses&WTT"},{"$f":"Translate!$A$267","v":"CO2 emissions for electricity 2017 including losses&WTT"},{"$f":"Translate!$A$267","v":"CO2 emissions for electricity 2017 including losses&WTT"},null,null,null,null,null,null,null,null,null,0.46854711105391839,null,null,null,"kWh","kWh"]
[0,null,"Electricity - Sudan","kWh",0.46854711105391839,"CO2 emissions for electricity 2017 including losses&WTT",null,null,null,0.1,{"$f":"Translate!$A$267","v":"CO2 emissions for electricity 2017 including losses&WTT"},{"$f":"Translate!$A$267","v":"CO2 emissions for electricity 2017 including losses&WTT"},{"$f":"Translate!$A$267","v":"CO2 emissions for electricity 2017 including losses&WTT"},{"$f":"Translate!$A$267","v":"CO2 emissions for electricity 2017 including losses&WTT"},null,null,null,null,null,null,null,null,null,0.46854711105391839,null,null,null,"kWh","kWh"]
[0,null,"Electricity - United Rep. of Tanzania","kWh",0.42290925043870642,"CO2 emissions for electricity 2017 including losses&WTT",null,null,null,0.1,{"$f":"Translate!$A$267","v":"CO2 emissions for electricity 2017 including losses&WTT"},{"$f":"Translate!$A$267","v":"CO2 emissions for electricity 2017 including losses&WTT"},{"$f":"Translate!$A$267","v":"CO2 emissions for electricity 2017 including losses&WTT"},{"$f":"Translate!$A$267","v":"CO2 emissions for electricity 2017 including losses&WTT"},null,null,null,null,null,null,null,null,null,0.42290925043870642,null,null,null,"kWh","kWh"]
[0,null,"Electricity - Togo","kWh",0.13366120689655173,"CO2 emissions for electricity 2017 including losses&WTT",null,null,null,0.1,{"$f":"Translate!$A$267","v":"CO2 emissions for electricity 2017 including losses&WTT"},{"$f":"Translate!$A$267","v":"CO2 emissions for electricity 2017 including losses&WTT"},{"$f":"Translate!$A$267","v":"CO2 emissions for electricity 2017 including losses&WTT"},{"$f":"Translate!$A$267","v":"CO2 emissions for electricity 2017 including losses&WTT"},null,null,null,null,null,null,null,null,null,0.13366120689655173,null,null,null,"kWh","kWh"]
[0,null,"Electricity - Tunisia","kWh",0.58705542565210989,"CO2 emissions for electricity 2017 including losses&WTT",null,null,null,0.1,{"$f":"Translate!$A$267","v":"CO2 emissions for electricity 2017 including losses&WTT"},{"$f":"Translate!$A$267","v":"CO2 emissions for electricity 2017 including losses&WTT"},{"$f":"Translate!$A$267","v":"CO2 emissions for electricity 2017 including losses&WTT"},{"$f":"Translate!$A$267","v":"CO2 emissions for electricity 2017 including losses&WTT"},null,null,null,null,null,null,null,null,null,0.58705542565210989,null,null,null,"kWh","kWh"]
[0,null,"Electricity - Zambia","kWh",0.17427166020444129,"CO2 emissions for electricity 2017 including losses&WTT",null,null,null,0.1,{"$f":"Translate!$A$267","v":"CO2 emissions for electricity 2017 including losses&WTT"},{"$f":"Translate!$A$267","v":"CO2 emissions for electricity 2017 including losses&WTT"},{"$f":"Translate!$A$267","v":"CO2 emissions for electricity 2017 including losses&WTT"},{"$f":"Translate!$A$267","v":"CO2 emissions for electricity 2017 including losses&WTT"},null,null,null,null,null,null,null,null,null,0.17427166020444129,null,null,null,"kWh","kWh"]
[0,null,"Electricity - Zimbabwe","kWh",0.88231018027571573,"CO2 emissions for electricity 2017 including losses&WTT",null,null,null,0.1,{"$f":"Translate!$A$267","v":"CO2 emissions for electricity 2017 including losses&WTT"},{"$f":"Translate!$A$267","v":"CO2 emissions for electricity 2017 including losses&WTT"},{"$f":"Translate!$A$267","v":"CO2 emissions for electricity 2017 including losses&WTT"},{"$f":"Translate!$A$267","v":"CO2 emissions for electricity 2017 including losses&WTT"},null,null,null,null,null,null,null,null,null,0.88231018027571573,null,null,null,"kWh","kWh"]
[0,null,"Electricity - Bahrain","kWh",0.81910273738237815,"CO2 emissions for electricity 2017 including losses&WTT",null,null,null,0.1,{"$f":"Translate!$A$267","v":"CO2 emissions for electricity 2017 including losses&WTT"},{"$f":"Translate!$A$267","v":"CO2 emissions for electricity 2017 including losses&WTT"},{"$f":"Translate!$A$267","v":"CO2 emissions for electricity 2017 including losses&WTT"},{"$f":"Translate!$A$267","v":"CO2 emissions for electricity 2017 including losses&WTT"},null,null,null,null,null,null,null,null,null,0.81910273738237815,null,null,null,"kWh","kWh"]
[0,null,"Electricity - Iran","kWh",0.67787678525041561,"CO2 emissions for electricity 2017 including losses&WTT",null,null,null,0.1,{"$f":"Translate!$A$267","v":"CO2 emissions for electricity 2017 including losses&WTT"},{"$f":"Translate!$A$267","v":"CO2 emissions for electricity 2017 including losses&WTT"},{"$f":"Translate!$A$267","v":"CO2 emissions for electricity 2017 including losses&WTT"},{"$f":"Translate!$A$267","v":"CO2 emissions for electricity 2017 including losses&WTT"},null,null,null,null,null,null,null,null,null,0.67787678525041561,null,null,null,"kWh","kWh"]
[0,null,"Electricity - Iraq","kWh",1.5127505574250855,"CO2 emissions for electricity 2017 including losses&WTT",null,null,null,0.1,{"$f":"Translate!$A$267","v":"CO2 emissions for electricity 2017 including losses&WTT"},{"$f":"Translate!$A$267","v":"CO2 emissions for electricity 2017 including losses&WTT"},{"$f":"Translate!$A$267","v":"CO2 emissions for electricity 2017 including losses&WTT"},{"$f":"Translate!$A$267","v":"CO2 emissions for electricity 2017 including losses&WTT"},null,null,null,null,null,null,null,null,null,1.5127505574250855,null,null,null,"kWh","kWh"]
[0,null,"Electricity - Jordan","kWh",0.63755419075144504,"CO2 emissions for electricity 2017 including losses&WTT",null,null,null,0.1,{"$f":"Translate!$A$267","v":"CO2 emissions for electricity 2017 including losses&WTT"},{"$f":"Translate!$A$267","v":"CO2 emissions for electricity 2017 including losses&WTT"},{"$f":"Translate!$A$267","v":"CO2 emissions for electricity 2017 including losses&WTT"},{"$f":"Translate!$A$267","v":"CO2 emissions for electricity 2017 including losses&WTT"},null,null,null,null,null,null,null,null,null,0.63755419075144504,null,null,null,"kWh","kWh"]
[0,null,"Electricity - Kuwait","kWh",0.78204828268395887,"CO2 emissions for electricity 2017 including losses&WTT",null,null,null,0.1,{"$f":"Translate!$A$267","v":"CO2 emissions for electricity 2017 including losses&WTT"},{"$f":"Translate!$A$267","v":"CO2 emissions for electricity 2017 including losses&WTT"},{"$f":"Translate!$A$267","v":"CO2 emissions for electricity 2017 including losses&WTT"},{"$f":"Translate!$A$267","v":"CO2 emissions for electricity 2017 including losses&WTT"},null,null,null,null,null,null,null,null,null,0.78204828268395887,null,null,null,"kWh","kWh"]
[0,null,"Electricity - Lebanon","kWh",0.98130982658959542,"CO2 emissions for electricity 2017 including losses&WTT",null,null,null,0.1,{"$f":"Translate!$A$267","v":"CO2 emissions for electricity 2017 including losses&WTT"},{"$f":"Translate!$A$267","v":"CO2 emissions for electricity 2017 including losses&WTT"},{"$f":"Translate!$A$267","v":"CO2 emissions for electricity 2017 including losses&WTT"},{"$f":"Translate!$A$267","v":"CO2 emissions for electricity 2017 including losses&WTT"},null,null,null,null,null,null,null,null,null,0.98130982658959542,null,null,null,"kWh","kWh"]
[0,null,"Electricity - Oman","kWh",0.58794931074572332,"CO2 emissions for electricity 2017 including losses&WTT",null,null,null,0.1,{"$f":"Translate!$A$267","v":"CO2 emissions for electricity 2017 including losses&WTT"},{"$f":"Translate!$A$267","v":"CO2 emissions for electricity 2017 including losses&WTT"},{"$f":"Translate!$A$267","v":"CO2 emissions for electricity 2017 including losses&WTT"},{"$f":"Translate!$A$267","v":"CO2 emissions for electricity 2017 including losses&WTT"},null,null,null,null,null,null,null,null,null,0.58794931074572332,null,null,null,"kWh","kWh"]
[0,null,"Electricity - Qatar","kWh",0.60509999999999986,"CO2 emissions for electricity 2017 including losses&WTT",null,null,null,0.1,{"$f":"Translate!$A$267","v":"CO2 emissions for electricity 2017 including losses&WTT"},{"$f":"Translate!$A$267","v":"CO2 emissions for electricity 2017 including losses&WTT"},{"$f":"Translate!$A$267","v":"CO2 emissions for electricity 2017 including losses&WTT"},{"$f":"Translate!$A$267","v":"CO2 emissions for electricity 2017 including losses&WTT"},null,null,null,null,null,null,null,null,null,0.60509999999999986,null,null,null,"kWh","kWh"]
[0,null,"Electricity - Saudi Arabia","kWh",0.8792550396577844,"CO2 emissions for electricity 2017 including losses&WTT",null,null,null,0.1,{"$f":"Translate!$A$267","v":"CO2 emissions for electricity 2017 including losses&WTT"},{"$f":"Translate!$A$267","v":"CO2 emissions for electricity 2017 including losses&WTT"},{"$f":"Translate!$A$267","v":"CO2 emissions for electricity 2017 including losses&WTT"},{"$f":"Translate!$A$267","v":"CO2 emissions for electricity 2017 including losses&WTT"},null,null,null,null,null,null,null,null,null,0.8792550396577844,null,null,null,"kWh","kWh"]
[0,null,"Electricity - Syrian Arab Republic","kWh",0.84685503965778453,"CO2 emissions for electricity 2017 including losses&WTT",null,null,null,0.1,{"$f":"Translate!$A$267","v":"CO2 emissions for electricity 2017 including losses&WTT"},{"$f":"Translate!$A$267","v":"CO2 emissions for electricity 2017 including losses&WTT"},{"$f":"Translate!$A$267","v":"CO2 emissions for electricity 2017 including losses&WTT"},{"$f":"Translate!$A$267","v":"CO2 emissions for electricity 2017 including losses&WTT"},null,null,null,null,null,null,null,null,null,0.84685503965778453,null,null,null,"kWh","kWh"]
[{"$f":"IF(ISBLANK(H144),OFFSET(A144,-1,0),OFFSET(A144,-1,0)+1)","v":0},null,"Electricity - United Arab Emirates","kWh",{"$f":"IF(F144=H144,G144,INDEX(P144:AD144,MATCH($F144,$P$6:$AD$6,0)))","v":0.8069193931016031},{"$f":"IF(ISBLANK(H144),INDEX(K144:N144,$D$4),H144)","v":"CO2 emissions for electricity 2017 including losses&WTT"},null,null,null,0.1,{"$f":"Translate!$A$267","v":"CO2 emissions for electricity 2017 including losses&WTT"},{"$f":"Translate!$A$267","v":"CO2 emissions for electricity 2017 including losses&WTT"},{"$f":"Translate!$A$267","v":"CO2 emissions for electricity 2017 including losses&WTT"},{"$f":"Translate!$A$267","v":"CO2 emissions for electricity 2017 including losses&WTT"},null,null,null,null,null,null,null,null,null,0.8069193931016031,null,null,null,"kWh","kWh"]
[0,null,"Electricity - Yemen","kWh",0.89454793077501882,"CO2 emissions for electricity 2017 including losses&WTT",null,null,null,0.1,{"$f":"Translate!$A$267","v":"CO2 emissions for electricity 2017 including losses&WTT"},{"$f":"Translate!$A$267","v":"CO2 emissions for electricity 2017 including losses&WTT"},{"$f":"Translate!$A$267","v":"CO2 emissions for electricity 2017 including losses&WTT"},{"$f":"Translate!$A$267","v":"CO2 emissions for electricity 2017 including losses&WTT"},null,null,null,null,null,null,null,null,null,0.89454793077501882,null,null,null,"kWh","kWh"]
[0,null,"Electricity - Argentina","kWh",0.47564293345417591,"CO2 emissions for electricity 2017 including losses&WTT",null,null,null,0.1,{"$f":"Translate!$A$267","v":"CO2 emissions for electricity 2017 including losses&WTT"},{"$f":"Translate!$A$267","v":"CO2 emissions for electricity 2017 including losses&WTT"},{"$f":"Translate!$A$267","v":"CO2 emissions for electricity 2017 including losses&WTT"},{"$f":"Translate!$A$267","v":"CO2 emissions for electricity 2017 including losses&WTT"},null,null,null,null,null,null,null,null,null,0.47564293345417591,null,null,null,"kWh","kWh"]
[0,null,"Electricity - Bolivia","kWh",0.56312107587314331,"CO2 emissions for electricity 2017 including losses&WTT",null,null,null,0.1,{"$f":"Translate!$A$267","v":"CO2 emissions for electricity 2017 including losses&WTT"},{"$f":"Translate!$A$267","v":"CO2 emissions for electricity 2017 including losses&WTT"},{"$f":"Translate!$A$267","v":"CO2 emissions for electricity 2017 including losses&WTT"},{"$f":"Translate!$A$267","v":"CO2 emissions for electricity 2017 including losses&WTT"},null,null,null,null,null,null,null,null,null,0.56312107587314331,null,null,null,"kWh","kWh"]
[0,null,"Electricity - Brazil","kWh",0.19053970646164711,"CO2 emissions for electricity 2017 including losses&WTT",null,null,null,0.1,{"$f":"Translate!$A$267","v":"CO2 emissions for electricity 2017 including losses&WTT"},{"$f":"Translate!$A$267","v":"CO2 emissions for electricity 2017 including losses&WTT"},{"$f":"Translate!$A$267","v":"CO2 emissions for electricity 2017 including losses&WTT"},{"$f":"Translate!$A$267","v":"CO2 emissions for electricity 2017 including losses&WTT"},null,null,null,null,null,null,null,null,null,0.19053970646164711,null,null,null,"kWh","kWh"]
[0,null,"Electricity - Colombia","kWh",0.18256205411976245,"CO2 emissions for electricity 2017 including losses&WTT",null,null,null,0.1,{"$f":"Translate!$A$267","v":"CO2 emissions for electricity 2017 including losses&WTT"},{"$f":"Translate!$A$267","v":"CO2 emissions for electricity 2017 including losses&WTT"},{"$f":"Translate!$A$267","v":"CO2 emissions for electricity 2017 including losses&WTT"},{"$f":"Translate!$A$267","v":"CO2 emissions for electricity 2017 including losses&WTT"},null,null,null,null,null,null,null,null,null,0.18256205411976245,null,null,null,"kWh","kWh"]
[0,null,"Electricity - Costa Rica","kWh",2.8351260058360594E-2,"CO2 emissions for electricity 2017 including losses&WTT",null,null,null,0.1,{"$f":"Translate!$A$267","v":"CO2 emissions for electricity 2017 including losses&WTT"},{"$f":"Translate!$A$267","v":"CO2 emissions for electricity 2017 including losses&WTT"},{"$f":"Translate!$A$267","v":"CO2 emissions for electricity 2017 including losses&WTT"},{"$f":"Translate!$A$267","v":"CO2 emissions for electricity 2017 including losses&WTT"},null,null,null,null,null,null,null,null,null,2.8351260058360594E-2,null,null,null,"kWh","kWh"]
[0,null,"Electricity - Cuba","kWh",0.7222580114797158,"CO2 emissions for electricity 2017 including losses&WTT",null,null,null,0.1,{"$f":"Translate!$A$267","v":"CO2 emissions for electricity 2017 including losses&WTT"},{"$f":"Translate!$A$267","v":"CO2 emissions for electricity 2017 including losses&WTT"},{"$f":"Translate!$A$267","v":"CO2 emissions for electricity 2017 including losses&WTT"},{"$f":"Translate!$A$267","v":"CO2 emissions for electricity 2017 including losses&WTT"},null,null,null,null,null,null,null,null,null,0.7222580114797158,null,null,null,"kWh","kWh"]
[0,null,"Electricity - Dominican Republic","kWh",0.68791061091558536,"CO2 emissions for electricity 2017 including losses&WTT",null,null,null,0.1,{"$f":"Translate!$A$267","v":"CO2 emissions for electricity 2017 including losses&WTT"},{"$f":"Translate!$A$267","v":"CO2 emissions for electricity 2017 including losses&WTT"},{"$f":"Translate!$A$267","v":"CO2 emissions for electricity 2017 including losses&WTT"},{"$f":"Translate!$A$267","v":"CO2 emissions for electricity 2017 including losses&WTT"},null,null,null,null,null,null,null,null,null,0.68791061091558536,null,null,null,"kWh","kWh"]
[0,null,"Electricity - Ecuador","kWh",0.25192201193520891,"CO2 emissions for electricity 2017 including losses&WTT",null,null,null,0.1,{"$f":"Translate!$A$267","v":"CO2 emissions for electricity 2017 including losses&WTT"},{"$f":"Translate!$A$267","v":"CO2 emissions for electricity 2017 including losses&WTT"},{"$f":"Translate!$A$267","v":"CO2 emissions for electricity 2017 including losses&WTT"},{"$f":"Translate!$A$267","v":"CO2 emissions for electricity 2017 including losses&WTT"},null,null,null,null,null,null,null,null,null,0.25192201193520891,null,null,null,"kWh","kWh"]
[0,null,"Electricity - El Salvador","kWh",0.27104220921726407,"CO2 emissions for electricity 2017 including losses&WTT",null,null,null,0.1,{"$f":"Translate!$A$267","v":"CO2 emissions for electricity 2017 including losses&WTT"},{"$f":"Translate!$A$267","v":"CO2 emissions for electricity 2017 including losses&WTT"},{"$f":"Translate!$A$267","v":"CO2 emissions for electricity 2017 including losses&WTT"},{"$f":"Translate!$A$267","v":"CO2 emissions for electricity 2017 including losses&WTT"},null,null,null,null,null,null,null,null,null,0.27104220921726407,null,null,null,"kWh","kWh"]
[0,null,"Electricity - Guatemala","kWh",0.43448256172839506,"CO2 emissions for electricity 2017 including losses&WTT",null,null,null,0.1,{"$f":"Translate!$A$267","v":"CO2 emissions for electricity 2017 including losses&WTT"},{"$f":"Translate!$A$267","v":"CO2 emissions for electricity 2017 including losses&WTT"},{"$f":"Translate!$A$267","v":"CO2 emissions for electricity 2017 including losses&WTT"},{"$f":"Translate!$A$267","v":"CO2 emissions for electricity 2017 including losses&WTT"},null,null,null,null,null,null,null,null,null,0.43448256172839506,null,null,null,"kWh","kWh"]
[0,null,"Electricity - Haiti","kWh",1.5859153409090909,"CO2 emissions for electricity 2017 including losses&WTT",null,null,null,0.1,{"$f":"Translate!$A$267","v":"CO2 emissions for electricity 2017 including losses&WTT"},{"$f":"Translate!$A$267","v":"CO2 emissions for electricity 2017 including losses&WTT"},{"$f":"Translate!$A$267","v":"CO2 emissions for electricity 2017 including losses&WTT"},{"$f":"Translate!$A$267","v":"CO2 emissions for electricity 2017 including losses&WTT"},null,null,null,null,null,null,null,null,null,1.5859153409090909,null,null,null,"kWh","kWh"]
[0,null,"Electricity - Honduras","kWh",0.44665377207062601,"CO2 emissions for electricity 2017 including losses&WTT",null,null,null,0.1,{"$f":"Translate!$A$267","v":"CO2 emissions for electricity 2017 including losses&WTT"},{"$f":"Translate!$A$267","v":"CO2 emissions for electricity 2017 including losses&WTT"},{"$f":"Translate!$A$267","v":"CO2 emissions for electricity 2017 including losses&WTT"},{"$f":"Translate!$A$267","v":"CO2 emissions for electricity 2017 including losses&WTT"},null,null,null,null,null,null,null,null,null,0.44665377207062601,null,null,null,"kWh","kWh"]
[0,null,"Electricity - Jamaica","kWh",0.86261968485955698,"CO2 emissions for electricity 2017 including losses&WTT",null,null,null,0.1,{"$f":"Translate!$A$267","v":"CO2 emissions for electricity 2017 including losses&WTT"},{"$f":"Translate!$A$267","v":"CO2 emissions for electricity 2017 including losses&WTT"},{"$f":"Translate!$A$267","v":"CO2 emissions for electricity 2017 including losses&WTT"},{"$f":"Translate!$A$267","v":"CO2 emissions for electricity 2017 including losses&WTT"},null,null,null,null,null,null,null,null,null,0.86261968485955698,null,null,null,"kWh","kWh"]
[0,null,"Electricity - Nicaragua","kWh",0.48922227132125495,"CO2 emissions for electricity 2017 including losses&WTT",null,null,null,0.1,{"$f":"Translate!$A$267","v":"CO2 emissions for electricity 2017 including losses&WTT"},{"$f":"Translate!$A$267","v":"CO2 emissions for electricity 2017 including losses&WTT"},{"$f":"Translate!$A$267","v":"CO2 emissions for electricity 2017 including losses&WTT"},{"$f":"Translate!$A$267","v":"CO2 emissions for electricity 2017 including losses&WTT"},null,null,null,null,null,null,null,null,null,0.48922227132125495,null,null,null,"kWh","kWh"]
[0,null,"Electricity - Panama","kWh",0.26140695864627633,"CO2 emissions for electricity 2017 including losses&WTT",null,null,null,0.1,{"$f":"Translate!$A$267","v":"CO2 emissions for electricity 2017 including losses&WTT"},{"$f":"Translate!$A$267","v":"CO2 emissions for electricity 2017 including losses&WTT"},{"$f":"Translate!$A$267","v":"CO2 emissions for electricity 2017 including losses&WTT"},{"$f":"Translate!$A$267","v":"CO2 emissions for electricity 2017 including losses&WTT"},null,null,null,null,null,null,null,null,null,0.26140695864627633,null,null,null,"kWh","kWh"]
[{"$f":"IF(ISBLANK(H161),OFFSET(A161,-1,0),OFFSET(A161,-1,0)+1)","v":0},null,"Electricity - Paraguay",{"$f":"INDEX(AB161:AC161,MATCH($F$3,$AB$6:$AC$6,0))","v":"kWh"},{"$f":"IF(F161=H161,G161,INDEX(P161:AD161,MATCH($F161,$P$6:$AD$6,0)))","v":1.9003652447810208E-2},{"$f":"IF(ISBLANK(H161),INDEX(K161:N161,$D$4),H161)","v":"CO2 emissions for electricity 2017 including losses&WTT"},null,null,null,0.1,{"$f":"Translate!$A$267","v":"CO2 emissions for electricity 2017 including losses&WTT"},{"$f":"Translate!$A$267","v":"CO2 emissions for electricity 2017 including losses&WTT"},{"$f":"Translate!$A$267","v":"CO2 emissions for electricity 2017 including losses&WTT"},{"$f":"Translate!$A$267","v":"CO2 emissions for electricity 2017 including losses&WTT"},null,null,null,null,null,null,null,null,null,1.9003652447810208E-2,null,null,null,"kWh","kWh"]
[0,null,"Electricity - Peru","kWh",0.29808781133073814,"CO2 emissions for electricity 2017 including losses&WTT",null,null,null,0.1,{"$f":"Translate!$A$267","v":"CO2 emissions for electricity 2017 including losses&WTT"},{"$f":"Translate!$A$267","v":"CO2 emissions for electricity 2017 including losses&WTT"},{"$f":"Translate!$A$267","v":"CO2 emissions for electricity 2017 including losses&WTT"},{"$f":"Translate!$A$267","v":"CO2 emissions for electricity 2017 including losses&WTT"},null,null,null,null,null,null,null,null,null,0.29808781133073814,null,null,null,"kWh","kWh"]
[0,null,"Electricity - Trinidad and Tobago","kWh",0.56450513912807032,"CO2 emissions for electricity 2017 including losses&WTT",null,null,null,0.1,{"$f":"Translate!$A$267","v":"CO2 emissions for electricity 2017 including losses&WTT"},{"$f":"Translate!$A$267","v":"CO2 emissions for electricity 2017 including losses&WTT"},{"$f":"Translate!$A$267","v":"CO2 emissions for electricity 2017 including losses&WTT"},{"$f":"Translate!$A$267","v":"CO2 emissions for electricity 2017 including losses&WTT"},null,null,null,null,null,null,null,null,null,0.56450513912807032,null,null,null,"kWh","kWh"]
[0,null,"Electricity - Uruguay","kWh",7.0817418408507526E-2,"CO2 emissions for electricity 2017 including losses&WTT",null,null,null,0.1,{"$f":"Translate!$A$267","v":"CO2 emissions for electricity 2017 including losses&WTT"},{"$f":"Translate!$A$267","v":"CO2 emissions for electricity 2017 including losses&WTT"},{"$f":"Translate!$A$267","v":"CO2 emissions for electricity 2017 including losses&WTT"},{"$f":"Translate!$A$267","v":"CO2 emissions for electricity 2017 including losses&WTT"},null,null,null,null,null,null,null,null,null,7.0817418408507526E-2,null,null,null,"kWh","kWh"]
[0,null,"Electricity - Venezuela","kWh",0.42926913741720307,"CO2 emissions for electricity 2017 including losses&WTT",null,null,null,0.1,{"$f":"Translate!$A$267","v":"CO2 emissions for electricity 2017 including losses&WTT"},{"$f":"Translate!$A$267","v":"CO2 emissions for electricity 2017 including losses&WTT"},{"$f":"Translate!$A$267","v":"CO2 emissions for electricity 2017 including losses&WTT"},{"$f":"Translate!$A$267","v":"CO2 emissions for electricity 2017 including losses&WTT"},null,null,null,null,null,null,null,null,null,0.42926913741720307,null,null,null,"kWh","kWh"]
[0,null,"Electricity - Bangladesh","kWh",0.6499917356953443,"CO2 emissions for electricity 2017 including losses&WTT",null,null,null,0.1,{"$f":"Translate!$A$267","v":"CO2 emissions for electricity 2017 including losses&WTT"},{"$f":"Translate!$A$267","v":"CO2 emissions for electricity 2017 including losses&WTT"},{"$f":"Translate!$A$267","v":"CO2 emissions for electricity 2017 including losses&WTT"},{"$f":"Translate!$A$267","v":"CO2 emissions for electricity 2017 including losses&WTT"},null,null,null,null,null,null,null,null,null,0.6499917356953443,null,null,null,"kWh","kWh"]
[0,null,"Electricity - Brunei Darussalam","kWh",0.80081375992302151,"CO2 emissions for electricity 2017 including losses&WTT",null,null,null,0.1,{"$f":"Translate!$A$267","v":"CO2 emissions for electricity 2017 including losses&WTT"},{"$f":"Translate!$A$267","v":"CO2 emissions for electricity 2017 including losses&WTT"},{"$f":"Translate!$A$267","v":"CO2 emissions for electricity 2017 including losses&WTT"},{"$f":"Translate!$A$267","v":"CO2 emissions for electricity 2017 including losses&WTT"},null,null,null,null,null,null,null,null,null,0.80081375992302151,null,null,null,"kWh","kWh"]
[0,null,"Electricity - Cambodia","kWh",0.75218959702772215,"CO2 emissions for electricity 2017 including losses&WTT",null,null,null,0.1,{"$f":"Translate!$A$267","v":"CO2 emissions for electricity 2017 including losses&WTT"},{"$f":"Translate!$A$267","v":"CO2 emissions for electricity 2017 including losses&WTT"},{"$f":"Translate!$A$267","v":"CO2 emissions for electricity 2017 including losses&WTT"},{"$f":"Translate!$A$267","v":"CO2 emissions for electricity 2017 including losses&WTT"},null,null,null,null,null,null,null,null,null,0.75218959702772215,null,null,null,"kWh","kWh"]
[0,null,"Electricity - People's Rep. of China","kWh",0.72614364104302387,"CO2 emissions for electricity 2017 including losses&WTT",null,null,null,0.1,{"$f":"Translate!$A$267","v":"CO2 emissions for electricity 2017 including losses&WTT"},{"$f":"Translate!$A$267","v":"CO2 emissions for electricity 2017 including losses&WTT"},{"$f":"Translate!$A$267","v":"CO2 emissions for electricity 2017 including losses&WTT"},{"$f":"Translate!$A$267","v":"CO2 emissions for electricity 2017 including losses&WTT"},null,null,null,null,null,null,null,null,null,0.72614364104302387,null,null,null,"kWh","kWh"]
[0,null,"Electricity - Chinese Taipei","kWh",0.73204467065780665,"CO2 emissions for electricity 2017 including losses&WTT",null,null,null,0.1,{"$f":"Translate!$A$267","v":"CO2 emissions for electricity 2017 including losses&WTT"},{"$f":"Translate!$A$267","v":"CO2 emissions for electricity 2017 including losses&WTT"},{"$f":"Translate!$A$267","v":"CO2 emissions for electricity 2017 including losses&WTT"},{"$f":"Translate!$A$267","v":"CO2 emissions for electricity 2017 including losses&WTT"},null,null,null,null,null,null,null,null,null,0.73204467065780665,null,null,null,"kWh","kWh"]
[0,null,"Electricity - India","kWh",0.9316782033547335,"CO2 emissions for electricity 2017 including losses&WTT",null,null,null,0.1,{"$f":"Translate!$A$267","v":"CO2 emissions for electricity 2017 including losses&WTT"},{"$f":"Translate!$A$267","v":"CO2 emissions for electricity 2017 including losses&WTT"},{"$f":"Translate!$A$267","v":"CO2 emissions for electricity 2017 including losses&WTT"},{"$f":"Translate!$A$267","v":"CO2 emissions for electricity 2017 including losses&WTT"},null,null,null,null,null,null,null,null,null,0.9316782033547335,null,null,null,"kWh","kWh"]
[0,null,"Electricity - Indonesia","kWh",0.92016572943425878,"CO2 emissions for electricity 2017 including losses&WTT",null,null,null,0.1,{"$f":"Translate!$A$267","v":"CO2 emissions for electricity 2017 including losses&WTT"},{"$f":"Translate!$A$267","v":"CO2 emissions for electricity 2017 including losses&WTT"},{"$f":"Translate!$A$267","v":"CO2 emissions for electricity 2017 including losses&WTT"},{"$f":"Translate!$A$267","v":"CO2 emissions for electricity 2017 including losses&WTT"},null,null,null,null,null,null,null,null,null,0.92016572943425878,null,null,null,"kWh","kWh"]
[0,null,"Electricity - DPR of Korea","kWh",0.28794503726175558,"CO2 emissions for electricity 2017 including losses&WTT",null,null,null,0.1,{"$f":"Translate!$A$267","v":"CO2 emissions for electricity 2017 including losses&WTT"},{"$f":"Translate!$A$267","v":"CO2 emissions for electricity 2017 including losses&WTT"},{"$f":"Translate!$A$267","v":"CO2 emissions for electricity 2017 including losses&WTT"},{"$f":"Translate!$A$267","v":"CO2 emissions for electricity 2017 including losses&WTT"},null,null,null,null,null,null,null,null,null,0.28794503726175558,null,null,null,"kWh","kWh"]
[0,null,"Electricity - Malaysia","kWh",0.77408610906791975,"CO2 emissions for electricity 2017 including losses&WTT",null,null,null,0.1,{"$f":"Translate!$A$267","v":"CO2 emissions for electricity 2017 including losses&WTT"},{"$f":"Translate!$A$267","v":"CO2 emissions for electricity 2017 including losses&WTT"},{"$f":"Translate!$A$267","v":"CO2 emissions for electricity 2017 including losses&WTT"},{"$f":"Translate!$A$267","v":"CO2 emissions for electricity 2017 including losses&WTT"},null,null,null,null,null,null,null,null,null,0.77408610906791975,null,null,null,"kWh","kWh"]
[{"$f":"IF(ISBLANK(H175),OFFSET(A175,-1,0),OFFSET(A175,-1,0)+1)","v":0},null,"Electricity - Mongolia",{"$f":"INDEX(AB175:AC175,MATCH($F$3,$AB$6:$AC$6,0))","v":"kWh"},{"$f":"IF(F175=H175,G175,INDEX(P175:AD175,MATCH($F175,$P$6:$AD$6,0)))","v":1.4942541217448997},{"$f":"IF(ISBLANK(H175),INDEX(K175:N175,$D$4),H175)","v":"CO2 emissions for electricity 2017 including losses&WTT"},null,null,null,0.1,{"$f":"Translate!$A$267","v":"CO2 emissions for electricity 2017 including losses&WTT"},{"$f":"Translate!$A$267","v":"CO2 emissions for electricity 2017 including losses&WTT"},{"$f":"Translate!$A$267","v":"CO2 emissions for electricity 2017 including losses&WTT"},{"$f":"Translate!$A$267","v":"CO2 emissions for electricity 2017 including losses&WTT"},null,null,null,null,null,null,null,null,null,1.4942541217448997,null,null,null,"kWh","kWh"]
[0,null,"Electricity - Myanmar","kWh",0.45611874944251179,"CO2 emissions for electricity 2017 including losses&WTT",null,null,null,0.1,{"$f":"Translate!$A$267","v":"CO2 emissions for electricity 2017 including losses&WTT"},{"$f":"Translate!$A$267","v":"CO2 emissions for electricity 2017 including losses&WTT"},{"$f":"Translate!$A$267","v":"CO2 emissions for electricity 2017 including losses&WTT"},{"$f":"Translate!$A$267","v":"CO2 emissions for electricity 2017 including losses&WTT"},null,null,null,null,null,null,null,null,null,0.45611874944251179,null,null,null,"kWh","kWh"]
[0,null,"Electricity - Nepal","kWh",1.900107781849536E-2,"CO2 emissions for electricity 2017 including losses&WTT",null,null,null,0.1,{"$f":"Translate!$A$267","v":"CO2 emissions for electricity 2017 including losses&WTT"},{"$f":"Translate!$A$267","v":"CO2 emissions for electricity 2017 including losses&WTT"},{"$f":"Translate!$A$267","v":"CO2 emissions for electricity 2017 including losses&WTT"},{"$f":"Translate!$A$267","v":"CO2 emissions for electricity 2017 including losses&WTT"},null,null,null,null,null,null,null,null,null,1.900107781849536E-2,null,null,null,"kWh","kWh"]
[0,null,"Electricity - Pakistan","kWh",0.5610026965881304,"CO2 emissions for electricity 2017 including losses&WTT",null,null,null,0.1,{"$f":"Translate!$A$267","v":"CO2 emissions for electricity 2017 including losses&WTT"},{"$f":"Translate!$A$267","v":"CO2 emissions for electricity 2017 including losses&WTT"},{"$f":"Translate!$A$267","v":"CO2 emissions for electricity 2017 including losses&WTT"},{"$f":"Translate!$A$267","v":"CO2 emissions for electricity 2017 including losses&WTT"},null,null,null,null,null,null,null,null,null,0.5610026965881304,null,null,null,"kWh","kWh"]
[0,null,"Electricity - Philippines","kWh",0.81117393883539368,"CO2 emissions for electricity 2017 including losses&WTT",null,null,null,0.1,{"$f":"Translate!$A$267","v":"CO2 emissions for electricity 2017 including losses&WTT"},{"$f":"Translate!$A$267","v":"CO2 emissions for electricity 2017 including losses&WTT"},{"$f":"Translate!$A$267","v":"CO2 emissions for electricity 2017 including losses&WTT"},{"$f":"Translate!$A$267","v":"CO2 emissions for electricity 2017 including losses&WTT"},null,null,null,null,null,null,null,null,null,0.81117393883539368,null,null,null,"kWh","kWh"]
[0,null,"Electricity - Singapore","kWh",0.49984257991920455,"CO2 emissions for electricity 2017 including losses&WTT",null,null,null,0.1,{"$f":"Translate!$A$267","v":"CO2 emissions for electricity 2017 including losses&WTT"},{"$f":"Translate!$A$267","v":"CO2 emissions for electricity 2017 including losses&WTT"},{"$f":"Translate!$A$267","v":"CO2 emissions for electricity 2017 including losses&WTT"},{"$f":"Translate!$A$267","v":"CO2 emissions for electricity 2017 including losses&WTT"},null,null,null,null,null,null,null,null,null,0.49984257991920455,null,null,null,"kWh","kWh"]
[0,null,"Electricity - Sri Lanka","kWh",0.73504946848899022,"CO2 emissions for electricity 2017 including losses&WTT",null,null,null,0.1,{"$f":"Translate!$A$267","v":"CO2 emissions for electricity 2017 including losses&WTT"},{"$f":"Translate!$A$267","v":"CO2 emissions for electricity 2017 including losses&WTT"},{"$f":"Translate!$A$267","v":"CO2 emissions for electricity 2017 including losses&WTT"},{"$f":"Translate!$A$267","v":"CO2 emissions for electricity 2017 including losses&WTT"},null,null,null,null,null,null,null,null,null,0.73504946848899022,null,null,null,"kWh","kWh"]
[0,null,"Electricity - Thailand","kWh",0.59865608851937369,"CO2 emissions for electricity 2017 including losses&WTT",null,null,null,0.1,{"$f":"Translate!$A$267","v":"CO2 emissions for electricity 2017 including losses&WTT"},{"$f":"Translate!$A$267","v":"CO2 emissions for electricity 2017 including losses&WTT"},{"$f":"Translate!$A$267","v":"CO2 emissions for electricity 2017 including losses&WTT"},{"$f":"Translate!$A$267","v":"CO2 emissions for electricity 2017 including losses&WTT"},null,null,null,null,null,null,null,null,null,0.59865608851937369,null,null,null,"kWh","kWh"]
[0,null,"Electricity - Viet Nam","kWh",0.4428496217135896,"CO2 emissions for electricity 2017 including losses&WTT",null,null,null,0.1,{"$f":"Translate!$A$267","v":"CO2 emissions for electricity 2017 including losses&WTT"},{"$f":"Translate!$A$267","v":"CO2 emissions for electricity 2017 including losses&WTT"},{"$f":"Translate!$A$267","v":"CO2 emissions for electricity 2017 including losses&WTT"},{"$f":"Translate!$A$267","v":"CO2 emissions for electricity 2017 including losses&WTT"},null,null,null,null,null,null,null,null,null,0.4428496217135896,null,null,null,"kWh","kWh"]
[0,null,{"$f":"$C$45&\" - \"&Lists!B61","v":"Electricity - AKGD (ASCC Alaska Grid)"},"kWh",0.47399230019999999,"EPA",null,null,null,0.1,"EPA","EPA","EPA","EPA",null,null,null,null,null,null,null,null,null,null,0.47399230019999999,null,null,"kWh","kWh"]
[0,null,{"$f":"$C$45&\" - \"&Lists!B62","v":"Electricity - AKMS (ASCC Miscellaneous)"},"kWh",0.23898855296000002,"EPA",null,null,null,0.1,"EPA","EPA","EPA","EPA",null,null,null,null,null,null,null,null,null,null,0.23898855296000002,null,null,"kWh","kWh"]
[0,null,{"$f":"$C$45&\" - \"&Lists!B63","v":"Electricity - AZNM (WECC Southwest)"},"kWh",0.46612247899999998,"EPA",null,null,null,0.1,"EPA","EPA","EPA","EPA",null,null,null,null,null,null,null,null,null,null,0.46612247899999998,null,null,"kWh","kWh"]
[0,null,{"$f":"$C$45&\" - \"&Lists!B64","v":"Electricity - CAMX (WECC California)"},"kWh",0.22615189935999999,"EPA",null,null,null,0.1,"EPA","EPA","EPA","EPA",null,null,null,null,null,null,null,null,null,null,0.22615189935999999,null,null,"kWh","kWh"]
[0,null,{"$f":"$C$45&\" - \"&Lists!B65","v":"Electricity - ERCT (ERCOT All)"},"kWh",0.42459159548000003,"EPA",null,null,null,0.1,"EPA","EPA","EPA","EPA",null,null,null,null,null,null,null,null,null,null,0.42459159548000003,null,null,"kWh","kWh"]
[0,null,{"$f":"$C$45&\" - \"&Lists!B66","v":"Electricity - FRCC (FRCC All)"},"kWh",0.42463695467999996,"EPA",null,null,null,0.1,"EPA","EPA","EPA","EPA",null,null,null,null,null,null,null,null,null,null,0.42463695467999996,null,null,"kWh","kWh"]
[0,null,{"$f":"$C$45&\" - \"&Lists!B67","v":"Electricity - HIMS (HICC Miscellaneous)"},"kWh",0.50757398391999997,"EPA",null,null,null,0.1,"EPA","EPA","EPA","EPA",null,null,null,null,null,null,null,null,null,null,0.50757398391999997,null,null,"kWh","kWh"]
[0,null,{"$f":"$C$45&\" - \"&Lists!B68","v":"Electricity - HIOA (HICC Oahu)"},"kWh",0.76314812836000012,"EPA",null,null,null,0.1,"EPA","EPA","EPA","EPA",null,null,null,null,null,null,null,null,null,null,0.76314812836000012,null,null,"kWh","kWh"]
[0,null,{"$f":"$C$45&\" - \"&Lists!B69","v":"Electricity - MROE (MRO East)"},"kWh",0.76643213443999991,"EPA",null,null,null,0.1,"EPA","EPA","EPA","EPA",null,null,null,null,null,null,null,null,null,null,0.76643213443999991,null,null,"kWh","kWh"]
[0,null,{"$f":"$C$45&\" - \"&Lists!B70","v":"Electricity - MROW (MRO West)"},"kWh",0.56664527007999999,"EPA",null,null,null,0.1,"EPA","EPA","EPA","EPA",null,null,null,null,null,null,null,null,null,null,0.56664527007999999,null,null,"kWh","kWh"]
[0,null,{"$f":"$C$45&\" - \"&Lists!B71","v":"Electricity - NEWE (NPCC New England)"},"kWh",0.2393491586,"EPA",null,null,null,0.1,"EPA","EPA","EPA","EPA",null,null,null,null,null,null,null,null,null,null,0.2393491586,null,null,"kWh","kWh"]
[0,null,{"$f":"$C$45&\" - \"&Lists!B72","v":"Electricity - NWPP (WECC Northwest)"},"kWh",0.29179800155999996,"EPA",null,null,null,0.1,"EPA","EPA","EPA","EPA",null,null,null,null,null,null,null,null,null,null,0.29179800155999996,null,null,"kWh","kWh"]
[0,null,{"$f":"$C$45&\" - \"&Lists!B73","v":"Electricity - NYCW (NPCC NYC/Westchester)"},"kWh",0.27118224515999995,"EPA",null,null,null,0.1,"EPA","EPA","EPA","EPA",null,null,null,null,null,null,null,null,null,null,0.27118224515999995,null,null,"kWh","kWh"]
[0,null,{"$f":"$C$45&\" - \"&Lists!B74","v":"Electricity - NYLI (NPCC Long Island)"},"kWh",0.54119875888000002,"EPA",null,null,null,0.1,"EPA","EPA","EPA","EPA",null,null,null,null,null,null,null,null,null,null,0.54119875888000002,null,null,"kWh","kWh"]
[null,null,{"$f":"$C$45&\" - \"&Lists!B75","v":"Electricity - NYUP (NPCC Upstate NY)"},"kWh",0.11528947864,"EPA",null,null,null,0.1,"EPA","EPA","EPA","EPA",null,null,null,null,null,null,null,null,null,null,0.11528947864,null,null,"kWh","kWh"]
[{"$f":"IF(ISBLANK(H199),OFFSET(A199,-1,0),OFFSET(A199,-1,0)+1)","v":0},null,{"$f":"$C$45&\" - \"&Lists!B76","v":"Electricity - RFCE (RFC East)"},"kWh",0.32656356040000006,"EPA",null,null,null,0.1,"EPA","EPA","EPA","EPA",null,null,null,null,null,null,null,null,null,null,0.32656356040000006,null,null,"kWh","kWh"]
[0,null,{"$f":"$C$45&\" - \"&Lists!B77","v":"Electricity - RFCM (RFC Michigan)"},"kWh",0.59930389407999984,"EPA",null,null,null,0.1,"EPA","EPA","EPA","EPA",null,null,null,null,null,null,null,null,null,null,0.59930389407999984,null,null,"kWh","kWh"]
[0,null,{"$f":"$C$45&\" - \"&Lists!B78","v":"Electricity - RFCW (RFC West)"},"kWh",0.53256917108000001,"EPA",null,null,null,0.1,"EPA","EPA","EPA","EPA",null,null,null,null,null,null,null,null,null,null,0.53256917108000001,null,null,"kWh","kWh"]
[0,null,{"$f":"$C$45&\" - \"&Lists!B79","v":"Electricity - RMPA (WECC Rockies)"},"kWh",0.58153215952000004,"EPA",null,null,null,0.1,"EPA","EPA","EPA","EPA",null,null,null,null,null,null,null,null,null,null,0.58153215952000004,null,null,"kWh","kWh"]
[0,null,{"$f":"$C$45&\" - \"&Lists!B80","v":"Electricity - SPNO (SPP North)"},"kWh",0.53146921048000006,"EPA",null,null,null,0.1,"EPA","EPA","EPA","EPA",null,null,null,null,null,null,null,null,null,null,0.53146921048000006,null,null,"kWh","kWh"]
[0,null,{"$f":"$C$45&\" - \"&Lists!B81","v":"Electricity - SPSO (SPP South)"},"kWh",0.53196135779999998,"EPA",null,null,null,0.1,"EPA","EPA","EPA","EPA",null,null,null,null,null,null,null,null,null,null,0.53196135779999998,null,null,"kWh","kWh"]
[0,null,{"$f":"$C$45&\" - \"&Lists!B82","v":"Electricity - SRMV (SERC Mississippi Valley)"},"kWh",0.38934976503999996,"EPA",null,null,null,0.1,"EPA","EPA","EPA","EPA",null,null,null,null,null,null,null,null,null,null,0.38934976503999996,null,null,"kWh","kWh"]
[0,null,{"$f":"$C$45&\" - \"&Lists!B83","v":"Electricity - SRMW (SERC Midwest)"},"kWh",{"$f":"IF(F206=H206,G206,INDEX(P206:AD206,MATCH($F206,$P$6:$AD$6,0)))","v":0.76063069275999995},"EPA",null,null,null,0.1,"EPA","EPA","EPA","EPA",null,null,null,null,null,null,null,null,null,null,0.76063069275999995,null,null,"kWh","kWh"]
[0,null,{"$f":"$C$45&\" - \"&Lists!B84","v":"Electricity - SRSO (SERC South)"},"kWh",{"$f":"IF(F207=H207,G207,INDEX(P207:AD207,MATCH($F207,$P$6:$AD$6,0)))","v":0.46879186792000005},"EPA",null,null,null,0.1,"EPA","EPA","EPA","EPA",null,null,null,null,null,null,null,null,null,null,0.46879186792000005,null,null,"kWh","kWh"]
[0,null,{"$f":"$C$45&\" - \"&Lists!B85","v":"Electricity - SRTV (SERC Tennessee Valley)"},"kWh",{"$f":"IF(F208=H208,G208,INDEX(P208:AD208,MATCH($F208,$P$6:$AD$6,0)))","v":0.47088292704000007},"EPA",null,null,null,0.1,"EPA","EPA","EPA","EPA",null,null,null,null,null,null,null,null,null,null,0.47088292704000007,null,null,"kWh","kWh"]
[{"$f":"IF(ISBLANK(H209),OFFSET(A209,-1,0),OFFSET(A209,-1,0)+1)","v":0},null,{"$f":"$C$45&\" - \"&Lists!B86","v":"Electricity - SRVC (SERC Virginia/Carolina)"},{"$f":"INDEX(AB209:AC209,MATCH($F$3,$AB$6:$AC$6,0))","v":"kWh"},{"$f":"IF(F209=H209,G209,INDEX(P209:AD209,MATCH($F209,$P$6:$AD$6,0)))","v":0.33914847043999996},{"$f":"IF(ISBLANK(H209),INDEX(K209:N209,$D$4),H209)","v":"EPA"},null,null,null,0.1,"EPA","EPA","EPA","EPA",null,null,null,null,null,null,null,null,null,null,0.33914847043999996,null,null,"kWh","kWh"]
[0,null,{"$f":"$C$45&\" - \"&Lists!B87","v":"Electricity - US Average"},"kWh",{"$f":"IF(F210=H210,G210,INDEX(P210:AD210,MATCH($F210,$P$6:$AD$6,0)))","v":0.43224142455999998},"EPA",null,null,null,0.1,"EPA","EPA","EPA","EPA",null,null,null,null,null,null,null,null,null,null,0.43224142455999998,null,null,"kWh","kWh"]
[0,null,{"$f":"Translate!$A$106","v":"Freight"},null,null,null,null,null,null,null,null,null,null,null,null,null,null,null,null,null,null,null,null,null,null,null,null,null,null,null,{"$f":"Translate!$A$269","v":"DEFRA % weight laden"},{"$f":"Translate!$A$273","v":"DEFRA average load (tonnes)"}]
[0,null,{"$f":"Translate!$A$203","v":"Diesel (100% mineral diesel)"},{"$f":"INDEX(AB212:AC212,MATCH($F$3,$AB$6:$AC$6,0))","v":"liter"},{"$f":"IF(F212=H212,G212,INDEX(P212:Z212,MATCH($F212,$P$6:$Z$6,0)))/IF($F$3=$AC$6,VLOOKUP(D212,$E$410:$G$418,3,0),1)","v":3.3131400000000002},{"$f":"IF(ISBLANK(H212),INDEX(K212:N212,$D$4),H212)","v":"Defra 2019 (v1.3)"},null,null,null,0.2,{"$f":"Translate!$A$261","v":"Defra 2019 (v1.3)"},{"$f":"Translate!$A$532","v":"EPA"},{"$f":"Translate!$A$258","v":"Base carbone (v18.1)"},{"$f":"Translate!$A$261","v":"Defra 2019 (v1.3)"},null,3.16,{"$f":"2.68697+0.62617","v":3.3131400000000002},null,null,null,null,null,null,null,{"$f":"10.21/3.79","v":2.6939313984168867},null,null,{"$f":"Translate!$A$238","v":"liter"},{"$f":"Translate!$A$523","v":"gallon"},null,0.46,1.0123216601815823]
[0,null,{"$f":"Translate!$A$204","v":"Road - Rigid >3.5-7.5t"},"vkm",0.49041000000000001,"Defra 2019 (v1.3)",null,null,null,0.2,{"$f":"Translate!$A$261","v":"Defra 2019 (v1.3)"},{"$f":"Translate!$A$532","v":"EPA"},{"$f":"Translate!$A$258","v":"Base carbone (v18.1)"},{"$f":"Translate!$A$261","v":"Defra 2019 (v1.3)"},null,0.6008145603980577,0.49041000000000001,"avearage laden",null,null,null,null,null,null,{"$f":"(0.461+0.012*0.03+0.01*0.265)/1.609","v":0.28838408949658173},null,null,{"$f":"Translate!$A$239","v":"vkm"},{"$f":"Translate!$A$524","v":"vehicle-mile"},null,0.39,2.0598214285714285]
[0,null,{"$f":"Translate!$A$205","v":"Road - Rigid >7.5-17t"},"vkm",0.59891000000000005,"Defra 2019 (v1.3)",null,null,null,0.2,{"$f":"Translate!$A$261","v":"Defra 2019 (v1.3)"},{"$f":"Translate!$A$532","v":"EPA"},{"$f":"Translate!$A$258","v":"Base carbone (v18.1)"},{"$f":"Translate!$A$261","v":"Defra 2019 (v1.3)"},null,0.97120235532193522,0.59891000000000005,null,null,null,null,null,null,null,{"$f":"(1.387+0.013*0.03+0.033*0.265)/1.609","v":0.86770354257302662},null,null,{"$f":"Translate!$A$239","v":"vkm"},{"$f":"Translate!$A$524","v":"vehicle-mile"},null,0.54136860950865318,5.0777799880644512]
[0,null,{"$f":"Translate!$A$206","v":"Road - Rigid >17t"},"vkm",0.98243999999999998,"Defra 2019 (v1.3)",null,null,null,0.2,{"$f":"Translate!$A$261","v":"Defra 2019 (v1.3)"},{"$f":"Translate!$A$532","v":"EPA"},{"$f":"Translate!$A$258","v":"Base carbone (v18.1)"},{"$f":"Translate!$A$261","v":"Defra 2019 (v1.3)"},null,1.1080535851755859,0.98243999999999998,null,null,null,null,null,null,null,{"$f":"(1.387+0.013*0.03+0.033*0.265)/1.609","v":0.86770354257302662},null,null,{"$f":"Translate!$A$239","v":"vkm"},{"$f":"Translate!$A$524","v":"vehicle-mile"},null,0.44,5.5104895104895109]
[0,null,{"$f":"Translate!$A$207","v":"Road - Articulated >3.5-33t"},"vkm",0.78690000000000004,"Defra 2019 (v1.3)",null,null,null,0.2,{"$f":"Translate!$A$261","v":"Defra 2019 (v1.3)"},{"$f":"Translate!$A$532","v":"EPA"},{"$f":"Translate!$A$258","v":"Base carbone (v18.1)"},{"$f":"Translate!$A$261","v":"Defra 2019 (v1.3)"},null,1.2499655331523467,0.78690000000000004,null,null,null,null,null,null,null,0.86770354257302662,null,null,{"$f":"Translate!$A$239","v":"vkm"},{"$f":"Translate!$A$524","v":"vehicle-mile"},null,0.62,11.782273603082851]
[0,null,{"$f":"Translate!$A$208","v":"Road - Articulated >33t"},"vkm",0.93694,"Defra 2019 (v1.3)",null,null,null,0.2,{"$f":"Translate!$A$261","v":"Defra 2019 (v1.3)"},{"$f":"Translate!$A$532","v":"EPA"},{"$f":"Translate!$A$258","v":"Base carbone (v18.1)"},{"$f":"Translate!$A$261","v":"Defra 2019 (v1.3)"},null,1.4170896906117274,0.93694,null,null,null,null,null,null,null,0.86770354257302662,null,null,{"$f":"Translate!$A$239","v":"vkm"},{"$f":"Translate!$A$524","v":"vehicle-mile"}]
[{"$f":"IF(AND(ISBLANK(C218),ISBLANK(G218)),OFFSET(A218,-1,0),OFFSET(A218,-1,0)+1)","v":0},null,null,"vkm",{"$f":"G218","v":0},{"$f":"H218","v":0},null,null,null,null,null,null,null,null,null,null,null,null,null,null,null,null,null,null,null,null,null,{"$f":"Translate!$A$239","v":"vkm"}]
[{"$f":"IF(AND(ISBLANK(C219),ISBLANK(G219)),OFFSET(A219,-1,0),OFFSET(A219,-1,0)+1)","v":0},null,null,"vkm",{"$f":"G219","v":0},{"$f":"H219","v":0},null,null,null,null,null,null,null,null,null,null,null,null,null,null,null,null,null,null,null,null,null,{"$f":"Translate!$A$239","v":"vkm"}]
[{"$f":"IF(ISBLANK(H220),OFFSET(A220,-1,0),OFFSET(A220,-1,0)+1)","v":0},null,{"$f":"Translate!$A$209","v":"Air - Domestic"},"tkm",{"$f":"IF(F220=H220,G220,INDEX(P220:Z220,MATCH($F220,$P$6:$Z$6,0)))/IF($F$3=$AC$6,VLOOKUP(D220,$E$410:$G$418,3,0),1)","v":2.6427},{"$f":"IF(ISBLANK(H220),INDEX(K220:N220,$D$4),H220)","v":"Defra 2019 (v1.3)"},null,null,null,0.3,{"$f":"Translate!$A$261","v":"Defra 2019 (v1.3)"},{"$f":"Translate!$A$532","v":"EPA"},{"$f":"Translate!$A$258","v":"Base carbone (v18.1)"},{"$f":"Translate!$A$261","v":"Defra 2019 (v1.3)"},null,1.41,2.6427,"J'ai pris les valeurs Without RF car proches des anciennes",null,null,null,null,null,null,{"$f":"(1.265+0.0389*0.265)/1.609","v":0.79260938471100062},null,null,{"$f":"Translate!$A$240","v":"tkm"},{"$f":"Translate!$A$525","v":"ton-mile"},null,{"$f":"Translate!$A$270","v":"Factor 2 not taken into account"}]
[0,null,{"$f":"Translate!$A$210","v":"Air - Short-haul international"},"tkm",1.2580899999999999,"Defra 2019 (v1.3)",null,null,null,0.3,{"$f":"Translate!$A$261","v":"Defra 2019 (v1.3)"},{"$f":"Translate!$A$532","v":"EPA"},{"$f":"Translate!$A$258","v":"Base carbone (v18.1)"},{"$f":"Translate!$A$261","v":"Defra 2019 (v1.3)"},null,1.02,1.2580899999999999,null,null,null,null,null,null,null,{"$f":"(1.265+0.0389*0.265)/1.609","v":0.79260938471100062},null,null,{"$f":"Translate!$A$240","v":"tkm"},{"$f":"Translate!$A$525","v":"ton-mile"},null,{"$f":"Translate!$A$270","v":"Factor 2 not taken into account"}]
[0,null,{"$f":"Translate!$A$211","v":"Air - Long-haul international"},"tkm",0.59833000000000003,"Defra 2019 (v1.3)",null,null,null,0.3,{"$f":"Translate!$A$261","v":"Defra 2019 (v1.3)"},{"$f":"Translate!$A$532","v":"EPA"},{"$f":"Translate!$A$258","v":"Base carbone (v18.1)"},{"$f":"Translate!$A$261","v":"Defra 2019 (v1.3)"},null,0.83,0.59833000000000003,null,null,null,null,null,null,null,{"$f":"(1.265+0.0389*0.265)/1.609","v":0.79260938471100062},null,null,{"$f":"Translate!$A$240","v":"tkm"},{"$f":"Translate!$A$525","v":"ton-mile"},null,{"$f":"Translate!$A$270","v":"Factor 2 not taken into account"}]
[0,null,{"$f":"Translate!$A$212","v":"Maritime -  General cargo "},"tkm",1.3232000000000001E-2,"Defra 2019 (v1.3)",null,null,null,0.3,{"$f":"Translate!$A$261","v":"Defra 2019 (v1.3)"},{"$f":"Translate!$A$532","v":"EPA"},{"$f":"Translate!$A$258","v":"Base carbone (v18.1)"},{"$f":"Translate!$A$261","v":"Defra 2019 (v1.3)"},null,1.32E-2,1.3232000000000001E-2,null,null,null,null,null,null,null,{"$f":"(0.04+0.0122*0.03+0.0017*0.265)/1.609","v":2.5367619639527657E-2},null,null,{"$f":"Translate!$A$240","v":"tkm"},{"$f":"Translate!$A$525","v":"ton-mile"}]
[0,null,{"$f":"Translate!$A$213","v":"Maritime -  Container "},"tkm",1.6142E-2,"Defra 2019 (v1.3)",null,null,null,0.3,{"$f":"Translate!$A$261","v":"Defra 2019 (v1.3)"},{"$f":"Translate!$A$532","v":"EPA"},{"$f":"Translate!$A$258","v":"Base carbone (v18.1)"},{"$f":"Translate!$A$261","v":"Defra 2019 (v1.3)"},null,1.41E-2,1.6142E-2,null,null,null,null,null,null,null,{"$f":"(0.04+0.0122*0.03+0.0017*0.265)/1.609","v":2.5367619639527657E-2},null,null,{"$f":"Translate!$A$240","v":"tkm"},{"$f":"Translate!$A$525","v":"ton-mile"}]
[0,null,{"$f":"Translate!$A$214","v":"Rail - Average freight - thermic"},"tkm",2.947271779141105E-2,"EcoTransit",null,null,null,0.3,{"$f":"Translate!$A$262","v":"EcoTransit"},{"$f":"Translate!$A$532","v":"EPA"},{"$f":"Translate!$A$258","v":"Base carbone (v18.1)"},{"$f":"Translate!$A$262","v":"EcoTransit"},null,2.8000000000000001E-2,null,null,null,null,{"$f":"87/9.78*E212/1000","v":2.947271779141105E-2},null,null,null,{"$f":"(0.021+0.0017*0.03+0.0005*0.265)/1.609","v":1.3165630826600374E-2},null,null,{"$f":"Translate!$A$240","v":"tkm"},{"$f":"Translate!$A$525","v":"ton-mile"},null,{"$f":"Translate!$A$271","v":"EcoTransit + DEFRA"}]
[0,null,"Rail - Average freight - electric - United Kingdom","tkm",1.068433133842147E-2,"EcoTransit",null,null,null,0.3,{"$f":"Translate!$A$262","v":"EcoTransit"},{"$f":"Translate!$A$262","v":"EcoTransit"},{"$f":"Translate!$A$258","v":"Base carbone (v18.1)"},{"$f":"Translate!$A$262","v":"EcoTransit"},null,1.24E-3,null,null,null,null,{"$f":"VLOOKUP($C$45&\" - \"&MID(C226,LEN(Translate!$A$474)+1,LEN(C226)-LEN(Translate!$A$474)),$C$45:$E$211,3,0)/(1.08)*(1.03)*32/1000","v":1.068433133842147E-2},null,null,null,null,null,null,{"$f":"Translate!$A$240","v":"tkm"},{"$f":"Translate!$A$525","v":"ton-mile"},null,{"$f":"Translate!$A$272","v":"EcoTransit + IEA"}]
[{"$f":"IF(AND(ISBLANK(C227),ISBLANK(G227)),OFFSET(A227,-1,0),OFFSET(A227,-1,0)+1)","v":0},null,null,null,{"$f":"G227","v":0},{"$f":"H227","v":0}]
[{"$f":"IF(AND(ISBLANK(C228),ISBLANK(G228)),OFFSET(A228,-1,0),OFFSET(A228,-1,0)+1)","v":0},null,null,null,{"$f":"G228","v":0},{"$f":"H228","v":0}]
[{"$f":"IF(ISBLANK(H229),OFFSET(A229,-1,0),OFFSET(A229,-1,0)+1)","v":0},null,{"$f":"Translate!$A$108","v":"People's transportation"}]
[0,null,{"$f":"Translate!$A$215","v":"Diesel oil"},{"$f":"INDEX(AB230:AC230,MATCH($F$3,$AB$6:$AC$6,0))","v":"liter"},{"$f":"IF(F230=H230,G230,INDEX(P230:Z230,MATCH($F230,$P$6:$Z$6,0)))/IF($F$3=$AC$6,VLOOKUP(D230,$E$410:$G$418,3,0),1)","v":3.2112000000000003},{"$f":"IF(ISBLANK(H230),INDEX(K230:N230,$D$4),H230)","v":"Defra 2019 (v1.3)"},null,null,null,0.05,{"$f":"Translate!$A$261","v":"Defra 2019 (v1.3)"},{"$f":"Translate!$A$532","v":"EPA"},{"$f":"Translate!$A$258","v":"Base carbone (v18.1)"},{"$f":"Translate!$A$261","v":"Defra 2019 (v1.3)"},null,3.16,{"$f":"2.59411+0.61709","v":3.2112000000000003},null,null,null,null,null,null,null,{"$f":"Y212","v":2.6939313984168867},null,null,{"$f":"Translate!$A$238","v":"liter"},{"$f":"Translate!$A$523","v":"gallon"}]
[0,null,{"$f":"Translate!$A$216","v":"Bus"},"pkm",0.12970999999999999,"Defra 2019 (v1.3)",null,null,null,0.3,{"$f":"Translate!$A$261","v":"Defra 2019 (v1.3)"},{"$f":"Translate!$A$532","v":"EPA"},{"$f":"Translate!$A$258","v":"Base carbone (v18.1)"},{"$f":"Translate!$A$261","v":"Defra 2019 (v1.3)"},null,0.10299999999999999,{"$f":"0.10471+0.025","v":0.12970999999999999},null,null,null,null,null,null,null,{"$f":"(0.053+0.0206*0.03+0.0009*0.265)/1.609","v":3.3472032318210068E-2},null,null,{"$f":"Translate!$A$241","v":"pkm"},{"$f":"Translate!$A$526","v":"passenger-mile"}]
[0,null,{"$f":"Translate!$A$217","v":"Car"},"vkm",0.21470999999999998,"Defra 2019 (v1.3)",null,null,null,0.3,{"$f":"Translate!$A$261","v":"Defra 2019 (v1.3)"},{"$f":"Translate!$A$532","v":"EPA"},{"$f":"Translate!$A$258","v":"Base carbone (v18.1)"},{"$f":"Translate!$A$261","v":"Defra 2019 (v1.3)"},null,0.193,{"$f":"0.17336+0.04135","v":0.21470999999999998},null,null,null,null,null,null,null,{"$f":"(0.335+0.009*0.03+0.008*0.265)/1.609","v":0.20968924798011188},null,null,{"$f":"Translate!$A$239","v":"vkm"},{"$f":"Translate!$A$524","v":"vehicle-mile"}]
[0,null,{"$f":"Translate!$A$218","v":"Train"},"pkm",4.9049999999999996E-2,"Defra 2019 (v1.3)",null,null,null,0.3,{"$f":"Translate!$A$261","v":"Defra 2019 (v1.3)"},{"$f":"Translate!$A$532","v":"EPA"},{"$f":"Translate!$A$258","v":"Base carbone (v18.1)"},{"$f":"Translate!$A$261","v":"Defra 2019 (v1.3)"},null,1.73E-3,{"$f":"0.04115+0.0079","v":4.9049999999999996E-2},null,null,null,null,null,null,null,{"$f":"(0.113+0.0092*0.03+0.0026*0.265)/1.609","v":7.0829707893101307E-2},null,null,{"$f":"Translate!$A$241","v":"pkm"},{"$f":"Translate!$A$526","v":"passenger-mile"}]
[0,null,{"$f":"Translate!$A$219","v":"Air passenger - Domestic"},"pkm",0.16274,"Defra 2019 (v1.3)",null,null,null,0.3,{"$f":"Translate!$A$261","v":"Defra 2019 (v1.3)"},{"$f":"Translate!$A$532","v":"EPA"},{"$f":"Translate!$A$258","v":"Base carbone (v18.1)"},{"$f":"Translate!$A$261","v":"Defra 2019 (v1.3)"},null,0.14099999999999999,{"$f":"0.13483+0.02791","v":0.16274},null,null,null,null,null,null,null,{"$f":"(0.215+0.0077*0.03+0.0068*0.265)/1.609","v":0.13488688626476072},null,null,{"$f":"Translate!$A$241","v":"pkm"},{"$f":"Translate!$A$526","v":"passenger-mile"}]
[0,null,{"$f":"Translate!$A$220","v":"Air passenger - Short-haul international"},"pkm",0.10103999999999999,"Defra 2019 (v1.3)",null,null,null,0.3,{"$f":"Translate!$A$261","v":"Defra 2019 (v1.3)"},{"$f":"Translate!$A$532","v":"EPA"},{"$f":"Translate!$A$258","v":"Base carbone (v18.1)"},{"$f":"Translate!$A$261","v":"Defra 2019 (v1.3)"},null,0.10199999999999999,{"$f":"0.0837+0.01734","v":0.10103999999999999},null,null,null,null,null,null,null,{"$f":"(0.133+0.0006*0.03+0.0042*0.265)/1.609","v":8.3362958359229342E-2},null,null,{"$f":"Translate!$A$241","v":"pkm"},{"$f":"Translate!$A$526","v":"passenger-mile"}]
[0,null,{"$f":"Translate!$A$221","v":"Air passenger - Long-haul international"},"pkm",0.12484000000000001,"Defra 2019 (v1.3)",null,null,null,0.3,{"$f":"Translate!$A$261","v":"Defra 2019 (v1.3)"},{"$f":"Translate!$A$532","v":"EPA"},{"$f":"Translate!$A$258","v":"Base carbone (v18.1)"},{"$f":"Translate!$A$261","v":"Defra 2019 (v1.3)"},null,8.3000000000000004E-2,{"$f":"0.10342+0.02142","v":0.12484000000000001},null,null,null,null,null,null,null,{"$f":"(0.165+0.0006*0.03+0.0052*0.265)/1.609","v":0.10341578620261031},null,null,{"$f":"Translate!$A$241","v":"pkm"},{"$f":"Translate!$A$526","v":"passenger-mile"}]
[{"$f":"IF(AND(ISBLANK(C237),ISBLANK(G237)),OFFSET(A237,-1,0),OFFSET(A237,-1,0)+1)","v":0},null,null,null,{"$f":"G237","v":0},{"$f":"H237","v":0}]
[{"$f":"IF(AND(ISBLANK(C238),ISBLANK(G238)),OFFSET(A238,-1,0),OFFSET(A238,-1,0)+1)","v":0},null,null,null,{"$f":"G238","v":0},{"$f":"H238","v":0}]
[{"$f":"IF(ISBLANK(H239),OFFSET(A239,-1,0),OFFSET(A239,-1,0)+1)","v":0},null,{"$f":"Translate!$A$109","v":"Assets"}]
[{"$f":"IF(ISBLANK(H240),OFFSET(A240,-1,0),OFFSET(A240,-1,0)+1)","v":0},null,{"$f":"Translate!$A$222","v":"Machines"},{"$f":"INDEX(AB240:AC240,MATCH($F$3,$AB$6:$AC$6,0))","v":"t"},{"$f":"IF(F240=H240,G240,INDEX(P240:Z240,MATCH($F240,$P$6:$Z$6,0)))/IF($F$3=$AC$6,VLOOKUP(D240,$E$410:$G$418,3,0),1)","v":3666.6666666666665},{"$f":"IF(ISBLANK(H240),INDEX(K240:N240,$D$4),H240)","v":"Base carbone (v18.1)"},null,null,null,0.5,{"$f":"Translate!$A$258","v":"Base carbone (v18.1)"},{"$f":"Translate!$A$258","v":"Base carbone (v18.1)"},{"$f":"Translate!$A$258","v":"Base carbone (v18.1)"},{"$f":"Translate!$A$258","v":"Base carbone (v18.1)"},null,{"$f":"1000*44/12","v":3666.6666666666665},null,null,null,null,null,null,null,null,null,null,null,{"$f":"Translate!$A$101","v":"t"},{"$f":"Translate!$A$520","v":"lb"}]
[{"$f":"IF(ISBLANK(H241),OFFSET(A241,-1,0),OFFSET(A241,-1,0)+1)","v":0},null,{"$f":"C26","v":"Steel sheets"},{"$f":"INDEX(AB241:AC241,MATCH($F$3,$AB$6:$AC$6,0))","v":"t"},{"$f":"IF(F241=H241,G241,INDEX(P241:Z241,MATCH($F241,$P$6:$Z$6,0)))/IF($F$3=$AC$6,VLOOKUP(D241,$E$410:$G$418,3,0),1)","v":2164},{"$f":"F26","v":"Ecoinvent v3.1"},null,null,null,{"$f":"J26","v":0.3},{"$f":"K26","v":"Ecoinvent v3.1"},{"$f":"L26","v":"Ecoinvent v3.1"},{"$f":"M26","v":"Base carbone (v18.1)"},{"$f":"N26","v":"ICE V3"},null,{"$f":"P26","v":2211},0,0,2164,3060,0,0,0,0,0,null,null,{"$f":"AB26","v":"t"},{"$f":"AC26","v":"lb"}]
[{"$f":"IF(AND(ISBLANK(C242),ISBLANK(G242)),OFFSET(A242,-1,0),OFFSET(A242,-1,0)+1)","v":0},null,null,null,{"$f":"G242","v":0},{"$f":"H242","v":0}]
[{"$f":"IF(AND(ISBLANK(C243),ISBLANK(G243)),OFFSET(A243,-1,0),OFFSET(A243,-1,0)+1)","v":0},null,null,null,{"$f":"G243","v":0},{"$f":"H243","v":0}]
[{"$f":"IF(ISBLANK(H244),OFFSET(A244,-1,0),OFFSET(A244,-1,0)+1)","v":0}]
[]
[]
[]
[]
[]
[null,null,{"$f":"MAX(A8:A244)","v":0},{"$f":"Translate!$A$153","v":"added emission factors"}]
[null,null,1,{"$f":"IF($C251>$C$250,\"\",VLOOKUP($C251,$A$8:$H$244,3,0))","v":""},{"$f":"IF($C251>$C$250,\"\",VLOOKUP($C251,$A$8:$H$244,7,0))","v":""},{"$f":"IF($C251>$C$250,\"\",\"kgCO2/\"&VLOOKUP($C251,$A$8:$H$244,4,0))","v":""},{"$f":"IF($C251>$C$250,\"\",VLOOKUP($C251,$A$8:$H$244,8,0))","v":""}]
[null,null,{"$f":"C251+1","v":2},"","","",""]
[null,null,{"$f":"C252+1","v":3},"","","",""]
[null,null,4,"","","",""]
[null,null,5,"","","",""]
[null,null,6,"","","",""]
[null,null,7,"","","",""]
[null,null,8,"","","",""]
[null,null,9,"","","",""]
[null,null,10,"","","",""]
[null,null,11,"","","",""]
[null,null,12,"","","",""]
[null,null,13,"","","",""]
[null,null,14,"","","",""]
[null,null,15,"","","",""]
[null,null,16,"","","",""]
[null,null,17,"","","",""]
[null,null,18,"","","",""]
[null,null,19,"","","",""]
[null,null,20,"","","",""]
[null,null,21,"","","",""]
[null,null,22,"","","",""]
[null,null,23,"","","",""]
[null,null,24,"","","",""]
[null,null,25,"","","",""]
[null,null,26,"","","",""]
[null,null,27,"","","",""]
[null,null,28,"","","",""]
[null,null,29,"","","",""]
[null,null,30,"","","",""]
[]
[]
[]
[{"$f":"IF(ISBLANK(H284),OFFSET(A284,-1,0),OFFSET(A284,-1,0)+1)","v":0},null,{"$f":"Translate!$A$223","v":"Cement types"}]
[null,null,{"$f":"Translate!$A$120","v":"Type"},{"$f":"Translate!$A$77","v":"Secondary constituent"},{"$f":"Translate!$A$246","v":"Secondary constituent minimum content"},{"$f":"Translate!$A$250","v":"Secondary constituent maximum content"},{"$f":"Translate!$A$252","v":"Secondary constituent average content"}]
[null,null,{"$f":"Translate!$A$181","v":"CEM I"},{"$f":"Translate!$A$242","v":"-"},0,0,0]
[null,null,{"$f":"Translate!$A$224","v":"CEM II/A-LL or L"},{"$f":"C18","v":"Limestone"},0.06,0.2,{"$f":"AVERAGE(E287:F287)","v":0.13}]
[null,null,{"$f":"Translate!$A$225","v":"CEM II/A-V"},{"$f":"C17","v":"Fly Ash"},0.06,0.2,0.13]
[null,null,{"$f":"Translate!$A$226","v":"CEM II/B-V"},{"$f":"D288","v":"Fly Ash"},0.21,0.35,0.27999999999999997]
[null,null,{"$f":"Translate!$A$227","v":"CEM II/B-S"},{"$f":"C16","v":"GGbs"},0.21,0.35,0.27999999999999997]
[null,null,{"$f":"Translate!$A$228","v":"CEM III/A"},{"$f":"D290","v":"GGbs"},0.36,0.65,0.505]
[null,null,{"$f":"Translate!$A$229","v":"CEM III/B"},{"$f":"D291","v":"GGbs"},0.66,0.8,0.73]
[null,null,{"$f":"Translate!$A$230","v":"CEM III/C"},{"$f":"D292","v":"GGbs"},0.81,0.95,{"$f":"AVERAGE(E293:F293)","v":0.88}]
[null,null,{"$f":"Translate!$A$231","v":"CEM IV/B-V"},{"$f":"D289","v":"Fly Ash"},0.36,0.55000000000000004,0.45500000000000002]
[]
[]
[{"$f":"IF(ISBLANK(H297),OFFSET(A297,-1,0),OFFSET(A297,-1,0)+1)","v":0},null,{"$f":"Translate!$A$232","v":"Default recycled content"}]
[null,null,{"$f":"Translate!$A$104","v":"Materials"},{"$f":"Translate!$A$232","v":"Default recycled content"},{"$f":"Translate!$A$247","v":"Source"}]
[null,null,{"$f":"Translate!$A$192","v":"Steel sheets"},0.41]
[null,null,{"$f":"Translate!$A$193","v":"Steel rebars"},0.41]
[null,null,{"$f":"Translate!$A$194","v":"Steel tubes"},0.41]
[null,null,{"$f":"Translate!$A$195","v":"Steel wires"},0.41]
[]
[]
[]
[]
[]
[]
[{"$f":"IF(ISBLANK(H309),OFFSET(A309,-1,0),OFFSET(A309,-1,0)+1)","v":0},null,{"$f":"Translate!$A$235","v":"Freight load"}]
[null,null,null,{"$f":"Translate!$A$243","v":"Default load"},null,{"$f":"Translate!$A$516","v":"m3"},{"$f":"Translate!$A$522","v":"yd3"}]
[null,null,"Road - concrete transportation",{"$f":"IF($F$3=$AC$6,$G$311,$F$311)","v":8},{"$f":"IF($F$3=$AC$6,$G$310,$F$310)","v":"m3"},8,{"$f":"ROUND(F311/0.765,0)","v":10}]
[null,null,null,null,null,{"$f":"Translate!$A$101","v":"t"},{"$f":"Translate!$A$520","v":"lb"}]
[null,null,{"$f":"C213","v":"Road - Rigid >3.5-7.5t"},{"$f":"IF($F$3=$AC$6,G313,F313)","v":1.0123216601815823},{"$f":"IF($F$3=$AC$6,$G$312,$F$312)","v":"t"},1.0123216601815823,{"$f":"ROUND(F313*1000/0.45359237,0)","v":2232}]
[null,null,"Road - Rigid >7.5-17t",2.0598214285714285,"t",2.0598214285714285,{"$f":"ROUND(F314*1000/0.45359237,0)","v":4541}]
[null,null,"Road - Rigid >17t",7.5,"t",7.5,{"$f":"ROUND(F315*1000/0.45359237,0)","v":16535}]
[null,null,"Road - Articulated >3.5-33t",5.5104895104895109,"t",5.5104895104895109,{"$f":"ROUND(F316*1000/0.45359237,0)","v":12149}]
[null,null,"Road - Articulated >33t",15,"t",15,{"$f":"ROUND(F317*1000/0.45359237,0)","v":33069}]
[null,null,0,1,"t",1,1]
[null,null,0,1,"t",1,1]
[null,null,"Air - Domestic",1,"t",1,1]
[null,null,"Air - Short-haul international",1,"t",1,1]
[null,null,"Air - Long-haul international",1,"t",1,1]
[null,null,"Maritime -  General cargo ",1,"t",1,1]
[null,null,"Maritime -  Container ",1,"t",1,1]
[null,null,"Rail - Average freight - thermic",1,"t",1,1]
[null,null,"Rail - Average freight - electric - United Kingdom",1,"t",1,1]
[null,null,0,1,"t",1,1]
[null,null,0,1,"t",1,1]
[]
[{"$f":"IF(ISBLANK(H330),OFFSET(A330,-1,0),OFFSET(A330,-1,0)+1)","v":0},null,{"$f":"Translate!$A$236","v":"Standard freight activities data"}]
[null,null,null,{"$f":"Translate!$A$244","v":"Freight Type"},null,{"$f":"Translate!$A$248","v":"Common distance (km)"},{"$f":"Translate!$A$528","v":"Common distance (miles)"}]
[null,null,{"$f":"Translate!$A$198","v":"Water"},{"$f":"Translate!$A$204","v":"Road - Rigid >3.5-7.5t"},{"$f":"IF($F$3=$AC$6,G332,F332)","v":0},0,{"$f":"ROUND(F332/1.61,1)","v":0}]
[null,null,{"$f":"Translate!$A$75","v":"Cement"},{"$f":"Translate!$A$206","v":"Road - Rigid >17t"},{"$f":"IF($F$3=$AC$6,G333,F333)","v":20},20,12.4]
[null,null,{"$f":"Translate!$A$190","v":"Sand"},{"$f":"Translate!$A$208","v":"Road - Articulated >33t"},{"$f":"IF($F$3=$AC$6,G334,F334)","v":20},20,12.4]
[null,null,{"$f":"Translate!$A$177","v":"Aggregate"},{"$f":"Translate!$A$208","v":"Road - Articulated >33t"},{"$f":"IF($F$3=$AC$6,G335,F335)","v":20},20,12.4]
[null,null,null,null,null,null,0]
[null,null,{"$f":"Translate!$A$118","v":"Other"},{"$f":"Translate!$A$208","v":"Road - Articulated >33t"},{"$f":"IF($F$3=$AC$6,G337,F337)","v":300},300,186.3]
[]
[{"$f":"IF(ISBLANK(H339),OFFSET(A339,-1,0),OFFSET(A339,-1,0)+1)","v":0},null,{"$f":"Translate!$A$506","v":"Standard ratios"}]
[null,null,{"$f":"COLUMN(C340)-COLUMN($C$341)+1","v":1},2,3,4,5,6,7,8,9,10,11,12,13,14,15,{"$f":"COLUMN(R340)-COLUMN($C$340)+1","v":16},{"$f":"COLUMN(S340)-COLUMN($C$341)+1","v":17},18,19,20,21,22,23,24,25,26,27,28,29,30]
[null,null,null,{"$f":"Translate!$A$513","v":"Average ratio"},null,null,null,null,null,null,{"$f":"Translate!$A$530","v":"Maximum ratio"},null,null,null,null,null,null,{"$f":"Translate!$A$534","v":"Minimum ratio"},null,null,null,null,null,null,{"$f":"Translate!$A$535","v":"Primary (1) / Secoundary (2) sources"},null,null,null,null,null,null,"Sheet template"]
[null,null,null,{"$f":"Translate!$A$105","v":"Energy"},{"$f":"Translate!$A$104","v":"Materials"},{"$f":"Translate!$A$106","v":"Freight"},{"$f":"Translate!$A$107","v":"Mob/demob"},{"$f":"Translate!$A$108","v":"People's transportation"},{"$f":"Translate!$A$109","v":"Assets"},{"$f":"Translate!$A$110","v":"Waste"},{"$f":"D342","v":"Energy"},{"$f":"E342","v":"Materials"},"Freight","Mob/demob","People's transportation","Assets","Waste","Energy","Materials","Freight","Mob/demob","People's transportation","Assets",{"$f":"Q342","v":"Waste"},"Energy","Materials","Freight","Mob/demob","People's transportation","Assets","Waste"]
[null,null,{"$f":"Lists!A2","v":"Bored piles"},4.0916663959490784E-2,0.95908333604050922,6.411482467395477E-3,3.1868748686830371E-3,1.8692695917956075E-3,4.377484024657128E-3,2.6591480192145979E-3,0.15,1,0.1,0.1,0.1,0.05,0.05,0.02,0.5,1E-3,1E-4,1E-4,5.0000000000000001E-4,0,1,1,2,2,2,2,2,1]
[null,null,{"$f":"Lists!A3","v":"Displacement piles"},4.1644221323026691E-2,0.9583557786769733,1.8739154571875645E-2,1.0169826763321867E-2,6.5301388283712861E-3,5.8177041765637054E-3,0,0.15836296224047822,1,0.1,0.1,0.1,0.05,0.05,0.02,0.5,1E-3,1E-4,1E-4,5.0000000000000001E-4,0,1,1,2,2,2,2,2,1]
[null,null,{"$f":"Lists!A4","v":"Micropiles/Minipiles"},9.2842993752644584E-2,0.9071570062473554,1.810535734442522E-2,7.6858966485998563E-3,1.7714173081825206E-2,1.375706103394608E-2,4.649171106089393E-3,0.19062436769933661,1,0.1,0.1,0.1,0.05,0.05,0.02,0.5,1E-3,1E-4,1E-4,5.0000000000000001E-4,0,1,1,2,2,2,2,2,1]
[null,null,{"$f":"Lists!A5","v":"Diaphragm and slurry walls"},0.1086442873103889,0.89135571268961111,1.2961482249367716E-2,1.1893294205425564E-2,7.3865110813088747E-3,1.0559083390218988E-2,6.4556510786077017E-3,0.26152937995470904,1,0.1,0.1,0.1,0.05,0.05,0.04,0.5,1E-3,1E-4,1E-4,5.0000000000000001E-4,0,1,1,2,2,2,2,2,1]
[null,null,{"$f":"Lists!A6","v":"Sheet pile walls"},1.6711997339207415E-2,0.98328800266079253,1.2625723969472419E-2,1.4432279460696474E-3,9.389183685151457E-3,3.4728968745457432E-3,0,4.2138070504689353E-2,1,0.1,0.1,0.1,0.05,0.05,0.01,0.5,1E-3,1E-4,1E-4,5.0000000000000001E-4,0,2,1,2,2,2,2,2,1]
[null,null,{"$f":"Lists!A7","v":"Pile walls"},0.11052786630433771,0.88947213369566225,2.282592401015008E-2,9.6121760628132911E-3,1.3244808825357562E-2,1.3903359226777238E-2,0,0.3,1,0.1,0.1,0.2,0.1,0.1,0.02,0,1E-3,0,0,0,0,1,1,2,2,2,2,2,1]
[null,null,{"$f":"Lists!A8","v":"Anchors"},0.18661588728934392,0.81338411271065614,2.4798759904805838E-2,9.8854516296809063E-3,2.4650744604902658E-2,1.5205035581471982E-2,1.4719009096432431E-3,0.5,1,0.2,0.1,0.2,0.1,0.1,0.01,0,1E-3,0,0,0,0,1,1,2,2,2,2,2,1]
[null,null,{"$f":"Lists!A9","v":"Soil Nails"},9.4133945360327001E-2,0.90586605463967296,1.5338789701299656E-2,8.8609586386441414E-3,3.9949931165215429E-3,2.1637149326547149E-3,0,0.3,1,0.1,0.1,0.2,0.1,0.1,5.0000000000000001E-3,0,1E-3,0,0,0,0,1,1,2,2,2,2,2,1]
[null,null,{"$f":"Lists!A10","v":"Dynamic compaction"},0.72613160137232247,0,0,0.11025726608594562,6.4582840734115797E-3,0.1636111059500443,2.6591687681000226E-8,1,0.8,0.1,0.3,0.2,0.5,0.1,0.1,0,1E-3,0.01,0,0.01,0,1,2,2,1,1,1,2,3]
[null,null,{"$f":"Lists!A11","v":"Vibro compaction"},0.61163570754207885,0.38836429245792115,5.4770318142806258E-2,7.4611405656390623E-3,5.4142761608213061E-2,2.3477406963195554E-2,0,0.9,1,0.1,0.1,0.2,0.1,0.1,0.03,0,1E-3,0,0,0,0,1,1,1,1,1,1,2,2]
[null,null,{"$f":"Lists!A12","v":"Grouting"},0.23769924908646239,0.76230075091353755,2.4870849736436395E-2,7.6954609470492753E-3,3.9206249120086821E-2,1.7136924269504153E-2,2.9771541603212069E-4,0.54891487481068657,1,0.1,0.1,0.1,0.08,0.05,0.05,0.5,1E-3,1E-4,1E-4,5.0000000000000001E-4,0,1,1,2,2,2,2,2,1]
[null,null,{"$f":"Lists!A13","v":"Jet Grouting"},0.13662485583330453,0.86337514416669547,1.9419408945262874E-2,8.2340519385720179E-3,1.0112619903371943E-2,1.3239820667780669E-2,3.7807008001388793E-3,0.4,1,0.2,0.15,0.2,0.1,0.1,0.01,0,1E-3,0,0,0,0,1,1,2,2,2,2,2,1]
[null,null,{"$f":"Lists!A14","v":"Stone Columns"},0.40457254807007886,0.42796665824037533,0.16746079368954583,2.6475605126559915E-2,5.2105497131751659E-2,3.3422268107742015E-2,1.4230130177638998E-7,0.6,1,0.8,0.15,0.2,0.15,0.1,0.03,0,0.02,0,0,0,0,1,1,1,2,2,2,2,2]
[null,null,{"$f":"Lists!A15","v":"Soil Mixing"},0.17223090346139869,0.82776909653860131,2.9152920695675481E-2,1.9057267955190929E-2,7.1659120621544595E-3,1.4996057042200592E-2,1.3209862892618672E-3,0.40597417531602842,1,0.1,0.1,0.1,0.05,0.05,0.05,0.5,1E-3,1E-4,1E-4,5.0000000000000001E-4,0,1,1,2,2,2,2,2,1]
[null,null,{"$f":"Lists!A16","v":"Vertical Drains"},0.31407471675310539,0.68592528324689461,8.6807392094092384E-2,1.7088531079671034E-2,1.0515683900542852E-3,2.2846102331717216E-2,0,0.6,1,0.15,0.1,0.2,0.1,0.1,1E-3,0,1E-3,0,0,0,0,1,1,1,1,2,1,2,2]
[null,null,{"$f":"Lists!A17","v":"Dewatering"},0.45,0.1,0.01,0.18,0.02,0.24,{"$f":"J351","v":2.6591687681000226E-8},1,0.5,0.5,0.5,0.5,0.5,0.5,0.1,0,1E-3,0,0,0,0,1,1,1,1,1,1,2,2]
[null,null,{"$f":"Lists!A18","v":"Other"},0,0,0,0,0,0,0,1,1,1,1,1,1,1,0,0,0,0,0,0,0,1,1,1,1,1,1,1,2]
[]
[]
[]
[]
[]
[]
[]
[]
[]
[]
[]
[]
[]
[{"$f":"IF(ISBLANK(H373),OFFSET(A373,-1,0),OFFSET(A373,-1,0)+1)","v":0},null,{"$f":"Translate!$A$88","v":"Default concrete"}]
[null,null,null,null,null,null,null,null,null,{"$f":"Translate!$A$517","v":"kg"},null,null,null,null,{"$f":"Translate!$A$520","v":"lb"}]
[null,null,null,{"$f":"Translate!$A$514","v":"Cement used"},{"$f":"Translate!A76","v":"Total cementitious content"},{"$f":"Translate!A78","v":"Secondary constituent content"},{"$f":"Translate!A177","v":"Aggregate"},{"$f":"Translate!A190","v":"Sand"},{"$f":"Translate!A198","v":"Water"},{"$f":"E375","v":"Total cementitious content"},"Secondary constituent content","Aggregate","Sand","Water","Total cementitious content","Secondary constituent content","Aggregate","Sand","Water"]
[null,null,1,{"$f":"C376+1","v":2},3,4,5,6,7]
[null,null,{"$f":"C343","v":"Bored piles"},{"$f":"Translate!$A$181","v":"CEM I"},{"$f":"IF($F$3=$AC$6,O377,J377)","v":400},{"$f":"IF($F$3=$AC$6,P377,K377)","v":0},{"$f":"IF($F$3=$AC$6,Q377,L377)","v":900},{"$f":"IF($F$3=$AC$6,R377,M377)","v":800},{"$f":"IF($F$3=$AC$6,S377,N377)","v":200},400,null,900,800,200,{"$f":"J377/0.45359237","v":881.84904873951029},{"$f":"K377/0.45359237","v":0},{"$f":"L377/0.45359237","v":1984.1603596638981},{"$f":"M377/0.45359237","v":1763.6980974790206},{"$f":"N377/0.45359237","v":440.92452436975515}]
[null,null,"Displacement piles",{"$f":"Translate!$A$181","v":"CEM I"},400,0,900,800,200,400,null,900,800,200,{"$f":"J378/0.45359237","v":881.84904873951029},0,1984.1603596638981,1763.6980974790206,440.92452436975515]
[null,null,"Micropiles/Minipiles",{"$f":"Translate!$A$181","v":"CEM I"},400,0,900,800,200,400,null,900,800,200,881.84904873951029,0,1984.1603596638981,1763.6980974790206,440.92452436975515]
[null,null,"Diaphragm and slurry walls",{"$f":"Translate!$A$181","v":"CEM I"},400,0,900,800,200,400,null,900,800,200,881.84904873951029,0,1984.1603596638981,1763.6980974790206,440.92452436975515]
[null,null,"Sheet pile walls",{"$f":"Translate!$A$181","v":"CEM I"},400,0,900,800,200,400,null,900,800,200,881.84904873951029,0,1984.1603596638981,1763.6980974790206,440.92452436975515]
[null,null,"Pile walls",{"$f":"Translate!$A$181","v":"CEM I"},400,0,900,800,200,400,null,900,800,200,881.84904873951029,0,1984.1603596638981,1763.6980974790206,440.92452436975515]
[null,null,"Anchors",{"$f":"Translate!$A$181","v":"CEM I"},400,0,900,800,200,400,null,900,800,200,881.84904873951029,0,1984.1603596638981,1763.6980974790206,440.92452436975515]
[null,null,"Soil Nails",{"$f":"Translate!$A$181","v":"CEM I"},400,0,900,800,200,400,null,900,800,200,881.84904873951029,0,1984.1603596638981,1763.6980974790206,440.92452436975515]
[null,null,"Dynamic compaction",{"$f":"Translate!$A$181","v":"CEM I"},400,0,900,800,200,400,null,900,800,200,881.84904873951029,0,1984.1603596638981,1763.6980974790206,440.92452436975515]
[null,null,"Vibro compaction",{"$f":"Translate!$A$181","v":"CEM I"},400,0,900,800,200,400,null,900,800,200,881.84904873951029,0,1984.1603596638981,1763.6980974790206,440.92452436975515]
[null,null,"Grouting",{"$f":"Translate!$A$181","v":"CEM I"},400,0,900,800,200,400,null,900,800,200,881.84904873951029,0,1984.1603596638981,1763.6980974790206,440.92452436975515]
[null,null,"Jet Grouting",{"$f":"Translate!$A$181","v":"CEM I"},400,0,900,800,200,400,null,900,800,200,881.84904873951029,0,1984.1603596638981,1763.6980974790206,440.92452436975515]
[null,null,"Stone Columns",{"$f":"Translate!$A$181","v":"CEM I"},400,0,900,800,200,400,null,900,800,200,881.84904873951029,0,1984.1603596638981,1763.6980974790206,440.92452436975515]
[null,null,"Soil Mixing",{"$f":"Translate!$A$181","v":"CEM I"},400,0,900,800,200,400,null,900,800,200,881.84904873951029,0,1984.1603596638981,1763.6980974790206,440.92452436975515]
[null,null,"Vertical Drains",{"$f":"Translate!$A$181","v":"CEM I"},400,0,900,800,200,400,null,900,800,200,881.84904873951029,0,1984.1603596638981,1763.6980974790206,440.92452436975515]
[null,null,"Dewatering",{"$f":"Translate!$A$181","v":"CEM I"},{"$f":"IF($F$3=$AC$6,O392,J392)","v":400},{"$f":"IF($F$3=$AC$6,P392,K392)","v":0},{"$f":"IF($F$3=$AC$6,Q392,L392)","v":900},{"$f":"IF($F$3=$AC$6,R392,M392)","v":800},{"$f":"IF($F$3=$AC$6,S392,N392)","v":200},400,null,900,800,200,{"$f":"J392/0.45359237","v":881.84904873951029},{"$f":"K392/0.45359237","v":0},{"$f":"L392/0.45359237","v":1984.1603596638981},{"$f":"M392/0.45359237","v":1763.6980974790206},{"$f":"N392/0.45359237","v":440.92452436975515}]
[null,null,{"$f":"C359","v":"Other"},{"$f":"Translate!$A$181","v":"CEM I"},400,0,900,800,200,400,null,900,800,200,881.84904873951029,0,1984.1603596638981,1763.6980974790206,440.92452436975515]
[]
[]
[]
[]
[]
[]
[]
[]
[]
[]
[]
[]
[]
[{"$f":"IF(ISBLANK(H407),OFFSET(A407,-1,0),OFFSET(A407,-1,0)+1)","v":0},null,{"$f":"Translate!$A$507","v":"Units"}]
[]
[null,null,null,{"$f":"Translate!$A$515","v":"European"},{"$f":"Translate!$A$518","v":"US"},{"$f":"Translate!$A$527","v":"Selected"},{"$f":"Translate!$A$529","v":"Conversion factor"}]
[null,null,{"$f":"Translate!$A$112","v":"Distance"},{"$f":"Translate!$A$119","v":"km"},{"$f":"Translate!$A$519","v":"miles"},{"$f":"IF($F$3=$AC$6,E410,D410)","v":"km"},{"$f":"1/1.61","v":0.6211180124223602}]
[null,null,{"$f":"Translate!$A$508","v":"mass"},{"$f":"Translate!$A$101","v":"t"},{"$f":"Translate!$A$520","v":"lb"},"t",{"$f":"1000/0.45359237","v":2204.6226218487759}]
[null,null,{"$f":"Translate!$A$508","v":"mass"},{"$f":"Translate!$A$101","v":"t"},{"$f":"Translate!$A$521","v":"ton"},"t",1.1020000000000001]
[null,null,{"$f":"Translate!$A$508","v":"mass"},{"$f":"Translate!$A$517","v":"kg"},{"$f":"Translate!$A$520","v":"lb"},"kg",{"$f":"1/0.45359237","v":2.2046226218487757}]
[null,null,{"$f":"Translate!$A$509","v":"volume"},{"$f":"Translate!$A$516","v":"m3"},{"$f":"Translate!$A$522","v":"yd3"},"m3",{"$f":"1/0.765","v":1.3071895424836601}]
[null,null,{"$f":"Translate!$A$509","v":"volume"},{"$f":"Translate!$A$238","v":"liter"},{"$f":"Translate!$A$523","v":"gallon"},"liter",{"$f":"0.264172052","v":0.26417205199999999}]
[null,null,{"$f":"Translate!$A$510","v":"transportation-vehicule"},{"$f":"Translate!$A$239","v":"vkm"},{"$f":"Translate!$A$524","v":"vehicle-mile"},"vkm",{"$f":"G410","v":0.6211180124223602}]
[null,null,{"$f":"Translate!$A$511","v":"transportation-tonne"},{"$f":"Translate!$A$240","v":"tkm"},{"$f":"Translate!$A$525","v":"ton-mile"},"tkm",{"$f":"G416","v":0.6211180124223602}]
[null,null,{"$f":"Translate!$A$512","v":"transportation-passenger"},{"$f":"Translate!$A$241","v":"pkm"},{"$f":"Translate!$A$526","v":"passenger-mile"},"pkm",{"$f":"G417","v":0.6211180124223602}]

{"sheet":"Logos","index":9,"n_rows":12,"n_cols":10,"rows_kept":12,"cut":false,"hidden":true,"merged":[]}
[]
[]
[]
[]
[]
[]
[]
[]
[]
[null,null,null,null,null,null,{"$f":"Translate!$A$275","v":"Insert your logo here"}]
[]
[null,{"$f":"Translate!$A$274","v":"Size"},1,null,null,null,null,null,null,{"$f":"Translate!$A$276","v":"The logo have to fit in the white box"}]

{"sheet":"Sheets","index":10,"n_rows":1,"n_cols":5,"rows_kept":1,"cut":false,"hidden":true,"merged":[]}
[{"$f":"Translate!$A$277","v":"Subprojects"},{"$f":"Translate!$A$278","v":"Projects"},{"$f":"Translate!$A$279","v":"Both"},{"$f":"Translate!$A$36","v":"Results"},{"$f":"Translate!$A$37","v":"Comparison"}]

{"sheet":"Lists","index":11,"n_rows":183,"n_cols":10,"rows_kept":183,"cut":false,"hidden":true,"merged":[]}
[{"$f":"Translate!$A$280","v":"Techniques"},{"$f":"Translate!$A$299","v":"Countries"},{"$f":"Translate!$A$473","v":"RailFreightElectric"},{"$f":"Translate!$A$254","v":"Material type"},null,null,{"$f":"Translate!$A$477","v":"new_recycled_reused"}]
[{"$f":"Translate!A281","v":"Bored piles"},{"$f":"Translate!$A$300","v":"-Select the project country"},{"$f":"Translate!$A$474&B2","v":"Rail - Average freight - electric - -Select the project country"},{"$f":"Translate!$A$73","v":"Concrete / Slurry / Grout mix"},{"$f":"Translate!$A$117","v":"made on site"},{"$f":"Translate!$A$91","v":"Default"},{"$f":"Translate!$A$478","v":"-new or recycled-"},{"$f":"Translate!$A$479","v":"Enter the number of working days\n"},{"$f":"Translate!A163","v":"Yes"},"Deutsch"]
[{"$f":"Translate!A282","v":"Displacement piles"},{"$f":"Translate!$A$301","v":"---OECD Europe"},{"$f":"Translate!$A$474&B3","v":"Rail - Average freight - electric - ---OECD Europe"},{"$f":"Translate!$A$138","v":"Steel"},{"$f":"Translate!$A$475","v":"made at plant"},{"$f":"Translate!$A$476","v":"Manually turned OFF"},{"$f":"Translate!$A$111","v":"-reused-"},{"$f":"Translate!$A$480","v":"Enter the average number of people working on the project\n"},{"$f":"Translate!A164","v":"No"},"English"]
[{"$f":"Translate!A283","v":"Micropiles/Minipiles"},{"$f":"Translate!$A$302","v":"Austria"},{"$f":"Translate!$A$474&B4","v":"Rail - Average freight - electric - Austria"},{"$f":"Translate!$A$118","v":"Other"},null,null,null,{"$f":"Translate!$A$481","v":"Select a country\n"},null,"Français"]
[{"$f":"Translate!A284","v":"Diaphragm and slurry walls"},{"$f":"Translate!$A$303","v":"Belgium"},{"$f":"Translate!$A$474&B5","v":"Rail - Average freight - electric - Belgium"},null,null,null,null,{"$f":"Translate!$A$482","v":" emissions are relatively high\n"},null,"Español"]
[{"$f":"Translate!A285","v":"Sheet pile walls"},{"$f":"Translate!$A$304","v":"Czech Republic"},{"$f":"Translate!$A$474&B6","v":"Rail - Average freight - electric - Czech Republic"},null,null,null,null,{"$f":"Translate!$A$483","v":" emissions are relatively low\n"},null,"Italiano"]
[{"$f":"Translate!A286","v":"Pile walls"},{"$f":"Translate!$A$305","v":"Denmark"},{"$f":"Translate!$A$474&B7","v":"Rail - Average freight - electric - Denmark"},null,null,null,null,{"$f":"Translate!$A$484","v":"    (Primary source)"},null,"Nederlands"]
[{"$f":"Translate!A287","v":"Anchors"},{"$f":"Translate!$A$306","v":"Estonia"},{"$f":"Translate!$A$474&B8","v":"Rail - Average freight - electric - Estonia"},null,null,null,null,{"$f":"Translate!$A$485","v":"    (Secondary source)"}]
[{"$f":"Translate!A288","v":"Soil Nails"},{"$f":"Translate!$A$307","v":"Finland"},{"$f":"Translate!$A$474&B9","v":"Rail - Average freight - electric - Finland"},null,null,null,null,{"$f":"Translate!A486","v":"General Principles :  emission sources are split into two categories :\n - primary emission sources (represented in colors)\n  - secondary emission sources (represented in gray)\n\nThe method recommends to start with the primary emission sources,with the secondary emission sources being automatically estimated. Then you may want to fine tune the calculation using specific activity data for the secondary emission sources also."}]
[{"$f":"Translate!A289","v":"Dynamic compaction"},{"$f":"Translate!$A$308","v":"France"},{"$f":"Translate!$A$474&B10","v":"Rail - Average freight - electric - France"},null,null,null,null,{"$f":"Translate!A487","v":"New Subproject sheet"}]
[{"$f":"Translate!A290","v":"Vibro compaction"},{"$f":"Translate!$A$309","v":"Germany"},{"$f":"Translate!$A$474&B11","v":"Rail - Average freight - electric - Germany"},null,null,null,null,{"$f":"Translate!A488","v":"New Project sheet"}]
[{"$f":"Translate!A291","v":"Grouting"},{"$f":"Translate!$A$310","v":"Greece"},{"$f":"Translate!$A$474&B12","v":"Rail - Average freight - electric - Greece"},null,null,null,null,{"$f":"Translate!A489","v":"New Comparison sheet"}]
[{"$f":"Translate!A292","v":"Jet Grouting"},{"$f":"Translate!$A$311","v":"Hungary"},{"$f":"Translate!$A$474&B13","v":"Rail - Average freight - electric - Hungary"},null,null,null,null,{"$f":"Translate!A490","v":"New Results sheet"}]
[{"$f":"Translate!A293","v":"Stone Columns"},{"$f":"Translate!$A$312","v":"Iceland"},{"$f":"Translate!$A$474&B14","v":"Rail - Average freight - electric - Iceland"},null,null,null,null,{"$f":"Translate!A491","v":"Load your logo"}]
[{"$f":"Translate!A294","v":"Soil Mixing"},{"$f":"Translate!$A$313","v":"Ireland"},{"$f":"Translate!$A$474&B15","v":"Rail - Average freight - electric - Ireland"},null,null,null,null,{"$f":"Translate!A492","v":"Set the size"}]
[{"$f":"Translate!A295","v":"Vertical Drains"},{"$f":"Translate!$A$314","v":"Italy"},{"$f":"Translate!$A$474&B16","v":"Rail - Average freight - electric - Italy"},null,null,null,null,{"$f":"Translate!A493","v":"When your image fit in the white box, click here to import the logo"}]
[{"$f":"Translate!A296","v":"Dewatering"},{"$f":"Translate!$A$315","v":"Luxembourg"},{"$f":"Translate!$A$474&B17","v":"Rail - Average freight - electric - Luxembourg"},null,null,null,null,{"$f":"Translate!A494","v":"Start"}]
[{"$f":"Translate!A118","v":"Other"},{"$f":"Translate!$A$316","v":"Netherlands"},{"$f":"Translate!$A$474&B18","v":"Rail - Average freight - electric - Netherlands"},null,null,null,null,{"$f":"Translate!A495","v":"ACCEPT"}]
[null,{"$f":"Translate!$A$317","v":"Norway"},{"$f":"Translate!$A$474&B19","v":"Rail - Average freight - electric - Norway"}]
[null,{"$f":"Translate!$A$318","v":"Poland"},{"$f":"Translate!$A$474&B20","v":"Rail - Average freight - electric - Poland"}]
[null,{"$f":"Translate!$A$319","v":"Portugal"},{"$f":"Translate!$A$474&B21","v":"Rail - Average freight - electric - Portugal"}]
[null,{"$f":"Translate!$A$320","v":"Slovak Republic"},{"$f":"Translate!$A$474&B22","v":"Rail - Average freight - electric - Slovak Republic"}]
[null,{"$f":"Translate!$A$321","v":"Slovenia"},{"$f":"Translate!$A$474&B23","v":"Rail - Average freight - electric - Slovenia"}]
[null,{"$f":"Translate!$A$322","v":"Spain"},{"$f":"Translate!$A$474&B24","v":"Rail - Average freight - electric - Spain"}]
[null,{"$f":"Translate!$A$323","v":"Sweden"},{"$f":"Translate!$A$474&B25","v":"Rail - Average freight - electric - Sweden"}]
[null,{"$f":"Translate!$A$324","v":"Switzerland"},{"$f":"Translate!$A$474&B26","v":"Rail - Average freight - electric - Switzerland"}]
[null,{"$f":"Translate!$A$325","v":"Turkey"},{"$f":"Translate!$A$474&B27","v":"Rail - Average freight - electric - Turkey"}]
[null,{"$f":"Translate!$A$326","v":"United Kingdom"},{"$f":"Translate!$A$474&B28","v":"Rail - Average freight - electric - United Kingdom"}]
[null,null,{"$f":"Translate!$A$474&B29","v":"Rail - Average freight - electric - "}]
[null,{"$f":"Translate!$A$327","v":"---Non-OECD Europe and Eurasia"},{"$f":"Translate!$A$474&B30","v":"Rail - Average freight - electric - ---Non-OECD Europe and Eurasia"}]
[null,{"$f":"Translate!$A$328","v":"Albania"},{"$f":"Translate!$A$474&B31","v":"Rail - Average freight - electric - Albania"}]
[null,{"$f":"Translate!$A$329","v":"Armenia"},{"$f":"Translate!$A$474&B32","v":"Rail - Average freight - electric - Armenia"}]
[null,{"$f":"Translate!$A$330","v":"Azerbaijan"},{"$f":"Translate!$A$474&B33","v":"Rail - Average freight - electric - Azerbaijan"}]
[null,{"$f":"Translate!$A$331","v":"Belarus"},{"$f":"Translate!$A$474&B34","v":"Rail - Average freight - electric - Belarus"}]
[null,{"$f":"Translate!$A$332","v":"Bosnia and Herzegovina"},{"$f":"Translate!$A$474&B35","v":"Rail - Average freight - electric - Bosnia and Herzegovina"}]
[null,{"$f":"Translate!$A$333","v":"Bulgaria"},{"$f":"Translate!$A$474&B36","v":"Rail - Average freight - electric - Bulgaria"}]
[null,{"$f":"Translate!$A$334","v":"Croatia"},{"$f":"Translate!$A$474&B37","v":"Rail - Average freight - electric - Croatia"}]
[null,{"$f":"Translate!$A$335","v":"Cyprus"},{"$f":"Translate!$A$474&B38","v":"Rail - Average freight - electric - Cyprus"}]
[null,{"$f":"Translate!$A$336","v":"Georgia"},{"$f":"Translate!$A$474&B39","v":"Rail - Average freight - electric - Georgia"}]
[null,{"$f":"Translate!$A$337","v":"Gibraltar"},{"$f":"Translate!$A$474&B40","v":"Rail - Average freight - electric - Gibraltar"}]
[null,{"$f":"Translate!$A$338","v":"Kazakhstan"},{"$f":"Translate!$A$474&B41","v":"Rail - Average freight - electric - Kazakhstan"}]
[null,{"$f":"Translate!$A$339","v":"Kyrgyzstan"},{"$f":"Translate!$A$474&B42","v":"Rail - Average freight - electric - Kyrgyzstan"}]
[null,{"$f":"Translate!$A$340","v":"Latvia"},{"$f":"Translate!$A$474&B43","v":"Rail - Average freight - electric - Latvia"}]
[null,{"$f":"Translate!$A$341","v":"Lithuania"},{"$f":"Translate!$A$474&B44","v":"Rail - Average freight - electric - Lithuania"}]
[null,{"$f":"Translate!$A$342","v":"FYR of Macedonia"},{"$f":"Translate!$A$474&B45","v":"Rail - Average freight - electric - FYR of Macedonia"}]
[null,{"$f":"Translate!$A$343","v":"Malta"},{"$f":"Translate!$A$474&B46","v":"Rail - Average freight - electric - Malta"}]
[null,{"$f":"Translate!$A$344","v":"Republic of Moldova"},{"$f":"Translate!$A$474&B47","v":"Rail - Average freight - electric - Republic of Moldova"}]
[null,{"$f":"Translate!$A$345","v":"Romania"},{"$f":"Translate!$A$474&B48","v":"Rail - Average freight - electric - Romania"}]
[null,{"$f":"Translate!$A$346","v":"Russian Federation"},{"$f":"Translate!$A$474&B49","v":"Rail - Average freight - electric - Russian Federation"}]
[null,{"$f":"Translate!$A$347","v":"Serbia"},{"$f":"Translate!$A$474&B50","v":"Rail - Average freight - electric - Serbia"}]
[null,{"$f":"Translate!$A$348","v":"Tajikistan"},{"$f":"Translate!$A$474&B51","v":"Rail - Average freight - electric - Tajikistan"}]
[null,{"$f":"Translate!$A$349","v":"Turkmenistan"},{"$f":"Translate!$A$474&B52","v":"Rail - Average freight - electric - Turkmenistan"}]
[null,{"$f":"Translate!$A$350","v":"Ukraine"},{"$f":"Translate!$A$474&B53","v":"Rail - Average freight - electric - Ukraine"}]
[null,{"$f":"Translate!$A$351","v":"Uzbekistan"},{"$f":"Translate!$A$474&B54","v":"Rail - Average freight - electric - Uzbekistan"}]
[null,null,{"$f":"Translate!$A$474&B55","v":"Rail - Average freight - electric - "}]
[null,{"$f":"Translate!$A$352","v":"---OECD America"},{"$f":"Translate!$A$474&B56","v":"Rail - Average freight - electric - ---OECD America"}]
[null,{"$f":"Translate!$A$353","v":"Canada"},{"$f":"Translate!$A$474&B57","v":"Rail - Average freight - electric - Canada"}]
[null,{"$f":"Translate!$A$354","v":"Chile"},{"$f":"Translate!$A$474&B58","v":"Rail - Average freight - electric - Chile"}]
[null,{"$f":"Translate!$A$355","v":"Mexico"},{"$f":"Translate!$A$474&B59","v":"Rail - Average freight - electric - Mexico"}]
[null,{"$f":"Translate!$A356","v":"United States"},{"$f":"Translate!$A$474&B60","v":"Rail - Average freight - electric - United States"}]
[null,{"$f":"Translate!$A357","v":"AKGD (ASCC Alaska Grid)"},{"$f":"Translate!$A$474&B88","v":"Rail - Average freight - electric - ---OECD Asia Oceania"}]
[null,{"$f":"Translate!$A358","v":"AKMS (ASCC Miscellaneous)"},{"$f":"Translate!$A$474&B89","v":"Rail - Average freight - electric - Australia"}]
[null,{"$f":"Translate!$A359","v":"AZNM (WECC Southwest)"},{"$f":"Translate!$A$474&B90","v":"Rail - Average freight - electric - Israel"}]
[null,{"$f":"Translate!$A360","v":"CAMX (WECC California)"},{"$f":"Translate!$A$474&B91","v":"Rail - Average freight - electric - Japan"}]
[null,{"$f":"Translate!$A361","v":"ERCT (ERCOT All)"},{"$f":"Translate!$A$474&B92","v":"Rail - Average freight - electric - Korea"}]
[null,{"$f":"Translate!$A362","v":"FRCC (FRCC All)"},{"$f":"Translate!$A$474&B93","v":"Rail - Average freight - electric - New Zealand"}]
[null,{"$f":"Translate!$A363","v":"HIMS (HICC Miscellaneous)"},{"$f":"Translate!$A$474&B94","v":"Rail - Average freight - electric - "}]
[null,{"$f":"Translate!$A364","v":"HIOA (HICC Oahu)"},{"$f":"Translate!$A$474&B95","v":"Rail - Average freight - electric - ---Africa"}]
[null,{"$f":"Translate!$A365","v":"MROE (MRO East)"},{"$f":"Translate!$A$474&B96","v":"Rail - Average freight - electric - Algeria"}]
[null,{"$f":"Translate!$A366","v":"MROW (MRO West)"},{"$f":"Translate!$A$474&B97","v":"Rail - Average freight - electric - Angola"}]
[null,{"$f":"Translate!$A367","v":"NEWE (NPCC New England)"},{"$f":"Translate!$A$474&B98","v":"Rail - Average freight - electric - Benin"}]
[null,{"$f":"Translate!$A368","v":"NWPP (WECC Northwest)"},{"$f":"Translate!$A$474&B99","v":"Rail - Average freight - electric - Botswana"}]
[null,{"$f":"Translate!$A369","v":"NYCW (NPCC NYC/Westchester)"},{"$f":"Translate!$A$474&B100","v":"Rail - Average freight - electric - Cameroon"}]
[null,{"$f":"Translate!$A370","v":"NYLI (NPCC Long Island)"},{"$f":"Translate!$A$474&B101","v":"Rail - Average freight - electric - Congo"}]
[null,{"$f":"Translate!$A371","v":"NYUP (NPCC Upstate NY)"},{"$f":"Translate!$A$474&B102","v":"Rail - Average freight - electric - Dem. Rep. of Congo"}]
[null,{"$f":"Translate!$A372","v":"RFCE (RFC East)"},{"$f":"Translate!$A$474&B103","v":"Rail - Average freight - electric - Côte d'Ivoire"}]
[null,{"$f":"Translate!$A373","v":"RFCM (RFC Michigan)"},{"$f":"Translate!$A$474&B104","v":"Rail - Average freight - electric - Egypt"}]
[null,{"$f":"Translate!$A374","v":"RFCW (RFC West)"},{"$f":"Translate!$A$474&B105","v":"Rail - Average freight - electric - Eritrea"}]
[null,{"$f":"Translate!$A375","v":"RMPA (WECC Rockies)"},{"$f":"Translate!$A$474&B106","v":"Rail - Average freight - electric - Ethiopia"}]
[null,{"$f":"Translate!$A376","v":"SPNO (SPP North)"},{"$f":"Translate!$A$474&B107","v":"Rail - Average freight - electric - Gabon"}]
[null,{"$f":"Translate!$A377","v":"SPSO (SPP South)"},{"$f":"Translate!$A$474&B108","v":"Rail - Average freight - electric - Ghana"}]
[null,{"$f":"Translate!$A378","v":"SRMV (SERC Mississippi Valley)"},{"$f":"Translate!$A$474&B109","v":"Rail - Average freight - electric - Kenya"}]
[null,{"$f":"Translate!$A379","v":"SRMW (SERC Midwest)"},{"$f":"Translate!$A$474&B110","v":"Rail - Average freight - electric - Libyan Arab Jamahiriya"}]
[null,{"$f":"Translate!$A380","v":"SRSO (SERC South)"},{"$f":"Translate!$A$474&B111","v":"Rail - Average freight - electric - Morocco"}]
[null,{"$f":"Translate!$A381","v":"SRTV (SERC Tennessee Valley)"},{"$f":"Translate!$A$474&B112","v":"Rail - Average freight - electric - Mozambique"}]
[null,{"$f":"Translate!$A382","v":"SRVC (SERC Virginia/Carolina)"},{"$f":"Translate!$A$474&B113","v":"Rail - Average freight - electric - Namibia"}]
[null,"US Average",{"$f":"Translate!$A$474&B115","v":"Rail - Average freight - electric - Nigeria"}]
[null,{"$f":"Translate!$A$383","v":"---OECD Asia Oceania"},{"$f":"Translate!$A$474&B116","v":"Rail - Average freight - electric - Senegal"}]
[null,{"$f":"Translate!$A$384","v":"Australia"},{"$f":"Translate!$A$474&B117","v":"Rail - Average freight - electric - South Africa"}]
[null,{"$f":"Translate!$A$385","v":"Israel"},{"$f":"Translate!$A$474&B119","v":"Rail - Average freight - electric - Sudan"}]
[null,{"$f":"Translate!$A$386","v":"Japan"},{"$f":"Translate!$A$474&B120","v":"Rail - Average freight - electric - United Rep. of Tanzania"}]
[null,{"$f":"Translate!$A$387","v":"Korea"},{"$f":"Translate!$A$474&B121","v":"Rail - Average freight - electric - Togo"}]
[null,{"$f":"Translate!$A$388","v":"New Zealand"},{"$f":"Translate!$A$474&B122","v":"Rail - Average freight - electric - Tunisia"}]
[null,null,{"$f":"Translate!$A$474&B123","v":"Rail - Average freight - electric - Zambia"}]
[null,{"$f":"Translate!$A$389","v":"---Africa"},{"$f":"Translate!$A$474&B124","v":"Rail - Average freight - electric - Zimbabwe"}]
[null,{"$f":"Translate!$A$390","v":"Algeria"},{"$f":"Translate!$A$474&B125","v":"Rail - Average freight - electric - Other Africa"}]
[null,{"$f":"Translate!$A$391","v":"Angola"},{"$f":"Translate!$A$474&B126","v":"Rail - Average freight - electric - "}]
[null,{"$f":"Translate!$A$392","v":"Benin"},{"$f":"Translate!$A$474&B127","v":"Rail - Average freight - electric - ---Middle East"}]
[null,{"$f":"Translate!$A$393","v":"Botswana"},{"$f":"Translate!$A$474&B128","v":"Rail - Average freight - electric - Bahrain"}]
[null,{"$f":"Translate!$A$394","v":"Cameroon"},{"$f":"Translate!$A$474&B129","v":"Rail - Average freight - electric - Islamic Rep. of Iran"}]
[null,{"$f":"Translate!$A$395","v":"Congo"},{"$f":"Translate!$A$474&B130","v":"Rail - Average freight - electric - Iraq"}]
[null,{"$f":"Translate!$A$396","v":"Dem. Rep. of Congo"},{"$f":"Translate!$A$474&B131","v":"Rail - Average freight - electric - Jordan"}]
[null,{"$f":"Translate!$A$397","v":"Côte d'Ivoire"},{"$f":"Translate!$A$474&B132","v":"Rail - Average freight - electric - Kuwait"}]
[null,{"$f":"Translate!$A$398","v":"Egypt"},{"$f":"Translate!$A$474&B133","v":"Rail - Average freight - electric - Lebanon"}]
[null,{"$f":"Translate!$A$399","v":"Eritrea"},{"$f":"Translate!$A$474&B134","v":"Rail - Average freight - electric - Oman"}]
[null,{"$f":"Translate!$A$400","v":"Ethiopia"},{"$f":"Translate!$A$474&B135","v":"Rail - Average freight - electric - Qatar"}]
[null,{"$f":"Translate!$A$401","v":"Gabon"},{"$f":"Translate!$A$474&B136","v":"Rail - Average freight - electric - Saudi Arabia"}]
[null,{"$f":"Translate!$A$402","v":"Ghana"},{"$f":"Translate!$A$474&B137","v":"Rail - Average freight - electric - Syrian Arab Republic "}]
[null,{"$f":"Translate!$A$403","v":"Kenya"},{"$f":"Translate!$A$474&B138","v":"Rail - Average freight - electric - United Arab Emirates"}]
[null,{"$f":"Translate!$A$404","v":"Libyan Arab Jamahiriya"},{"$f":"Translate!$A$474&B139","v":"Rail - Average freight - electric - Yemen"}]
[null,{"$f":"Translate!$A$405","v":"Morocco"},{"$f":"Translate!$A$474&B140","v":"Rail - Average freight - electric - "}]
[null,{"$f":"Translate!$A$406","v":"Mozambique"},{"$f":"Translate!$A$474&B141","v":"Rail - Average freight - electric - ---Latin America"}]
[null,{"$f":"Translate!$A$407","v":"Namibia"},{"$f":"Translate!$A$474&B142","v":"Rail - Average freight - electric - Argentina"}]
[null,"Niger",{"$f":"Translate!$A$474&B143","v":"Rail - Average freight - electric - Bolivia"}]
[null,{"$f":"Translate!$A$408","v":"Nigeria"},{"$f":"Translate!$A$474&B144","v":"Rail - Average freight - electric - Brazil"}]
[null,{"$f":"Translate!$A$409","v":"Senegal"},{"$f":"Translate!$A$474&B145","v":"Rail - Average freight - electric - Colombia"}]
[null,{"$f":"Translate!$A$410","v":"South Africa"},{"$f":"Translate!$A$474&B146","v":"Rail - Average freight - electric - Costa Rica"}]
[null,"South Sudan",{"$f":"Translate!$A$474&B147","v":"Rail - Average freight - electric - Cuba"}]
[null,{"$f":"Translate!$A$411","v":"Sudan"},{"$f":"Translate!$A$474&B148","v":"Rail - Average freight - electric - Dominican Republic"}]
[null,{"$f":"Translate!$A$412","v":"United Rep. of Tanzania"},{"$f":"Translate!$A$474&B149","v":"Rail - Average freight - electric - Ecuador"}]
[null,{"$f":"Translate!$A$413","v":"Togo"},{"$f":"Translate!$A$474&B150","v":"Rail - Average freight - electric - El Salvador"}]
[null,{"$f":"Translate!$A$414","v":"Tunisia"},{"$f":"Translate!$A$474&B151","v":"Rail - Average freight - electric - Guatemala"}]
[null,{"$f":"Translate!$A$415","v":"Zambia"},{"$f":"Translate!$A$474&B152","v":"Rail - Average freight - electric - Haiti"}]
[null,{"$f":"Translate!$A$416","v":"Zimbabwe"},{"$f":"Translate!$A$474&B153","v":"Rail - Average freight - electric - Honduras"}]
[null,{"$f":"Translate!$A$417","v":"Other Africa"},{"$f":"Translate!$A$474&B154","v":"Rail - Average freight - electric - Jamaica"}]
[null,null,{"$f":"Translate!$A$474&B155","v":"Rail - Average freight - electric - Nicaragua"}]
[null,{"$f":"Translate!$A$418","v":"---Middle East"},{"$f":"Translate!$A$474&B156","v":"Rail - Average freight - electric - Panama"}]
[null,{"$f":"Translate!$A$419","v":"Bahrain"},{"$f":"Translate!$A$474&B158","v":"Rail - Average freight - electric - Peru"}]
[null,{"$f":"Translate!$A$420","v":"Islamic Rep. of Iran"},{"$f":"Translate!$A$474&B159","v":"Rail - Average freight - electric - Trinidad and Tobago"}]
[null,{"$f":"Translate!$A$421","v":"Iraq"},{"$f":"Translate!$A$474&B160","v":"Rail - Average freight - electric - Uruguay"}]
[null,{"$f":"Translate!$A$422","v":"Jordan"},{"$f":"Translate!$A$474&B161","v":"Rail - Average freight - electric - Venezuela"}]
[null,{"$f":"Translate!$A$423","v":"Kuwait"},{"$f":"Translate!$A$474&B162","v":"Rail - Average freight - electric - Other Latin America"}]
[null,{"$f":"Translate!$A$424","v":"Lebanon"},{"$f":"Translate!$A$474&B163","v":"Rail - Average freight - electric - "}]
[null,{"$f":"Translate!$A$425","v":"Oman"},{"$f":"Translate!$A$474&B164","v":"Rail - Average freight - electric - ---Asia"}]
[null,{"$f":"Translate!$A$426","v":"Qatar"},{"$f":"Translate!$A$474&B165","v":"Rail - Average freight - electric - Bangladesh"}]
[null,{"$f":"Translate!$A$427","v":"Saudi Arabia"},{"$f":"Translate!$A$474&B166","v":"Rail - Average freight - electric - Brunei Darussalam"}]
[null,{"$f":"Translate!$A$428","v":"Syrian Arab Republic "},{"$f":"Translate!$A$474&B167","v":"Rail - Average freight - electric - Cambodia"}]
[null,{"$f":"Translate!$A$429","v":"United Arab Emirates"},{"$f":"Translate!$A$474&B168","v":"Rail - Average freight - electric - China"}]
[null,{"$f":"Translate!$A$430","v":"Yemen"},{"$f":"Translate!$A$474&B169","v":"Rail - Average freight - electric - Chinese Taipei"}]
[null,null,{"$f":"Translate!$A$474&B170","v":"Rail - Average freight - electric - India"}]
[null,{"$f":"Translate!$A$431","v":"---Latin America"},{"$f":"Translate!$A$474&B171","v":"Rail - Average freight - electric - Indonesia"}]
[null,{"$f":"Translate!$A$432","v":"Argentina"},{"$f":"Translate!$A$474&B172","v":"Rail - Average freight - electric - DPR of Korea"}]
[null,{"$f":"Translate!$A$433","v":"Bolivia"},{"$f":"Translate!$A$474&B173","v":"Rail - Average freight - electric - Malaysia"}]
[null,{"$f":"Translate!$A$434","v":"Brazil"},{"$f":"Translate!$A$474&B174","v":"Rail - Average freight - electric - Mongolia"}]
[null,{"$f":"Translate!$A$435","v":"Colombia"},{"$f":"Translate!$A$474&B175","v":"Rail - Average freight - electric - Myanmar"}]
[null,{"$f":"Translate!$A$436","v":"Costa Rica"},{"$f":"Translate!$A$474&B176","v":"Rail - Average freight - electric - Nepal"}]
[null,{"$f":"Translate!$A$437","v":"Cuba"},{"$f":"Translate!$A$474&B177","v":"Rail - Average freight - electric - Pakistan"}]
[null,{"$f":"Translate!$A$438","v":"Dominican Republic"},{"$f":"Translate!$A$474&B178","v":"Rail - Average freight - electric - Philippines"}]
[null,{"$f":"Translate!$A$439","v":"Ecuador"},{"$f":"Translate!$A$474&B179","v":"Rail - Average freight - electric - Singapore"}]
[null,{"$f":"Translate!$A$440","v":"El Salvador"},{"$f":"Translate!$A$474&B180","v":"Rail - Average freight - electric - Sri Lanka"}]
[null,{"$f":"Translate!$A$441","v":"Guatemala"},{"$f":"Translate!$A$474&B181","v":"Rail - Average freight - electric - Thailand"}]
[null,{"$f":"Translate!$A$442","v":"Haiti"},{"$f":"Translate!$A$474&B182","v":"Rail - Average freight - electric - Vietnam"}]
[null,{"$f":"Translate!$A$443","v":"Honduras"},{"$f":"Translate!$A$474&B183","v":"Rail - Average freight - electric - Other Asia"}]
[null,{"$f":"Translate!$A$444","v":"Jamaica"}]
[null,{"$f":"Translate!$A$446","v":"Nicaragua"}]
[null,{"$f":"Translate!$A$447","v":"Panama"}]
[null,"Paraguay"]
[null,{"$f":"Translate!$A$448","v":"Peru"}]
[null,{"$f":"Translate!$A$449","v":"Trinidad and Tobago"}]
[null,{"$f":"Translate!$A$450","v":"Uruguay"}]
[null,{"$f":"Translate!$A$451","v":"Venezuela"}]
[null,{"$f":"Translate!$A$452","v":"Other Latin America"}]
[]
[null,{"$f":"Translate!$A$453","v":"---Asia"}]
[null,{"$f":"Translate!$A$454","v":"Bangladesh"}]
[null,{"$f":"Translate!$A$455","v":"Brunei Darussalam"}]
[null,{"$f":"Translate!$A$456","v":"Cambodia"}]
[null,{"$f":"Translate!$A$457","v":"China"}]
[null,{"$f":"Translate!$A$458","v":"Chinese Taipei"}]
[null,{"$f":"Translate!$A$459","v":"India"}]
[null,{"$f":"Translate!$A$460","v":"Indonesia"}]
[null,{"$f":"Translate!$A$461","v":"DPR of Korea"}]
[null,{"$f":"Translate!$A$462","v":"Malaysia"}]
[null,{"$f":"Translate!$A$463","v":"Mongolia"}]
[null,{"$f":"Translate!$A$464","v":"Myanmar"}]
[null,{"$f":"Translate!$A$465","v":"Nepal"}]
[null,{"$f":"Translate!$A$466","v":"Pakistan"}]
[null,{"$f":"Translate!$A$467","v":"Philippines"}]
[null,{"$f":"Translate!$A$468","v":"Singapore"}]
[null,{"$f":"Translate!$A$469","v":"Sri Lanka"}]
[null,{"$f":"Translate!$A$470","v":"Thailand"}]
[null,{"$f":"Translate!$A$471","v":"Vietnam"}]
[null,{"$f":"Translate!$A$472","v":"Other Asia"}]

{"sheet":"Translate","index":12,"n_rows":549,"n_cols":10,"rows_kept":549,"cut":false,"hidden":true,"merged":[]}
[2,null,null,null,"Español"]
["Used","Deutsch","English","Français","Español","Italiano","Nederlands"]
[{"$f":"INDEX(B3:I3,1,$A$1)","v":"EFFC DFI Carbon Calculator Tool"},"EFFC DFI CO2-Rechner","EFFC DFI Carbon Calculator Tool","EFFC DFI outil calculateur carbone","EFFC DFI Herramienta para el cálculo de la Huella de Carbono EFFC DFI","EFFC DFI Carbon Calculator","EFFC DFI Carbon Calculator Tool",null,null,1]
["TITLE","TITEL","TITLE","TITRE","TÍTULO","TITOLO","TITEL",null,null,1]
["AUTHORS","AUTOREN","AUTHORS","AUTEURS","AUTORES","AUTORI","AUTEURS",null,null,1]
["VERSION NUMBER","VERSIONSNUMMER","VERSION NUMBER","VERSION","Número de versión","Versione","VERSIENUMMER",null,null,1]
["Copyright","Urheberrecht bei","Copyright","Droit d'auteur","Derechos de autor","Copyright","AUTEURSRECHT",null,null,1]
["DATE","DATUM","DATE","DATE","FECHA","DATA","DATUM",null,null,1]
["WHAT IS THIS TOOL ?","WOFÜR IST DAS TOOL?","WHAT IS THIS TOOL ?","CONTEXTE","¿QUÉ ES ESTA HERRAMIENTA?","COS'E 'QUESTO STRUMENTO?","Waar is de tool voor bedoeld?",null,null,1]
["HOW TO USE THIS TOOL ? SOME QUICK TIPS","WIE VERWENDET MAN DAS TOOL? EINE KURZREFERENZ","HOW TO USE THIS TOOL ? SOME QUICK TIPS","COMMENT UTILISER CET OUTIL? QUELQUES CONSEILS RAPIDES","COMO USAR ESTA HERRAMIENTA? ALGUNOS CONSEJOS RÁPIDOS","Come utilizzare questo strumento? ALCUNI SUGGERIMENTI VELOCI","Hoe moet deze tool gebruikt worden? Een paar snelle tips",null,null,1]
[{"$f":"INDEX(B11:I11,1,$A$1)","v":"Activities covered"},"Umfasste Arbeiten","Activities covered","Activités couvertes","Las actividades cubiertas","Attivitàcoperte","Activiteiten die vallen",null,null,1]
["Color code","Farbschema","Color code","Code couleur","Código de colores","Codice del colore","Kleurcode",null,null,1]
["In all worksheets","In allen Blättern","In all worksheets","Dans toutes les feuilles","En todas las hojas de trabajo","In tutti i fogli","In alle werkbladen",null,null,1]
["This excel spreadsheet is a carbon emission calculator for deep foundation techniques and projects.","Dieses Excel-Tool ist ein CO2-Emissionsrechner für Verfahren und Projekte des Spezialtiefbaus.","This excel spreadsheet is a carbon emission calculator for deep foundation techniques and projects.","Cette outil Excel est un calculateur d'empreinte carbone pour les différentes techniques de fondations profondes.","Esta hoja de cálculo Excel es una calculadora de emisiones de carbono para las técnicas de cimentación profundas y proyectos","Questo foglio di calcolo Excel è un calcolatore di emissioni di  CO2 per progetti e lavori relativi alle fondazioni profonde","Deze tool berekent de CO2-uitstoot van funderingstechnieken en -projecten",null,null,1]
["It has been developed to support EFFC and DFI members in calculating the carbon footprint of their projects, compare solutions and value technical innovation to reduce GHG emissions.","Es wurde entwickelt, um EFFC- und DFI-Mitglieder bei der CO2-Bilanzierung ihrer Projekte zu unterstützen und um Varianten und Innovationen zur Verringerung der Treibhausgasemissionen zu vergleichen.","It has been developed to support EFFC and DFI members in calculating the carbon footprint of their projects, compare solutions and value technical innovation to reduce GHG emissions.","Il a été développé pour aider les membres EFFC et DFI dans le calcul de l'empreinte carbone de leurs projets, comparer les solutions et valoriser l'innovation technique pour réduire les émissions de GES.","Se ha desarrollado para apoyar a los miembros de EFFC y DFI en el cálculo de la huella de carbono de sus proyectos, comparar soluciones e innovaciones con valor técnico para reducir las emisiones de GEI.","E 'stato sviluppato per supportare i membri EFFC e DFI per  calcolare quante emissioni di CO2 vengono prodotte nei loro lavori e per confrontare soluzioni e innovazioni tecniche al fine di  ridurre le emissioni di gas serra.","Het is ontwikkeld om de leden van EFFC en DFI te kunnen ondersteunen bij de berekening van de carbon footprint van hun projecten, de vergelijking van oplossingen en het bepalen van de impact van technische innovaties op de reductie van broeikasgassen",null,null,1]
["On behalf of EFFC DFI, Carbone 4 developed a specific methodology and this tool to ensure coherence and comparability between  various companies calculation","Im Auftrag der EFFC DFI hat Carbone 4 eine spezifische Methodik sowie dieses Tool entwickelt, um Kohärenz und Vergleichbarkeit zwischen den Berechnungen verschiedener Unternehmen zu gewährleisten.","On behalf of EFFC DFI, Carbone 4 developed a specific methodology and this tool to ensure coherence and comparability between  various companies calculation","Au nom de EFFC DFI, Carbone 4 a développé une méthodologie spécifique et cet outil pour assurer la cohérence et la comparabilité entre les calculs de différentes compagnies","En nombre de EFFC DFI, Carbone 4 desarrolló una metodología específica y esta herramienta para garantizar la coherencia y la comparabilidad entre el cálculo de varias empresas","Carbone 4, per conto di EFFC DFI, ha sviluppato una metodologia oltre a questo strumento specifico,  per cercare di confrontare in maniera coerente i vari metodi di calcolo creati dalle varie aziende","Namens EFFC DFI, ontwikkelde Carbone 4 een specifieke methodologie en tool om inzicht te geven in de samenhang en vergelijkbaarheid tussen de verschillende berekeningen van bedrijven ",null,null,1]
["Functionalities: calculation of the carbon footprint using standard or specific values, comparisons of projects, construction of complex project by adding simple techniques one to another.","Funktionalitäten: Berechnung der CO2-Bilanz mit Standard- oder spezifischen Werten, Vergleich von Projekten, Berechnung von komplexen Projekten durch Addition der einzelnen Verfahren.","Functionalities: calculation of the carbon footprint using standard or specific values, comparisons of projects, construction of complex project by adding simple techniques one to another.","Fonctionnalités: calcul de l'empreinte carbone en utilisant des valeurs standards ou spécifiques, comparaisons de projets, construction de projets complexes en ajoutant des techniques simples une à l'autre.","Funcionalidades: el cálculo de la huella de carbono utilizando valores estándar o específicos, comparaciones de proyectos, la construcción de proyectos complejos mediante la adición de técnicas simples a otro.","Funzionalità: calcolo delle emissioni di CO2 con l'uso di valori o specifiche standard mediante il confronto e l'esecuzione di lavori, anche complessi, con l'aggiunta ogni volta di semplici tecniche di lavoro.","Functionaliteiten: berekenen van de carbon footprint met behulp van standaard of specifieke waarden, vergelijken van projecten en technieken, opbouwen van complexe projecten bestaande uit verschillende technieken",null,null,1]
["1) Please first make sure that you have the latest version of the tool - check EFFC relevant webpage.","1) Bitte überprüfen Sie zuerst auf der entsprechenden EFFC-Homepage, ob Sie die neueste Version des Tools haben.","1) Please first make sure that you have the latest version of the tool - check EFFC relevant webpage.","1) Veuillez d'abord vérifier que vous disposez la dernière version de l'outil - vérifiersur la page web EFFC correspondante.","1) Por favor, primero asegúrese de que dispone de la última versión de la herramienta - revisa la correspondiente página web de EFFC.","1) Per prima cosa assicurarsi di avere la versione più recente del software - controllare la relativa pagina EFFC .","1) Zorg er allereerst voor dat u de nieuwste versie van de tool heeft, check daarom eerst de website van EFFC",null,null,1]
["2) Ensure you are trained to use this tool and understand its capabilities and limitations. Read the user guide and associated methodological document.","2) Stellen Sie sicher, dass Sie ausreichend geschult wurden, um dieses Tool zu verwenden und seine Möglichkeiten und Grenzen zu verstehen. Lesen Sie die Bedienungsanleitung und die zugehörige Beschreibung der Methodik.","2) Ensure you are trained to use this tool and understand its capabilities and limitations. Read the user guide and associated methodological document.","2) Assurez-vous d'être formé(e) pour utiliser cet outil et comprendre ses capacités et ses limites. Lisez le guide utilisateur et document méthodologique associé.","2) Asegúrese de que está capacitado para usar esta herramienta y entender sus potencialidades y limitaciones. Lea el manual del usuario y el documento metodológico asociado.","2) Assicurarsi di aver compreso l'uso di questo software e di esser capaci di utilizzarlo, mediante addestramento e comprendendone le potenzialità e limiti. Leggere il manuale d'uso e il relativo documento metodologico.","2) Zorg ervoor dat u op de hoogte bent van de mogelijkheden en beperkingen van de tool. Lees daarom de gebruiksaanwijzing en de beschrijving van de achterliggende methode aandachtig door",null,null,1]
[{"$f":"INDEX(B20:I20,1,$A$1)","v":"3) Load your own logo in the tool"},"3) Laden Sie Ihr eigenes Logo in das Tool","3) Load your own logo in the tool","3) Chargez votre propre logo dans l'outil","3) Cargue su propio logotipo en la herramienta","3) Carica il logo della tua azienda nel programma","3) Laad uw eigen logo in het gereedschap",null,null,0]
["4) Create one or more new subprojects using the \"New Subproject sheet\" button located in the HOME worksheet","4) Erstellen Sie ein oder mehrere neue Teilprojekte mit dem \"Neues Teilprojekt-Blatt\"-Schalter des HOME-Arbeitsblattes.","4) Create one or more new subprojects using the \"New Subproject sheet\" button located in the HOME worksheet","4) Créer un ou plusieurs nouveaux sous-projets à l'aide du bouton \"Nouvelle feuille sous-projet\" situé dans la feuille de calcul HOME","4) Cree uno o más subproyectos nuevos utilizando el boton  \"Hoja de nuevo subproyecto\" situado en la hoja de cálculo HOME","4) Creare uno o più sottoprogetti nuovi utilizzando il \"Nuovo foglio di Sottoprogetto\" pulsante che si trova nel foglio di lavoro HOME","4) Maak een of meer nieuwe deelprojecten aan met behulp van de knop \"Nieuw Deelproject\"  in het HOME werkblad",null,null,1]
["a) Enter all information relative to your different projects in the yellow tabs. You can add, duplicate or remove as many yellow tabs as you like.","a) Geben Sie alle Informationen zu Ihren Projekte in die gelben Zellen ein. Sie können gelbe Zellen beliebig hinzufügen, kopieren oder löschen.","a) Enter all information relative to your different projects in the yellow tabs. You can add, duplicate or remove as many yellow tabs as you like.","a) Entrez toutes les informations relatives à vos différents projets dans les onglets jaunes. Vous pouvez ajouter, dupliquer ou supprimer autant d'onglets jaunes que vous le souhaitez.","a) Introduzca toda la información relativa a sus distintos proyectos en las pestañas amarillas. Usted puede agregar, duplicar o eliminar tantas pestañas amarillas como quiera.","a) Inserire tutte le informazioni relative ai vostri progetti nelle schede gialle. È possibile aggiungere, rimuovere o duplicare il maggior numero di schede gialle che vuoi.","a) Voer alle informatie met betrekking tot uw deelproject(en) in de gele tabs in. U kunt zoveel gele tabs toevoegen, kopiëren of verwijderen  als u wilt",null,null,1]
["b) The input data for a given project are prioritised according to the technique used. ","b) Die Eingabedaten für ein gegebenes Projekt werden entsprechend dem angewandten Verfahren priorisiert.","b) The input data for a given project are prioritised according to the technique used. ","b) Les données d'entrée pour un projet donné sont hiérarchisées en fonction de la technique utilisée.","b) Los datos de entrada para un proyecto dado se priorizan según la técnica utilizada.","b) i dati inseriti in un determinato progetto sono peculiari alle tecnologie utilizzate.","b) Nadat de toegepaste techniek voor het (deel)project is geselecteerd kunnen de gegevens worden ingevoerd",null,null,1]
["5) Create one or more new projects using the \"New Project sheet\" button located in the HOME worksheet","5) Erstellen Sie ein oder mehrere neue Projekte mit dem \"Neues Projekt-Blatt\"-Schalter des HOME-Arbeitsblattes.","5) Create one or more new projects using the \"New Project sheet\" button located in the HOME worksheet","5) Créer un ou plusieurs nouveaux projets en utilisant le bouton \"Nouvelle feuille Projet\" situé dans la feuille de calcul HOME","5) Crear uno ó más proyectos nuevos utilizando el botón \"Hoja de Nuevo Proyecto\" localizado en la hoja INICIO","5) Creare uno o più nuovi progetti con il \"Nuovo foglio di progetto\" con pulsante che si trova nel foglio di lavoro HOME","5) Maak een of meer nieuwe projecten aan met behulp van de knop  \"Nieuw Project\" in het HOME werkblad",null,null,1]
["A project is an ensemble of subprojects and projects","Ein Projekt setzt sich aus mehreren Teilprojekten und Projekten zusammen","A project is an ensemble of subprojects and projects","Un projet est un ensemble de sous-projets et de projets","Un proyecto es un conjunto de sub-proyectos y proyectos","Un progetto è un insieme di sottoprogetti e di progetti","a) Een project is een geheel van deelprojecten en projecten",null,null,1]
["6) Export the result in a A4 PDF document","6) Exportieren Sie das Ergebnis in ein A4-PDF-Dokument","6) Export the result in a A4 PDF document","6) Exporter le résultat dans un document PDF A4","6) Exportar el resultado en un documento PDF en A4","6) Esportare i risultati in un documento PDF A4","6) Exporteer het resultaat in een A4 PDF-document",null,null,1]
["7) Compare different alternatives in the \"Comparison\" worksheet","7) Vergleichen Sie Alternativen mit dem Arbeitsblatt \"Vergleich\"","7) Compare different alternatives in the \"Comparison\" worksheet","7) Comparer les différentes alternatives dans la feuille de calcul  \"Comparison\" ","7) Comparar diferentes alternativas en hoja \"comparación\"","7) Confrontare diverse alternative nel foglio di lavoro \"Confronto\"","7) Vergelijk verschillende alternatieven in het werkblad \"Vergelijking\"",null,null,0]
["v4.0","v4.0",{"$f":"B28","v":"v4.0"},{"$f":"C28","v":"v4.0"},{"$f":"D28","v":"v4.0"},{"$f":"E28","v":"v4.0"},{"$f":"F28","v":"v4.0"},null,null,0]
["EFFC & DFI, 2012. All rights reserved.","EFFC & DFI, 2012. Alle Rechte vorbehalten.","EFFC & DFI, 2012. All rights reserved.","EFFC & DFI, 2012. Tous droits réservés.","EFFC y DFI, 2012. Todos los derechos reservados.","EFFC e DFI, 2012. Tutti i diritti riservati.","EFFC & DFI, 2012. Alle rechten voorbehouden.",null,null,1]
["   Project input data (to be filled by user)","   Projekt-Eingabedaten (vom Benutzer auszufüllen)","   Project input data (to be filled by user)","   Données d'entrée du projet (à remplir par l'utilisateur)","Datos de entrada del proyecto (a rellenar por el usuario)","   Dati di input del progetto (da compilare a cura dell'utente)","   Witte cellen: invoervelden (in te vullen door de gebruiker)",null,null,1]
["Coloured cells : non editable cells","Farbige Zellen: Nicht editierbare Zellen","Coloured cells : non editable cells","Cellules de couleur: cellules non modifiables ","celulas coloreadas: células no editables","Celle colorate: celle non modificabili","Gekleurde cellen: niet bewerkbare cellen",null,null,1]
["EFFC DFI Project Carbon Calculator","EFFC DFI Projekt-CO2-Rechner","EFFC DFI Project Carbon Calculator","EFFC DFI - Calculateur carbone de projets","EFFC DFI Proyecto calculadora de carbono","EFFC DFI Progetto del Calcolatore emissioni Co2","EFFC DFI Project Carbon Calculator",null,null,1]
["Kind of Worksheet","Art des Arbeitsblatts","Kind of Worksheet","Type de feuille de calcul","Tipo de hoja de cálculo","Tipo di foglio di lavoro","Soort werkblad",null,null,1]
["Subproject","Teilprojekt","Subproject","Sous-projet","Subproyecto","Sottoprogetto","Deelproject",null,null,1]
["Project","Projekt","Project","Projet","Proyecto","Progetto","Project",null,null,1]
["Results","Ergebnisse","Results","Résultats","Resultados","Risultati","Resultaten",null,null,1]
["Comparison","Vergleich","Comparison","Comparaison","Comparación","Confronto","Vergelijking",null,null,1]
["A subproject sheet is a spreadsheet in which you enter all  activity data regarding one technique.","Ein Teilprojekt-Arbeitsblatt ist ein Arbeitsblatt, in dem Sie alle Daten eines Verfahrens eingeben.","A subproject sheet is a spreadsheet in which you enter all  activity data regarding one technique.","Une feuille sous-projet est une feuille de calcul dans laquelle vous entrez toutes les données d'activité relatives à une technique.","Una hoja de subproyecto es una hoja de cálculo en la que se introducen todos los datos por actividad con respecto a una técnica.","Una cartella sottoprogetto è un foglio di calcolo in cui inserire tutti i dati di attività riguardanti una tecnica esecutiva / metodologia","Een deelprojectblad is het werkblad waarin u alle gegevens over de activiteiten met betrekking tot een techniek invoert",null,null,1]
["A project sheet is a results sheet where you  compare and consolidate subproject & projects sheets","Ein Projekt-Blatt ist ein Arbeitsblatt, um Ergebnisse von Teilprojekten und Projekten zu vergleichen und zusammenzuführen.","A project sheet is a results sheet where you  compare and consolidate subproject & projects sheets","Une feuille de projet est une feuille où vous consolidez les feuilles de sous-projets et de projets","Una hoja de proyecto es una hoja de resultados donde se comparan y consolidan las hojas de los subproyectos y proyectos","Una cartella di progetto è un foglio in cui si confrontano i risultati e combinano fogli di sottoprogetti e progetti","Een projectblad is het werkblad waar u deelprojecten & projecten kunt samenvoegen en vergelijken",null,null,1]
["First time on this tool? Make sure your logo appears on the results page!","Benutzen Sie dieses Tool zum ersten Mal? Achten Sie darauf, dass Ihr Logo auf der Ergebnisseite erscheint!","First time on this tool? Make sure your logo appears on the results page!","Première fois sur cet outil? Assurez-vous que votre logo apparaisse sur la page de résultats!","Por primera vez en esta herramienta? Asegúrese de que su logotipo aparece en la página de resultados!","La prima volta su questo strumento? Assicurarsi che il tuo logo appaia sulla pagina dei risultati!","Gebruikt u de tool voor het eerst, voeg dan eerst uw logo toe voordat u aan de slag gaat, dan verschijnt het op elk werkblad!",null,null,1]
["Purpose","Zweck","Purpose","But","Propósito","Scopo","Doel",null,null,1]
["Calculate the carbon footprint of a part of a project","Berechnung der CO2-Bilanz eines Teilprojekts","Calculate the carbon footprint of a part of a project","Calculer l'empreinte carbone d'une partie d'un projet","Cálculo de la huella de carbono de una parte de un proyecto","Calcolare l'impatto della CO2 di una parte di un progetto","Bereken de carbon footprint van een project of een deel daarvan",null,null,1]
["Total other sheets","Anzahl an Blättern","Total other sheets","Total des autres feuilles","Total de otras hojas","Totale altri fogli","Samenvoegen deelprojecten om de totale uitstoot weer te geven",null,null,1]
["Extract the main data in a printable layout","Erstellen einer Druckvorlage für die Hauptdaten","Extract the main data in a printable layout","Extraire les données principales d'une mise en page à imprimer","Extraer los datos principales en un diseño imprimible","Estrarre i dati principali in un formato stampabile","Selecteer een project of deelproject om de resultaten overzichtelijk in 1 A4 weer te kunnen geven",null,null,1]
["Compare different projects or subprojects","Vergleich verschiedener Projekte oder Teilprojekte","Compare different projects or subprojects","Comparer les différents projets ou sous-projets","Comparar diferentes proyectos o subproyectos","Confronta i diversi progetti o sottoprogetti","Vergelijk verschillende projecten of deelprojecten",null,null,1]
["Create here your subproject sheets","Erstellen Sie hier Ihr Teilprojekt-Arbeitsblatt","Create here your subproject sheets","Créez ici une feuille de sous-projets","Crea aquí tus hojas de subproyectos","Crea qui i fogli del sottoprogetto","Maak hier uw deelprojectblad aan",null,null,1]
["Name","Name","Name","Nom","Nombre","Nome","Naam",null,null,1]
["Technique","Verfahren","Technique","Technique","Técnica","Tecnica","Techniek",null,null,1]
["Copy from","Kopieren von","Copy from","Copier à partir de","Copia de","Copia da","Kopiëren van",null,null,1]
["Create here your projects sheets","Erstellen Sie hier Ihr Projekt-Blatt","Create here your projects sheets","Créez ici une feuille de projets","Cree aquí tus hojas de proyectos","Crea qui i fogli progetti","Maak hier uw projectenblad aan",null,null,1]
["Create here a results sheet","Erstellen Sie hier eine Ergebnis-Blatt","Create here a results sheet","Créer ici une feuille de résultats","Cree aquí una hoja de resultados","Crea qui un foglio risultati","Maak hier een resultatenblad aan",null,null,1]
["Create here your comparison sheets","Erstellen Sie hier Ihr Vergleichs-Blatt","Create here your comparison sheets","Créez ici une feuille de comparaison","Cree aquí tus hojas de comparación","Crea qui i fogli di confronto","Maak hier uw vergelijkingsblad",null,null,1]
["Load your own logo","Laden Ihres eigenen Logos","Load your own logo","Chargez votre propre logo","Cargue su propio logotipo","Caricare il proprio logo","Voeg hier uw eigen logo toe",null,null,1]
["ERROR : '","FEHLER: '","ERROR : '","ERREUR: '","ERROR: '","ERRORE: '","FOUT: '",null,null,1]
["Leave empty to create an empty project","Leer lassen, um ein leeres Projekt zu erstellen","Leave empty to create an empty project","Laissez vide pour créer un projet vierge","Dejar en blanco para crear un proyecto vacío","Lasciare vuoto per creare un progetto vuoto","Laat leeg om een ​nieuw project te maken",null,null,1]
["Input","Eingabe","Input","Entrées","Entrada","Dato di ingresso","Invoer",null,null,1]
["Field activities data (USER SPECIFIED)","Projektspezifische Daten (benutzerdefiniert)","Field activities data (USER SPECIFIED)","Données d'activité terrain (spécifié par l'utilisateur)","Datos de actividades de campo (especificados por el usuario)","Attività di campo dati (specificato dall'utente)","Gegevens over de activiteiten",null,null,1]
["Subproject sheets\nProject sheets","Teilprojekt-Arbeitsblätter\nProjekt-Blätter","Subproject sheets\nProject sheets","Feuilles de sous-projets\nFeuilles de projets","Hojas de Subproyecto\nHojas de proyecto","Fogli sottoprogetto\nFogli progetto","Deelprojectbladen\nProjectbladen",null,null,1]
["Existing Subprojects","Vorhandene Teilprojekte","Existing Subprojects","Les sous-projets existants","Sub-proyectos existentes","Sottoprogetti esistenti","Bestaande Deelprojecten",null,null,1]
["Existing Projects","Vorhandene Projekte","Existing Projects","Les projets existants","Proyectos existentes","Progetti esistenti","Bestaande projecten",null,null,1]
["Results sheets","Ergebnis-Blätter","Results sheets","Feuilles de résultats","Hojas de Resultados","Tabulati (fogli) dei risultati","Resultatenblad",null,null,1]
["Comparison sheets","Vergleichs-Blätter","Comparison sheets","Feuilles de comparaison","Hojas de comparación","Confronto dei fogli","Vergelijkingsblad",null,null,1]
["duplication +","Duplizierung +","duplication +","dupliquer +","duplicación +","duplicazione +","duplicatie +",null,null,1]
["Subproject name","Name Teilprojekt","Subproject name","Nom du sous-projet","Nombre del subproyecto","Nome del sottoprogetto","Naam deelproject",null,null,1]
["Date of calculation","Datum der Berechnung","Date of calculation","Date de calcul","Fecha de cálculo","Data del calcolo","Datum van de berekening",null,null,1]
["Author","Autor","Author","Auteur","Autor","Autore","Auteur",null,null,1]
[{"$f":"INDEX(B67:I67,1,$A$1)","v":"Working days"},"Arbeitstage","Working days","Jours ouvrés","Días de trabajo","Giorni lavorativi","Werkdagen",null,null,1]
["Workforce","Personalstand","Workforce","Personnel","Personal","Forza lavoro / personale","Personeel",null,null,1]
["Project value","Projektwert","Project value","Chiffre d'affaire","Importe del Proyecto","Valore economico del progetto / commessa","Projectwaarde",null,null,1]
["Country","Land","Country","Pays","País","Paese","Land",null,null,1]
["Functional unit 1","Funktionale Einheit 1","Functional unit 1","Unité fonctionnelle 1","Equipo 1","Unità funzionale 1","vul in: prestatie indicator 1",null,null,1]
["Functional unit 2","Funktionale Einheit 2","Functional unit 2","Unité fonctionnelle 2","Equipo 2","Unità funzionale 2","vul in: prestatie indicator 2",null,null,1]
["Concrete / Slurry / Grout mix","Beton / Suspension / Mörtel","Concrete / Slurry / Grout mix","Mix Béton / Coulis","hormigón / lodos / lechada","Calcestruzzo / fanghi / miscele","Beton / slib / Grout mix",null,null,1]
["Quantity","Menge","Quantity","Quantité","Cantidad","Quantità","Hoeveelheid",null,null,1]
["Cement","Zement","Cement","Ciment","Cemento","Cemento","Cement",null,null,1]
["Total cementitious content","Summe zementartiger Bestandteile","Total cementitious content","Teneur totale en ciment","Total contenido de cemento","Contenuto totale di cemento","Totaal cementgebonden inhoud",null,null,1]
["Secondary constituent","Nebenbestandteile","Secondary constituent","Constituant secondaire","Adiciones","Componente secondaria","Secundair bestanddeel",null,null,1]
["Secondary constituent content","Anteil an Nebenbestandteilen","Secondary constituent content","Contenu constituant secondaire","Contenido de adiciones","Contenuto del Costituente secondario","Secundair bestanddeel inhoud",null,null,1]
["Recycled content","Recycling-Anteil","Recycled content","Contenu recyclé","Contenido reciclado","Contenuto di materiale riciclato","Gerecyclede inhoud",null,null,1]
["Simplified ratio","Vereinfachter Anteil","Simplified ratio","Ratio simplifié","Relación simplificada","Rapporto semplificato","Standaard verhouding",null,null,1]
["Network electricity","Netzstrom","Network electricity","Electricité de réseau","Energía eléctrica","Rete elettrica","Elektriciteit van het net",null,null,1]
["Coming by","aus","Coming by","Venir en","viaja en ","che viaggiano  con","Vervoerstype",null,null,1]
["Machines weight","Gerätegewicht","Machines weight","Poids des machines","maquinas pesadas","Peso delle attrezzature","Gewicht machines",null,null,1]
["Waste 1","Abfallstoff 1","Waste 1","Déchets 1","Residuos 1","Rifiuti 1","Afval 1",null,null,1]
["Waste 2","Abfallstoff 2","Waste 2","Déchets 2","Residuos 2","Rifiuti 2","Afval 2",null,null,1]
["Externaly calculated emissions","von Dritten berechnete Emissionen","Externaly calculated emissions","Émissions calculées par ailleurs","Emisiones calculadas externamente","Emissioni calcolate esternamente","Extern berekende emissies",null,null,1]
["value","Wert","value","valeur","valor","valore","waarde",null,null,1]
["Default concrete","Standard-Beton","Default concrete","Béton par défaut ","Hormigón por defecto","Valore di defaut del calcestruzzo","Standaard beton",null,null,1]
["Default value","Standard-Wert","Default value","Valeur par défaut","Valor por defecto","Valore predefinito","Standaard waarde",null,null,1]
["do not apply","unzutreffend","do not apply","non concerné","no aplica","Non applicabile","niet van toepassing",null,null,1]
["Default","Standard","Default","Par défaut","Defecto","valore di default","Standaard waarde",null,null,1]
["OFF","AUS","OFF","OFF","APAGADO","OFF","OFF",null,null,1]
["Number of roundtrips","Anzahl der Umläufe","Number of roundtrips","Nombre d'allers-retours","Número de viajes de ida y vuelta","Numero dei viaggi in andata e ritorno","Aantal retour transporten",null,null,1]
["Full-time equivalent","Vollzeitäquivalent","Full-time equivalent","Équivalent temps plein","Equivalente a Tiempo Completo","Equivalenti a tempo pieno","voltijd",null,null,1]
["€","€","€","€","€","€","€",null,null,1]
["unit","Einheit","unit","unité","unidad","unità","eenheid",null,null,1]
["Real Value","Sachwert","Real Value","Valeur réelle","Valor Real","Valore reale","Waarde",null,null,1]
["kWh","kWh","kWh","kWh","kWh","kWh","kWh",null,null,1]
["roundtrips","Umläufe","roundtrips","allers-retours","viajes de ida y vuelta","andata e ritorno","retour transporten",null,null,1]
["every X day(s)","alle X Tag(e)","every X day(s)","tous les X jour(s)","cadaXdía","ogni giorno X (s)","elke X dag (en)",null,null,1]
["t","t","t","t","t","t","t",null,null,1]
["kgCO2e","kgCO2e","kgCO2e","kgCO2e","kgCO2e","kgCO2e","kgCO2e",null,null,1]
["Sources","Quellen","Sources","Sources","Fuentes","Fonti","Bronnen",null,null,1]
["Materials","Stoffe","Materials","Matériaux","Materiales","Materiale","Materialen",null,null,1]
["Energy","Energie","Energy","Énergie","Energía","Energia","Energie (op bouwplaats)",null,null,1]
["Freight","Fracht","Freight","Transport de matériaux","Carga","Trasporto","Vracht",null,null,1]
["Mob/demob","BE/BR","Mob/demob","Transport de machines","portes ida/portes vuelta","Installazione/ smobilizzo cantiere","Aan- en afvoer (hulp)materieel",null,null,1]
["People's transportation","Personaltransport","People's transportation","Déplacements de personnes","Transporte del personal","Mezzi di trasporto del personale","Transport personeel",null,null,1]
["Assets","Vermögenswerte","Assets","Immobilisations","maquinaria","Attività-beni?","Materieel (levensduur)",null,null,1]
["Waste","Abfälle","Waste","Déchets","Residuos","Rifiuti","Afval (transport)",null,null,1]
["-reused-","-wird verwertet-","-reused-","-Réutilisée-","reutilizado","-Riutilizzati-","-Hergebruikt-",null,null,1]
["Distance","Entfernung","Distance","Distance","Distancia","Distanza","Afstand",null,null,1]
["Average distance","Mittlere Entfernung","Average distance","Distance moyenne","La distancia media","Distanza media","Gemiddelde afstand",null,null,0]
[" one way"," je Richtung"," one way"," aller"," de ida"," solo andata"," enkele reis",null,null,0]
["tCO2e","tCO2e","tCO2e","tCO2e","tCO2e","tCO2e","tCO2e",null,null,1]
["Lifetime","Lebensdauer","Lifetime","Durée de vie","tiempo de vida útil","Vita tecnica","Levensduur",null,null,0]
["made on site","vor Ort hergestellt","made on site","fabriqué sur place","fabricado in situ","Realizzato sul posto","Gemaakt op de bouwplaats (in situ)",null,null,1]
["Other","Sonstige","Other","Autre","Otro","Altro","Anders",null,null,1]
["km","km","km","km","kilometros","km","km",null,null,1]
["Type","Typ","Type","Type","Tipo","Tipo","Type",null,null,1]
["years","Jahre","years","ans","años","anni","jaar",null,null,1]
[{"$f":"INDEX(B122:I122,1,$A$1)","v":"year"},"Jahr","year","an","año","anno","jaar",null,null,0]
["Primary emission sources : \n","Primäre Emissionsquellen:\n","Primary emission sources : \n","Sources d'émissions primaires:\n","fuentes de emisión primarias","Fonti di emissione primarie:\n","Primaire emissiebronnen:\n",null,null,1]
["Please enter activities data relative to the primary emission sources","Bitte geben Sie die Daten der primären Emissionsquellen ein","Please enter activities data relative to the primary emission sources","Veuillez entrer les données des activités relatives aux sources d'émissions primaires","Por favor, introduzca los datos de las actividades relativas a las fuentes de emisiones primarias","Si prega di inserire i dati delle attività relativi alle fonti di emissione primarie","Voer gegevens in betreffende de primaire emissiebronnen",null,null,1]
["TOTAL GHG EMISSIONS","Gesamte Treibhausgas-Emissionen","TOTAL GHG EMISSIONS","Émissions totales de GES","Emisiones totales de GEI","Emissioni totali di GHG","Totale uitstoot van broeikasgassen",null,null,1]
["Use time","Betriebsdauer","Use time","Temps d'utilisation","tiempo de uso","Utilizzare il tempo","Gebruiksduur ",null,null,1]
["Load","Ladung","Load","Taux de charge","Carga","Carico","Lading",null,null,1]
["empty-return rate","Anteil leerer Rückfahrten","empty-return rate","Taux de retour à vide","tasa de retorno vacío","Percetuale di vuotorelativa al viaggio di ritorno","Tarief lege retour rit",null,null,1]
["days","Tage","days","jours","días","    ","dagen",null,null,1]
["travels","Reisen","travels","trajets","viajes","viaggi","transporten",null,null,1]
[{"$f":"INDEX(B131:I131,1,$A$1)","v":"Comments :"},"Kommentare:","Comments :","Commentaires:","Comentarios:","Commenti:","Commentaar:",null,null,1]
["Primary emission sources","Primäre Emissionsquellen","Primary emission sources","Sources d'émissions primaires","fuentes de emisión primarias","Fonti di emissione primarie","Primaire emissiebronnen",null,null,1]
["Secondary emission sources","Sekundäre Emissionsquellen","Secondary emission sources","Sources d'émissions secondaires","fuentes de emisión secundarías","Fonti di emissioni secondarie","Secundaire emissiebronnen",null,null,1]
["Total","Gesamt","Total","Total","Total","Totale","Totaal",null,null,1]
["Project name","Name des Projekts","Project name","Nom du projet","Nombre del proyecto","Nome del progetto","Projectnaam",null,null,1]
["Materials detail","Details Stoffe","Materials detail","Détail des matériaux","detalle de los materiales","Dettaglio dei materiali","Materialen",null,null,2]
["Turnover","Umsatz","Turnover","Chiffre d'affaires","Volumen de negocios","Giro d'affari","Omzet",null,null,1]
["Steel","Stahl","Steel","Acier","Acero","Acciaio","Staal",null,null,1]
["Select the subprojects and projects that you want to total","Wählen Sie die zu addierenden Teilprojekte und Projekte aus","Select the subprojects and projects that you want to total","Sélectionnez les sous-projets et projets que vous souhaitez consolider","Seleccione los sub-proyectos y proyectos que usted quiere totalizar","Selezionare i sottoprogetti e i progetti per i quali si desidera calcolare il totale","Selecteer de deelprojecten die samen een project vormen",null,null,1]
["Functional units 1 are not the same","Funktionale Einheiten 1 sind nicht gleich","Functional units 1 are not the same","Unités fonctionnelles 1 ne sont pas identiques","Los equipos 1 no son los mismos","Le unità funzionali 1 non sono uguali","Prestatie indicatoren 1 zijn niet dezelfde",null,null,1]
["Check the unit","Überprüfen Sie die Einheit","Check the unit","Vérifiez l'unité","Compruebe la unidad","Controllare l'unità ","Controleer de eenheid",null,null,1]
["Functional units 2 are not the same","Funktionale Einheiten 2 sind nicht gleich","Functional units 2 are not the same","Les unités fonctionnelles 2 ne sont pas les mêmes","Los equipos 2 no son los mismos","Le unità funzionali 2 non sono uguali","Prestatie indicatoren 2 zijn niet dezelfde",null,null,1]
["unit problem","Problem mit Einheiten","unit problem","Problème d'unité","unidad problema","Problema con le unità","fout in eenheden",null,null,1]
["select your project or subproject","Wählen Sie Ihr Projekt oder Teilprojekt","select your project or subproject","sélectionnez votre projet ou sous-projet","seleccione el proyecto o subproyecto","selezionare il vostro progetto o sottoprogetto","selecteer een project of deelproject",null,null,1]
["Company","Firma","Company","Entreprise","Empresa","Azienda","Bedrijf",null,null,1]
["User-defined emission factors","Benutzerdefinierte Emissionsfaktoren","User-defined emission factors","Facteurs d'émission définis par l'utilisateur"," factores de emisión definidos por el usuario","Fattori di emissione definiti dall'utente","Door de gebruiker gedefinieerde emissiefactoren",null,null,1]
["Additional percentage used","Weiterer verwendeter Prozentsatz","Additional percentage used","Ratio utilisés","Porcentaje adicional utilizado","Maggiori percentuali  utilizzate","Gebruikte extra percentage",null,null,1]
["Your Company name","Ihr Firmenname","Your Company name","Nom de votre entreprise","Nombre de su empresa","Nome della azienda","Uw bedrijfsnaam",null,null,1]
[" "," "," "," "," "," "," ",null,null,1]
["ratio per","Verhältnis je","ratio per","ratio par","ratio por","rapporto per","Uitstoot per",null,null,1]
["Externally calculated emissions added","Extern berechnete Emissionen ergänzt","Externally calculated emissions added","Ajout d'émissions calculées en dehors de l'outil","Emisiones añadidas calculadas externamente","Esternamente le emissioni calcolate aggiunto","Extern berekende emissies toegevoegd",null,null,1]
["Emission factor database","Emissionsfaktoren-Datenbank","Emission factor database","Base de données de facteurs d'émission","base de datos de factores de emisión","Data base dei fattori di emissione","Emissiefactor database",null,null,1]
["added emission factors","ergänzte Emissionsfaktoren","added emission factors","facteurs d'émission ajoutés","factores de emisión añadidos","fattori di emissione aggiunto","toegevoegde emissiefactoren",null,null,1]
["kgCO2e / ","kgCO2e / ","kgCO2e / ","kgCO2e / ","kgCO2e / ","kgCO2e / ","kgCO2e / ",null,null,1]
[{"$f":"INDEX(B155:I155,1,$A$1)","v":"gCO2e / "},"gCO2e / ","gCO2e / ","gCO2e / ","gCO2e / ","gCO2e / ","gCO2e / ",null,null,1]
[{"$f":"INDEX(B156:I156,1,$A$1)","v":"Comparison sheet"},"Vergleichs-Blatt","Comparison sheet","Feuille de comparaison","hoja de comparación","Confronto foglio","Vergelijkingsblad",null,null,1]
["Comparison sheet (1/2)","Vergleichs-Blatt (1/2)","Comparison sheet (1/2)","Feuille de comparaison (1/2)","hoja de comparación (1/2)","Confronto foglio (1/2)","Vergelijkingsblad (1/2)",null,null,1]
["Comparison sheet (2/2)","Vergleichs-Blatt (2/2)","Comparison sheet (2/2)","Feuille de comparaison (2/2)","Hoja de comparación (2.2)","Confronto foglio (2/2)","Vergelijkingsblad (2/2)",null,null,1]
["Primary sources emissions","Emissionen aus Primärquellen ","Primary sources emissions","Émissions des sources primaires","fuentes de emisión primarias","Fonti primarie di emissioni","Uitstoot primaire bronnen",null,null,1]
["Secondary sources emissions","Emissionen aus Sekundärquellen ","Secondary sources emissions","Émissions des sources secondaires","fuentes de emisión secundarías","Fonti secondarie di emissione","Uitstoot secundaire bronnen",null,null,1]
["Uncertainties","Unsicherheiten","Uncertainties","Incertitudes","incertidumbres","Incertezze","Onzekerheden",null,null,1]
["Other materials","Andere Stoffe","Other materials","Autres matériaux","Otros materiales","Altri materiali","Andere materialen",null,null,1]
["Yes","Ja","Yes","Oui","Sí","Sì","Ja",null,null,1]
[{"$f":"INDEX(B164:I164,1,$A$1)","v":"No"},"Nein","No","Non","No","No","Geen",null,null,0]
["Other emission sources","Weitere Emissionsquellen","Other emission sources","Autres sources d'émission","Otras fuentes de emisión","Altre fonti di emissione","Andere emissiebronnen",null,null,1]
["Select the subprojects and projects that you want to compare","Wählen Sie die zu vergleichende Teilprojekte und Projekte aus","Select the subprojects and projects that you want to compare","Sélectionnez les sous-projets et projets que vous souhaitez comparer","Seleccione los sub-proyectos y proyectos que desea comparar","Selezionare i sottoprogetti e dei progetti che si desidera confrontare","Selecteer de deelprojecten en projecten die u wilt vergelijken",null,null,1]
["Projects emissions per ","Projekt Emissionen pro","Projects emissions per ","Emissions par","emisiones de proyectos por","Progetti per le emissioni","Uitstoot projecten per",null,null,1]
["ratio variable :","Verhältnis Variable:","ratio variable :","la variation du taux:","ratio variable:","rapporto variabile:","Kies gewenste prestatie indicator",null,null,1]
["Show other ","Weitere anzeigen","Show other ","Montrer autres","Mostrar otros","Mostra altri","Toon andere",null,null,1]
["emission ","Emission","emission ","émission","emisión","emissione","emissie",null,null,1]
["Functional units have to be the exactly the same","Die Funktionalen Einheiten müssen gleich sein","Functional units have to be the exactly the same","Les unités fonctionnelles doivent être exactement les mêmes","Los equipos tienen que ser exactamente los mismos","Unità funzionali devono essere esattamente uguali","Prestatie indicatoren moeten wel precies hetzelfde zijn",null,null,1]
["Projects emission repartitions","Verteilung der Projekt-Emission","Projects emission repartitions","Répartitions des émissions des projets","Reparto de las emisiones de los Proyectos","Ripartizione delle emissioni relative ai progetti","Verhouding uitstoot projecten",null,null,2]
["emissions repartition","Emissionsverteilung","emissions repartition","répartition des émissions","Reparto de las emisiones","Ripatizione delle emissioni","Verhouding uitstoot  ",null,null,2]
["Emission factor data base","Emissionsfaktor Datenbank","Emission factor data base","Facteur d'émission de données de base","Base de datos de los factores de emisión","Fattore di emissione dei dati di base","Emissiefactor database",null,null,1]
["Emission factor name","Emissionsfaktor Name","Emission factor name","Nom du facteur d'émission","Nombre del factor de emisión","Fattore di emissione nome","Emissiefactor naam",null,null,1]
["Acrylic acid","Acrylsäure","Acrylic acid","Acide acrylique","Ácido acrílico","Acido acrilico","Acrylzuur",null,null,1]
["Aggregate","Zuschlagstoff","Aggregate","Granulats","Gravas","Aggregati","Aggregaat",null,null,1]
["Bentonite","Bentonit","Bentonite","Bentonite","Bentonita","Bentonite","Bentoniet",null,null,1]
["Calcium chloride","Calciumchlorid","Calcium chloride","Chlorure de calcium","Cloruro de calcio","Cloruro di calcio","Calciumchloride",null,null,1]
[{"$f":"INDEX(B180:I180,1,$A$1)","v":"Carboxymethyl cellulose"},"Carboxymethylzellulose","Carboxymethyl cellulose","Carboxymethyl cellulose","Carboxymethyl cellulose","Carboxymethyl cellulose","Carboxymethyl cellulose",null,null,0]
["CEM I","CEM I","CEM I","CEM I","CEM I","CEM I","CEM I",null,null,1]
["GGbs","Hüttensand","GGbs","GGB","GGBS","GGbs","GGbs",null,null,1]
["Fly Ash","Flugasche","Fly Ash","Cendres volantes","Las cenizas volantes","Ceneri volanti","Vliegas",null,null,1]
["Limestone","Kalkstein","Limestone","Calcaire","Caliza","Calcare","Kalksteen",null,null,1]
["minor additional constituent","untergeordnete zusätzliche Bestandteile","minor additional constituent","constituant additionnel mineur","componentes minoritarios","Componenti aggiuntivi minori","kleine deeltjes",null,null,1]
["Chemicals inorganic","anorganische Chemikalien","Chemicals inorganic","Produits chimiques inorganiques","Productos químicos inorgánicos","Prodotti chimici inorganici","Anorganische chemicaliën ",null,null,1]
[{"$f":"INDEX(B187:I187,1,$A$1)","v":"EPDM-rubber"},"EPDM-Kautschuk","EPDM-rubber","EPDM-caoutchouc","Caucho EPDM","Gomme - EPDM","EPDM-rubber",null,null,0]
[{"$f":"INDEX(B188:I188,1,$A$1)","v":"Polypropylene"},"Polypropylen","Polypropylene","Polypropylène","Polipropileno","Polypropylene","Polypropyleen",null,null,0]
["PVC pipes","PVC-Rohre","PVC pipes","Tuyaux en PVC","Tubos de PVC","Tubi in PVC","PVC-buizen",null,null,1]
["Sand","Sand","Sand","Sable","Arena","Sabbia","Zand",null,null,1]
["Sodium carbonate","Natriumcarbonat","Sodium carbonate","Carbonate de sodium","Carbonato de sodio","Carbonato di sodio","Natriumcarbonaat",null,null,1]
["Steel sheets","Stahlblech","Steel sheets","Tôles d'acier","chapas de acero","Lamiere di acciaio","Staalplaten",null,null,1]
["Steel rebars","Bewehrungsstahl","Steel rebars","Armatures en acier","Barras de acero corrugado","Barre d'acciaio per armatura","Stalen wapening",null,null,1]
["Steel tubes","Stahlrohre","Steel tubes","Tubes en acier","Tubos de acero","Tubi in acciaio","Stalen buizen",null,null,1]
["Steel wires","Stahldrähte","Steel wires","Cables en acier","Alambre de acero","Barre di acciaio","Staaldraden",null,null,1]
["Synthetic polymer slurry","Poplymerlösungen","Synthetic polymer slurry","Synthetic polymer slurry","Synthetic polymer slurry","Synthetic polymer slurry","Synthetic polymer slurry",null,null,0]
[{"$f":"INDEX(B197:I197,1,$A$1)","v":"Cellulose-based polymer slurry"},"Zellulosebasierte Polymerlösung","Cellulose-based polymer slurry","Cellulose-based polymer slurry","Cellulose-based polymer slurry","Cellulose-based polymer slurry","Cellulose-based polymer slurry",null,null,0]
["Water","Wasser","Water","Eau","Agua","Acqua","Water",null,null,1]
[" - recycled"," - wiederverwertet"," - recycled","- recyclé"," - reciclados"," - riciclato"," - gerecycled",null,null,1]
["Diesel","Diesel","Diesel","Fioul","Combustible ligero","Gasolio","Diesel / lichte stookolie",null,null,1]
["Heavy fuel oil","Schweres Heizöl","Heavy fuel oil","Fioul lourd","Combustible pesado","Olio combustibile pesante","Zware stookolie",null,null,1]
["Electricity","Strom","Electricity","Électricité","Electricidad","Elettricità","Elektriciteit",null,null,1]
[{"$f":"INDEX(B203:I203,1,$A$1)","v":"Diesel (100% mineral diesel)"},"Diesel (100% mineralischer Diesel)","Diesel (100% mineral diesel)","Diesel (100% minéral)","Gasóleo (100% Gasóleo mineral)","Diesel (100% diesel di origine minerale)","Diesel (100% minerale diesel)",null,null,1]
["Road - Rigid >3.5-7.5t","Straße - LKW-Zug > 3,5-7.5t","Road - Rigid >3.5-7.5t","Route - rigide> 3,5 7.5t","Por carretera - rígido> 3,5 ty 7,5 t","Automezzi > 3.5-7.5t","Weg - Zwaar> 3,5-7.5t",null,null,1]
["Road - Rigid >7.5-17t","Straße - LKW-Zug > 7,5-17t","Road - Rigid >7.5-17t","Route - rigide> 7.5-17t","Por carretera - rígido> 7,5-17t","Automezzi > 7.5-17T","Weg - Zwaar> 7,5-17T",null,null,1]
["Road - Rigid >17t","Straße - LKW-Zug > 17t","Road - Rigid >17t","Route - rigide> 17t","Por carretera - rígido> 17t","Automezzi> 17T","Weg - Zwaar> 17T",null,null,1]
["Road - Articulated >3.5-33t","Straße - Auflieger > 3,5-33t","Road - Articulated >3.5-33t","Route - articulé> 3.5-33t","Por carretera - Articulado> 3.5-33t","Autoarticolato > 3.5-33T","Weg - Gelede> 3,5-33t",null,null,1]
["Road - Articulated >33t","Straße - Auflieger > 33t","Road - Articulated >33t","Route - articulé> 33t","Por carretera - Articulado> 33t","Autoarticolato > 33T","Weg - Gelede> 33t",null,null,1]
["Air - Domestic","Luftfracht - Inland","Air - Domestic","Air - Domestic","Aéreo- Nacional","Aereo (voli nazionali)","Vliegtuig - Binnenland",null,null,1]
["Air - Short-haul international","Luftfracht - Kurzstrecke international","Air - Short-haul international","Air - Court-courrier international","Aéreo - internacional de cortadistancia","Aereo (voli continentali)","Vliegtuig - Internationale korte afstandsvluchten",null,null,1]
["Air - Long-haul international","Luftfracht - Langstrecke international","Air - Long-haul international","Air - Long-courrier international","Aéreo- Internacional de larga distancia","Aereo (voli intercontinentali)","Vliegtuig - Internationale lange afstandsvluchten",null,null,1]
["Maritime -  General cargo ","Seefracht - Stückgut","Maritime -  General cargo ","Maritime - Cargo","Marítimo - Carga general","Via Mare - Cargo","Schip - Stukgoed",null,null,1]
["Maritime -  Container ","Seefracht - Container","Maritime -  Container ","Maritime - Conteneur","Marítimo - Contenedor","Via Mare - Container","Schip - Container",null,null,1]
["Rail - Average freight - thermic","Bahn - dieselbetrieben - durchschnittliche Fracht","Rail - Average freight - thermic","Rail - Fret moyen - thermique","Ferrocarril-Regular de Mercancías - térmico","Ferrovia","Spoor - Gemiddelde vracht - thermisch",null,null,1]
["Diesel oil","Dieselöl","Diesel oil","Gazole","Gasóleo","Gasolio","Diesel(olie)",null,null,1]
["Bus","Bus","Bus","Bus","Autobús","Autobus","Bus",null,null,1]
["Car","Auto","Car","Voiture","Coche","Auto","Auto",null,null,1]
["Train","Zug","Train","Train","Tren","Treno","Trein",null,null,1]
["Air passenger - Domestic","Flug - Inland","Air passenger - Domestic","Passagers aériens - Domestic","Pasajero de vuelo - Nacional","Passaggeri aereo - voli nazionali","Vliegtuig - Binnenland",null,null,1]
["Air passenger - Short-haul international","Flug - Kurzstrecke international","Air passenger - Short-haul international","Passagers aériens - Court-courrier international","Pasajero de vuelo - Internacional de corta distancia","Passaggeri aereo - voli continentali","Vliegtuig - Internationale korte afstandsvluchten",null,null,1]
["Air passenger - Long-haul international","Flug - Langstrecke international","Air passenger - Long-haul international","Passagers aériens - Long-courrier international","Pasajero de vuelo - Internacional de Larga distancia","Passeggeri aereo - voli internazionali","Vliegtuig - Internationale lange afstandsvluchten",null,null,1]
["Machines","Gerät","Machines","Machines","Máquinas","Macchine","Machines",null,null,1]
["Cement types","Zementsorten","Cement types","Types de ciment","Tipos de cemento","Tipi di cemento","Cementsoorten",null,null,1]
["CEM II/A-LL or L","CEM II / A-LL oder L","CEM II/A-LL or L","CEM II / A-LL ou L","CEM II / A-LL o L","CEM II / A-LL o L","CEM II / A-LL of L",null,null,1]
["CEM II/A-V","CEM II / A-V","CEM II/A-V","CEM II / A-V","CEM II / A-V","CEM II / A-V","CEM II / A-V",null,null,1]
["CEM II/B-V","CEM II / B-V","CEM II/B-V","CEM II / B-V","CEM II / B-V","CEM II / B-V","CEM II / B-V",null,null,1]
["CEM II/B-S","CEM II / B-S","CEM II/B-S","CEM II / B-S","CEM II / B-S","CEM II / B-S","CEM II / B-S",null,null,1]
["CEM III/A","CEM III / A","CEM III/A","CEM III / A","CEM III / A","CEM III / A","CEM III / A",null,null,1]
["CEM III/B","CEM III / B","CEM III/B","CEM III / B","CEM III / B","CEM III / B","CEM III / B",null,null,1]
["CEM III/C","CEM III / C","CEM III/C","CEM III / C","CEM III / C","CEM III / C","CEM III / C",null,null,1]
["CEM IV/B-V","CEM IV / B-V","CEM IV/B-V","CEM IV / B-V","CEM IV / B V-","CEM IV / B-V","CEM IV / B-V",null,null,1]
["Default recycled content","Standard-wert Recycling-anteil","Default recycled content","Taux de recyclage par défaut ","Contenido de Reciclados por defecto","Contenuto predefinito di materiale ricilato","Standaard gerecycled materiaal",null,null,1]
["Steel sheet","Profilstahl","Steel sheet","Tôle d'acier","Chapa de acero","Lamiere d'acciaio","Stalen damwand",null,null,1]
["Steel bars","Stabstahl","Steel bars","Les barres d'acier","Barras de acero corrugado","Barre di acciaio","Stalen staven",null,null,1]
["Freight load","Gewicht Fracht","Freight load","Taux de charge du fret","Transporte de mercancías","Carico (peso)","Gewicht transport",null,null,1]
["Standard freight activities data","Standardwert Frachtdaten","Standard freight activities data","Données d'activités fret starndard","Carga estándar de datos de actividades","Attività standard per il carico (?)","Standaard transport data",null,null,1]
["Do not change the database unless you really need it","Ändern Sie nicht die Datenbank, wenn nicht wirklich benötigt","Do not change the database unless you really need it","Ne pas modifier la base de données, sauf besoin justifié","No cambie la base de datos a menos que realmente lo necesite","Non cambiare il database se non strettamente necessario","Verander de database niet, tenzij dit expliciet afgesproken is",null,null,1]
["liter","Liter","liter","litre","litro","litro","liter",null,null,1]
["vkm","Fzkm","vkm","vkm","vkm","VKM","VKM",null,null,1]
["tkm","tkm","tkm","tkm","tkm","tkm","tkm",null,null,1]
["pkm","Pkm","pkm","pkm","pkm","pkm","pkm",null,null,1]
["-","-","-","-","-","-","-",null,null,1]
["Default load","Standardladung","Default load","Charge par défaut","Carga por defecto","Carico predefinito","Standaard lading",null,null,1]
["Freight Type","Frachtart","Freight Type","Type de fret","Tipo de Carga","Tipo di trasporto","Vracht Type",null,null,1]
["Emission factor used (kgCO2/unit)","verwendeter Emissions-faktor (kgCO2/ Einheit)","Emission factor used (kgCO2/unit)","Le facteur d'émission utilisé (kgCO2/unit)","Factor de emisión utilizado (kgCO2/unit)","Fattore di emissione utilizzato (kgCO2/unit)","Gebruikte emissiefactor (kgCO2/unit)",null,null,1]
["Secondary constituent minimum content","Mindestanteil Nebenbestandteile","Secondary constituent minimum content","Contenu en constituant secondaire minimal","Contenido mínimo de adiciones","Contenuto minimo del costituente secondario","Minimale inhoud secundair bestanddeel ",null,null,1]
["Source","Quelle","Source","Source","Fuente","Fonte","Bron",null,null,1]
["Common distance (km)","Gemeinsame Entfernung (km)","Common distance (km)","Distance moyenne (km)","Distancia común (km)","Distanza (km)","Gemiddelde afstand (km)",null,null,1]
["Emission factor database used","verwendete Emissionsfaktoren-Datenbank ","Emission factor database used","Base de données facteur d'émission utilisé","Base de datos de Factores de emisión empleada","Fattore di emissione utilizzato dal database","Gebruikte database emissiefactoren",null,null,1]
["Secondary constituent maximum content","Maximalanteil Nebenbestandteile","Secondary constituent maximum content","Contenu en constituant secondaire maximal","Contenido máximo de adiciones","Contenuto massimo del costituente secondario","Maximale inhoud secundair bestanddeel ",null,null,1]
["User-defined emission factor (kgCO2/unit)","Benutzerdefinierter Emissionsfaktor (kgCO2/Einheit)","User-defined emission factor (kgCO2/unit)","Définie par l'utilisateur facteur d'émission (kgCO2/unit)","Factor de emisión definido por el usuario  (kgCO2/unit)","Fattore di emissione definito dall'utente (kgCO2/unit)","Door de gebruiker gedefinieerde emissiefactor (kgCO2/unit)",null,null,1]
["Secondary constituent average content","durchschnittlicher Anteil Nebenbestandteile","Secondary constituent average content","Secondaire teneur moyenne en constituant","contenido medio de adiciones","Contenuto medio del costituente secondario","Gemiddelde inhoud secundair bestanddeel ",null,null,1]
["User-defined emission factor source","Quelle des benutzerdefinierten Emissionsfaktors","User-defined emission factor source","Source du facteur d'émission définit par l'utilisateur","Fuente de Factores de emisión defininida por el usuario","Fattore di emissione definito dall'utente","Door de gebruiker gedefinieerde bron van de emissiefactor",null,null,1]
["Material type","Stoffart","Material type","Type de matériau","Tipo de material","Tipologia di materiale","Materiaalsoort",null,null,1]
["Uncertainty","Unsicherheit","Uncertainty","Incertitude","Incertidumbre","Grado di incertezza","Onzekerheid",null,null,1]
["EFFC DFI methodology recommended emission factors","EFFC DFI-empfohlener Emissionsfaktor für diese Methodik","EFFC DFI methodology recommended emission factors","Facteurs d'émission recommandés par la méthodologie EFFC DFI","Metodología de EFFC DFI recomendada para los Factores de emisión","EFFC DFI metodologia raccomandata fattori di emissione","Aanbevolen emissiefactoren vanuit de EFFC DFI methodologie",null,null,1]
["Ecoinvent v3.1","Ecoinvent v3.1","Ecoinvent v3.1","Ecoinvent v3.1","Ecoinvent v3.1","Ecoinvent v3.1","Ecoinvent v3.1",null,null,1]
["Base carbone (v18.1)","Base carbone (v18.1)","Base carbone (v18.1)","Base carbone (v18.1)","Base carbone (v18.1)","Base carbone (v18.1)","Base carbone (v18.1)",null,null,1]
["sustainableconcrete","sustainableconcrete","sustainableconcrete","sustainableconcrete","hormigón sostenible","Calcestruzzo eco-sostenibile","sustainableconcrete",null,null,1]
["ICE V3","ICE V3",{"$f":"B260","v":"ICE V3"},{"$f":"C260","v":"ICE V3"},"ICE V3","ICE V3","ICE V3",null,null,1]
["Defra 2019 (v1.3)","Defra 2019 (v1.3)","Defra 2019 (v1.3)","Defra 2019 (v1.3)","Defra 2019 (v1.3)","Defra 2019 (v1.3)","Defra 2019 (v1.3)",null,null,1]
["EcoTransit","EcoTransit","EcoTransit","EcoTransit","Transporte ecológico","EcoTransIT","EcoTransIT",null,null,1]
["France - Bilan Carbone","Frankreich - Bilan Carbone","France - Bilan Carbone","France - Bilan Carbone","Francia - Bilan Carbone","Francia - Bilan Carbone","Frankrijk - Bilan Carbone",null,null,1]
["UK - DEFRA/Uni of Bath","UK - DEFRA / Uni of Bath","UK - DEFRA/Uni of Bath","Royaume-Uni - DEFRA / Uni de Bath","Reino Unido - DEFRA / Uni of Bath","UK - DEFRA / Uni di Bath","UK - DEFRA / University of Bath",null,null,1]
["GHG Protocol","GHG Protocol","GHG Protocol","GHG Protocol","GHG Protocol","GHG Protocol","GHG Protocol",null,null,1]
["CO2 emissions for electricity 2017","CO2 emissions for electricity 2017","CO2 emissions for electricity 2017","CO2 emissions for electricity 2017","CO2 emissions for electricity 2017","CO2 emissions for electricity 2017","CO2 emissions for electricity 2017",null,null,1]
[{"$f":"INDEX(B267:I267,1,$A$1)","v":"CO2 emissions for electricity 2017 including losses&WTT"},"CO2 emissions for electricity 2017 including losses&WTT","CO2 emissions for electricity 2017 including losses&WTT","CO2 emissions for electricity 2017 including losses&WTT","CO2 emissions for electricity 2017 including losses&WTT","CO2 emissions for electricity 2017 including losses&WTT","CO2 emissions for electricity 2017 including losses&WTT",null,null,1]
["Comments","Kommentare","Comments","Commentaires","Comentarios","Commenti","Reacties",null,null,1]
["DEFRA % weight laden","DEFRA% Gewicht beladen","DEFRA % weight laden","Poids DEFRA% chargé","DEFRA% peso cargado","DEFRA% in peso a pieno carico","DEFRA% gewicht",null,null,1]
["Factor 2 not taken into account","Faktor 2 wurde nicht berücksichtigt","Factor 2 not taken into account","Facteur 2 non pris en compte","Factor 2 no tomado en cuenta en cuenta","Fattore 2 non si tiene conto (?)","Factor 2 niet meegerekend",null,null,1]
["EcoTransit + DEFRA","EcoTransit + DEFRA","EcoTransit + DEFRA","EcoTransit + DEFRA","EcoTransIT + DEFRA","EcoTransIT + DEFRA","EcoTransIT + DEFRA",null,null,1]
["EcoTransit + IEA","EcoTransit + IEA","EcoTransit + IEA","EcoTransit + AIE","EcoTransIT + IEA","EcoTransIT + AIE","EcoTransIT + IEA",null,null,1]
["DEFRA average load (tonnes)","DEFRA mittlere Auslastung (Tonnen)","DEFRA average load (tonnes)","DEFRA charge moyenne (en tonnes)","DEFRA carga media (toneladas)","DEFRA carico medio (in tonnellate)","DEFRA gemiddelde belasting (ton)",null,null,1]
["Size","Größe","Size","Taille","Tamaño","Dimensione","Omvang",null,null,1]
["Insert your logo here","Fügen Sie hier Ihr Logo ein","Insert your logo here","Insérez votre logo ici","Inserte su logo aquí","Inserisci il tuo logo qui","Plaats hier uw logo",null,null,1]
["The logo have to fit in the white box","Logo in das weiße Feld einpassen","The logo have to fit in the white box","Le logo doit tenir dans la case blanche","El logotipo tiene que encajar en el cuadro blanco","Il logo deve entrare nella casella bianca","Het logo moet in het witte vlak passen",null,null,1]
["Subprojects","Teilprojekte","Subprojects","Sous-projets","Subproyectos","Sottoprogetti","Deelprojecten",null,null,1]
["Projects","Projekte","Projects","Projets","Proyectos","Progetti","Projecten",null,null,1]
["Both","Beide","Both","Tous les deux","Ambos","Entrambi","Beide",null,null,1]
["Techniques","Verfahren","Techniques","Techniques","Técnicas","Tecniche","Technieken",null,null,1]
[{"$f":"INDEX(B281:I281,1,$A$1)","v":"Bored piles"},"Bohrpfähle","Bored piles","Pieux forés","Pilotes","Pali trivellati","Boorpalen",null,null,1]
["Displacement piles","Verdrängunspfähle","Displacement piles","Pieux refoulés","Pilotes de desplazamiento","FDP (pali a spostamento di terreno)","Displacement piles",null,null,1]
["Micropiles/Minipiles","Mikropfähle","Micropiles/Minipiles","Micropieux","Micropilotes","Micropali","Micropalen",null,null,1]
["Diaphragm and slurry walls","Schlitz- und Dichtwände","Diaphragm and slurry walls","Parois moulées et de coulis","Diafragma y muros pantalla","Diaframmi e diaframmi plastici","Diaphragm and slurry walls",null,null,1]
["Sheet pile walls","Spundwände","Sheet pile walls","Rideaux de palplanches","Muros de tablestacas","Palancole metalliche","Damwanden",null,null,1]
["Pile walls","Pfahlwände","Pile walls","Pile walls","Pile walls","Pile walls","Pile walls",null,null,0]
["Anchors","Anker","Anchors","Anchors","Anchors","Tiranti di ancoraggio","Anchors",null,null,0]
["Soil Nails","Bodennägel","Soil Nails","Soil Nails","Soil Nails","Chiodature","Soil Nails",null,null,0]
["Dynamic compaction","Dynamische Intensivverdichtung","Dynamic compaction","Dynamic compaction","Dynamic compaction","Compattazione dinamica","Dynamic compaction",null,null,0]
["Vibro compaction","Rütteldruckverdichtung","Vibro compaction","Vibro compaction","Vibro compaction","Vibro-compattazione","Vibro compaction",null,null,0]
[{"$f":"INDEX(B291:I291,1,$A$1)","v":"Grouting"},"Injektionen","Grouting","Injections","Lechada","Iniezioni di consolidamento","Grouting",null,null,1]
["Jet Grouting","Düsenstrahlverfahren","Jet Grouting","Jet Grouting","Jet Grouting","Jet Grouting","Jet Grouting",null,null,0]
["Stone Columns","Rüttelstopfverdichtung","Stone Columns","Stone Columns","Stone Columns","Vibro sostituzione (Colonne di pietra)","Stone Columns",null,null,0]
["Soil Mixing","Soil Mixing","Soil Mixing","Soil Mixing","Soil Mixing","Soil mixing","Soil Mixing",null,null,1]
["Vertical Drains","Vertikaldräns","Vertical Drains","Vertical Drains","Vertical Drains","Dreni Verticali","Vertical Drains",null,null,0]
["Dewatering","Dewatering","Dewatering","Dewatering","Dewatering","Dewatering","Dewatering"]
["Test ON","Test EIN","Test ON","Test ON","Test ON","Test ON","Test AAN",null,null,1]
["Test OFF","Test AUS","Test OFF","Test OFF","PRUEBA","Test OFF","Test UIT",null,null,1]
["Countries","Länder","Countries","Pays","Países","Paesi","Landen",null,null,1]
["-Select the project country","-Wählen Sie das Projektland","-Select the project country","-Sélectionnez le pays du projet","-Seleccione el país del proyecto","-Selezionare il paese del progetto","-Selecteer het Land",null,null,1]
["---OECD Europe","---OECD Europa","---OECD Europe","--- OCDE Europe","Paises europeos miembros de la OCDE","--- Paesi europei membri dell'OCSE","Europa",null,null,1]
["Austria","Österreich","Austria","Autriche","Austria","Austria","Oostenrijk",null,null,1]
["Belgium","Belgien","Belgium","Belgique","Bélgica","Belgio","België",null,null,1]
["Czech Republic","Tschechische Republik","Czech Republic","République tchèque","República Checa","Repubblica Ceca","Tsjechie",null,null,1]
["Denmark","Dänemark","Denmark","Danemark","Dinamarca","Danimarca","Denemarken",null,null,1]
["Estonia","Estland","Estonia","Estonie","Estonia","Estonia","Estland",null,null,1]
["Finland","Finnland","Finland","Finlande","Finlandia","Finlandia","Finland",null,null,1]
["France","Frankreich","France","France","Francia","Francia","Frankrijk",null,null,1]
["Germany","Deutschland","Germany","Allemagne","Alemania","Germania","Duitsland",null,null,1]
["Greece","Griechenland","Greece","Grèce","Grecia","Grecia","Griekenland",null,null,1]
["Hungary","Ungarn","Hungary","Hongrie","Hungría","Ungheria","Hongarije",null,null,1]
["Iceland","Island","Iceland","Islande","Islandia","Islanda","IJsland",null,null,1]
["Ireland","Irland","Ireland","Irlande","Irlanda","Irlanda","Ierland",null,null,1]
["Italy","Italien","Italy","Italie","Italia","Italia","Italië",null,null,1]
["Luxembourg","Luxemburg","Luxembourg","Luxembourg","Luxemburgo","Lussemburgo","Luxemburg",null,null,1]
["Netherlands","Niederlande","Netherlands","Pays-Bas","Países Bajos","Paesi Bassi","Nederland",null,null,1]
["Norway","Norwegen","Norway","Norvège","Noruega","Norvegia","Noorwegen",null,null,1]
["Poland","Polen","Poland","Pologne","Polonia","Polonia","Polen",null,null,1]
["Portugal","Portugal","Portugal","Portugal","Portugal","Portogallo","Portugal",null,null,1]
["Slovak Republic","Slowakei","Slovak Republic","République slovaque","República Eslovaca","Repubblica Slovacca","Slowakije ",null,null,1]
["Slovenia","Slowenien","Slovenia","Slovénie","Eslovenia","Slovenia","Slovenië",null,null,1]
["Spain","Spanien","Spain","Espagne","España","Spagna","Spanje",null,null,1]
["Sweden","Schweden","Sweden","Suède","Suecia","Svezia","Zweden",null,null,1]
["Switzerland","Schweiz","Switzerland","Suisse","Suiza","Svizzera","Zwitserland",null,null,1]
["Turkey","Türkei","Turkey","Turquie","Turquía","Turchia","Turkije",null,null,1]
["United Kingdom","Vereinigtes Königreich","United Kingdom","Royaume-Uni","Reino Unido","Regno Unito","Verenigd Koninkrijk",null,null,1]
["---Non-OECD Europe and Eurasia","--- Nicht-OECD Europa und Eurasien","---Non-OECD Europe and Eurasia","--- Non-OCDE Europe et l'Eurasie",{"$error":"#NAME?"},"-Paesi OCSE non europei e dell'Eurasia","Niet-OESO-Europa en Eurazië",null,null,1]
["Albania","Albanien","Albania","Albanie","Albania","Albania","Albanië",null,null,1]
["Armenia","Armenien","Armenia","Arménie","Armenia","Armenia","Armenië",null,null,1]
["Azerbaijan","Aserbaidschan","Azerbaijan","Azerbaïdjan","Azerbaiyán","Azerbaijan","Azerbeidzjan",null,null,1]
["Belarus","Weißrussland","Belarus","Belarus","Bielorrusia","Bielorussia","Wit-Rusland",null,null,1]
["Bosnia and Herzegovina","Bosnien-Herzegowina","Bosnia and Herzegovina","Bosnie-Herzégovine","Bosnia y Herzegovina","Bosnia ed Erzegovina","Bosnië en Herzegovina",null,null,1]
["Bulgaria","Bulgarien","Bulgaria","Bulgarie","Bulgaria","Bulgaria","Bulgarije",null,null,1]
["Croatia","Kroatien","Croatia","Croatie","Croacia","Croazia","Kroatië",null,null,1]
["Cyprus","Zypern","Cyprus","Chypre","Chipre","Cipro","Cyprus",null,null,1]
["Georgia","Georgien","Georgia","Géorgie","Georgia","Georgia","Georgië",null,null,1]
["Gibraltar","Gibraltar","Gibraltar","Gibraltar","Gibraltar","Gibilterra","Gibraltar",null,null,1]
["Kazakhstan","Kasachstan","Kazakhstan","Kazakhstan","Kazajstán","Kazakistan","Kazachstan",null,null,1]
["Kyrgyzstan","Kirgistan","Kyrgyzstan","Kirghizistan","Kirguistán","Kirghizistan","Kirgizië",null,null,1]
["Latvia","Lettland","Latvia","Lettonie","Letonia","Lettonia","Letland",null,null,1]
[{"$f":"INDEX(B341:I341,1,$A$1)","v":"Lithuania"},"Litauen","Lithuania","Lituanie","Lituania","Lituania","Litouwen",null,null,1]
["FYR of Macedonia","Mazedonien","FYR of Macedonia","Ex-République yougoslave de Macédoine","ARY de Macedonia","Ex Repubblica Jugoslava di Macedonia","Macedonie (Voormalige Joegoslavische Republiek Macedonië)",null,null,1]
["Malta","Malta","Malta","Malte","Malta","Malta","Malta",null,null,1]
["Republic of Moldova","Moldawien","Republic of Moldova","République de Moldova","República de Moldova","Repubblica di Moldova","Moldavië (Republiek Moldavië)",null,null,1]
["Romania","Rumänien","Romania","Roumanie","Rumania","Romania","Roemenië",null,null,1]
["Russian Federation","Russische Föderation","Russian Federation","Fédération de Russie","Federación de Rusia","Federazione Russa","Rusland (Russische Federatie)",null,null,1]
["Serbia","Serbien","Serbia","Serbie","Serbia","Serbia","Servië",null,null,1]
["Tajikistan","Tadschikistan","Tajikistan","Tadjikistan","Tayikistán","Tagikistan","Tadzjikistan",null,null,1]
["Turkmenistan","Turkmenistan","Turkmenistan","Turkménistan","Turkmenistán","Turkmenistan","Turkmenistan",null,null,1]
["Ukraine","Ukraine","Ukraine","Ukraine","Ucrania","Ucraina","Oekraïne",null,null,1]
["Uzbekistan","Usbekistan","Uzbekistan","Ouzbékistan","Uzbekistán","Uzbekistan","Oezbekistan",null,null,1]
[{"$f":"INDEX(B352:I352,1,$A$1)","v":"---OECD America"},"---OECD Amerika","---OECD America","---OECD America","---OECD America","---OECD America","---OECD America",null,null,0]
["Canada","Kanada","Canada","Canada","Canadá","Canada","Canada",null,null,1]
["Chile","Chile","Chile","Chili","Chile","Chile","Chili",null,null,1]
["Mexico","Mexiko","Mexico","Mexique","México","Messico","Mexico",null,null,1]
["United States","Vereinigte Staaten","United States","États-Unis","Estados Unidos","Stati Uniti","Verenigde Staten van Amerika",null,null,1]
[{"$f":"INDEX(B357:I357,1,$A$1)","v":"AKGD (ASCC Alaska Grid)"},"AKGD (ASCC Alaska Grid)","AKGD (ASCC Alaska Grid)","AKGD (ASCC Alaska Grid)","AKGD (ASCC Alaska Grid)","AKGD (ASCC Alaska Grid)","AKGD (ASCC Alaska Grid)",null,null,0]
["AKMS (ASCC Miscellaneous)","AKMS (ASCC Miscellaneous)","AKMS (ASCC Miscellaneous)","AKMS (ASCC Miscellaneous)","AKMS (ASCC Miscellaneous)","AKMS (ASCC Miscellaneous)","AKMS (ASCC Miscellaneous)",null,null,0]
["AZNM (WECC Southwest)","AZNM (WECC Southwest)","AZNM (WECC Southwest)","AZNM (WECC Southwest)","AZNM (WECC Southwest)","AZNM (WECC Southwest)","AZNM (WECC Southwest)",null,null,0]
["CAMX (WECC California)","CAMX (WECC California)","CAMX (WECC California)","CAMX (WECC California)","CAMX (WECC California)","CAMX (WECC California)","CAMX (WECC California)",null,null,0]
["ERCT (ERCOT All)","ERCT (ERCOT All)","ERCT (ERCOT All)","ERCT (ERCOT All)","ERCT (ERCOT All)","ERCT (ERCOT All)","ERCT (ERCOT All)",null,null,0]
["FRCC (FRCC All)","FRCC (FRCC All)","FRCC (FRCC All)","FRCC (FRCC All)","FRCC (FRCC All)","FRCC (FRCC All)","FRCC (FRCC All)",null,null,0]
["HIMS (HICC Miscellaneous)","HIMS (HICC Miscellaneous)","HIMS (HICC Miscellaneous)","HIMS (HICC Miscellaneous)","HIMS (HICC Miscellaneous)","HIMS (HICC Miscellaneous)","HIMS (HICC Miscellaneous)",null,null,0]
["HIOA (HICC Oahu)","HIOA (HICC Oahu)","HIOA (HICC Oahu)","HIOA (HICC Oahu)","HIOA (HICC Oahu)","HIOA (HICC Oahu)","HIOA (HICC Oahu)",null,null,0]
["MROE (MRO East)","MROE (MRO East)","MROE (MRO East)","MROE (MRO East)","MROE (MRO East)","MROE (MRO East)","MROE (MRO East)",null,null,0]
["MROW (MRO West)","MROW (MRO West)","MROW (MRO West)","MROW (MRO West)","MROW (MRO West)","MROW (MRO West)","MROW (MRO West)",null,null,0]
["NEWE (NPCC New England)","NEWE (NPCC New England)","NEWE (NPCC New England)","NEWE (NPCC New England)","NEWE (NPCC New England)","NEWE (NPCC New England)","NEWE (NPCC New England)",null,null,0]
["NWPP (WECC Northwest)","NWPP (WECC Northwest)","NWPP (WECC Northwest)","NWPP (WECC Northwest)","NWPP (WECC Northwest)","NWPP (WECC Northwest)","NWPP (WECC Northwest)",null,null,0]
["NYCW (NPCC NYC/Westchester)","NYCW (NPCC NYC/Westchester)","NYCW (NPCC NYC/Westchester)","NYCW (NPCC NYC/Westchester)","NYCW (NPCC NYC/Westchester)","NYCW (NPCC NYC/Westchester)","NYCW (NPCC NYC/Westchester)",null,null,0]
["NYLI (NPCC Long Island)","NYLI (NPCC Long Island)","NYLI (NPCC Long Island)","NYLI (NPCC Long Island)","NYLI (NPCC Long Island)","NYLI (NPCC Long Island)","NYLI (NPCC Long Island)",null,null,0]
["NYUP (NPCC Upstate NY)","NYUP (NPCC Upstate NY)","NYUP (NPCC Upstate NY)","NYUP (NPCC Upstate NY)","NYUP (NPCC Upstate NY)","NYUP (NPCC Upstate NY)","NYUP (NPCC Upstate NY)",null,null,0]
["RFCE (RFC East)","RFCE (RFC East)","RFCE (RFC East)","RFCE (RFC East)","RFCE (RFC East)","RFCE (RFC East)","RFCE (RFC East)",null,null,0]
["RFCM (RFC Michigan)","RFCM (RFC Michigan)","RFCM (RFC Michigan)","RFCM (RFC Michigan)","RFCM (RFC Michigan)","RFCM (RFC Michigan)","RFCM (RFC Michigan)",null,null,0]
["RFCW (RFC West)","RFCW (RFC West)","RFCW (RFC West)","RFCW (RFC West)","RFCW (RFC West)","RFCW (RFC West)","RFCW (RFC West)",null,null,0]
["RMPA (WECC Rockies)","RMPA (WECC Rockies)","RMPA (WECC Rockies)","RMPA (WECC Rockies)","RMPA (WECC Rockies)","RMPA (WECC Rockies)","RMPA (WECC Rockies)",null,null,0]
["SPNO (SPP North)","SPNO (SPP North)","SPNO (SPP North)","SPNO (SPP North)","SPNO (SPP North)","SPNO (SPP North)","SPNO (SPP North)",null,null,0]
["SPSO (SPP South)","SPSO (SPP South)","SPSO (SPP South)","SPSO (SPP South)","SPSO (SPP South)","SPSO (SPP South)","SPSO (SPP South)",null,null,0]
["SRMV (SERC Mississippi Valley)","SRMV (SERC Mississippi Valley)","SRMV (SERC Mississippi Valley)","SRMV (SERC Mississippi Valley)","SRMV (SERC Mississippi Valley)","SRMV (SERC Mississippi Valley)","SRMV (SERC Mississippi Valley)",null,null,0]
["SRMW (SERC Midwest)","SRMW (SERC Midwest)","SRMW (SERC Midwest)","SRMW (SERC Midwest)","SRMW (SERC Midwest)","SRMW (SERC Midwest)","SRMW (SERC Midwest)",null,null,0]
["SRSO (SERC South)","SRSO (SERC South)","SRSO (SERC South)","SRSO (SERC South)","SRSO (SERC South)","SRSO (SERC South)","SRSO (SERC South)",null,null,0]
["SRTV (SERC Tennessee Valley)","SRTV (SERC Tennessee Valley)","SRTV (SERC Tennessee Valley)","SRTV (SERC Tennessee Valley)","SRTV (SERC Tennessee Valley)","SRTV (SERC Tennessee Valley)","SRTV (SERC Tennessee Valley)",null,null,0]
["SRVC (SERC Virginia/Carolina)","SRVC (SERC Virginia/Carolina)","SRVC (SERC Virginia/Carolina)","SRVC (SERC Virginia/Carolina)","SRVC (SERC Virginia/Carolina)","SRVC (SERC Virginia/Carolina)","SRVC (SERC Virginia/Carolina)",null,null,0]
["---OECD Asia Oceania","--- OECD Asien Ozeanien","---OECD Asia Oceania","--- OCDE Asie Océanie","OCDE Asia-Oceanía","Paesi OECD, Asia e Oceania","OESO Azië Oceanië",null,null,1]
["Australia","Australien","Australia","Australie","Australia","Australia","Australië",null,null,1]
["Israel","Israel","Israel","Israël","Israel","Israele","Israël",null,null,1]
["Japan","Japan","Japan","Japon","Japón","Giappone","Japan",null,null,1]
["Korea","Korea","Korea","Corée","Corea","Corea","Korea",null,null,1]
["New Zealand","Neuseeland","New Zealand","Nouvelle-Zélande","Nueva Zelandia","Nuova Zelanda","New Zealand",null,null,1]
["---Africa","--- Afrika","---Africa","--- Afrique","África","-Africa","AFRIKA",null,null,1]
["Algeria","Algerien","Algeria","Algérie","Argelia","Algeria","Algerije",null,null,1]
["Angola","Angola","Angola","Angola","Angola","Angola","Angola",null,null,1]
["Benin","Benin","Benin","Bénin","Benin","Benin","Benin",null,null,1]
["Botswana","Botswana","Botswana","Botswana","Botswana","Botswana","Botswana",null,null,1]
["Cameroon","Kamerun","Cameroon","Cameroun","Camerún","Camerun","Kameroen",null,null,1]
["Congo","Kongo","Congo","Congo","Congo","Congo","Congo",null,null,1]
["Dem. Rep. of Congo","Dem. Rep. Kongo","Dem. Rep. of Congo","Dem. République du Congo","Dem. Rep. del Congo","Dem. Rep. del Congo","Congo (Dem. Rep Congo)",null,null,1]
["Côte d'Ivoire","Elfenbeinküste","Côte d'Ivoire","Côte d'Ivoire","Côte d'Ivoire","Costa d'Avorio","Ivoorkust (Côte d'Ivoire)",null,null,1]
["Egypt","Ägypten","Egypt","Egypte","Egipto","Egitto","Egypte",null,null,1]
["Eritrea","Eritrea","Eritrea","L'Erythrée","Eritrea","Eritrea","Eritrea",null,null,1]
["Ethiopia","Äthiopien","Ethiopia","Ethiopie","Etiopía","Etiopia","Ethiopië",null,null,1]
["Gabon","Gabun","Gabon","Gabon","Gabón","Gabon","Gabon",null,null,1]
["Ghana","Ghana","Ghana","Ghana","Ghana","Ghana","Ghana",null,null,1]
["Kenya","Kenia","Kenya","Kenya","Kenia","Kenya","Kenia",null,null,1]
["Libyan Arab Jamahiriya","Libyen","Libyan Arab Jamahiriya","Jamahiriya arabe libyenne","Jamahiriya Árabe Libia","Libia","Libië",null,null,1]
["Morocco","Marokko","Morocco","Maroc","Marruecos","Marocco","Marokko",null,null,1]
["Mozambique","Mosambik","Mozambique","Mozambique","Mozambique","Mozambico","Mozambique",null,null,1]
["Namibia","Namibia","Namibia","Namibie","Namibia","Namibia","Namibië",null,null,1]
["Nigeria","Nigeria","Nigeria","Nigeria","Nigeria","Nigeria","Nigeria",null,null,1]
["Senegal","Senegal","Senegal","Sénégal","Senegal","Senegal","Senegal",null,null,1]
["South Africa","Südafrika","South Africa","Afrique du Sud","Sudáfrica","Sudafrica","South Africa",null,null,1]
["Sudan","Sudan","Sudan","Soudan","Sudán","Sudan","Soedan",null,null,1]
["United Rep. of Tanzania","Tansania","United Rep. of Tanzania","République-Unie de Tanzanie","Rep. Unida de Tanzania","Rep. Unita della Tanzania","Tanzania (Verenigde Republiek van Tanzania)",null,null,1]
["Togo","Togo","Togo","Togo","Togo","Togo","Togo",null,null,1]
["Tunisia","Tunesien","Tunisia","Tunisie","Túnez","Tunisia","Tunesië",null,null,1]
["Zambia","Sambia","Zambia","Zambie","Zambia","Zambia","Zambia",null,null,1]
["Zimbabwe","Simbabwe","Zimbabwe","Zimbabwe","Zimbabue","Zimbabwe","Zimbabwe",null,null,1]
["Other Africa","Afrika - Andere Länder ","Other Africa","Autres pays d'Afrique","Otros países de África","Altri paesi dell'Africa","Ander Afrika?",null,null,1]
["---Middle East","--- Naher Osten","---Middle East","--- Moyen-Orient","Oriente Medio","-Medio Oriente","--- Midden Oosten?",null,null,1]
["Bahrain","Bahrein","Bahrain","Bahreïn","Bahréin","Bahrain","Bahrein",null,null,1]
["Islamic Rep. of Iran","Iran","Islamic Rep. of Iran","République islamique d'Iran","República Islámica del Irán","Rep. Islamica dell'Iran","Iran",null,null,1]
["Iraq","Irak","Iraq","Irak","Irak","Iraq","Irak",null,null,1]
["Jordan","Jordanien","Jordan","Jordanie","Jordania","Giordania","Jordanië",null,null,1]
["Kuwait","Kuwait","Kuwait","Koweit","Kuwait","Kuwait","Koeweit",null,null,1]
["Lebanon","Libanon","Lebanon","Liban","Líbano","Libano","Libanon",null,null,1]
["Oman","Oman","Oman","Oman","Omán","Oman","Oman",null,null,1]
["Qatar","Katar","Qatar","Qatar","Katar","Qatar","Katar",null,null,1]
["Saudi Arabia","Saudi-Arabien","Saudi Arabia","Arabie Saoudite","Arabia Saudita","Arabia Saudita","Saoedi-Arabië",null,null,1]
["Syrian Arab Republic ","Syrien","Syrian Arab Republic ","République arabe syrienne","República Árabe Siria","Repubblica araba siriana","Syrie",null,null,1]
["United Arab Emirates","Vereinigte Arabische Emirate","United Arab Emirates","Émirats arabes unis","Emiratos Árabes Unidos","Emirati Arabi Uniti","Verenigde Arabische Emiraten",null,null,1]
["Yemen","Jemen","Yemen","Yémen","Yemen","Yemen","Jemen",null,null,1]
["---Latin America","--- Lateinamerika","---Latin America","--- Amérique latine","Latinoamérica","-America Latina","Latijns Amerika",null,null,1]
[{"$f":"INDEX(B432:I432,1,$A$1)","v":"Argentina"},"Argentinien","Argentina","Argentine","Argentina","Argentina","Argentinië",null,null,1]
["Bolivia","Bolivien","Bolivia","Bolivie","Bolivia","Bolivia","Bolivia",null,null,1]
["Brazil","Brasilien","Brazil","Brésil","Brasil","Brasile","Brazilië",null,null,1]
["Colombia","Kolumbien","Colombia","Colombie","Colombia","Colombia","Colombia",null,null,1]
["Costa Rica","Costa Rica","Costa Rica","Costa Rica","Costa Rica","Costarica","Costa Rica",null,null,1]
["Cuba","Kuba","Cuba","Cuba","Cuba","Cuba","Cuba",null,null,1]
["Dominican Republic","Dominikanische Republik","Dominican Republic","République Dominicaine","República Dominicana","Repubblica Dominicana","Dominicaanse Republiek",null,null,1]
["Ecuador","Ecuador","Ecuador","Equateur","Ecuador","Ecuador","Ecuador",null,null,1]
["El Salvador","El Salvador","El Salvador","El Salvador","El Salvador","El Salvador","El Salvador",null,null,1]
["Guatemala","Guatemala","Guatemala","Guatemala","Guatemala","Guatemala","Guatemala",null,null,1]
["Haiti","Haiti","Haiti","Haïti","Haití","Haiti","Haïti",null,null,1]
["Honduras","Honduras","Honduras","Honduras","Honduras","Honduras","Honduras",null,null,1]
["Jamaica","Jamaika","Jamaica","Jamaïque","Jamaica","Giamaica","Jamaica",null,null,1]
["Netherlands Antilles","Niederländische Antillen","Netherlands Antilles","Antilles Néerlandaises","Antillas Neerlandesas","Antille Olandesi","Nederlandse Antillen",null,null,1]
["Nicaragua","Nicaragua","Nicaragua","Nicaragua","Nicaragua","Nicaragua","Nicaragua",null,null,1]
["Panama","Panama","Panama","Panama","Panamá","Panama","Panama",null,null,1]
["Peru","Peru","Peru","Pérou","Perú","Perù","Peru",null,null,1]
["Trinidad and Tobago","Trinidad und Tobago","Trinidad and Tobago","Trinité-et-Tobago","Trinidad y Tobago","Trinidad e Tobago","Trinidad en Tobago",null,null,1]
["Uruguay","Uruguay","Uruguay","Uruguay","Uruguay","Uruguay","Uruguay",null,null,1]
["Venezuela","Venezuela","Venezuela","Venezuela","Venezuela","Venezuela","Venezuela",null,null,1]
["Other Latin America","Lateinamerika - Andere Länder","Other Latin America","Autres Amérique latine","Otros países de América Latina","Altro America Latina","Latijns-Amerika overig",null,null,1]
["---Asia","--- Asien","---Asia","--- Asie","Ásia","-Asia","Azie",null,null,1]
["Bangladesh","Bangladesch","Bangladesh","Bangladesh","Bangladesh","Bangladesh","Bangladesh",null,null,1]
["Brunei Darussalam","Brunei","Brunei Darussalam","Brunei Darussalam","Brunei Darussalam","Brunei Darussalam","Brunei Darussalam",null,null,1]
["Cambodia","Kambodscha","Cambodia","Cambodge","Camboya","Cambogia","Cambodja",null,null,1]
["China","China","China","Chine","China","Porcellana","China",null,null,1]
["Chinese Taipei","Taiwan","Chinese Taipei","Taipei chinois","Taipei Chino","Taipei cinese","Chinese Taipei",null,null,1]
["India","Indien","India","Inde","India","India","India",null,null,1]
["Indonesia","Indonesien","Indonesia","Indonésie","Indonesia","Indonesia","Indonesië",null,null,1]
["DPR of Korea","Volksrepublik Korea","DPR of Korea","RPD de Corée","República Popular Democrática de Corea","RPD di Corea","Korea (Democratische Volksrepubliek Korea)",null,null,1]
["Malaysia","Malaysia","Malaysia","Malaisie","Malasia","Malaysia","Maleisië",null,null,1]
["Mongolia","Mongolei","Mongolia","Mongolie","Mongolia","Mongolia","Mongolië",null,null,1]
["Myanmar","Myanmar","Myanmar","Myanmar","Myanmar","Myanmar","Myanmar",null,null,1]
["Nepal","Nepal","Nepal","Népal","Nepal","Nepal","Nepal",null,null,1]
["Pakistan","Pakistan","Pakistan","Pakistan","Pakistán","Pakistan","Pakistan",null,null,1]
["Philippines","Philippinen","Philippines","Philippines","Filipinas","Filippine","Filippijnen",null,null,1]
["Singapore","Singapur","Singapore","Singapour","Singapur","Singapore","Singapore",null,null,1]
["Sri Lanka","Sri Lanka","Sri Lanka","Sri Lanka","Sri Lanka","Sri Lanka","Sri Lanka",null,null,1]
["Thailand","Thailand","Thailand","Thaïlande","Tailandia","Thailandia","Thailand",null,null,1]
["Vietnam","Vietnam","Vietnam","Viêt-Nam","Vietnam","Vietnam","Vietnam",null,null,1]
["Other Asia","Asien - Andere Länder","Other Asia","Autres pays d'Asie","Otros países de Asia","Altro Asia","Overig Azië",null,null,1]
["RailFreightElectric","Bahnfracht - elektrisch -","RailFreightElectric","RailFreightElectric","RailFreightElectric","Trasporto su rotaia","RailFreightElectric",null,null,1]
["Rail - Average freight - electric - ","Mittlere Bahnfracht - elektrisch","Rail - Average freight - electric - ","Rail - Fret moyen - électrique -","Ferrocarril - Mercancía regular-eléctrico - ","Rail - merci media - elettrica -","Spoor - Gemiddelde vracht - licht - ",null,null,1]
["made at plant","Werksfertigung","made at plant","fait à l'usine","fabricado en planta","Prodotto in stabilimento","Geprefabriceerd",null,null,1]
["Manually turned OFF","Manuell ausgeschaltet","Manually turned OFF","Éteint manuellement","Apagado manualmente","Spento manualmente","Standaard waarde uitzetten",null,null,1]
["new_recycled_reused","neu_recycled_wiederverwendet","new_recycled_reused","new_recycled_reused","nuevo_reciclado_reutilizado","new_recycled_reused","new_recycled_reused",null,null,1]
["-new or recycled-","-Neu oder gebraucht-","-new or recycled-","-Neufs ou recyclés-","Nuevo o reciclado","-Nuovi o riciclati-","Nieuw of gerecycled",null,null,1]
["Enter the number of working days\n","Geben Sie die Zahl der Arbeitstage ein\n","Enter the number of working days\n","Entrez le nombre de jours ouvrés\n","Introduzca el número de días de trabajo\n","inserire il numero dei giorni lavorativi","Voer het aantal werkdagen in\n",null,null,1]
["Enter the average number of people working on the project\n","Geben Sie die mittlere Zahl der in diesem Projekt Beschäftigten an","Enter the average number of people working on the project\n","Entrez le nombre moyen de personnes travaillant sur le projet\n","Introduzca el número medio de personas que trabajan en la obra\n","inserire il numero medio dei lavoratori previsti","Voer het gemiddelde aantal mensen in die aan het project werken\n",null,null,1]
["Select a country\n","Wählen Sie ein Land\n","Select a country\n","Sélectionnez un pays\n","Seleccione un país\n","Selezionare il paese","Kies een land\n",null,null,1]
[" emissions are relatively high\n"," Emissionen sind vergleichsweise hoch"," emissions are relatively high\n"," les émissions sont relativement élevées\n"," Las emisiones son relativamente altas\n","Le emissioni sono relativamente alte"," emissies relatief hoog\n",null,null,1]
[" emissions are relatively low\n"," Emissionen sind vergleichsweise niedrig"," emissions are relatively low\n"," les émissions sont relativement faibles\n"," Las emisiones son relativamente bajas\n","le emissioni sono relativamente basse"," emissies zijn relatief laag\n",null,null,1]
["    (Primary source)","    (Primärquelle)","    (Primary source)","    (Source primaire)","    (Fuente primaria)","(fonte prmaria)","    (Primaire bron)",null,null,1]
["    (Secondary source)","    (Sekundärquelle)","    (Secondary source)","    (Source secondaire)","    (Fuente secundaria)","(fonte secondaria)","    (Secundaire bron)",null,null,1]
["General Principles :  emission sources are split into two categories :\n - primary emission sources (represented in colors)\n  - secondary emission sources (represented in gray)\n\nThe method recommends to start with the primary emission sources,with the secondary emission sources being automatically estimated. Then you may want to fine tune the calculation using specific activity data for the secondary emission sources also.","Grundlegende Prinzipien: Die Emissionsquellen sind in zwei Kategorien aufgeteilt:\n - Primär-Emissionsquellen (dargestellt in Farben)\n - Sekundär-Emissionsquellen (dargestellt in grau)\n\nEs wird empfohlen, mit den primären Emissionsquellen anzufangen, die sekundären Emissionsquellen werden automatisch abgeschätzt. Dann können Sie die Berechnung durch eine detaillierte Eingabe der sekundären Emissionsquellen noch präzisieren.","General Principles :  emission sources are split into two categories :\n - primary emission sources (represented in colors)\n  - secondary emission sources (represented in gray)\n\nThe method recommends to start with the primary emission sources,with the secondary emission sources being automatically estimated. Then you may want to fine tune the calculation using specific activity data for the secondary emission sources also.","Principes généraux: les sources d'émission sont répartis en deux catégories:\n - Sources d'émissions primaires (représentées en couleurs)\n  - Les sources d'émissions secondaires (représentées en gris)\n\nLa méthode recommande de commencer par les sources d'émissions primaires, les sources d'émissions secondaires étant automatiquement estimées. Ensuite, vous voudrez peut-être affiner le calcul en utilisant les données d'activité spécifiques également pour les sources d'émissions secondaires.","Principios generales: las fuentes de emisión se dividen en dos categorías:\n - Fuentes de emisión Primarias (representadas en colores)\n - Fuentes de emisión secundarias (representadas en gris)\n\nEl método recomienda comenzar con las fuentes de emisión primarias, estimando las fuentes de emisión secunudarias. Luego se puede afinar el cálculo utilizando datos específicos de la actividad también para las fuentes de emisión secundarias.","Principi generali: le fonti di emissione sono suddivise in due categorie:\n - Fonti di emissione primarie (colorate)\n  - Fonti di emissione secondarie (in grigio)\n\nIl metodo raccomanda di iniziare con le fonti di emissione primari: le fonti di emissioni secondarie di saranno calcolate automaticamente. Quindi si consiglia di ottimizzare il calcolo utilizzando i dati di attività specifiche a favore anche delle fonti di emissione secondarie.","Algemene beginselen: de emissiebronnen zijn verdeeld in twee categorieën:\n - Primaire emissiebronnen (vertegenwoordigd in kleuren)\n - Secundaire emissiebronnen (vertegenwoordigd in grijs)\n\nDe methode adviseert om te beginnen met de primaire (grootste) emissiebronnen, de secundaire emissie bronnen worden automatisch geschat (standaard). De berekening kan eventueel specifieker gemaakt worden door de exacte gegevens over de activiteiten voor de secundaire emissiebronnen in te vullen.",null,null,1]
["New Subproject sheet","Neues Arbeitsblatt: Teilprojekt","New Subproject sheet","Nouvelle feuille de sous-projet","Hoja de nuevo Subproyecto","Scheda per un nuovo sottoprogetto","Nieuw deelprojectblad",null,null,1]
["New Project sheet","Neues Blatt: Projekt","New Project sheet","Nouvelle feuille de projet","Hoja de Nuevo proyecto","Scheda per un nuovo progetto","Nieuw projectblad",null,null,1]
["New Comparison sheet","Neues Blatt \"Vergleich\"","New Comparison sheet","Nouvelle feuille de comparaison","nueva hoja de comparación","Nuovo foglio di comparazione","Nieuw resultatenblad",null,null,1]
["New Results sheet","Neues Blatt \"Ergebnisse\"","New Results sheet","Nouvelle feuille de résultats","Nueva hoja de Resultados ","Foglio con nuovi risultati","Nieuw vergelijkingsblad",null,null,1]
["Load your logo","Laden Sie Ihr Logo","Load your logo","Chargez votre logo","Cargue su logotipo","Caricare il logo dell'azienda","Voeg uw eigen logo toe",null,null,1]
["Set the size","Stellen Sie die Größe ein","Set the size","Définissez la taille","Ajuste el tamaño","Impostare le dimensioni","Stel grootte in",null,null,1]
["When your image fit in the white box, click here to import the logo","Wenn Ihr Bild in das weiße Feld passt, Logo importieren durch Mausklick hier","When your image fit in the white box, click here to import the logo","Lorsque votre image rentre dans la case blanche, cliquez ici pour importer le logo","Cuando su imagen se ajuste al cuadro blanco, haga clic aquí para importar el logo","Quando l'immagine è nel box bianco, clicca per importare il logo","Wanneer de afbeelding in het witte vak past, klik dan hier om het logo te importeren",null,null,1]
[{"$f":"INDEX(B494:I494,1,$A$1)","v":"Start"},"Starten","Start","Démarrer","Iniciar","Inizio","Starten",null,null,0]
[{"$f":"INDEX(B495:I495,1,$A$1)","v":"ACCEPT"},"ANNEHMEN","ACCEPT","ACCEPTER","ACEPTAR","ACCETTARE","ACCEPT",null,null,0]
["Projects emissions","Projekt-Emissionen","Projects emissions","Emissions des projets","Emisiones de los Proyectos","Emissioni di progetto","Uitstoot projecten  ",null,null,1]
["Projects emission repartitions","Verteilung der Projekt-Emission ","Projects emission repartitions","Répartitions des projets d'émissions","Reparto de las emisiones de los proyectos","Progetti di emissione ripartizioni","Verhouding uitstoot projecten",null,null,2]
[{"$f":"INDEX(B498:I498,1,$A$1)","v":"emissions repartition"},"Verteilung der Emissionen","emissions repartition","répartition des émissions","Reparto de emisiones","Ripartizione delle emissioni","Verhouding uitstoot",null,null,2]
[{"$f":"INDEX(B499:I499,1,$A$1)","v":"Materials Detail"},"Stoffe: Details","Materials Detail","Détail des matériaux","detalle de los materiales","Materiali Dettaglio","Materialen",null,null,2]
[{"$f":"INDEX(B500:I500,1,$A$1)","v":"Language"},"Sprache","Language","Langue","Idioma","Lingua","Taal",null,null,0]
["Emission breakdown : Average results (based on samples studied to develop the methodology)","Aufschlüsselung der Emissionen: Mittlere Ergebnisse (aufbauend auf zur Entwicklung der Methodik untersuchten Projekten)","Emission breakdown : Average results (based on samples studied to develop the methodology)","Répartition des émissions: Résultats moyens (basé sur des échantillons étudiés pour élaborer la méthodologie)","Desglose de emisiones: resultados promedio (basados ​​en las muestras estudiadas para desarrollar la metodología)","Ripartizione Emissione: risultati medi (basati su campioni studiati per sviluppare la metodologia)","Emissie verdeling: Gemiddeld resultaten (gebaseerd op bestudeerd om de methodiek te ontwikkelen monsters)",null,null,0]
["Units system","Einheitensystem","Units system","système d'unités","Sistema de unidades","Sistema di unità","Eenheden systeem",null,null,0]
["Metric system","Metrisches System","Metric system","Système métrique","Sistema Métrico","Sistema metrico","Metrische systeem",null,null,0]
["US units","US-Einheiten","US units","Unités américaines","Unidades de EE.UU.","Unità US","Amerikaanse eenheden",null,null,0]
["Road concrete transportation","Transportbeton","Road concrete transportation","Transport de béton route","Transporte por carretera de concreto","Trasporto di cemento su strada","Wegenbeton vervoer",null,null,0]
["Standard ratios","Standard-Werte","Standard ratios","Rapports standard","Relaciones estándar","Rapporti standard","Standaard verhoudingen",null,null,0]
["Units","Einheiten","Units","Unités","Unidades","Unità","Eenheden",null,null,0]
["mass","Masse","mass","masse","masa","massa","massa",null,null,0]
["volume","Volumen","volume","le volume","volumen","Volume","volume",null,null,0]
["transportation-vehicule","Transport-Lastwagen","transportation-vehicule","transport-véhicule","transporte-vehicule","trasporto-macchina che corrispondono","transport-vehicule",null,null,0]
["transportation-tonne","Transport-Tonne","transportation-tonne","transport-tonne","el transporte de toneladas","trasporto tonnellate","transport-ton",null,null,0]
["transportation-passenger","Transport-Passagier","transportation-passenger","transport-passager","el transporte de pasajeros","trasporto-passeggeri","transport-passagier",null,null,0]
["Average ratio","Durchschnittliches Verhältnis","Average ratio","Taux moyen","Relación media","Rapporto medio","Gemiddelde verhouding",null,null,0]
["Cement used","verwendeter Zement","Cement used","Ciment utilisé","Cemento utilizado","Cemento impiegato","Cement gebruikt",null,null,0]
["European","Europäisch","European","Européenne","Europeo","Europeo","Europese",null,null,0]
["m3","m3","m3","m3","m3","m3","m3",null,null,0]
["kg","kg","kg","kg","kg","kg","kg",null,null,0]
["US","US","US","États-Unis","EE.UU.","US","US",null,null,0]
["miles","Meilen","miles","miles","millas","miglia","mijlen",null,null,0]
["lb","Pfund","lb","lb","lb","lb","lb",null,null,0]
["ton","Tonnen","ton","tonne","tonelada","ton","ton",null,null,0]
["yd3","yd3","yd3","yd3","yd3","yd3","yd3",null,null,0]
["gallon","Gallone","gallon","gallon","galón","gallone","gallon",null,null,0]
["vehicle-mile","Fahrzeug-Meile","vehicle-mile","véhicule-mile","vehículo-milla","veicolo-chilometro","voertuig-mijl",null,null,0]
["ton-mile","Tonnen-Meile","ton-mile","tonne-mile","ton-milla","tonnellata-miglio","ton-mijl",null,null,0]
["passenger-mile","Passagier-Meile","passenger-mile","passager-mile","pasajeros-millas","passeggero-chilometro","passagier-mijl",null,null,0]
["Selected","Ausgewählt","Selected","Sélectionné","Seleccionado","Selected","Gekozen",null,null,0]
["Common distance (miles)","Gemeinsame Entfernung (Meilen)","Common distance (miles)","Distance commune (miles)","Distancia Común (millas)","Distanza comune (miglia)","Gemeenschappelijke afstand (mijlen)",null,null,0]
["Conversion factor","Umrechnungsfaktor","Conversion factor","Facteur de conversion","Factor de conversión","Fattore di conversione","Omrekeningsfactor",null,null,0]
["Maximum ratio","Maximales Verhältnis","Maximum ratio","Rapport maximal","Relación máxima","Massimo rapporto","Maximale verhouding",null,null,0]
["US - EPA","US - EPA","US - EPA","US - EPA","EE.UU. - EPA","USA - EPA","US - EPA",null,null,0]
["EPA","EPA","EPA","EPA","EPA","EPA","EPA",null,null,0]
["the table values are in metric system units","Tabellenwerte sind in metrischen Einheiten gegeben","the table values are in metric system units","les valeurs du tableau sont exprimées en unités du système métrique","los valores de la tabla están en unidades del sistema métrico","i valori della tabella sono espressi in unità del sistema metrico","de tabel waarden in metrische systeem eenheden",null,null,0]
["Minimum ratio","Minimales Verhältnis","Minimum ratio","Ratio minimum","Proporción mínima","Rapporto minimo","Minimale verhouding",null,null,0]
["Primary (1) / Secoundary (2) sources","Primäre (1) / Sekundäre (2) Quellen","Primary (1) / Secoundary (2) sources","Primaire (1) / Secoundary (2) sources","Primaria (1) / Secoundary (2) fuentes","Primario (1) / Secoundary (2) fonti","Primaire (1) / Secoundary (2) bronnen",null,null,0]
["EFFC DFI Disclaimer","EFFC DFI-Haftungsausschluss","EFFC DFI Disclaimer","EFFC DFI Disclaimer","EFFC DFI Disclaimer","EFFC DFI Disclaimer","EFFC DFI Disclaimer",null,null,0]
["The Calculator has been designed without liability with the intention of assisting in the calculation of the carbon footprint of foundation projects.","Der Rechner wurde ohne Gewähr entwickelt, mit dem Ziel, eine Berechnung der CO2-Bilanz von Spezialtiefbauprojekten zu unterstützen.","The Calculator has been designed without liability with the intention of assisting in the calculation of the carbon footprint of foundation projects.","Le calculateur a été conçu sans responsabilité avec l'intention d'aider dans le calcul de l'empreinte carbone des projets de la fondation.","La calculadora ha sido diseñado sin responsabilidad con la intención de ayudar en el cálculo de la huella de carbono de proyectos de la fundación.","Il calcolatore è stato progettato senza responsabilità con l'intento di assistere nel calcolo dell'impronta di carbonio dei progetti della fondazione.","De Calculator is ontworpen zonder aansprakelijkheid met de bedoeling om te helpen bij het berekenen van de carbon footprint van de stichting projecten.",null,null,0]
["European Federation of Foundation Contractor (EFFC)","European Federation of Foundation Contractos (EFFC)","European Federation of Foundation Contractor (EFFC)","Fédération Européenne de la Fondation entrepreneur (EFFC)","Federación Europea de la Fundación de Contratistas (EFFC)","Federazione Europea di Fondazione Impresa (EFFC)","Europese Federatie van Stichting Aannemer (EFFC)",null,null,0]
["Deep Foundations Institute (DFI)","Deep Foundations Institute (DFI)","Deep Foundations Institute (DFI)","Fondations profondes Institute (DFI)","Cimentaciones profundas Institute (DFI)","Fondazioni profonde Institute (DFI)","Deep Foundations Instituut (DFI)",null,null,0]
["Carbone 4 (the “authors\")","Carbone 4 (die \"Autoren\")","Carbone 4 (the “authors\")","Carbone 4 (les «auteurs»)","Carbone 4 (los \"autores\")","Carbone 4 (gli \"autori\")","Carbone 4 (de \"auteurs\")",null,null,0]
["Carbon Calculator for Foundations (the “Calculator”)","Carbon Calculator für den Spezialtiefbau (der \"Rechner\")","Carbon Calculator for Foundations (the “Calculator”)","calculateur de carbone pour les fondations (la \"Calculatrice\")","Calculadora de carbono de Fundaciones (la \"calculadora\")","Calcolatrice del carbonio per le Fondazioni (la \"Calcolatrice\")","Carbon Calculator voor stichtingen (de \"Rekenmachine\")",null,null,0]
[" Disclaimer","Haftungsausschluss"," Disclaimer","Disclaimer","Renuncia","Esonero di responsabilità","Ontkenning",null,null,0]
["Whilst we have taken steps to check the accuracy of the Calculator and its database, the EFFC, DFI and the authors of the Calculator do not give any warranty, guarantee, representation or other assurance as to:  the operation, quality or functionality of the Calculator; the accuracy or completeness of the Calculator; or its fitness for any particular purpose.","Obwohl wir Schritte unternommen haben, um die Genauigkeit des Rechners und der Datenbank zu prüfen, geben die EFFC, DFI und die Autoren des Rechners keine Garantie, Gewährleistung oder Zusicherung hinsichtlich des Betriebs, der Qualität oder Funktionalität des Rechners, der Genauigkeit oder Vollständigkeit des Rechners oder der Eignung für bestimmte Zwecke.","Whilst we have taken steps to check the accuracy of the Calculator and its database, the EFFC, DFI and the authors of the Calculator do not give any warranty, guarantee, representation or other assurance as to:  the operation, quality or functionality of the Calculator; the accuracy or completeness of the Calculator; or its fitness for any particular purpose.","Bien que nous ayons pris des mesures pour vérifier l'exactitude de la calculatrice et sa base de données, le EFFC, DFI et les auteurs de la calculatrice ne donnent aucune garantie, garantie, représentation ou tout autre garantie quant à: l'exploitation, la qualité ou la fonctionnalité de la calculatrice , l'exactitude ou l'exhaustivité de la calculatrice, ou son adéquation à un usage particulier.","Si bien hemos dado pasos para comprobar la exactitud de la calculadora y de su base de datos, la EFFC, DFI y los autores de la calculadora no dan ninguna garantía, garantía, manifestación o garantía en cuanto a: el funcionamiento, la calidad o la funcionalidad de la calculadora , la precisión o integridad de la calculadora, o su idoneidad para un propósito particular.","Anche se abbiamo preso provvedimenti per verificare l'esattezza della calcolatrice e il suo database, il EFFC, DFI e del calcolatore gli autori non danno alcuna garanzia, garanzia o altra garanzia circa: il funzionamento, la qualità o la funzionalità del calcolatore , l'accuratezza o la completezza del calcolatore, o la sua idoneità per uno scopo particolare.","De werking, kwaliteit of functionaliteit van de Calculator: terwijl we stappen om de juistheid van de rekenmachine en de database te controleren hebben genomen, hoeft de EFFC, DFI en de auteurs van de Calculator geen enkele garantie, belofte, verklaring of andere zekerheid te geven , de juistheid of volledigheid van de rekenmachine, of haar geschiktheid voor een bepaald doel.",null,null,0]
["To the fullest extent permissible by law, the EFFC, DFI and the authors of the Spreadsheet each disclaim all responsibility for any damages or losses (including, without limitation, financial loss, damages for loss in business projects, loss of profits or other consequential losses) arising in contract, or otherwise from the use of or inability to use the Calculator, or from any action or decision taken as a result of using the Calculator.","Die EFFC, DFI und die Autoren des Rechners übernehmen bis zum äußersten gesetzlich zulässigen Umfang keine Haftung für Schäden oder Verluste (einschließlich unbegrenzter finanzieller Verluste, Schäden durch Verluste bei Projekten, entgangene Gewinne und andere Folgeschäden), die vertraglich oder anderweitig aus dem Gebrauch oder Fehlgebrauch des Rechners entstehen oder aus jeder Maßnahme oder Entscheidung, die aufgrund der Nutzung des Rechners getroffen wird.","To the fullest extent permissible by law, the EFFC, DFI and the authors of the Spreadsheet each disclaim all responsibility for any damages or losses (including, without limitation, financial loss, damages for loss in business projects, loss of profits or other consequential losses) arising in contract, or otherwise from the use of or inability to use the Calculator, or from any action or decision taken as a result of using the Calculator.","Dans toute la mesure permise par la loi, le EFFC, DFI et les auteurs de la feuille de calcul à chaque déclinons toute responsabilité pour tout dommage ou perte (y compris, sans limitation, les pertes financières, les dommages pour perte dans des projets d'affaires, la perte de profits ou d'autres pertes indirectes ) découlant du contrat ou autrement de l'utilisation ou de l'impossibilité d'utiliser la calculatrice, ou de toute action ou décision prise à la suite de l'utilisation de la calculatrice.","En la máxima medida permitida por la ley, el EFFC, DFI y los autores de la hoja de cálculo de cada uno, declinamos toda responsabilidad por los daños o pérdidas (incluyendo, sin limitación, pérdidas financieras, daños por pérdidas de proyectos empresariales, la pérdida de beneficios u otras pérdidas consecuentes ) que surjan por contrato, o de otro tipo por el uso o la imposibilidad de usar la calculadora, ni de ninguna acción o decisión tomada como resultado del uso de la calculadora.","Nella misura massima consentita dalla legge, il EFFC, DFI e gli autori del foglio di calcolo ogni Decliniamo ogni responsabilità per eventuali perdite o danni (inclusi, senza limitazioni, perdite finanziarie, danni per perdita di progetti di business, perdita di profitti o altri danni indiretti ) derivanti dal contratto, o altrimenti dall'uso o dall'impossibilità di utilizzare la calcolatrice, o da qualsiasi azione o decisione presa in seguito utilizzando la calcolatrice.","Voor zover toegestaan ​​door de wet, het EFFC, DFI en de auteurs van de Spreadsheet elke wijzen alle verantwoordelijkheid voor enige schade of verlies (inclusief, zonder beperking, financieel verlies, schade voor verlies van zakelijke projecten, winstderving of andere gevolgschade ) door contract of anderszins uit het gebruik van of het onvermogen om de rekenmachine te gebruiken, of van enige actie of genomen als gevolg van het gebruik van de rekenmachine beslissing.",null,null,0]
[{"$f":"INDEX(B545:I545,1,$A$1)","v":"English"},"Deutsch","English","Français","Español","Italiano","Nederlands",null,null,0]
[null,null,null,null,null,null,null,null,null,0]
[null,null,null,null,null,null,null,null,null,0]
[null,null,null,null,null,null,null,null,null,0]
[null,null,null,null,null,null,null,null,null,0]

{"sheet":"Disclaimer","index":13,"n_rows":20,"n_cols":7,"rows_kept":20,"cut":false,"hidden":false,"merged":[[21,6,21,7],[19,3,19,9],[9,6,9,7],[10,6,10,7],[11,6,11,7],[12,6,12,7],[13,6,13,7],[17,3,17,9]]}
[]
[null,null,"Language"]
[]
[null,null,null,{"$f":"Translate!$A$545","v":"English"}]
[]
[]
[]
[null,null,{"$f":"Translate!$A$536","v":"EFFC DFI Disclaimer"}]
[]
[null,null,null,null,null,null,{"$f":"Translate!$A$538","v":"European Federation of Foundation Contractor (EFFC)"}]
[null,null,null,null,null,null,{"$f":"Translate!$A$539","v":"Deep Foundations Institute (DFI)"}]
[null,null,null,null,null,null,{"$f":"Translate!$A$540","v":"Carbone 4 (the “authors\")"}]
[null,null,null,null,null,null,{"$f":"Translate!$A$541","v":"Carbon Calculator for Foundations (the “Calculator”)"}]
[null,null,null,null,null,null,{"$f":"Translate!$A$542","v":" Disclaimer"}]
[]
[null,null,null,{"$f":"Translate!$A$537","v":"The Calculator has been designed without liability with the intention of assisting in the calculation of the carbon footprint of foundation projects."}]
[]
[null,null,null,{"$f":"Translate!A543","v":"Whilst we have taken steps to check the accuracy of the Calculator and its database, the EFFC, DFI and the authors of the Calculator do not give any warranty, guarantee, representation or other assurance as to:  the operation, quality or functionality of the Calculator; the accuracy or completeness of the Calculator; or its fitness for any particular purpose."}]
[]
[null,null,null,{"$f":"Translate!A544","v":"To the fullest extent permissible by law, the EFFC, DFI and the authors of the Spreadsheet each disclaim all responsibility for any damages or losses (including, without limitation, financial loss, damages for loss in business projects, loss of profits or other consequential losses) arising in contract, or otherwise from the use of or inability to use the Calculator, or from any action or decision taken as a result of using the Calculator."}]